Workbook

Sheet INTRO
B2: PC Joint Reporting Form v.3.1
B4: The purpose of this template Joint Reporting Form (JRF) - available as an Excel file - is to provide national health authorities and data managers with a standardized tool to address these reporting challenges, facilitate integration and thereby further contribute to improving overall programme management. This template aims to standardize national reporting of programme implementation outcomes, improve availability and coordination of preventive chemotherapy data across the World Health Organization regions. National authorities are requested to complete this form for submission to the World Health Organization any time before 15 August of the current year for reporting data on PC interventions implemented during the previous year.
B6: Structure of the application (worksheets):
B8: INTRO | C8: This worksheet includes guides on how to complete the joint reporting form and information about status of PC for endemic diseases in the country
B9: COUNTRY_INFO | C9: This worksheet includes information about administrative structure of the country, population by age group, status of endemicity for each disease, population requiring PC, planned interventions and interventions implemented
B10: MDA1, MDA2, MDA3, T1, T2 and T3 | C10: These worksheets include information about endemic districts targeted for treatment with specified PC medicines, treatment plan, and number of people who received treatment by age group
B11: DISTRICT | C11: This worksheet includes summary of people treated by disease at the level of implementation. If data by gender is available, it requires to enter.
B12: SUMMARY | C12: This worksheet includes summary of people treated by disease and by PC intervention. Before generating the report (run macros) please select the disease for which you need the report. Follow the same rule to generate various reports. This worksheet should be printed and submitted as a Joint Report (see the instruction for submission in the SUMMARY worksheet).
B14: Instruction for data entry
B16: Most of the cells in the above-mentioned worksheets include formula that are calculated automatically according to the treatment policy recommended by WHO for each disease. See the link http://www.who.int/neglected_diseases/preventive_chemotherapy/pct_manual/en/index.html
B18: Please enter your data into the cells according to their colour code:
C20: White - cell is not protected. Please enter the value of the requested indicator.
C22: Yellow - cell is protected and includes name of indicator. No data entry required.
C24: Orange - cell is not protected and includes a drop-down menu. Please select the value from the drop-down list.
C27: Green - cell is not protected and includes formula. Please change the value only if your data are different from those that are calculated automatically.
C30: Blue - cell is protected and includes formula. No data entry required.
B32: Country data
B34: COUNTRY | E34: RWANDA | G34: RW | H34: RWA
B36: Year of reporting data | E36: 2022
B38: Is country endemic for lymphatic filariasis (LF)? | E38: Non-endemic
B40: Is country endemic for onchocerciasis (ONCHO)? | E40: Non-endemic
B42: Is country endemic for soil-transmitted helminthiases (STH)? | E42: Endemic
B44: Is country endemic for schistosomiasis (SCH)? | E44: Endemic
B46: How many administrative units in the country? | E46: 30
B47: If demographical data at the second administrative level are not available by age group, please enter the proportion (%) of population by age group in the country. If data are available, please leave these cells blank.
B48: 1-4 years age | C48: Preschool-age children (PreSAC) | E48: 0.117
B49: 5-15 years age | C49: School-age children (SAC) | E49: 0.288
B50: 16 years + | C50: Adults | E50: 0.566

Sheet COUNTRY_INFO
A1: COUNTRY INFORMATION
A2: Administrative structure, population by age group, endemicity status, planned interventions and interventions implemented
A4: TOTAL | D4: =SUM(D$9:D$1000) -> 13410187 | E4: =SUM(E$9:E$1000) -> 1568988 | F4: =SUM(F$9:F$1000) -> 3862135 | G4: =SUM(G$9:G$1000) -> 7590165 | L4: =SUM(L$9:L$1000) -> 0 | M4: =SUM(M$9:M$1000) -> 0 | N4: =SUM(N$9:N$1000) -> 4218568 | O4: =SUM(O$9:O$1000) -> 1605017.97
A6: Country administrative structure | D6: Population | H6: Endemicity | L6: Population requiring PC | P6: Number of treatment rounds planned for the year | T6: PC implemented | V6: Click to see the recommended strategy | AC6: t2 | AD6: t3r1 | AE6: t3r2
A7: Country | B7: Province/State | C7: District | D7: Total | E7: PreSAC | F7: SAC | G7: Adults | H7: LF | I7: Oncho | J7: STH | K7: SCH | L7: LF | M7: Oncho | N7: STH | O7: SCH | P7: LF | Q7: Oncho | R7: STH | S7: SCH | T7: ROUND 1 | U7: ROUND2 | X7: x | Y7: IU_ID | Z7: IU_Name | AA7: x | AB7: x | AC7: x | AD7: x | AE7: x | AF7: x | AG7: x | AH7: x | AI7: x | AJ7: x | AK7: x | AL7: x | AM7: x | AN7: x | AO7: x | AP7: x | AQ7: x | AR7: x | AS7: x | AT7: x | AU7: x | AV7: x | AW7: x | AX7: x | AY7: x | AZ7: x | BA7: x | BB7: x | BC7: x | BD7: x | BE7: x | BF7: x
A9: =IF(INTRO!$E$34<>0,INTRO!$E$34,"") -> RWANDA | B9: Eastern | C9: Bugesera | D9: 468155 | E9: =IF(INTRO!$E$48="","",ROUND($D9*INTRO!$E$48,0)) -> 54774 | F9: =IF(INTRO!$E$49="","",ROUND($D9*INTRO!$E$49,0)) -> 134829 | G9: =IF(INTRO!$E$50="","",ROUND($D9*INTRO!$E$50,0)) -> 264976 | H9: 0 | I9: 0 | J9: 1 | K9: 2 | L9: =IF(INTRO!$E$38="Endemic", IF($H9>0, IF($H9=4,"Unknown", IF($H9=99,"Stopped", $D9)), 0),"Not required") -> Not required | M9: =IF(INTRO!$E$40="Endemic", IF($I9>0, IF($I9=4,"Unknown",IF($I9=99,"Stopped", $D9)), 0),"Not required") -> Not required | N9: =IF(INTRO!$E$42="Endemic", IF(AND($J9>1,$J9<5), IF($J9=4, "Unknown", E9+F9), 0),"Not required") -> 0 | O9: 73913.04 | P9: 0 | Q9: 0 | R9: 2 | S9: 1 | T9: T2 (PZQ) | U9: T3 (ALB/MBD) | W9: T2 | Y9: 38111 | Z9: Bugesera | AC9: ='T2'!K9 -> 102867 | AD9: =T3_R1!L9 -> 143243 | AE9: =T3_R2!L9 -> 148490 | AG9: =F9 -> 134829
A10: =IF(INTRO!$E$34<>0,INTRO!$E$34,"") -> RWANDA | B10: Northern | C10: Burera | D10: 391431 | E10: =IF(INTRO!$E$48="","",ROUND($D10*INTRO!$E$48,0)) -> 45797 | F10: =IF(INTRO!$E$49="","",ROUND($D10*INTRO!$E$49,0)) -> 112732 | G10: =IF(INTRO!$E$50="","",ROUND($D10*INTRO!$E$50,0)) -> 221550 | H10: 0 | I10: 0 | J10: 3 | K10: 2 | L10: =IF(INTRO!$E$38="Endemic", IF($H10>0, IF($H10=4,"Unknown", IF($H10=99,"Stopped", $D10)), 0),"Not required") -> Not required | M10: =IF(INTRO!$E$40="Endemic", IF($I10>0, IF($I10=4,"Unknown",IF($I10=99,"Stopped", $D10)), 0),"Not required") -> Not required | N10: =IF(INTRO!$E$42="Endemic", IF(AND($J10>1,$J10<5), IF($J10=4, "Unknown", E10+F10), 0),"Not required") -> 158529 | O10: 33878.52 | P10: 0 | Q10: 0 | R10: 2 | S10: 1 | T10: T2 (PZQ) | U10: T3 (ALB/MBD) | V10: T1 | W10: T3 | Y10: 38121 | Z10: Burera | AC10: ='T2'!K10 -> 40357 | AD10: =T3_R1!L10 -> 97099 | AE10: =T3_R2!L10 -> 111616 | AG10: =F10 -> 112732
A11: =IF(INTRO!$E$34<>0,INTRO!$E$34,"") -> RWANDA | B11: Northern | C11: Gakenke | D11: 389824 | E11: =IF(INTRO!$E$48="","",ROUND($D11*INTRO!$E$48,0)) -> 45609 | F11: =IF(INTRO!$E$49="","",ROUND($D11*INTRO!$E$49,0)) -> 112269 | G11: =IF(INTRO!$E$50="","",ROUND($D11*INTRO!$E$50,0)) -> 220640 | H11: 0 | I11: 0 | J11: 2 | K11: 2 | L11: =IF(INTRO!$E$38="Endemic", IF($H11>0, IF($H11=4,"Unknown", IF($H11=99,"Stopped", $D11)), 0),"Not required") -> Not required | M11: =IF(INTRO!$E$40="Endemic", IF($I11>0, IF($I11=4,"Unknown",IF($I11=99,"Stopped", $D11)), 0),"Not required") -> Not required | N11: =IF(INTRO!$E$42="Endemic", IF(AND($J11>1,$J11<5), IF($J11=4, "Unknown", E11+F11), 0),"Not required") -> 157878 | O11: 90724.05 | P11: 0 | Q11: 0 | R11: 2 | S11: 1 | T11: T2 (PZQ) | U11: T3 (ALB/MBD) | W11: T1 | Y11: 38122 | Z11: Gakenke | AC11: ='T2'!K11 -> 79359 | AD11: =T3_R1!L11 -> 87532 | AE11: =T3_R2!L11 -> 96374 | AG11: 112269
A12: =IF(INTRO!$E$34<>0,INTRO!$E$34,"") -> RWANDA | B12: Kigali | C12: Gasabo | D12: 747015 | E12: =IF(INTRO!$E$48="","",ROUND($D12*INTRO!$E$48,0)) -> 87401 | F12: =IF(INTRO!$E$49="","",ROUND($D12*INTRO!$E$49,0)) -> 215140 | G12: =IF(INTRO!$E$50="","",ROUND($D12*INTRO!$E$50,0)) -> 422810 | H12: 0 | I12: 0 | J12: 2 | K12: 1 | L12: =IF(INTRO!$E$38="Endemic", IF($H12>0, IF($H12=4,"Unknown", IF($H12=99,"Stopped", $D12)), 0),"Not required") -> Not required | M12: =IF(INTRO!$E$40="Endemic", IF($I12>0, IF($I12=4,"Unknown",IF($I12=99,"Stopped", $D12)), 0),"Not required") -> Not required | N12: =IF(INTRO!$E$42="Endemic", IF(AND($J12>1,$J12<5), IF($J12=4, "Unknown", E12+F12), 0),"Not required") -> 302541 | O12: 34013.952 | P12: 0 | Q12: 0 | R12: 2 | S12: 1 | T12: T2 (PZQ) | U12: T3 (ALB/MBD) | W12: T1 | Y12: 38118 | Z12: Gasabo | AC12: ='T2'!K12 -> 57499 | AD12: =T3_R1!L12 -> 156186 | AE12: =T3_R2!L12 -> 215848 | AG12: 215140
A13: =IF(INTRO!$E$34<>0,INTRO!$E$34,"") -> RWANDA | B13: Eastern | C13: Gatsibo | D13: 591162 | E13: =IF(INTRO!$E$48="","",ROUND($D13*INTRO!$E$48,0)) -> 69166 | F13: =IF(INTRO!$E$49="","",ROUND($D13*INTRO!$E$49,0)) -> 170255 | G13: =IF(INTRO!$E$50="","",ROUND($D13*INTRO!$E$50,0)) -> 334598 | H13: 0 | I13: 0 | J13: 2 | K13: 2 | L13: =IF(INTRO!$E$38="Endemic", IF($H13>0, IF($H13=4,"Unknown", IF($H13=99,"Stopped", $D13)), 0),"Not required") -> Not required | M13: =IF(INTRO!$E$40="Endemic", IF($I13>0, IF($I13=4,"Unknown",IF($I13=99,"Stopped", $D13)), 0),"Not required") -> Not required | N13: =IF(INTRO!$E$42="Endemic", IF(AND($J13>1,$J13<5), IF($J13=4, "Unknown", E13+F13), 0),"Not required") -> 239421 | O13: 120272.85 | P13: 0 | Q13: 0 | R13: 2 | S13: 1 | T13: T2 (PZQ) | U13: T3 (ALB/MBD) | W13: T1 | Y13: 38112 | Z13: Gatsibo | AC13: ='T2'!K13 -> 104741 | AD13: =T3_R1!L13 -> 144360 | AE13: =T3_R2!L13 -> 141547 | AG13: 170255
A14: =IF(INTRO!$E$34<>0,INTRO!$E$34,"") -> RWANDA | B14: Northern | C14: Gicumbi | D14: 476350 | E14: =IF(INTRO!$E$48="","",ROUND($D14*INTRO!$E$48,0)) -> 55733 | F14: =IF(INTRO!$E$49="","",ROUND($D14*INTRO!$E$49,0)) -> 137189 | G14: =IF(INTRO!$E$50="","",ROUND($D14*INTRO!$E$50,0)) -> 269614 | H14: 0 | I14: 0 | J14: 2 | K14: 2 | L14: =IF(INTRO!$E$38="Endemic", IF($H14>0, IF($H14=4,"Unknown", IF($H14=99,"Stopped", $D14)), 0),"Not required") -> Not required | M14: =IF(INTRO!$E$40="Endemic", IF($I14>0, IF($I14=4,"Unknown",IF($I14=99,"Stopped", $D14)), 0),"Not required") -> Not required | N14: =IF(INTRO!$E$42="Endemic", IF(AND($J14>1,$J14<5), IF($J14=4, "Unknown", E14+F14), 0),"Not required") -> 192922 | O14: 56711.124 | P14: 0 | Q14: 0 | R14: 2 | S14: 1 | T14: T2 (PZQ) | U14: T3 (ALB/MBD) | W14: T1 | Y14: 38123 | Z14: Gicumbi | AC14: ='T2'!K14 -> 49609 | AD14: =T3_R1!L14 -> 98264 | AE14: =T3_R2!L14 -> 107540 | AG14: 137189
A15: =IF(INTRO!$E$34<>0,INTRO!$E$34,"") -> RWANDA | B15: Southern | C15: Gisagara | D15: 399162 | E15: =IF(INTRO!$E$48="","",ROUND($D15*INTRO!$E$48,0)) -> 46702 | F15: =IF(INTRO!$E$49="","",ROUND($D15*INTRO!$E$49,0)) -> 114959 | G15: =IF(INTRO!$E$50="","",ROUND($D15*INTRO!$E$50,0)) -> 225926 | H15: 0 | I15: 0 | J15: 2 | K15: 2 | L15: =IF(INTRO!$E$38="Endemic", IF($H15>0, IF($H15=4,"Unknown", IF($H15=99,"Stopped", $D15)), 0),"Not required") -> Not required | M15: =IF(INTRO!$E$40="Endemic", IF($I15>0, IF($I15=4,"Unknown",IF($I15=99,"Stopped", $D15)), 0),"Not required") -> Not required | N15: =IF(INTRO!$E$42="Endemic", IF(AND($J15>1,$J15<5), IF($J15=4, "Unknown", E15+F15), 0),"Not required") -> 161661 | O15: 55937.52 | P15: 0 | Q15: 0 | R15: 2 | S15: 1 | T15: T2 (PZQ) | U15: T3 (ALB/MBD) | W15: T1 | Y15: 38126 | Z15: Gisagara | AC15: ='T2'!K15 -> 75514 | AD15: =T3_R1!L15 -> 110485 | AE15: =T3_R2!L15 -> 107825 | AG15: 114959
A16: =IF(INTRO!$E$34<>0,INTRO!$E$34,"") -> RWANDA | B16: Southern | C16: Huye | D16: 407430 | E16: =IF(INTRO!$E$48="","",ROUND($D16*INTRO!$E$48,0)) -> 47669 | F16: =IF(INTRO!$E$49="","",ROUND($D16*INTRO!$E$49,0)) -> 117340 | G16: =IF(INTRO!$E$50="","",ROUND($D16*INTRO!$E$50,0)) -> 230605 | H16: 0 | I16: 0 | J16: 2 | K16: 1 | L16: =IF(INTRO!$E$38="Endemic", IF($H16>0, IF($H16=4,"Unknown", IF($H16=99,"Stopped", $D16)), 0),"Not required") -> Not required | M16: =IF(INTRO!$E$40="Endemic", IF($I16>0, IF($I16=4,"Unknown",IF($I16=99,"Stopped", $D16)), 0),"Not required") -> Not required | N16: =IF(INTRO!$E$42="Endemic", IF(AND($J16>1,$J16<5), IF($J16=4, "Unknown", E16+F16), 0),"Not required") -> 165009 | O16: 59650.614 | P16: 0 | Q16: 0 | R16: 2 | S16: 1 | T16: T2 (PZQ) | U16: T3 (ALB/MBD) | W16: T1 | Y16: 38127 | Z16: Huye | AC16: ='T2'!K16 -> 51913 | AD16: =T3_R1!L16 -> 98481 | AE16: =T3_R2!L16 -> 94965 | AG16: 117340
A17: =IF(INTRO!$E$34<>0,INTRO!$E$34,"") -> RWANDA | B17: Southern | C17: Kamonyi | D17: 435480 | E17: =IF(INTRO!$E$48="","",ROUND($D17*INTRO!$E$48,0)) -> 50951 | F17: =IF(INTRO!$E$49="","",ROUND($D17*INTRO!$E$49,0)) -> 125418 | G17: =IF(INTRO!$E$50="","",ROUND($D17*INTRO!$E$50,0)) -> 246482 | H17: 0 | I17: 0 | J17: 1 | K17: 2 | L17: =IF(INTRO!$E$38="Endemic", IF($H17>0, IF($H17=4,"Unknown", IF($H17=99,"Stopped", $D17)), 0),"Not required") -> Not required | M17: =IF(INTRO!$E$40="Endemic", IF($I17>0, IF($I17=4,"Unknown",IF($I17=99,"Stopped", $D17)), 0),"Not required") -> Not required | N17: =IF(INTRO!$E$42="Endemic", IF(AND($J17>1,$J17<5), IF($J17=4, "Unknown", E17+F17), 0),"Not required") -> 0 | O17: 57492.936 | P17: 0 | Q17: 0 | R17: 2 | S17: 1 | T17: T2 (PZQ) | U17: T3 (ALB/MBD) | W17: T2 | Y17: 38128 | Z17: Kamonyi | AC17: ='T2'!K17 -> 92679 | AD17: =T3_R1!L17 -> 117436 | AE17: =T3_R2!L17 -> 103263 | AG17: 125418
A18: =IF(INTRO!$E$34<>0,INTRO!$E$34,"") -> RWANDA | B18: Western | C18: Karongi | D18: 403831 | E18: =IF(INTRO!$E$48="","",ROUND($D18*INTRO!$E$48,0)) -> 47248 | F18: =IF(INTRO!$E$49="","",ROUND($D18*INTRO!$E$49,0)) -> 116303 | G18: =IF(INTRO!$E$50="","",ROUND($D18*INTRO!$E$50,0)) -> 228568 | H18: 0 | I18: 0 | J18: 3 | K18: 2 | L18: =IF(INTRO!$E$38="Endemic", IF($H18>0, IF($H18=4,"Unknown", IF($H18=99,"Stopped", $D18)), 0),"Not required") -> Not required | M18: =IF(INTRO!$E$40="Endemic", IF($I18>0, IF($I18=4,"Unknown",IF($I18=99,"Stopped", $D18)), 0),"Not required") -> Not required | N18: =IF(INTRO!$E$42="Endemic", IF(AND($J18>1,$J18<5), IF($J18=4, "Unknown", E18+F18), 0),"Not required") -> 163551 | O18: 22337.046 | P18: 0 | Q18: 0 | R18: 2 | S18: 1 | T18: T2 (PZQ) | U18: T3 (ALB/MBD) | V18: T1 | W18: T3 | Y18: 38134 | Z18: Karongi | AC18: ='T2'!K18 -> 31610 | AD18: =T3_R1!L18 -> 104194 | AE18: =T3_R2!L18 -> 103863 | AG18: 116303
A19: =IF(INTRO!$E$34<>0,INTRO!$E$34,"") -> RWANDA | B19: Eastern | C19: Kayonza | D19: 483531 | E19: =IF(INTRO!$E$48="","",ROUND($D19*INTRO!$E$48,0)) -> 56573 | F19: =IF(INTRO!$E$49="","",ROUND($D19*INTRO!$E$49,0)) -> 139257 | G19: =IF(INTRO!$E$50="","",ROUND($D19*INTRO!$E$50,0)) -> 273679 | H19: 0 | I19: 0 | J19: 2 | K19: 2 | L19: =IF(INTRO!$E$38="Endemic", IF($H19>0, IF($H19=4,"Unknown", IF($H19=99,"Stopped", $D19)), 0),"Not required") -> Not required | M19: =IF(INTRO!$E$40="Endemic", IF($I19>0, IF($I19=4,"Unknown",IF($I19=99,"Stopped", $D19)), 0),"Not required") -> Not required | N19: =IF(INTRO!$E$42="Endemic", IF(AND($J19>1,$J19<5), IF($J19=4, "Unknown", E19+F19), 0),"Not required") -> 195830 | O19: 53193.996 | P19: 0 | Q19: 0 | R19: 2 | S19: 1 | T19: T2 (PZQ) | U19: T3 (ALB/MBD) | W19: T1 | Y19: 38113 | Z19: Kayonza | AC19: ='T2'!K19 -> 89520 | AD19: =T3_R1!L19 -> 123547 | AE19: =T3_R2!L19 -> 118745 | AG19: 139257
A20: =IF(INTRO!$E$34<>0,INTRO!$E$34,"") -> RWANDA | B20: Kigali | C20: Kicukiro | D20: 432234 | E20: =IF(INTRO!$E$48="","",ROUND($D20*INTRO!$E$48,0)) -> 50571 | F20: =IF(INTRO!$E$49="","",ROUND($D20*INTRO!$E$49,0)) -> 124483 | G20: =IF(INTRO!$E$50="","",ROUND($D20*INTRO!$E$50,0)) -> 244644 | H20: 0 | I20: 0 | J20: 1 | K20: 1 | L20: =IF(INTRO!$E$38="Endemic", IF($H20>0, IF($H20=4,"Unknown", IF($H20=99,"Stopped", $D20)), 0),"Not required") -> Not required | M20: =IF(INTRO!$E$40="Endemic", IF($I20>0, IF($I20=4,"Unknown",IF($I20=99,"Stopped", $D20)), 0),"Not required") -> Not required | N20: =IF(INTRO!$E$42="Endemic", IF(AND($J20>1,$J20<5), IF($J20=4, "Unknown", E20+F20), 0),"Not required") -> 0 | O20: 33578.928 | P20: 0 | Q20: 0 | R20: 2 | S20: 1 | T20: T2 (PZQ) | U20: T3 (ALB/MBD) | W20: T2 | Y20: 38119 | Z20: Kicukiro | AC20: ='T2'!K20 -> 45820 | AD20: =T3_R1!L20 -> 85440 | AE20: =T3_R2!L20 -> 98661 | AG20: 124483
A21: =IF(INTRO!$E$34<>0,INTRO!$E$34,"") -> RWANDA | B21: Eastern | C21: Kirehe | D21: 453980 | E21: =IF(INTRO!$E$48="","",ROUND($D21*INTRO!$E$48,0)) -> 53116 | F21: =IF(INTRO!$E$49="","",ROUND($D21*INTRO!$E$49,0)) -> 130746 | G21: =IF(INTRO!$E$50="","",ROUND($D21*INTRO!$E$50,0)) -> 256953 | H21: 0 | I21: 0 | J21: 1 | K21: 1 | L21: =IF(INTRO!$E$38="Endemic", IF($H21>0, IF($H21=4,"Unknown", IF($H21=99,"Stopped", $D21)), 0),"Not required") -> Not required | M21: =IF(INTRO!$E$40="Endemic", IF($I21>0, IF($I21=4,"Unknown",IF($I21=99,"Stopped", $D21)), 0),"Not required") -> Not required | N21: =IF(INTRO!$E$42="Endemic", IF(AND($J21>1,$J21<5), IF($J21=4, "Unknown", E21+F21), 0),"Not required") -> 0 | O21: 52213.14 | P21: 0 | Q21: 0 | R21: 2 | S21: 1 | T21: T2 (PZQ) | U21: T3 (ALB/MBD) | W21: T2 | Y21: 38114 | Z21: Kirehe | AC21: ='T2'!K21 -> 86861 | AD21: =T3_R1!L21 -> 128437 | AE21: =T3_R2!L21 -> 138767 | AG21: 130746
A22: =IF(INTRO!$E$34<>0,INTRO!$E$34,"") -> RWANDA | B22: Southern | C22: Muhanga | D22: 378908 | E22: =IF(INTRO!$E$48="","",ROUND($D22*INTRO!$E$48,0)) -> 44332 | F22: =IF(INTRO!$E$49="","",ROUND($D22*INTRO!$E$49,0)) -> 109126 | G22: =IF(INTRO!$E$50="","",ROUND($D22*INTRO!$E$50,0)) -> 214462 | H22: 0 | I22: 0 | J22: 2 | K22: 2 | L22: =IF(INTRO!$E$38="Endemic", IF($H22>0, IF($H22=4,"Unknown", IF($H22=99,"Stopped", $D22)), 0),"Not required") -> Not required | M22: =IF(INTRO!$E$40="Endemic", IF($I22>0, IF($I22=4,"Unknown",IF($I22=99,"Stopped", $D22)), 0),"Not required") -> Not required | N22: =IF(INTRO!$E$42="Endemic", IF(AND($J22>1,$J22<5), IF($J22=4, "Unknown", E22+F22), 0),"Not required") -> 153458 | O22: 50423.796 | P22: 0 | Q22: 0 | R22: 2 | S22: 1 | T22: T2 (PZQ) | U22: T3 (ALB/MBD) | W22: T1 | Y22: 38129 | Z22: Muhanga | AC22: ='T2'!K22 -> 52365 | AD22: =T3_R1!L22 -> 92647 | AE22: =T3_R2!L22 -> 93686 | AG22: 109126
A23: =IF(INTRO!$E$34<>0,INTRO!$E$34,"") -> RWANDA | B23: Northern | C23: Musanze | D23: 450843 | E23: =IF(INTRO!$E$48="","",ROUND($D23*INTRO!$E$48,0)) -> 52749 | F23: =IF(INTRO!$E$49="","",ROUND($D23*INTRO!$E$49,0)) -> 129843 | G23: =IF(INTRO!$E$50="","",ROUND($D23*INTRO!$E$50,0)) -> 255177 | H23: 0 | I23: 0 | J23: 3 | K23: 2 | L23: =IF(INTRO!$E$38="Endemic", IF($H23>0, IF($H23=4,"Unknown", IF($H23=99,"Stopped", $D23)), 0),"Not required") -> Not required | M23: =IF(INTRO!$E$40="Endemic", IF($I23>0, IF($I23=4,"Unknown",IF($I23=99,"Stopped", $D23)), 0),"Not required") -> Not required | N23: =IF(INTRO!$E$42="Endemic", IF(AND($J23>1,$J23<5), IF($J23=4, "Unknown", E23+F23), 0),"Not required") -> 182592 | O23: 23087.052 | P23: 0 | Q23: 0 | R23: 2 | S23: 1 | T23: T2 (PZQ) | U23: T3 (ALB/MBD) | V23: T1 | W23: T3 | Y23: 38124 | Z23: Musanze | AC23: ='T2'!K23 -> 30572 | AD23: =T3_R1!L23 -> 113996 | AE23: =T3_R2!L23 -> 118053 | AG23: 129843
A24: =IF(INTRO!$E$34<>0,INTRO!$E$34,"") -> RWANDA | B24: Eastern | C24: Ngoma | D24: 445138 | E24: =IF(INTRO!$E$48="","",ROUND($D24*INTRO!$E$48,0)) -> 52081 | F24: =IF(INTRO!$E$49="","",ROUND($D24*INTRO!$E$49,0)) -> 128200 | G24: =IF(INTRO!$E$50="","",ROUND($D24*INTRO!$E$50,0)) -> 251948 | H24: 0 | I24: 0 | J24: 1 | K24: 2 | L24: =IF(INTRO!$E$38="Endemic", IF($H24>0, IF($H24=4,"Unknown", IF($H24=99,"Stopped", $D24)), 0),"Not required") -> Not required | M24: =IF(INTRO!$E$40="Endemic", IF($I24>0, IF($I24=4,"Unknown",IF($I24=99,"Stopped", $D24)), 0),"Not required") -> Not required | N24: =IF(INTRO!$E$42="Endemic", IF(AND($J24>1,$J24<5), IF($J24=4, "Unknown", E24+F24), 0),"Not required") -> 0 | O24: 63313.434 | P24: 0 | Q24: 0 | R24: 2 | S24: 1 | T24: T2 (PZQ) | U24: T3 (ALB/MBD) | W24: T2 | Y24: 38115 | Z24: Ngoma | AC24: ='T2'!K24 -> 82378 | AD24: =T3_R1!L24 -> 106954 | AE24: =T3_R2!L24 -> 111682 | AG24: 128200
A25: =IF(INTRO!$E$34<>0,INTRO!$E$34,"") -> RWANDA | B25: Western | C25: Ngororero | D25: 406505 | E25: =IF(INTRO!$E$48="","",ROUND($D25*INTRO!$E$48,0)) -> 47561 | F25: =IF(INTRO!$E$49="","",ROUND($D25*INTRO!$E$49,0)) -> 117073 | G25: =IF(INTRO!$E$50="","",ROUND($D25*INTRO!$E$50,0)) -> 230082 | H25: 0 | I25: 0 | J25: 2 | K25: 2 | L25: =IF(INTRO!$E$38="Endemic", IF($H25>0, IF($H25=4,"Unknown", IF($H25=99,"Stopped", $D25)), 0),"Not required") -> Not required | M25: =IF(INTRO!$E$40="Endemic", IF($I25>0, IF($I25=4,"Unknown",IF($I25=99,"Stopped", $D25)), 0),"Not required") -> Not required | N25: =IF(INTRO!$E$42="Endemic", IF(AND($J25>1,$J25<5), IF($J25=4, "Unknown", E25+F25), 0),"Not required") -> 164634 | O25: 29224.584 | P25: 0 | Q25: 0 | R25: 2 | S25: 1 | T25: T2 (PZQ) | U25: T3 (ALB/MBD) | W25: T1 | Y25: 38136 | Z25: Ngororero | AC25: ='T2'!K25 -> 21352 | AD25: =T3_R1!L25 -> 105085 | AE25: =T3_R2!L25 -> 106626 | AG25: 117073
A26: =IF(INTRO!$E$34<>0,INTRO!$E$34,"") -> RWANDA | B26: Western | C26: Nyabihu | D26: 349548 | E26: =IF(INTRO!$E$48="","",ROUND($D26*INTRO!$E$48,0)) -> 40897 | F26: =IF(INTRO!$E$49="","",ROUND($D26*INTRO!$E$49,0)) -> 100670 | G26: =IF(INTRO!$E$50="","",ROUND($D26*INTRO!$E$50,0)) -> 197844 | H26: 0 | I26: 0 | J26: 3 | K26: 1 | L26: =IF(INTRO!$E$38="Endemic", IF($H26>0, IF($H26=4,"Unknown", IF($H26=99,"Stopped", $D26)), 0),"Not required") -> Not required | M26: =IF(INTRO!$E$40="Endemic", IF($I26>0, IF($I26=4,"Unknown",IF($I26=99,"Stopped", $D26)), 0),"Not required") -> Not required | N26: =IF(INTRO!$E$42="Endemic", IF(AND($J26>1,$J26<5), IF($J26=4, "Unknown", E26+F26), 0),"Not required") -> 141567 | O26: 23132.196 | P26: 0 | Q26: 0 | R26: 2 | S26: 1 | T26: T2 (PZQ) | U26: T3 (ALB/MBD) | V26: T1 | W26: T3 | Y26: 38137 | Z26: Nyabihu | AC26: ='T2'!K26 -> 36846 | AD26: =T3_R1!L26 -> 83708 | AE26: =T3_R2!L26 -> 100439 | AG26: 100670
A27: =IF(INTRO!$E$34<>0,INTRO!$E$34,"") -> RWANDA | B27: Eastern | C27: Nyagatare | D27: 685136 | E27: =IF(INTRO!$E$48="","",ROUND($D27*INTRO!$E$48,0)) -> 80161 | F27: =IF(INTRO!$E$49="","",ROUND($D27*INTRO!$E$49,0)) -> 197319 | G27: =IF(INTRO!$E$50="","",ROUND($D27*INTRO!$E$50,0)) -> 387787 | H27: 0 | I27: 0 | J27: 2 | K27: 2 | L27: =IF(INTRO!$E$38="Endemic", IF($H27>0, IF($H27=4,"Unknown", IF($H27=99,"Stopped", $D27)), 0),"Not required") -> Not required | M27: =IF(INTRO!$E$40="Endemic", IF($I27>0, IF($I27=4,"Unknown",IF($I27=99,"Stopped", $D27)), 0),"Not required") -> Not required | N27: =IF(INTRO!$E$42="Endemic", IF(AND($J27>1,$J27<5), IF($J27=4, "Unknown", E27+F27), 0),"Not required") -> 277480 | O27: 60934.14 | P27: 0 | Q27: 0 | R27: 2 | S27: 1 | T27: T2 (PZQ) | U27: T3 (ALB/MBD) | W27: T1 | Y27: 38116 | Z27: Nyagatare | AC27: ='T2'!K27 -> 77734 | AD27: =T3_R1!L27 -> 149516 | AE27: =T3_R2!L27 -> 187547 | AG27: 197319
A28: =IF(INTRO!$E$34<>0,INTRO!$E$34,"") -> RWANDA | B28: Southern | C28: Nyamagabe | D28: 421686 | E28: =IF(INTRO!$E$48="","",ROUND($D28*INTRO!$E$48,0)) -> 49337 | F28: =IF(INTRO!$E$49="","",ROUND($D28*INTRO!$E$49,0)) -> 121446 | G28: =IF(INTRO!$E$50="","",ROUND($D28*INTRO!$E$50,0)) -> 238674 | H28: 0 | I28: 0 | J28: 3 | K28: 1 | L28: =IF(INTRO!$E$38="Endemic", IF($H28>0, IF($H28=4,"Unknown", IF($H28=99,"Stopped", $D28)), 0),"Not required") -> Not required | M28: =IF(INTRO!$E$40="Endemic", IF($I28>0, IF($I28=4,"Unknown",IF($I28=99,"Stopped", $D28)), 0),"Not required") -> Not required | N28: =IF(INTRO!$E$42="Endemic", IF(AND($J28>1,$J28<5), IF($J28=4, "Unknown", E28+F28), 0),"Not required") -> 170783 | O28: 46590.66 | P28: 0 | Q28: 0 | R28: 2 | S28: 1 | T28: T2 (PZQ) | U28: T3 (ALB/MBD) | V28: T1 | W28: T3 | Y28: 38130 | Z28: Nyamagabe | AC28: ='T2'!K28 -> 49697 | AD28: =T3_R1!L28 -> 104388 | AE28: =T3_R2!L28 -> 111558 | AG28: 121446
A29: =IF(INTRO!$E$34<>0,INTRO!$E$34,"") -> RWANDA | B29: Western | C29: Nyamasheke | D29: 465357 | E29: =IF(INTRO!$E$48="","",ROUND($D29*INTRO!$E$48,0)) -> 54447 | F29: =IF(INTRO!$E$49="","",ROUND($D29*INTRO!$E$49,0)) -> 134023 | G29: =IF(INTRO!$E$50="","",ROUND($D29*INTRO!$E$50,0)) -> 263392 | H29: 0 | I29: 0 | J29: 3 | K29: 2 | L29: =IF(INTRO!$E$38="Endemic", IF($H29>0, IF($H29=4,"Unknown", IF($H29=99,"Stopped", $D29)), 0),"Not required") -> Not required | M29: =IF(INTRO!$E$40="Endemic", IF($I29>0, IF($I29=4,"Unknown",IF($I29=99,"Stopped", $D29)), 0),"Not required") -> Not required | N29: =IF(INTRO!$E$42="Endemic", IF(AND($J29>1,$J29<5), IF($J29=4, "Unknown", E29+F29), 0),"Not required") -> 188470 | O29: 99784.656 | P29: 0 | Q29: 0 | R29: 2 | S29: 1 | T29: T2 (PZQ) | U29: T3 (ALB/MBD) | V29: T1 | W29: T3 | Y29: 38138 | Z29: Nyamasheke | AC29: ='T2'!K29 -> 93049 | AD29: =T3_R1!L29 -> 111398 | AE29: =T3_R2!L29 -> 125691 | AG29: 134023
A30: =IF(INTRO!$E$34<>0,INTRO!$E$34,"") -> RWANDA | B30: Southern | C30: Nyanza | D30: 425380 | E30: =IF(INTRO!$E$48="","",ROUND($D30*INTRO!$E$48,0)) -> 49769 | F30: =IF(INTRO!$E$49="","",ROUND($D30*INTRO!$E$49,0)) -> 122509 | G30: =IF(INTRO!$E$50="","",ROUND($D30*INTRO!$E$50,0)) -> 240765 | H30: 0 | I30: 0 | J30: 2 | K30: 2 | L30: =IF(INTRO!$E$38="Endemic", IF($H30>0, IF($H30=4,"Unknown", IF($H30=99,"Stopped", $D30)), 0),"Not required") -> Not required | M30: =IF(INTRO!$E$40="Endemic", IF($I30>0, IF($I30=4,"Unknown",IF($I30=99,"Stopped", $D30)), 0),"Not required") -> Not required | N30: =IF(INTRO!$E$42="Endemic", IF(AND($J30>1,$J30<5), IF($J30=4, "Unknown", E30+F30), 0),"Not required") -> 172278 | O30: 55050.03 | P30: 0 | Q30: 0 | R30: 2 | S30: 1 | T30: T2 (PZQ) | U30: T3 (ALB/MBD) | W30: T1 | Y30: 38131 | Z30: Nyanza | AC30: ='T2'!K30 -> 79658 | AD30: =T3_R1!L30 -> 94389 | AE30: =T3_R2!L30 -> 106708 | AG30: 122509
A31: =IF(INTRO!$E$34<>0,INTRO!$E$34,"") -> RWANDA | B31: Kigali | C31: Nyarugenge | D31: 353799 | E31: =IF(INTRO!$E$48="","",ROUND($D31*INTRO!$E$48,0)) -> 41394 | F31: =IF(INTRO!$E$49="","",ROUND($D31*INTRO!$E$49,0)) -> 101894 | G31: =IF(INTRO!$E$50="","",ROUND($D31*INTRO!$E$50,0)) -> 200250 | H31: 0 | I31: 0 | J31: 1 | K31: 2 | L31: =IF(INTRO!$E$38="Endemic", IF($H31>0, IF($H31=4,"Unknown", IF($H31=99,"Stopped", $D31)), 0),"Not required") -> Not required | M31: =IF(INTRO!$E$40="Endemic", IF($I31>0, IF($I31=4,"Unknown",IF($I31=99,"Stopped", $D31)), 0),"Not required") -> Not required | N31: =IF(INTRO!$E$42="Endemic", IF(AND($J31>1,$J31<5), IF($J31=4, "Unknown", E31+F31), 0),"Not required") -> 0 | O31: 19435.518 | P31: 0 | Q31: 0 | R31: 2 | S31: 1 | T31: T2 (PZQ) | U31: T3 (ALB/MBD) | W31: T2 | Y31: 38120 | Z31: Nyarugenge | AC31: ='T2'!K31 -> 32279 | AD31: =T3_R1!L31 -> 81408 | AE31: =T3_R2!L31 -> 90721 | AG31: 101894
A32: =IF(INTRO!$E$34<>0,INTRO!$E$34,"") -> RWANDA | B32: Southern | C32: Nyaruguru | D32: 367275 | E32: =IF(INTRO!$E$48="","",ROUND($D32*INTRO!$E$48,0)) -> 42971 | F32: =IF(INTRO!$E$49="","",ROUND($D32*INTRO!$E$49,0)) -> 105775 | G32: =IF(INTRO!$E$50="","",ROUND($D32*INTRO!$E$50,0)) -> 207878 | H32: 0 | I32: 0 | J32: 3 | K32: 1 | L32: =IF(INTRO!$E$38="Endemic", IF($H32>0, IF($H32=4,"Unknown", IF($H32=99,"Stopped", $D32)), 0),"Not required") -> Not required | M32: =IF(INTRO!$E$40="Endemic", IF($I32>0, IF($I32=4,"Unknown",IF($I32=99,"Stopped", $D32)), 0),"Not required") -> Not required | N32: =IF(INTRO!$E$42="Endemic", IF(AND($J32>1,$J32<5), IF($J32=4, "Unknown", E32+F32), 0),"Not required") -> 148746 | O32: 46680.948 | P32: 0 | Q32: 0 | R32: 2 | S32: 1 | T32: T2 (PZQ) | U32: T3 (ALB/MBD) | V32: T1 | W32: T3 | Y32: 38132 | Z32: Nyaruguru | AC32: ='T2'!K32 -> 44347 | AD32: =T3_R1!L32 -> 86948 | AE32: =T3_R2!L32 -> 101194 | AG32: 105775
A33: =IF(INTRO!$E$34<>0,INTRO!$E$34,"") -> RWANDA | B33: Western | C33: Rubavu | D33: 529197 | E33: =IF(INTRO!$E$48="","",ROUND($D33*INTRO!$E$48,0)) -> 61916 | F33: =IF(INTRO!$E$49="","",ROUND($D33*INTRO!$E$49,0)) -> 152409 | G33: =IF(INTRO!$E$50="","",ROUND($D33*INTRO!$E$50,0)) -> 299526 | H33: 0 | I33: 0 | J33: 3 | K33: 2 | L33: =IF(INTRO!$E$38="Endemic", IF($H33>0, IF($H33=4,"Unknown", IF($H33=99,"Stopped", $D33)), 0),"Not required") -> Not required | M33: =IF(INTRO!$E$40="Endemic", IF($I33>0, IF($I33=4,"Unknown",IF($I33=99,"Stopped", $D33)), 0),"Not required") -> Not required | N33: =IF(INTRO!$E$42="Endemic", IF(AND($J33>1,$J33<5), IF($J33=4, "Unknown", E33+F33), 0),"Not required") -> 214325 | O33: 30111.048 | P33: 0 | Q33: 0 | R33: 2 | S33: 1 | T33: T2 (PZQ) | U33: T3 (ALB/MBD) | V33: T1 | W33: T3 | Y33: 38139 | Z33: Rubavu | AC33: ='T2'!K33 -> 36603 | AD33: =T3_R1!L33 -> 143422 | AE33: =T3_R2!L33 -> 155340 | AG33: 152409
A34: =IF(INTRO!$E$34<>0,INTRO!$E$34,"") -> RWANDA | B34: Southern | C34: Ruhango | D34: 403611 | E34: =IF(INTRO!$E$48="","",ROUND($D34*INTRO!$E$48,0)) -> 47222 | F34: =IF(INTRO!$E$49="","",ROUND($D34*INTRO!$E$49,0)) -> 116240 | G34: =IF(INTRO!$E$50="","",ROUND($D34*INTRO!$E$50,0)) -> 228444 | H34: 0 | I34: 0 | J34: 2 | K34: 2 | L34: =IF(INTRO!$E$38="Endemic", IF($H34>0, IF($H34=4,"Unknown", IF($H34=99,"Stopped", $D34)), 0),"Not required") -> Not required | M34: =IF(INTRO!$E$40="Endemic", IF($I34>0, IF($I34=4,"Unknown",IF($I34=99,"Stopped", $D34)), 0),"Not required") -> Not required | N34: =IF(INTRO!$E$42="Endemic", IF(AND($J34>1,$J34<5), IF($J34=4, "Unknown", E34+F34), 0),"Not required") -> 163462 | O34: 76631.94 | P34: 0 | Q34: 0 | R34: 2 | S34: 1 | T34: T2 (PZQ) | U34: T3 (ALB/MBD) | W34: T1 | Y34: 38133 | Z34: Ruhango | AC34: ='T2'!K34 -> 76434 | AD34: =T3_R1!L34 -> 93329 | AE34: =T3_R2!L34 -> 101152 | AG34: 116240
A35: =IF(INTRO!$E$34<>0,INTRO!$E$34,"") -> RWANDA | B35: Northern | C35: Rulindo | D35: 346492 | E35: =IF(INTRO!$E$48="","",ROUND($D35*INTRO!$E$48,0)) -> 40540 | F35: =IF(INTRO!$E$49="","",ROUND($D35*INTRO!$E$49,0)) -> 99790 | G35: =IF(INTRO!$E$50="","",ROUND($D35*INTRO!$E$50,0)) -> 196114 | H35: 0 | I35: 0 | J35: 3 | K35: 2 | L35: =IF(INTRO!$E$38="Endemic", IF($H35>0, IF($H35=4,"Unknown", IF($H35=99,"Stopped", $D35)), 0),"Not required") -> Not required | M35: =IF(INTRO!$E$40="Endemic", IF($I35>0, IF($I35=4,"Unknown",IF($I35=99,"Stopped", $D35)), 0),"Not required") -> Not required | N35: =IF(INTRO!$E$42="Endemic", IF(AND($J35>1,$J35<5), IF($J35=4, "Unknown", E35+F35), 0),"Not required") -> 140330 | O35: 77608.692 | P35: 0 | Q35: 0 | R35: 2 | S35: 1 | T35: T2 (PZQ) | U35: T3 (ALB/MBD) | V35: T1 | W35: T3 | Y35: 38125 | Z35: Rulindo | AC35: ='T2'!K35 -> 73197 | AD35: =T3_R1!L35 -> 90512 | AE35: =T3_R2!L35 -> 92972 | AG35: 99790
A36: =IF(INTRO!$E$34<>0,INTRO!$E$34,"") -> RWANDA | B36: Western | C36: Rusizi | D36: 498679 | E36: =IF(INTRO!$E$48="","",ROUND($D36*INTRO!$E$48,0)) -> 58345 | F36: =IF(INTRO!$E$49="","",ROUND($D36*INTRO!$E$49,0)) -> 143620 | G36: =IF(INTRO!$E$50="","",ROUND($D36*INTRO!$E$50,0)) -> 282252 | H36: 0 | I36: 0 | J36: 2 | K36: 2 | L36: =IF(INTRO!$E$38="Endemic", IF($H36>0, IF($H36=4,"Unknown", IF($H36=99,"Stopped", $D36)), 0),"Not required") -> Not required | M36: =IF(INTRO!$E$40="Endemic", IF($I36>0, IF($I36=4,"Unknown",IF($I36=99,"Stopped", $D36)), 0),"Not required") -> Not required | N36: =IF(INTRO!$E$42="Endemic", IF(AND($J36>1,$J36<5), IF($J36=4, "Unknown", E36+F36), 0),"Not required") -> 201965 | O36: 77433.246 | P36: 0 | Q36: 0 | R36: 2 | S36: 1 | T36: T2 (PZQ) | U36: T3 (ALB/MBD) | W36: T1 | Y36: 38140 | Z36: Rusizi | AC36: ='T2'!K36 -> 106518 | AD36: =T3_R1!L36 -> 136676 | AE36: =T3_R2!L36 -> 127614 | AG36: 143620
A37: =IF(INTRO!$E$34<>0,INTRO!$E$34,"") -> RWANDA | B37: Western | C37: Rutsiro | D37: 397867 | E37: =IF(INTRO!$E$48="","",ROUND($D37*INTRO!$E$48,0)) -> 46550 | F37: =IF(INTRO!$E$49="","",ROUND($D37*INTRO!$E$49,0)) -> 114586 | G37: =IF(INTRO!$E$50="","",ROUND($D37*INTRO!$E$50,0)) -> 225193 | H37: 0 | I37: 0 | J37: 3 | K37: 2 | L37: =IF(INTRO!$E$38="Endemic", IF($H37>0, IF($H37=4,"Unknown", IF($H37=99,"Stopped", $D37)), 0),"Not required") -> Not required | M37: =IF(INTRO!$E$40="Endemic", IF($I37>0, IF($I37=4,"Unknown",IF($I37=99,"Stopped", $D37)), 0),"Not required") -> Not required | N37: =IF(INTRO!$E$42="Endemic", IF(AND($J37>1,$J37<5), IF($J37=4, "Unknown", E37+F37), 0),"Not required") -> 161136 | O37: 45377.928 | P37: 0 | Q37: 0 | R37: 2 | S37: 1 | T37: T2 (PZQ) | U37: T3 (ALB/MBD) | V37: T1 | W37: T3 | Y37: 38141 | Z37: Rutsiro | AC37: ='T2'!K37 -> 47500 | AD37: =T3_R1!L37 -> 103666 | AE37: =T3_R2!L37 -> 106027 | AG37: 114586
A38: =IF(INTRO!$E$34<>0,INTRO!$E$34,"") -> RWANDA | B38: Eastern | C38: Rwamagana | D38: 405181 | E38: =IF(INTRO!$E$48="","",ROUND($D38*INTRO!$E$48,0)) -> 47406 | F38: =IF(INTRO!$E$49="","",ROUND($D38*INTRO!$E$49,0)) -> 116692 | G38: =IF(INTRO!$E$50="","",ROUND($D38*INTRO!$E$50,0)) -> 229332 | H38: 0 | I38: 0 | J38: 1 | K38: 2 | L38: =IF(INTRO!$E$38="Endemic", IF($H38>0, IF($H38=4,"Unknown", IF($H38=99,"Stopped", $D38)), 0),"Not required") -> Not required | M38: =IF(INTRO!$E$40="Endemic", IF($I38>0, IF($I38=4,"Unknown",IF($I38=99,"Stopped", $D38)), 0),"Not required") -> Not required | N38: =IF(INTRO!$E$42="Endemic", IF(AND($J38>1,$J38<5), IF($J38=4, "Unknown", E38+F38), 0),"Not required") -> 0 | O38: 36280.386 | P38: 0 | Q38: 0 | R38: 2 | S38: 1 | T38: T2 (PZQ) | U38: T3 (ALB/MBD) | W38: T2 | Y38: 38117 | Z38: Rwamagana | AC38: ='T2'!K38 -> 50251 | AD38: =T3_R1!L38 -> 118359 | AE38: =T3_R2!L38 -> 116789 | AG38: 116692

Sheet MDA1 (hidden)
A1: MDA 1 - Ivermectin (IVM) and Albendazole (ALB)
A2: Administrative structure, population requiring PC by age group, population treated by age group and coverage
A4: TOTAL | G4: =SUM(G$9:G$1000) -> 0 | H4: =SUM(H$9:H$1000) -> 0 | I4: =SUM(I$9:I$1000) -> 0 | K4: =SUM(K$9:K$1000) -> 0 | L4: =SUM(L$9:L$1000) -> 0 | M4: =SUM(M$9:M$1000) -> 0 | O4: =IF(G4<>0, IF(K4/G4*100=0, "-", K4/G4*100), " ") ->  | P4: =IF(H4<>0, IF(L4/H4*100=0, "-", L4/H4*100), " ") ->  | Q4: =IF(I4<>0, IF(M4/I4*100=0, "-", M4/I4*100), " ") -> 
D6: PC implemented | E6: Date | F6: Population targeted for MDA 1 | J6: Population treated | N6: Programme coverage (%)
A7: Country | B7: Province/State | C7: District | F7: PreSAC | G7: SAC | H7: Adults | I7: Total | J7: PreSAC | K7: SAC | L7: Adults | M7: Total | N7: PreSAC | O7: SAC | P7: Adults | Q7: Total
A9: =IF(COUNTRY_INFO!A9=0," ",COUNTRY_INFO!A9) -> RWANDA | B9: =IF(COUNTRY_INFO!B9=0," ",COUNTRY_INFO!B9) -> Eastern | C9: =IF(COUNTRY_INFO!C9=0," ",COUNTRY_INFO!C9) -> Bugesera | D9: =IF(COUNTRY_INFO!$T$9:$T$1000="MDA1 (IVM+ALB)", COUNTRY_INFO!$T$9:$T$1000, " ") ->  | I9: =SUM(F9:H9) -> 0 | M9: =SUM(J9:L9) -> 0 | O9: =IF(G9<>0, IF(K9/G9*100=0, "-", K9/G9*100), " ") ->  | P9: =IF(H9<>0, IF(L9/H9*100=0, "-", L9/H9*100), " ") -> 
A10: =IF(COUNTRY_INFO!A10=0," ",COUNTRY_INFO!A10) -> RWANDA | B10: =IF(COUNTRY_INFO!B10=0," ",COUNTRY_INFO!B10) -> Northern | C10: =IF(COUNTRY_INFO!C10=0," ",COUNTRY_INFO!C10) -> Burera | D10: =IF(COUNTRY_INFO!$T$9:$T$1000="MDA1 (IVM+ALB)", COUNTRY_INFO!$T$9:$T$1000, " ") ->  | I10: =SUM(F10:H10) -> 0 | M10: =SUM(J10:L10) -> 0 | O10: =IF(G10<>0, IF(K10/G10*100=0, "-", K10/G10*100), " ") ->  | P10: =IF(H10<>0, IF(L10/H10*100=0, "-", L10/H10*100), " ") ->  | Q10: =IF(I10<>0, IF(M10/I10*100=0, "-", M10/I10*100), " ") -> 
A11: =IF(COUNTRY_INFO!A11=0," ",COUNTRY_INFO!A11) -> RWANDA | B11: =IF(COUNTRY_INFO!B11=0," ",COUNTRY_INFO!B11) -> Northern | C11: =IF(COUNTRY_INFO!C11=0," ",COUNTRY_INFO!C11) -> Gakenke | D11: =IF(COUNTRY_INFO!$T$9:$T$1000="MDA1 (IVM+ALB)", COUNTRY_INFO!$T$9:$T$1000, " ") ->  | I11: 0 | M11: 0
A12: =IF(COUNTRY_INFO!A12=0," ",COUNTRY_INFO!A12) -> RWANDA | B12: =IF(COUNTRY_INFO!B12=0," ",COUNTRY_INFO!B12) -> Kigali | C12: =IF(COUNTRY_INFO!C12=0," ",COUNTRY_INFO!C12) -> Gasabo | D12: =IF(COUNTRY_INFO!$T$9:$T$1000="MDA1 (IVM+ALB)", COUNTRY_INFO!$T$9:$T$1000, " ") ->  | I12: 0 | M12: 0
A13: =IF(COUNTRY_INFO!A13=0," ",COUNTRY_INFO!A13) -> RWANDA | B13: =IF(COUNTRY_INFO!B13=0," ",COUNTRY_INFO!B13) -> Eastern | C13: =IF(COUNTRY_INFO!C13=0," ",COUNTRY_INFO!C13) -> Gatsibo | D13: =IF(COUNTRY_INFO!$T$9:$T$1000="MDA1 (IVM+ALB)", COUNTRY_INFO!$T$9:$T$1000, " ") ->  | I13: 0 | M13: 0
A14: =IF(COUNTRY_INFO!A14=0," ",COUNTRY_INFO!A14) -> RWANDA | B14: =IF(COUNTRY_INFO!B14=0," ",COUNTRY_INFO!B14) -> Northern | C14: =IF(COUNTRY_INFO!C14=0," ",COUNTRY_INFO!C14) -> Gicumbi | D14: =IF(COUNTRY_INFO!$T$9:$T$1000="MDA1 (IVM+ALB)", COUNTRY_INFO!$T$9:$T$1000, " ") ->  | I14: 0 | M14: 0
A15: =IF(COUNTRY_INFO!A15=0," ",COUNTRY_INFO!A15) -> RWANDA | B15: =IF(COUNTRY_INFO!B15=0," ",COUNTRY_INFO!B15) -> Southern | C15: =IF(COUNTRY_INFO!C15=0," ",COUNTRY_INFO!C15) -> Gisagara | D15: =IF(COUNTRY_INFO!$T$9:$T$1000="MDA1 (IVM+ALB)", COUNTRY_INFO!$T$9:$T$1000, " ") ->  | I15: 0 | M15: 0
A16: =IF(COUNTRY_INFO!A16=0," ",COUNTRY_INFO!A16) -> RWANDA | B16: =IF(COUNTRY_INFO!B16=0," ",COUNTRY_INFO!B16) -> Southern | C16: =IF(COUNTRY_INFO!C16=0," ",COUNTRY_INFO!C16) -> Huye | D16: =IF(COUNTRY_INFO!$T$9:$T$1000="MDA1 (IVM+ALB)", COUNTRY_INFO!$T$9:$T$1000, " ") ->  | I16: 0 | M16: 0
A17: =IF(COUNTRY_INFO!A17=0," ",COUNTRY_INFO!A17) -> RWANDA | B17: =IF(COUNTRY_INFO!B17=0," ",COUNTRY_INFO!B17) -> Southern | C17: =IF(COUNTRY_INFO!C17=0," ",COUNTRY_INFO!C17) -> Kamonyi | D17: =IF(COUNTRY_INFO!$T$9:$T$1000="MDA1 (IVM+ALB)", COUNTRY_INFO!$T$9:$T$1000, " ") ->  | I17: 0 | M17: 0
A18: =IF(COUNTRY_INFO!A18=0," ",COUNTRY_INFO!A18) -> RWANDA | B18: =IF(COUNTRY_INFO!B18=0," ",COUNTRY_INFO!B18) -> Western | C18: =IF(COUNTRY_INFO!C18=0," ",COUNTRY_INFO!C18) -> Karongi | D18: =IF(COUNTRY_INFO!$T$9:$T$1000="MDA1 (IVM+ALB)", COUNTRY_INFO!$T$9:$T$1000, " ") ->  | I18: 0 | M18: 0
A19: =IF(COUNTRY_INFO!A19=0," ",COUNTRY_INFO!A19) -> RWANDA | B19: =IF(COUNTRY_INFO!B19=0," ",COUNTRY_INFO!B19) -> Eastern | C19: =IF(COUNTRY_INFO!C19=0," ",COUNTRY_INFO!C19) -> Kayonza | D19: =IF(COUNTRY_INFO!$T$9:$T$1000="MDA1 (IVM+ALB)", COUNTRY_INFO!$T$9:$T$1000, " ") ->  | I19: 0 | M19: 0
A20: =IF(COUNTRY_INFO!A20=0," ",COUNTRY_INFO!A20) -> RWANDA | B20: =IF(COUNTRY_INFO!B20=0," ",COUNTRY_INFO!B20) -> Kigali | C20: =IF(COUNTRY_INFO!C20=0," ",COUNTRY_INFO!C20) -> Kicukiro | D20: =IF(COUNTRY_INFO!$T$9:$T$1000="MDA1 (IVM+ALB)", COUNTRY_INFO!$T$9:$T$1000, " ") ->  | I20: 0 | M20: 0
A21: =IF(COUNTRY_INFO!A21=0," ",COUNTRY_INFO!A21) -> RWANDA | B21: =IF(COUNTRY_INFO!B21=0," ",COUNTRY_INFO!B21) -> Eastern | C21: =IF(COUNTRY_INFO!C21=0," ",COUNTRY_INFO!C21) -> Kirehe | D21: =IF(COUNTRY_INFO!$T$9:$T$1000="MDA1 (IVM+ALB)", COUNTRY_INFO!$T$9:$T$1000, " ") ->  | I21: 0 | M21: 0
A22: =IF(COUNTRY_INFO!A22=0," ",COUNTRY_INFO!A22) -> RWANDA | B22: =IF(COUNTRY_INFO!B22=0," ",COUNTRY_INFO!B22) -> Southern | C22: =IF(COUNTRY_INFO!C22=0," ",COUNTRY_INFO!C22) -> Muhanga | D22: =IF(COUNTRY_INFO!$T$9:$T$1000="MDA1 (IVM+ALB)", COUNTRY_INFO!$T$9:$T$1000, " ") ->  | I22: 0 | M22: 0
A23: =IF(COUNTRY_INFO!A23=0," ",COUNTRY_INFO!A23) -> RWANDA | B23: =IF(COUNTRY_INFO!B23=0," ",COUNTRY_INFO!B23) -> Northern | C23: =IF(COUNTRY_INFO!C23=0," ",COUNTRY_INFO!C23) -> Musanze | D23: =IF(COUNTRY_INFO!$T$9:$T$1000="MDA1 (IVM+ALB)", COUNTRY_INFO!$T$9:$T$1000, " ") ->  | I23: 0 | M23: 0
A24: =IF(COUNTRY_INFO!A24=0," ",COUNTRY_INFO!A24) -> RWANDA | B24: =IF(COUNTRY_INFO!B24=0," ",COUNTRY_INFO!B24) -> Eastern | C24: =IF(COUNTRY_INFO!C24=0," ",COUNTRY_INFO!C24) -> Ngoma | D24: =IF(COUNTRY_INFO!$T$9:$T$1000="MDA1 (IVM+ALB)", COUNTRY_INFO!$T$9:$T$1000, " ") ->  | I24: 0 | M24: 0
A25: =IF(COUNTRY_INFO!A25=0," ",COUNTRY_INFO!A25) -> RWANDA | B25: =IF(COUNTRY_INFO!B25=0," ",COUNTRY_INFO!B25) -> Western | C25: =IF(COUNTRY_INFO!C25=0," ",COUNTRY_INFO!C25) -> Ngororero | D25: =IF(COUNTRY_INFO!$T$9:$T$1000="MDA1 (IVM+ALB)", COUNTRY_INFO!$T$9:$T$1000, " ") ->  | I25: 0 | M25: 0
A26: =IF(COUNTRY_INFO!A26=0," ",COUNTRY_INFO!A26) -> RWANDA | B26: =IF(COUNTRY_INFO!B26=0," ",COUNTRY_INFO!B26) -> Western | C26: =IF(COUNTRY_INFO!C26=0," ",COUNTRY_INFO!C26) -> Nyabihu | D26: =IF(COUNTRY_INFO!$T$9:$T$1000="MDA1 (IVM+ALB)", COUNTRY_INFO!$T$9:$T$1000, " ") ->  | I26: 0 | M26: 0
A27: =IF(COUNTRY_INFO!A27=0," ",COUNTRY_INFO!A27) -> RWANDA | B27: =IF(COUNTRY_INFO!B27=0," ",COUNTRY_INFO!B27) -> Eastern | C27: =IF(COUNTRY_INFO!C27=0," ",COUNTRY_INFO!C27) -> Nyagatare | D27: =IF(COUNTRY_INFO!$T$9:$T$1000="MDA1 (IVM+ALB)", COUNTRY_INFO!$T$9:$T$1000, " ") ->  | I27: 0 | M27: 0
A28: =IF(COUNTRY_INFO!A28=0," ",COUNTRY_INFO!A28) -> RWANDA | B28: =IF(COUNTRY_INFO!B28=0," ",COUNTRY_INFO!B28) -> Southern | C28: =IF(COUNTRY_INFO!C28=0," ",COUNTRY_INFO!C28) -> Nyamagabe | D28: =IF(COUNTRY_INFO!$T$9:$T$1000="MDA1 (IVM+ALB)", COUNTRY_INFO!$T$9:$T$1000, " ") ->  | I28: 0 | M28: 0
A29: =IF(COUNTRY_INFO!A29=0," ",COUNTRY_INFO!A29) -> RWANDA | B29: =IF(COUNTRY_INFO!B29=0," ",COUNTRY_INFO!B29) -> Western | C29: =IF(COUNTRY_INFO!C29=0," ",COUNTRY_INFO!C29) -> Nyamasheke | D29: =IF(COUNTRY_INFO!$T$9:$T$1000="MDA1 (IVM+ALB)", COUNTRY_INFO!$T$9:$T$1000, " ") ->  | I29: 0 | M29: 0
A30: =IF(COUNTRY_INFO!A30=0," ",COUNTRY_INFO!A30) -> RWANDA | B30: =IF(COUNTRY_INFO!B30=0," ",COUNTRY_INFO!B30) -> Southern | C30: =IF(COUNTRY_INFO!C30=0," ",COUNTRY_INFO!C30) -> Nyanza | D30: =IF(COUNTRY_INFO!$T$9:$T$1000="MDA1 (IVM+ALB)", COUNTRY_INFO!$T$9:$T$1000, " ") ->  | I30: 0 | M30: 0
A31: =IF(COUNTRY_INFO!A31=0," ",COUNTRY_INFO!A31) -> RWANDA | B31: =IF(COUNTRY_INFO!B31=0," ",COUNTRY_INFO!B31) -> Kigali | C31: =IF(COUNTRY_INFO!C31=0," ",COUNTRY_INFO!C31) -> Nyarugenge | D31: =IF(COUNTRY_INFO!$T$9:$T$1000="MDA1 (IVM+ALB)", COUNTRY_INFO!$T$9:$T$1000, " ") ->  | I31: 0 | M31: 0
A32: =IF(COUNTRY_INFO!A32=0," ",COUNTRY_INFO!A32) -> RWANDA | B32: =IF(COUNTRY_INFO!B32=0," ",COUNTRY_INFO!B32) -> Southern | C32: =IF(COUNTRY_INFO!C32=0," ",COUNTRY_INFO!C32) -> Nyaruguru | D32: =IF(COUNTRY_INFO!$T$9:$T$1000="MDA1 (IVM+ALB)", COUNTRY_INFO!$T$9:$T$1000, " ") ->  | I32: 0 | M32: 0
A33: =IF(COUNTRY_INFO!A33=0," ",COUNTRY_INFO!A33) -> RWANDA | B33: =IF(COUNTRY_INFO!B33=0," ",COUNTRY_INFO!B33) -> Western | C33: =IF(COUNTRY_INFO!C33=0," ",COUNTRY_INFO!C33) -> Rubavu | D33: =IF(COUNTRY_INFO!$T$9:$T$1000="MDA1 (IVM+ALB)", COUNTRY_INFO!$T$9:$T$1000, " ") ->  | I33: 0 | M33: 0
A34: =IF(COUNTRY_INFO!A34=0," ",COUNTRY_INFO!A34) -> RWANDA | B34: =IF(COUNTRY_INFO!B34=0," ",COUNTRY_INFO!B34) -> Southern | C34: =IF(COUNTRY_INFO!C34=0," ",COUNTRY_INFO!C34) -> Ruhango | D34: =IF(COUNTRY_INFO!$T$9:$T$1000="MDA1 (IVM+ALB)", COUNTRY_INFO!$T$9:$T$1000, " ") ->  | I34: 0 | M34: 0
A35: =IF(COUNTRY_INFO!A35=0," ",COUNTRY_INFO!A35) -> RWANDA | B35: =IF(COUNTRY_INFO!B35=0," ",COUNTRY_INFO!B35) -> Northern | C35: =IF(COUNTRY_INFO!C35=0," ",COUNTRY_INFO!C35) -> Rulindo | D35: =IF(COUNTRY_INFO!$T$9:$T$1000="MDA1 (IVM+ALB)", COUNTRY_INFO!$T$9:$T$1000, " ") ->  | I35: 0 | M35: 0
A36: =IF(COUNTRY_INFO!A36=0," ",COUNTRY_INFO!A36) -> RWANDA | B36: =IF(COUNTRY_INFO!B36=0," ",COUNTRY_INFO!B36) -> Western | C36: =IF(COUNTRY_INFO!C36=0," ",COUNTRY_INFO!C36) -> Rusizi | D36: =IF(COUNTRY_INFO!$T$9:$T$1000="MDA1 (IVM+ALB)", COUNTRY_INFO!$T$9:$T$1000, " ") ->  | I36: 0 | M36: 0
A37: =IF(COUNTRY_INFO!A37=0," ",COUNTRY_INFO!A37) -> RWANDA | B37: =IF(COUNTRY_INFO!B37=0," ",COUNTRY_INFO!B37) -> Western | C37: =IF(COUNTRY_INFO!C37=0," ",COUNTRY_INFO!C37) -> Rutsiro | D37: =IF(COUNTRY_INFO!$T$9:$T$1000="MDA1 (IVM+ALB)", COUNTRY_INFO!$T$9:$T$1000, " ") ->  | I37: 0 | M37: 0
A38: =IF(COUNTRY_INFO!A38=0," ",COUNTRY_INFO!A38) -> RWANDA | B38: =IF(COUNTRY_INFO!B38=0," ",COUNTRY_INFO!B38) -> Eastern | C38: =IF(COUNTRY_INFO!C38=0," ",COUNTRY_INFO!C38) -> Rwamagana | D38: =IF(COUNTRY_INFO!$T$9:$T$1000="MDA1 (IVM+ALB)", COUNTRY_INFO!$T$9:$T$1000, " ") ->  | I38: 0 | M38: 0

Sheet MDA2 (hidden)
A1: MDA 2 - Diethylcarbamazine citrate (DEC) + Albendazole (ALB)
A2: Administrative structure, population requiring PC by age group, population treated by age group and coverage
A4: TOTAL | F4: =SUM(F$9:F$1000) -> 0 | G4: =SUM(G$9:G$1000) -> 0 | H4: 0 | I4: 0 | J4: 0 | K4: 0 | L4: 0 | M4: 0 | N4: =IF(F4<>0, IF(J4/F4*100=0, "-", J4/F4*100), " ") ->  | O4: =IF(G4<>0, IF(K4/G4*100=0, "-", K4/G4*100), " ") ->  | P4: =IF(H4<>0, IF(L4/H4*100=0, "-", L4/H4*100), " ") ->  | Q4: =IF(I4<>0, IF(M4/I4*100=0, "-", M4/I4*100), " ") -> 
D6: PC implemented | E6: Date | F6: Population targeted for MDA 2 | J6: Population treated | N6: Programme coverage (%)
A7: Country | B7: Province/State | C7: District | F7: PreSAC | G7: SAC | H7: Adults | I7: Total | J7: PreSAC | K7: SAC | L7: Adults | M7: Total | N7: PreSAC | O7: SAC | P7: Adults | Q7: Total
A9: =IF(COUNTRY_INFO!A9=0," ",COUNTRY_INFO!A9) -> RWANDA | B9: =IF(COUNTRY_INFO!B9=0," ",COUNTRY_INFO!B9) -> Eastern | C9: =IF(COUNTRY_INFO!C9=0," ",COUNTRY_INFO!C9) -> Bugesera | D9: =IF(COUNTRY_INFO!$T$9:$T$1000="MDA2 (DEC+ALB)", COUNTRY_INFO!$T$9:$T$1000, " ") ->  | I9: =SUM(F9:H9) -> 0 | M9: =SUM(J9:L9) -> 0 | N9: =IF(F9<>0, IF(J9/F9*100=0, "-", J9/F9*100), " ") ->  | O9: =IF(G9<>0, IF(K9/G9*100=0, "-", K9/G9*100), " ") -> 
A10: =IF(COUNTRY_INFO!A10=0," ",COUNTRY_INFO!A10) -> RWANDA | B10: =IF(COUNTRY_INFO!B10=0," ",COUNTRY_INFO!B10) -> Northern | C10: =IF(COUNTRY_INFO!C10=0," ",COUNTRY_INFO!C10) -> Burera | D10: =IF(COUNTRY_INFO!$T$9:$T$1000="MDA2 (DEC+ALB)", COUNTRY_INFO!$T$9:$T$1000, " ") ->  | I10: =SUM(F10:H10) -> 0 | M10: =SUM(J10:L10) -> 0 | N10: =IF(F10<>0, IF(J10/F10*100=0, "-", J10/F10*100), " ") ->  | O10: =IF(G10<>0, IF(K10/G10*100=0, "-", K10/G10*100), " ") ->  | P10: =IF(H10<>0, IF(L10/H10*100=0, "-", L10/H10*100), " ") ->  | Q10: =IF(I10<>0, IF(M10/I10*100=0, "-", M10/I10*100), " ") -> 
A11: =IF(COUNTRY_INFO!A11=0," ",COUNTRY_INFO!A11) -> RWANDA | B11: =IF(COUNTRY_INFO!B11=0," ",COUNTRY_INFO!B11) -> Northern | C11: =IF(COUNTRY_INFO!C11=0," ",COUNTRY_INFO!C11) -> Gakenke | D11: =IF(COUNTRY_INFO!$T$9:$T$1000="MDA2 (DEC+ALB)", COUNTRY_INFO!$T$9:$T$1000, " ") ->  | I11: 0 | M11: 0
A12: =IF(COUNTRY_INFO!A12=0," ",COUNTRY_INFO!A12) -> RWANDA | B12: =IF(COUNTRY_INFO!B12=0," ",COUNTRY_INFO!B12) -> Kigali | C12: =IF(COUNTRY_INFO!C12=0," ",COUNTRY_INFO!C12) -> Gasabo | D12: =IF(COUNTRY_INFO!$T$9:$T$1000="MDA2 (DEC+ALB)", COUNTRY_INFO!$T$9:$T$1000, " ") ->  | I12: 0 | M12: 0
A13: =IF(COUNTRY_INFO!A13=0," ",COUNTRY_INFO!A13) -> RWANDA | B13: =IF(COUNTRY_INFO!B13=0," ",COUNTRY_INFO!B13) -> Eastern | C13: =IF(COUNTRY_INFO!C13=0," ",COUNTRY_INFO!C13) -> Gatsibo | D13: =IF(COUNTRY_INFO!$T$9:$T$1000="MDA2 (DEC+ALB)", COUNTRY_INFO!$T$9:$T$1000, " ") ->  | I13: 0 | M13: 0
A14: =IF(COUNTRY_INFO!A14=0," ",COUNTRY_INFO!A14) -> RWANDA | B14: =IF(COUNTRY_INFO!B14=0," ",COUNTRY_INFO!B14) -> Northern | C14: =IF(COUNTRY_INFO!C14=0," ",COUNTRY_INFO!C14) -> Gicumbi | D14: =IF(COUNTRY_INFO!$T$9:$T$1000="MDA2 (DEC+ALB)", COUNTRY_INFO!$T$9:$T$1000, " ") ->  | I14: 0 | M14: 0
A15: =IF(COUNTRY_INFO!A15=0," ",COUNTRY_INFO!A15) -> RWANDA | B15: =IF(COUNTRY_INFO!B15=0," ",COUNTRY_INFO!B15) -> Southern | C15: =IF(COUNTRY_INFO!C15=0," ",COUNTRY_INFO!C15) -> Gisagara | D15: =IF(COUNTRY_INFO!$T$9:$T$1000="MDA2 (DEC+ALB)", COUNTRY_INFO!$T$9:$T$1000, " ") ->  | I15: 0 | M15: 0
A16: =IF(COUNTRY_INFO!A16=0," ",COUNTRY_INFO!A16) -> RWANDA | B16: =IF(COUNTRY_INFO!B16=0," ",COUNTRY_INFO!B16) -> Southern | C16: =IF(COUNTRY_INFO!C16=0," ",COUNTRY_INFO!C16) -> Huye | D16: =IF(COUNTRY_INFO!$T$9:$T$1000="MDA2 (DEC+ALB)", COUNTRY_INFO!$T$9:$T$1000, " ") ->  | I16: 0 | M16: 0
A17: =IF(COUNTRY_INFO!A17=0," ",COUNTRY_INFO!A17) -> RWANDA | B17: =IF(COUNTRY_INFO!B17=0," ",COUNTRY_INFO!B17) -> Southern | C17: =IF(COUNTRY_INFO!C17=0," ",COUNTRY_INFO!C17) -> Kamonyi | D17: =IF(COUNTRY_INFO!$T$9:$T$1000="MDA2 (DEC+ALB)", COUNTRY_INFO!$T$9:$T$1000, " ") ->  | I17: 0 | M17: 0
A18: =IF(COUNTRY_INFO!A18=0," ",COUNTRY_INFO!A18) -> RWANDA | B18: =IF(COUNTRY_INFO!B18=0," ",COUNTRY_INFO!B18) -> Western | C18: =IF(COUNTRY_INFO!C18=0," ",COUNTRY_INFO!C18) -> Karongi | D18: =IF(COUNTRY_INFO!$T$9:$T$1000="MDA2 (DEC+ALB)", COUNTRY_INFO!$T$9:$T$1000, " ") ->  | I18: 0 | M18: 0
A19: =IF(COUNTRY_INFO!A19=0," ",COUNTRY_INFO!A19) -> RWANDA | B19: =IF(COUNTRY_INFO!B19=0," ",COUNTRY_INFO!B19) -> Eastern | C19: =IF(COUNTRY_INFO!C19=0," ",COUNTRY_INFO!C19) -> Kayonza | D19: =IF(COUNTRY_INFO!$T$9:$T$1000="MDA2 (DEC+ALB)", COUNTRY_INFO!$T$9:$T$1000, " ") ->  | I19: 0 | M19: 0
A20: =IF(COUNTRY_INFO!A20=0," ",COUNTRY_INFO!A20) -> RWANDA | B20: =IF(COUNTRY_INFO!B20=0," ",COUNTRY_INFO!B20) -> Kigali | C20: =IF(COUNTRY_INFO!C20=0," ",COUNTRY_INFO!C20) -> Kicukiro | D20: =IF(COUNTRY_INFO!$T$9:$T$1000="MDA2 (DEC+ALB)", COUNTRY_INFO!$T$9:$T$1000, " ") ->  | I20: 0 | M20: 0
A21: =IF(COUNTRY_INFO!A21=0," ",COUNTRY_INFO!A21) -> RWANDA | B21: =IF(COUNTRY_INFO!B21=0," ",COUNTRY_INFO!B21) -> Eastern | C21: =IF(COUNTRY_INFO!C21=0," ",COUNTRY_INFO!C21) -> Kirehe | D21: =IF(COUNTRY_INFO!$T$9:$T$1000="MDA2 (DEC+ALB)", COUNTRY_INFO!$T$9:$T$1000, " ") ->  | I21: 0 | M21: 0
A22: =IF(COUNTRY_INFO!A22=0," ",COUNTRY_INFO!A22) -> RWANDA | B22: =IF(COUNTRY_INFO!B22=0," ",COUNTRY_INFO!B22) -> Southern | C22: =IF(COUNTRY_INFO!C22=0," ",COUNTRY_INFO!C22) -> Muhanga | D22: =IF(COUNTRY_INFO!$T$9:$T$1000="MDA2 (DEC+ALB)", COUNTRY_INFO!$T$9:$T$1000, " ") ->  | I22: 0 | M22: 0
A23: =IF(COUNTRY_INFO!A23=0," ",COUNTRY_INFO!A23) -> RWANDA | B23: =IF(COUNTRY_INFO!B23=0," ",COUNTRY_INFO!B23) -> Northern | C23: =IF(COUNTRY_INFO!C23=0," ",COUNTRY_INFO!C23) -> Musanze | D23: =IF(COUNTRY_INFO!$T$9:$T$1000="MDA2 (DEC+ALB)", COUNTRY_INFO!$T$9:$T$1000, " ") ->  | I23: 0 | M23: 0
A24: =IF(COUNTRY_INFO!A24=0," ",COUNTRY_INFO!A24) -> RWANDA | B24: =IF(COUNTRY_INFO!B24=0," ",COUNTRY_INFO!B24) -> Eastern | C24: =IF(COUNTRY_INFO!C24=0," ",COUNTRY_INFO!C24) -> Ngoma | D24: =IF(COUNTRY_INFO!$T$9:$T$1000="MDA2 (DEC+ALB)", COUNTRY_INFO!$T$9:$T$1000, " ") ->  | I24: 0 | M24: 0
A25: =IF(COUNTRY_INFO!A25=0," ",COUNTRY_INFO!A25) -> RWANDA | B25: =IF(COUNTRY_INFO!B25=0," ",COUNTRY_INFO!B25) -> Western | C25: =IF(COUNTRY_INFO!C25=0," ",COUNTRY_INFO!C25) -> Ngororero | D25: =IF(COUNTRY_INFO!$T$9:$T$1000="MDA2 (DEC+ALB)", COUNTRY_INFO!$T$9:$T$1000, " ") ->  | I25: 0 | M25: 0
A26: =IF(COUNTRY_INFO!A26=0," ",COUNTRY_INFO!A26) -> RWANDA | B26: =IF(COUNTRY_INFO!B26=0," ",COUNTRY_INFO!B26) -> Western | C26: =IF(COUNTRY_INFO!C26=0," ",COUNTRY_INFO!C26) -> Nyabihu | D26: =IF(COUNTRY_INFO!$T$9:$T$1000="MDA2 (DEC+ALB)", COUNTRY_INFO!$T$9:$T$1000, " ") ->  | I26: 0 | M26: 0
A27: =IF(COUNTRY_INFO!A27=0," ",COUNTRY_INFO!A27) -> RWANDA | B27: =IF(COUNTRY_INFO!B27=0," ",COUNTRY_INFO!B27) -> Eastern | C27: =IF(COUNTRY_INFO!C27=0," ",COUNTRY_INFO!C27) -> Nyagatare | D27: =IF(COUNTRY_INFO!$T$9:$T$1000="MDA2 (DEC+ALB)", COUNTRY_INFO!$T$9:$T$1000, " ") ->  | I27: 0 | M27: 0
A28: =IF(COUNTRY_INFO!A28=0," ",COUNTRY_INFO!A28) -> RWANDA | B28: =IF(COUNTRY_INFO!B28=0," ",COUNTRY_INFO!B28) -> Southern | C28: =IF(COUNTRY_INFO!C28=0," ",COUNTRY_INFO!C28) -> Nyamagabe | D28: =IF(COUNTRY_INFO!$T$9:$T$1000="MDA2 (DEC+ALB)", COUNTRY_INFO!$T$9:$T$1000, " ") ->  | I28: 0 | M28: 0
A29: =IF(COUNTRY_INFO!A29=0," ",COUNTRY_INFO!A29) -> RWANDA | B29: =IF(COUNTRY_INFO!B29=0," ",COUNTRY_INFO!B29) -> Western | C29: =IF(COUNTRY_INFO!C29=0," ",COUNTRY_INFO!C29) -> Nyamasheke | D29: =IF(COUNTRY_INFO!$T$9:$T$1000="MDA2 (DEC+ALB)", COUNTRY_INFO!$T$9:$T$1000, " ") ->  | I29: 0 | M29: 0
A30: =IF(COUNTRY_INFO!A30=0," ",COUNTRY_INFO!A30) -> RWANDA | B30: =IF(COUNTRY_INFO!B30=0," ",COUNTRY_INFO!B30) -> Southern | C30: =IF(COUNTRY_INFO!C30=0," ",COUNTRY_INFO!C30) -> Nyanza | D30: =IF(COUNTRY_INFO!$T$9:$T$1000="MDA2 (DEC+ALB)", COUNTRY_INFO!$T$9:$T$1000, " ") ->  | I30: 0 | M30: 0
A31: =IF(COUNTRY_INFO!A31=0," ",COUNTRY_INFO!A31) -> RWANDA | B31: =IF(COUNTRY_INFO!B31=0," ",COUNTRY_INFO!B31) -> Kigali | C31: =IF(COUNTRY_INFO!C31=0," ",COUNTRY_INFO!C31) -> Nyarugenge | D31: =IF(COUNTRY_INFO!$T$9:$T$1000="MDA2 (DEC+ALB)", COUNTRY_INFO!$T$9:$T$1000, " ") ->  | I31: 0 | M31: 0
A32: =IF(COUNTRY_INFO!A32=0," ",COUNTRY_INFO!A32) -> RWANDA | B32: =IF(COUNTRY_INFO!B32=0," ",COUNTRY_INFO!B32) -> Southern | C32: =IF(COUNTRY_INFO!C32=0," ",COUNTRY_INFO!C32) -> Nyaruguru | D32: =IF(COUNTRY_INFO!$T$9:$T$1000="MDA2 (DEC+ALB)", COUNTRY_INFO!$T$9:$T$1000, " ") ->  | I32: 0 | M32: 0
A33: =IF(COUNTRY_INFO!A33=0," ",COUNTRY_INFO!A33) -> RWANDA | B33: =IF(COUNTRY_INFO!B33=0," ",COUNTRY_INFO!B33) -> Western | C33: =IF(COUNTRY_INFO!C33=0," ",COUNTRY_INFO!C33) -> Rubavu | D33: =IF(COUNTRY_INFO!$T$9:$T$1000="MDA2 (DEC+ALB)", COUNTRY_INFO!$T$9:$T$1000, " ") ->  | I33: 0 | M33: 0
A34: =IF(COUNTRY_INFO!A34=0," ",COUNTRY_INFO!A34) -> RWANDA | B34: =IF(COUNTRY_INFO!B34=0," ",COUNTRY_INFO!B34) -> Southern | C34: =IF(COUNTRY_INFO!C34=0," ",COUNTRY_INFO!C34) -> Ruhango | D34: =IF(COUNTRY_INFO!$T$9:$T$1000="MDA2 (DEC+ALB)", COUNTRY_INFO!$T$9:$T$1000, " ") ->  | I34: 0 | M34: 0
A35: =IF(COUNTRY_INFO!A35=0," ",COUNTRY_INFO!A35) -> RWANDA | B35: =IF(COUNTRY_INFO!B35=0," ",COUNTRY_INFO!B35) -> Northern | C35: =IF(COUNTRY_INFO!C35=0," ",COUNTRY_INFO!C35) -> Rulindo | D35: =IF(COUNTRY_INFO!$T$9:$T$1000="MDA2 (DEC+ALB)", COUNTRY_INFO!$T$9:$T$1000, " ") ->  | I35: 0 | M35: 0
A36: =IF(COUNTRY_INFO!A36=0," ",COUNTRY_INFO!A36) -> RWANDA | B36: =IF(COUNTRY_INFO!B36=0," ",COUNTRY_INFO!B36) -> Western | C36: =IF(COUNTRY_INFO!C36=0," ",COUNTRY_INFO!C36) -> Rusizi | D36: =IF(COUNTRY_INFO!$T$9:$T$1000="MDA2 (DEC+ALB)", COUNTRY_INFO!$T$9:$T$1000, " ") ->  | I36: 0 | M36: 0
A37: =IF(COUNTRY_INFO!A37=0," ",COUNTRY_INFO!A37) -> RWANDA | B37: =IF(COUNTRY_INFO!B37=0," ",COUNTRY_INFO!B37) -> Western | C37: =IF(COUNTRY_INFO!C37=0," ",COUNTRY_INFO!C37) -> Rutsiro | D37: =IF(COUNTRY_INFO!$T$9:$T$1000="MDA2 (DEC+ALB)", COUNTRY_INFO!$T$9:$T$1000, " ") ->  | I37: 0 | M37: 0
A38: =IF(COUNTRY_INFO!A38=0," ",COUNTRY_INFO!A38) -> RWANDA | B38: =IF(COUNTRY_INFO!B38=0," ",COUNTRY_INFO!B38) -> Eastern | C38: =IF(COUNTRY_INFO!C38=0," ",COUNTRY_INFO!C38) -> Rwamagana | D38: =IF(COUNTRY_INFO!$T$9:$T$1000="MDA2 (DEC+ALB)", COUNTRY_INFO!$T$9:$T$1000, " ") ->  | I38: 0 | M38: 0

Sheet MDA3 (hidden)
A1: MDA 3 - Ivermectin (IVM)
A2: Administrative structure, population requiring PC by age group, population treated by age group and coverage
A4: TOTAL | F4: =SUM(F$9:F$1000) -> 0 | G4: 0 | H4: 0 | I4: 0 | J4: 0 | K4: 0 | L4: 0 | M4: 0 | N4: 0 | O4: 0 | P4: 0 | Q4: 0 | R4: =IF(F4<>0, IF(O4/F4*100=0, "-", O4/F4*100), " ") ->  | S4: =IF(G4<>0, IF(P4/G4*100=0, "-", P4/G4*100), " ") ->  | T4: =IF(H4<>0, IF(Q4/H4*100=0, "-", Q4/H4*100), " ") -> 
D6: PC implemented | E6: Date | F6: Population targeted for MDA 3 | I6: Population treated - 1st round | L6: Population treated - 2nd round | O6: Population treated | R6: Programme coverage (%)
A7: Country | B7: Province/State | C7: District | F7: SAC | G7: Adults | H7: Total | I7: SAC | J7: Adults | K7: Total | L7: SAC | M7: Adults | N7: Total | O7: SAC | P7: Adults | Q7: Total | R7: SAC | S7: Adults | T7: Total
A9: =IF(COUNTRY_INFO!A9=0," ",COUNTRY_INFO!A9) -> RWANDA | B9: =IF(COUNTRY_INFO!B9=0," ",COUNTRY_INFO!B9) -> Eastern | C9: =IF(COUNTRY_INFO!C9=0," ",COUNTRY_INFO!C9) -> Bugesera | D9: =IF(COUNTRY_INFO!$T$9:$T$1000="MDA3 (IVM)", COUNTRY_INFO!$T$9:$T$1000, " ") ->  | H9: =SUM(F9:G9) -> 0 | K9: =SUM(I9:J9) -> 0 | N9: =SUM(L9:M9) -> 0 | O9: =MAX(I9,L9) -> 0 | P9: 0 | Q9: =SUM(O9:P9) -> 0 | R9: =IF(F9<>0, IF(MAX(I9,L9)/F9*100=0, "-", MAX(I9,L9)/F9*100), " ") ->  | T9: =IF(H9<>0, IF((MAX(I9,L9)+MAX(J9,M9))/H9*100=0, "-",(MAX(I9,L9)+MAX(J9,M9))/H9*100), " ") -> 
A10: =IF(COUNTRY_INFO!A10=0," ",COUNTRY_INFO!A10) -> RWANDA | B10: =IF(COUNTRY_INFO!B10=0," ",COUNTRY_INFO!B10) -> Northern | C10: =IF(COUNTRY_INFO!C10=0," ",COUNTRY_INFO!C10) -> Burera | D10: =IF(COUNTRY_INFO!$T$9:$T$1000="MDA3 (IVM)", COUNTRY_INFO!$T$9:$T$1000, " ") ->  | H10: =SUM(F10:G10) -> 0 | K10: =SUM(I10:J10) -> 0 | N10: =SUM(L10:M10) -> 0 | O10: =MAX(I10,L10) -> 0 | P10: =MAX(J10,M10) -> 0 | Q10: =SUM(O10:P10) -> 0 | R10: =IF(F10<>0, IF(MAX(I10,L10)/F10*100=0, "-", MAX(I10,L10)/F10*100), " ") ->  | S10: =IF(G10<>0, IF(MAX(J10,M10)/G10*100=0, "-", MAX(J10,M10)/G10*100), " ") ->  | T10: =IF(H10<>0, IF((MAX(I10,L10)+MAX(J10,M10))/H10*100=0, "-",(MAX(I10,L10)+MAX(J10,M10))/H10*100), " ") -> 
A11: =IF(COUNTRY_INFO!A11=0," ",COUNTRY_INFO!A11) -> RWANDA | B11: =IF(COUNTRY_INFO!B11=0," ",COUNTRY_INFO!B11) -> Northern | C11: =IF(COUNTRY_INFO!C11=0," ",COUNTRY_INFO!C11) -> Gakenke | D11: =IF(COUNTRY_INFO!$T$9:$T$1000="MDA3 (IVM)", COUNTRY_INFO!$T$9:$T$1000, " ") ->  | H11: 0 | K11: 0 | N11: 0 | O11: 0 | P11: 0 | Q11: 0
A12: =IF(COUNTRY_INFO!A12=0," ",COUNTRY_INFO!A12) -> RWANDA | B12: =IF(COUNTRY_INFO!B12=0," ",COUNTRY_INFO!B12) -> Kigali | C12: =IF(COUNTRY_INFO!C12=0," ",COUNTRY_INFO!C12) -> Gasabo | D12: =IF(COUNTRY_INFO!$T$9:$T$1000="MDA3 (IVM)", COUNTRY_INFO!$T$9:$T$1000, " ") ->  | H12: 0 | K12: 0 | N12: 0 | O12: 0 | P12: 0 | Q12: 0
A13: =IF(COUNTRY_INFO!A13=0," ",COUNTRY_INFO!A13) -> RWANDA | B13: =IF(COUNTRY_INFO!B13=0," ",COUNTRY_INFO!B13) -> Eastern | C13: =IF(COUNTRY_INFO!C13=0," ",COUNTRY_INFO!C13) -> Gatsibo | D13: =IF(COUNTRY_INFO!$T$9:$T$1000="MDA3 (IVM)", COUNTRY_INFO!$T$9:$T$1000, " ") ->  | H13: 0 | K13: 0 | N13: 0 | O13: 0 | P13: 0 | Q13: 0
A14: =IF(COUNTRY_INFO!A14=0," ",COUNTRY_INFO!A14) -> RWANDA | B14: =IF(COUNTRY_INFO!B14=0," ",COUNTRY_INFO!B14) -> Northern | C14: =IF(COUNTRY_INFO!C14=0," ",COUNTRY_INFO!C14) -> Gicumbi | D14: =IF(COUNTRY_INFO!$T$9:$T$1000="MDA3 (IVM)", COUNTRY_INFO!$T$9:$T$1000, " ") ->  | H14: 0 | K14: 0 | N14: 0 | O14: 0 | P14: 0 | Q14: 0
A15: =IF(COUNTRY_INFO!A15=0," ",COUNTRY_INFO!A15) -> RWANDA | B15: =IF(COUNTRY_INFO!B15=0," ",COUNTRY_INFO!B15) -> Southern | C15: =IF(COUNTRY_INFO!C15=0," ",COUNTRY_INFO!C15) -> Gisagara | D15: =IF(COUNTRY_INFO!$T$9:$T$1000="MDA3 (IVM)", COUNTRY_INFO!$T$9:$T$1000, " ") ->  | H15: 0 | K15: 0 | N15: 0 | O15: 0 | P15: 0 | Q15: 0
A16: =IF(COUNTRY_INFO!A16=0," ",COUNTRY_INFO!A16) -> RWANDA | B16: =IF(COUNTRY_INFO!B16=0," ",COUNTRY_INFO!B16) -> Southern | C16: =IF(COUNTRY_INFO!C16=0," ",COUNTRY_INFO!C16) -> Huye | D16: =IF(COUNTRY_INFO!$T$9:$T$1000="MDA3 (IVM)", COUNTRY_INFO!$T$9:$T$1000, " ") ->  | H16: 0 | K16: 0 | N16: 0 | O16: 0 | P16: 0 | Q16: 0
A17: =IF(COUNTRY_INFO!A17=0," ",COUNTRY_INFO!A17) -> RWANDA | B17: =IF(COUNTRY_INFO!B17=0," ",COUNTRY_INFO!B17) -> Southern | C17: =IF(COUNTRY_INFO!C17=0," ",COUNTRY_INFO!C17) -> Kamonyi | D17: =IF(COUNTRY_INFO!$T$9:$T$1000="MDA3 (IVM)", COUNTRY_INFO!$T$9:$T$1000, " ") ->  | H17: 0 | K17: 0 | N17: 0 | O17: 0 | P17: 0 | Q17: 0
A18: =IF(COUNTRY_INFO!A18=0," ",COUNTRY_INFO!A18) -> RWANDA | B18: =IF(COUNTRY_INFO!B18=0," ",COUNTRY_INFO!B18) -> Western | C18: =IF(COUNTRY_INFO!C18=0," ",COUNTRY_INFO!C18) -> Karongi | D18: =IF(COUNTRY_INFO!$T$9:$T$1000="MDA3 (IVM)", COUNTRY_INFO!$T$9:$T$1000, " ") ->  | H18: 0 | K18: 0 | N18: 0 | O18: 0 | P18: 0 | Q18: 0
A19: =IF(COUNTRY_INFO!A19=0," ",COUNTRY_INFO!A19) -> RWANDA | B19: =IF(COUNTRY_INFO!B19=0," ",COUNTRY_INFO!B19) -> Eastern | C19: =IF(COUNTRY_INFO!C19=0," ",COUNTRY_INFO!C19) -> Kayonza | D19: =IF(COUNTRY_INFO!$T$9:$T$1000="MDA3 (IVM)", COUNTRY_INFO!$T$9:$T$1000, " ") ->  | H19: 0 | K19: 0 | N19: 0 | O19: 0 | P19: 0 | Q19: 0
A20: =IF(COUNTRY_INFO!A20=0," ",COUNTRY_INFO!A20) -> RWANDA | B20: =IF(COUNTRY_INFO!B20=0," ",COUNTRY_INFO!B20) -> Kigali | C20: =IF(COUNTRY_INFO!C20=0," ",COUNTRY_INFO!C20) -> Kicukiro | D20: =IF(COUNTRY_INFO!$T$9:$T$1000="MDA3 (IVM)", COUNTRY_INFO!$T$9:$T$1000, " ") ->  | H20: 0 | K20: 0 | N20: 0 | O20: 0 | P20: 0 | Q20: 0
A21: =IF(COUNTRY_INFO!A21=0," ",COUNTRY_INFO!A21) -> RWANDA | B21: =IF(COUNTRY_INFO!B21=0," ",COUNTRY_INFO!B21) -> Eastern | C21: =IF(COUNTRY_INFO!C21=0," ",COUNTRY_INFO!C21) -> Kirehe | D21: =IF(COUNTRY_INFO!$T$9:$T$1000="MDA3 (IVM)", COUNTRY_INFO!$T$9:$T$1000, " ") ->  | H21: 0 | K21: 0 | N21: 0 | O21: 0 | P21: 0 | Q21: 0
A22: =IF(COUNTRY_INFO!A22=0," ",COUNTRY_INFO!A22) -> RWANDA | B22: =IF(COUNTRY_INFO!B22=0," ",COUNTRY_INFO!B22) -> Southern | C22: =IF(COUNTRY_INFO!C22=0," ",COUNTRY_INFO!C22) -> Muhanga | D22: =IF(COUNTRY_INFO!$T$9:$T$1000="MDA3 (IVM)", COUNTRY_INFO!$T$9:$T$1000, " ") ->  | H22: 0 | K22: 0 | N22: 0 | O22: 0 | P22: 0 | Q22: 0
A23: =IF(COUNTRY_INFO!A23=0," ",COUNTRY_INFO!A23) -> RWANDA | B23: =IF(COUNTRY_INFO!B23=0," ",COUNTRY_INFO!B23) -> Northern | C23: =IF(COUNTRY_INFO!C23=0," ",COUNTRY_INFO!C23) -> Musanze | D23: =IF(COUNTRY_INFO!$T$9:$T$1000="MDA3 (IVM)", COUNTRY_INFO!$T$9:$T$1000, " ") ->  | H23: 0 | K23: 0 | N23: 0 | O23: 0 | P23: 0 | Q23: 0
A24: =IF(COUNTRY_INFO!A24=0," ",COUNTRY_INFO!A24) -> RWANDA | B24: =IF(COUNTRY_INFO!B24=0," ",COUNTRY_INFO!B24) -> Eastern | C24: =IF(COUNTRY_INFO!C24=0," ",COUNTRY_INFO!C24) -> Ngoma | D24: =IF(COUNTRY_INFO!$T$9:$T$1000="MDA3 (IVM)", COUNTRY_INFO!$T$9:$T$1000, " ") ->  | H24: 0 | K24: 0 | N24: 0 | O24: 0 | P24: 0 | Q24: 0
A25: =IF(COUNTRY_INFO!A25=0," ",COUNTRY_INFO!A25) -> RWANDA | B25: =IF(COUNTRY_INFO!B25=0," ",COUNTRY_INFO!B25) -> Western | C25: =IF(COUNTRY_INFO!C25=0," ",COUNTRY_INFO!C25) -> Ngororero | D25: =IF(COUNTRY_INFO!$T$9:$T$1000="MDA3 (IVM)", COUNTRY_INFO!$T$9:$T$1000, " ") ->  | H25: 0 | K25: 0 | N25: 0 | O25: 0 | P25: 0 | Q25: 0
A26: =IF(COUNTRY_INFO!A26=0," ",COUNTRY_INFO!A26) -> RWANDA | B26: =IF(COUNTRY_INFO!B26=0," ",COUNTRY_INFO!B26) -> Western | C26: =IF(COUNTRY_INFO!C26=0," ",COUNTRY_INFO!C26) -> Nyabihu | D26: =IF(COUNTRY_INFO!$T$9:$T$1000="MDA3 (IVM)", COUNTRY_INFO!$T$9:$T$1000, " ") ->  | H26: 0 | K26: 0 | N26: 0 | O26: 0 | P26: 0 | Q26: 0
A27: =IF(COUNTRY_INFO!A27=0," ",COUNTRY_INFO!A27) -> RWANDA | B27: =IF(COUNTRY_INFO!B27=0," ",COUNTRY_INFO!B27) -> Eastern | C27: =IF(COUNTRY_INFO!C27=0," ",COUNTRY_INFO!C27) -> Nyagatare | D27: =IF(COUNTRY_INFO!$T$9:$T$1000="MDA3 (IVM)", COUNTRY_INFO!$T$9:$T$1000, " ") ->  | H27: 0 | K27: 0 | N27: 0 | O27: 0 | P27: 0 | Q27: 0
A28: =IF(COUNTRY_INFO!A28=0," ",COUNTRY_INFO!A28) -> RWANDA | B28: =IF(COUNTRY_INFO!B28=0," ",COUNTRY_INFO!B28) -> Southern | C28: =IF(COUNTRY_INFO!C28=0," ",COUNTRY_INFO!C28) -> Nyamagabe | D28: =IF(COUNTRY_INFO!$T$9:$T$1000="MDA3 (IVM)", COUNTRY_INFO!$T$9:$T$1000, " ") ->  | H28: 0 | K28: 0 | N28: 0 | O28: 0 | P28: 0 | Q28: 0
A29: =IF(COUNTRY_INFO!A29=0," ",COUNTRY_INFO!A29) -> RWANDA | B29: =IF(COUNTRY_INFO!B29=0," ",COUNTRY_INFO!B29) -> Western | C29: =IF(COUNTRY_INFO!C29=0," ",COUNTRY_INFO!C29) -> Nyamasheke | D29: =IF(COUNTRY_INFO!$T$9:$T$1000="MDA3 (IVM)", COUNTRY_INFO!$T$9:$T$1000, " ") ->  | H29: 0 | K29: 0 | N29: 0 | O29: 0 | P29: 0 | Q29: 0
A30: =IF(COUNTRY_INFO!A30=0," ",COUNTRY_INFO!A30) -> RWANDA | B30: =IF(COUNTRY_INFO!B30=0," ",COUNTRY_INFO!B30) -> Southern | C30: =IF(COUNTRY_INFO!C30=0," ",COUNTRY_INFO!C30) -> Nyanza | D30: =IF(COUNTRY_INFO!$T$9:$T$1000="MDA3 (IVM)", COUNTRY_INFO!$T$9:$T$1000, " ") ->  | H30: 0 | K30: 0 | N30: 0 | O30: 0 | P30: 0 | Q30: 0
A31: =IF(COUNTRY_INFO!A31=0," ",COUNTRY_INFO!A31) -> RWANDA | B31: =IF(COUNTRY_INFO!B31=0," ",COUNTRY_INFO!B31) -> Kigali | C31: =IF(COUNTRY_INFO!C31=0," ",COUNTRY_INFO!C31) -> Nyarugenge | D31: =IF(COUNTRY_INFO!$T$9:$T$1000="MDA3 (IVM)", COUNTRY_INFO!$T$9:$T$1000, " ") ->  | H31: 0 | K31: 0 | N31: 0 | O31: 0 | P31: 0 | Q31: 0
A32: =IF(COUNTRY_INFO!A32=0," ",COUNTRY_INFO!A32) -> RWANDA | B32: =IF(COUNTRY_INFO!B32=0," ",COUNTRY_INFO!B32) -> Southern | C32: =IF(COUNTRY_INFO!C32=0," ",COUNTRY_INFO!C32) -> Nyaruguru | D32: =IF(COUNTRY_INFO!$T$9:$T$1000="MDA3 (IVM)", COUNTRY_INFO!$T$9:$T$1000, " ") ->  | H32: 0 | K32: 0 | N32: 0 | O32: 0 | P32: 0 | Q32: 0
A33: =IF(COUNTRY_INFO!A33=0," ",COUNTRY_INFO!A33) -> RWANDA | B33: =IF(COUNTRY_INFO!B33=0," ",COUNTRY_INFO!B33) -> Western | C33: =IF(COUNTRY_INFO!C33=0," ",COUNTRY_INFO!C33) -> Rubavu | D33: =IF(COUNTRY_INFO!$T$9:$T$1000="MDA3 (IVM)", COUNTRY_INFO!$T$9:$T$1000, " ") ->  | H33: 0 | K33: 0 | N33: 0 | O33: 0 | P33: 0 | Q33: 0
A34: =IF(COUNTRY_INFO!A34=0," ",COUNTRY_INFO!A34) -> RWANDA | B34: =IF(COUNTRY_INFO!B34=0," ",COUNTRY_INFO!B34) -> Southern | C34: =IF(COUNTRY_INFO!C34=0," ",COUNTRY_INFO!C34) -> Ruhango | D34: =IF(COUNTRY_INFO!$T$9:$T$1000="MDA3 (IVM)", COUNTRY_INFO!$T$9:$T$1000, " ") ->  | H34: 0 | K34: 0 | N34: 0 | O34: 0 | P34: 0 | Q34: 0
A35: =IF(COUNTRY_INFO!A35=0," ",COUNTRY_INFO!A35) -> RWANDA | B35: =IF(COUNTRY_INFO!B35=0," ",COUNTRY_INFO!B35) -> Northern | C35: =IF(COUNTRY_INFO!C35=0," ",COUNTRY_INFO!C35) -> Rulindo | D35: =IF(COUNTRY_INFO!$T$9:$T$1000="MDA3 (IVM)", COUNTRY_INFO!$T$9:$T$1000, " ") ->  | H35: 0 | K35: 0 | N35: 0 | O35: 0 | P35: 0 | Q35: 0
A36: =IF(COUNTRY_INFO!A36=0," ",COUNTRY_INFO!A36) -> RWANDA | B36: =IF(COUNTRY_INFO!B36=0," ",COUNTRY_INFO!B36) -> Western | C36: =IF(COUNTRY_INFO!C36=0," ",COUNTRY_INFO!C36) -> Rusizi | D36: =IF(COUNTRY_INFO!$T$9:$T$1000="MDA3 (IVM)", COUNTRY_INFO!$T$9:$T$1000, " ") ->  | H36: 0 | K36: 0 | N36: 0 | O36: 0 | P36: 0 | Q36: 0
A37: =IF(COUNTRY_INFO!A37=0," ",COUNTRY_INFO!A37) -> RWANDA | B37: =IF(COUNTRY_INFO!B37=0," ",COUNTRY_INFO!B37) -> Western | C37: =IF(COUNTRY_INFO!C37=0," ",COUNTRY_INFO!C37) -> Rutsiro | D37: =IF(COUNTRY_INFO!$T$9:$T$1000="MDA3 (IVM)", COUNTRY_INFO!$T$9:$T$1000, " ") ->  | H37: 0 | K37: 0 | N37: 0 | O37: 0 | P37: 0 | Q37: 0
A38: =IF(COUNTRY_INFO!A38=0," ",COUNTRY_INFO!A38) -> RWANDA | B38: =IF(COUNTRY_INFO!B38=0," ",COUNTRY_INFO!B38) -> Eastern | C38: =IF(COUNTRY_INFO!C38=0," ",COUNTRY_INFO!C38) -> Rwamagana | D38: =IF(COUNTRY_INFO!$T$9:$T$1000="MDA3 (IVM)", COUNTRY_INFO!$T$9:$T$1000, " ") ->  | H38: 0 | K38: 0 | N38: 0 | O38: 0 | P38: 0 | Q38: 0

Sheet MDA5 (hidden)
A1: MDA 5 - Ivermectin (IVM) + Diethylcarbamazine citrate (DEC) + Albendazole (ALB)
A2: Administrative structure, population requiring PC by age group, population treated by age group and coverage
A4: TOTAL | F4: =SUM(F$9:F$1000) -> 0 | G4: 0 | H4: 0 | I4: 0 | J4: 0 | K4: 0 | L4: 0 | M4: 0 | N4: =IF(F4<>0, IF(J4/F4*100=0, "-", J4/F4*100), " ") ->  | O4: =IF(G4<>0, IF(K4/G4*100=0, "-", K4/G4*100), " ") ->  | P4: =IF(H4<>0, IF(L4/H4*100=0, "-", L4/H4*100), " ") ->  | Q4: =IF(I4<>0, IF(M4/I4*100=0, "-", M4/I4*100), " ") -> 
D6: PC implemented | E6: Date | F6: Population targeted for MDA 5 | J6: Population treated | N6: Programme coverage (%)
A7: Country | B7: Province/State | C7: District | F7: PreSAC | G7: SAC | H7: Adults | I7: Total | J7: PreSAC | K7: SAC | L7: Adults | M7: Total | N7: PreSAC | O7: SAC | P7: Adults | Q7: Total
A9: =IF(COUNTRY_INFO!A9=0," ",COUNTRY_INFO!A9) -> RWANDA | B9: =IF(COUNTRY_INFO!B9=0," ",COUNTRY_INFO!B9) -> Eastern | C9: =IF(COUNTRY_INFO!C9=0," ",COUNTRY_INFO!C9) -> Bugesera | D9: =IF(COUNTRY_INFO!$T$9:$T$1000="MDA5 (IDA)", COUNTRY_INFO!$T$9:$T$1000, " ") ->  | I9: =SUM(F9:H9) -> 0 | M9: =SUM(J9:L9) -> 0 | N9: =IF(F9<>0, IF(J9/F9*100=0, "-", J9/F9*100), " ") ->  | O9: =IF(G9<>0, IF(K9/G9*100=0, "-", K9/G9*100), " ") -> 
A10: =IF(COUNTRY_INFO!A10=0," ",COUNTRY_INFO!A10) -> RWANDA | B10: =IF(COUNTRY_INFO!B10=0," ",COUNTRY_INFO!B10) -> Northern | C10: =IF(COUNTRY_INFO!C10=0," ",COUNTRY_INFO!C10) -> Burera | D10: =IF(COUNTRY_INFO!$T$9:$T$1000="MDA5 (IDA)", COUNTRY_INFO!$T$9:$T$1000, " ") ->  | I10: =SUM(F10:H10) -> 0 | M10: =SUM(J10:L10) -> 0 | N10: =IF(F10<>0, IF(J10/F10*100=0, "-", J10/F10*100), " ") ->  | O10: =IF(G10<>0, IF(K10/G10*100=0, "-", K10/G10*100), " ") ->  | P10: =IF(H10<>0, IF(L10/H10*100=0, "-", L10/H10*100), " ") ->  | Q10: =IF(I10<>0, IF(M10/I10*100=0, "-", M10/I10*100), " ") -> 
A11: =IF(COUNTRY_INFO!A11=0," ",COUNTRY_INFO!A11) -> RWANDA | B11: =IF(COUNTRY_INFO!B11=0," ",COUNTRY_INFO!B11) -> Northern | C11: =IF(COUNTRY_INFO!C11=0," ",COUNTRY_INFO!C11) -> Gakenke | D11: =IF(COUNTRY_INFO!$T$9:$T$1000="MDA5 (IDA)", COUNTRY_INFO!$T$9:$T$1000, " ") ->  | I11: 0 | M11: 0
A12: =IF(COUNTRY_INFO!A12=0," ",COUNTRY_INFO!A12) -> RWANDA | B12: =IF(COUNTRY_INFO!B12=0," ",COUNTRY_INFO!B12) -> Kigali | C12: =IF(COUNTRY_INFO!C12=0," ",COUNTRY_INFO!C12) -> Gasabo | D12: =IF(COUNTRY_INFO!$T$9:$T$1000="MDA5 (IDA)", COUNTRY_INFO!$T$9:$T$1000, " ") ->  | I12: 0 | M12: 0
A13: =IF(COUNTRY_INFO!A13=0," ",COUNTRY_INFO!A13) -> RWANDA | B13: =IF(COUNTRY_INFO!B13=0," ",COUNTRY_INFO!B13) -> Eastern | C13: =IF(COUNTRY_INFO!C13=0," ",COUNTRY_INFO!C13) -> Gatsibo | D13: =IF(COUNTRY_INFO!$T$9:$T$1000="MDA5 (IDA)", COUNTRY_INFO!$T$9:$T$1000, " ") ->  | I13: 0 | M13: 0
A14: =IF(COUNTRY_INFO!A14=0," ",COUNTRY_INFO!A14) -> RWANDA | B14: =IF(COUNTRY_INFO!B14=0," ",COUNTRY_INFO!B14) -> Northern | C14: =IF(COUNTRY_INFO!C14=0," ",COUNTRY_INFO!C14) -> Gicumbi | D14: =IF(COUNTRY_INFO!$T$9:$T$1000="MDA5 (IDA)", COUNTRY_INFO!$T$9:$T$1000, " ") ->  | I14: 0 | M14: 0
A15: =IF(COUNTRY_INFO!A15=0," ",COUNTRY_INFO!A15) -> RWANDA | B15: =IF(COUNTRY_INFO!B15=0," ",COUNTRY_INFO!B15) -> Southern | C15: =IF(COUNTRY_INFO!C15=0," ",COUNTRY_INFO!C15) -> Gisagara | D15: =IF(COUNTRY_INFO!$T$9:$T$1000="MDA5 (IDA)", COUNTRY_INFO!$T$9:$T$1000, " ") ->  | I15: 0 | M15: 0
A16: =IF(COUNTRY_INFO!A16=0," ",COUNTRY_INFO!A16) -> RWANDA | B16: =IF(COUNTRY_INFO!B16=0," ",COUNTRY_INFO!B16) -> Southern | C16: =IF(COUNTRY_INFO!C16=0," ",COUNTRY_INFO!C16) -> Huye | D16: =IF(COUNTRY_INFO!$T$9:$T$1000="MDA5 (IDA)", COUNTRY_INFO!$T$9:$T$1000, " ") ->  | I16: 0 | M16: 0
A17: =IF(COUNTRY_INFO!A17=0," ",COUNTRY_INFO!A17) -> RWANDA | B17: =IF(COUNTRY_INFO!B17=0," ",COUNTRY_INFO!B17) -> Southern | C17: =IF(COUNTRY_INFO!C17=0," ",COUNTRY_INFO!C17) -> Kamonyi | D17: =IF(COUNTRY_INFO!$T$9:$T$1000="MDA5 (IDA)", COUNTRY_INFO!$T$9:$T$1000, " ") ->  | I17: 0 | M17: 0
A18: =IF(COUNTRY_INFO!A18=0," ",COUNTRY_INFO!A18) -> RWANDA | B18: =IF(COUNTRY_INFO!B18=0," ",COUNTRY_INFO!B18) -> Western | C18: =IF(COUNTRY_INFO!C18=0," ",COUNTRY_INFO!C18) -> Karongi | D18: =IF(COUNTRY_INFO!$T$9:$T$1000="MDA5 (IDA)", COUNTRY_INFO!$T$9:$T$1000, " ") ->  | I18: 0 | M18: 0
A19: =IF(COUNTRY_INFO!A19=0," ",COUNTRY_INFO!A19) -> RWANDA | B19: =IF(COUNTRY_INFO!B19=0," ",COUNTRY_INFO!B19) -> Eastern | C19: =IF(COUNTRY_INFO!C19=0," ",COUNTRY_INFO!C19) -> Kayonza | D19: =IF(COUNTRY_INFO!$T$9:$T$1000="MDA5 (IDA)", COUNTRY_INFO!$T$9:$T$1000, " ") ->  | I19: 0 | M19: 0
A20: =IF(COUNTRY_INFO!A20=0," ",COUNTRY_INFO!A20) -> RWANDA | B20: =IF(COUNTRY_INFO!B20=0," ",COUNTRY_INFO!B20) -> Kigali | C20: =IF(COUNTRY_INFO!C20=0," ",COUNTRY_INFO!C20) -> Kicukiro | D20: =IF(COUNTRY_INFO!$T$9:$T$1000="MDA5 (IDA)", COUNTRY_INFO!$T$9:$T$1000, " ") ->  | I20: 0 | M20: 0
A21: =IF(COUNTRY_INFO!A21=0," ",COUNTRY_INFO!A21) -> RWANDA | B21: =IF(COUNTRY_INFO!B21=0," ",COUNTRY_INFO!B21) -> Eastern | C21: =IF(COUNTRY_INFO!C21=0," ",COUNTRY_INFO!C21) -> Kirehe | D21: =IF(COUNTRY_INFO!$T$9:$T$1000="MDA5 (IDA)", COUNTRY_INFO!$T$9:$T$1000, " ") ->  | I21: 0 | M21: 0
A22: =IF(COUNTRY_INFO!A22=0," ",COUNTRY_INFO!A22) -> RWANDA | B22: =IF(COUNTRY_INFO!B22=0," ",COUNTRY_INFO!B22) -> Southern | C22: =IF(COUNTRY_INFO!C22=0," ",COUNTRY_INFO!C22) -> Muhanga | D22: =IF(COUNTRY_INFO!$T$9:$T$1000="MDA5 (IDA)", COUNTRY_INFO!$T$9:$T$1000, " ") ->  | I22: 0 | M22: 0
A23: =IF(COUNTRY_INFO!A23=0," ",COUNTRY_INFO!A23) -> RWANDA | B23: =IF(COUNTRY_INFO!B23=0," ",COUNTRY_INFO!B23) -> Northern | C23: =IF(COUNTRY_INFO!C23=0," ",COUNTRY_INFO!C23) -> Musanze | D23: =IF(COUNTRY_INFO!$T$9:$T$1000="MDA5 (IDA)", COUNTRY_INFO!$T$9:$T$1000, " ") ->  | I23: 0 | M23: 0
A24: =IF(COUNTRY_INFO!A24=0," ",COUNTRY_INFO!A24) -> RWANDA | B24: =IF(COUNTRY_INFO!B24=0," ",COUNTRY_INFO!B24) -> Eastern | C24: =IF(COUNTRY_INFO!C24=0," ",COUNTRY_INFO!C24) -> Ngoma | D24: =IF(COUNTRY_INFO!$T$9:$T$1000="MDA5 (IDA)", COUNTRY_INFO!$T$9:$T$1000, " ") ->  | I24: 0 | M24: 0
A25: =IF(COUNTRY_INFO!A25=0," ",COUNTRY_INFO!A25) -> RWANDA | B25: =IF(COUNTRY_INFO!B25=0," ",COUNTRY_INFO!B25) -> Western | C25: =IF(COUNTRY_INFO!C25=0," ",COUNTRY_INFO!C25) -> Ngororero | D25: =IF(COUNTRY_INFO!$T$9:$T$1000="MDA5 (IDA)", COUNTRY_INFO!$T$9:$T$1000, " ") ->  | I25: 0 | M25: 0
A26: =IF(COUNTRY_INFO!A26=0," ",COUNTRY_INFO!A26) -> RWANDA | B26: =IF(COUNTRY_INFO!B26=0," ",COUNTRY_INFO!B26) -> Western | C26: =IF(COUNTRY_INFO!C26=0," ",COUNTRY_INFO!C26) -> Nyabihu | D26: =IF(COUNTRY_INFO!$T$9:$T$1000="MDA5 (IDA)", COUNTRY_INFO!$T$9:$T$1000, " ") ->  | I26: 0 | M26: 0
A27: =IF(COUNTRY_INFO!A27=0," ",COUNTRY_INFO!A27) -> RWANDA | B27: =IF(COUNTRY_INFO!B27=0," ",COUNTRY_INFO!B27) -> Eastern | C27: =IF(COUNTRY_INFO!C27=0," ",COUNTRY_INFO!C27) -> Nyagatare | D27: =IF(COUNTRY_INFO!$T$9:$T$1000="MDA5 (IDA)", COUNTRY_INFO!$T$9:$T$1000, " ") ->  | I27: 0 | M27: 0
A28: =IF(COUNTRY_INFO!A28=0," ",COUNTRY_INFO!A28) -> RWANDA | B28: =IF(COUNTRY_INFO!B28=0," ",COUNTRY_INFO!B28) -> Southern | C28: =IF(COUNTRY_INFO!C28=0," ",COUNTRY_INFO!C28) -> Nyamagabe | D28: =IF(COUNTRY_INFO!$T$9:$T$1000="MDA5 (IDA)", COUNTRY_INFO!$T$9:$T$1000, " ") ->  | I28: 0 | M28: 0
A29: =IF(COUNTRY_INFO!A29=0," ",COUNTRY_INFO!A29) -> RWANDA | B29: =IF(COUNTRY_INFO!B29=0," ",COUNTRY_INFO!B29) -> Western | C29: =IF(COUNTRY_INFO!C29=0," ",COUNTRY_INFO!C29) -> Nyamasheke | D29: =IF(COUNTRY_INFO!$T$9:$T$1000="MDA5 (IDA)", COUNTRY_INFO!$T$9:$T$1000, " ") ->  | I29: 0 | M29: 0
A30: =IF(COUNTRY_INFO!A30=0," ",COUNTRY_INFO!A30) -> RWANDA | B30: =IF(COUNTRY_INFO!B30=0," ",COUNTRY_INFO!B30) -> Southern | C30: =IF(COUNTRY_INFO!C30=0," ",COUNTRY_INFO!C30) -> Nyanza | D30: =IF(COUNTRY_INFO!$T$9:$T$1000="MDA5 (IDA)", COUNTRY_INFO!$T$9:$T$1000, " ") ->  | I30: 0 | M30: 0
A31: =IF(COUNTRY_INFO!A31=0," ",COUNTRY_INFO!A31) -> RWANDA | B31: =IF(COUNTRY_INFO!B31=0," ",COUNTRY_INFO!B31) -> Kigali | C31: =IF(COUNTRY_INFO!C31=0," ",COUNTRY_INFO!C31) -> Nyarugenge | D31: =IF(COUNTRY_INFO!$T$9:$T$1000="MDA5 (IDA)", COUNTRY_INFO!$T$9:$T$1000, " ") ->  | I31: 0 | M31: 0
A32: =IF(COUNTRY_INFO!A32=0," ",COUNTRY_INFO!A32) -> RWANDA | B32: =IF(COUNTRY_INFO!B32=0," ",COUNTRY_INFO!B32) -> Southern | C32: =IF(COUNTRY_INFO!C32=0," ",COUNTRY_INFO!C32) -> Nyaruguru | D32: =IF(COUNTRY_INFO!$T$9:$T$1000="MDA5 (IDA)", COUNTRY_INFO!$T$9:$T$1000, " ") ->  | I32: 0 | M32: 0
A33: =IF(COUNTRY_INFO!A33=0," ",COUNTRY_INFO!A33) -> RWANDA | B33: =IF(COUNTRY_INFO!B33=0," ",COUNTRY_INFO!B33) -> Western | C33: =IF(COUNTRY_INFO!C33=0," ",COUNTRY_INFO!C33) -> Rubavu | D33: =IF(COUNTRY_INFO!$T$9:$T$1000="MDA5 (IDA)", COUNTRY_INFO!$T$9:$T$1000, " ") ->  | I33: 0 | M33: 0
A34: =IF(COUNTRY_INFO!A34=0," ",COUNTRY_INFO!A34) -> RWANDA | B34: =IF(COUNTRY_INFO!B34=0," ",COUNTRY_INFO!B34) -> Southern | C34: =IF(COUNTRY_INFO!C34=0," ",COUNTRY_INFO!C34) -> Ruhango | D34: =IF(COUNTRY_INFO!$T$9:$T$1000="MDA5 (IDA)", COUNTRY_INFO!$T$9:$T$1000, " ") ->  | I34: 0 | M34: 0
A35: =IF(COUNTRY_INFO!A35=0," ",COUNTRY_INFO!A35) -> RWANDA | B35: =IF(COUNTRY_INFO!B35=0," ",COUNTRY_INFO!B35) -> Northern | C35: =IF(COUNTRY_INFO!C35=0," ",COUNTRY_INFO!C35) -> Rulindo | D35: =IF(COUNTRY_INFO!$T$9:$T$1000="MDA5 (IDA)", COUNTRY_INFO!$T$9:$T$1000, " ") ->  | I35: 0 | M35: 0
A36: =IF(COUNTRY_INFO!A36=0," ",COUNTRY_INFO!A36) -> RWANDA | B36: =IF(COUNTRY_INFO!B36=0," ",COUNTRY_INFO!B36) -> Western | C36: =IF(COUNTRY_INFO!C36=0," ",COUNTRY_INFO!C36) -> Rusizi | D36: =IF(COUNTRY_INFO!$T$9:$T$1000="MDA5 (IDA)", COUNTRY_INFO!$T$9:$T$1000, " ") ->  | I36: 0 | M36: 0
A37: =IF(COUNTRY_INFO!A37=0," ",COUNTRY_INFO!A37) -> RWANDA | B37: =IF(COUNTRY_INFO!B37=0," ",COUNTRY_INFO!B37) -> Western | C37: =IF(COUNTRY_INFO!C37=0," ",COUNTRY_INFO!C37) -> Rutsiro | D37: =IF(COUNTRY_INFO!$T$9:$T$1000="MDA5 (IDA)", COUNTRY_INFO!$T$9:$T$1000, " ") ->  | I37: 0 | M37: 0
A38: =IF(COUNTRY_INFO!A38=0," ",COUNTRY_INFO!A38) -> RWANDA | B38: =IF(COUNTRY_INFO!B38=0," ",COUNTRY_INFO!B38) -> Eastern | C38: =IF(COUNTRY_INFO!C38=0," ",COUNTRY_INFO!C38) -> Rwamagana | D38: =IF(COUNTRY_INFO!$T$9:$T$1000="MDA5 (IDA)", COUNTRY_INFO!$T$9:$T$1000, " ") ->  | I38: 0 | M38: 0

Sheet T1
A1: T 1 - Praziquantel (PZQ) and Albendazole (ALB) or Mebendazole (MBD)
A2: Administrative structure, population requiring PC by age group, population treated by age group and coverage
A4: TOTAL | G4: =SUM(G$9:G$1000) -> 0 | H4: 0 | I4: 0 | J4: 0 | K4: =SUM(K$9:K$1000) -> 0 | L4: 0 | M4: 0 | N4: 0 | O4: 0 | P4: =IF(G4<>0, IF(L4/G4*100=0, "-", L4/G4*100), " ") ->  | Q4: =IF(OR(I4<>0,H4<>0), IF(M4/MAX(H4,I4)*100=0, "-", M4/MAX(H4,I4)*100), " ") ->  | R4: =IF(J4<>0, IF(N4/J4*100=0, "-", N4/J4*100), " ") ->  | S4: =IF(K4<>0, IF(O4/K4*100=0, "-", O4/K4*100), " ") -> 
D6: PC implemented | E6: Medicine | F6: Date | G6: Population targeted for T1 | L6: Population treated | P6: Programme coverage (%)
A7: Country | B7: Province/State | C7: District | G7: PreSAC (ALB) | H7: SAC (ALB) | I7: SAC (PZQ) | J7: Adults (PZQ) | K7: Total | L7: PreSAC | M7: SAC | N7: Adults | O7: Total | P7: PreSAC | Q7: SAC | R7: Adults | S7: Total
A9: =IF(COUNTRY_INFO!A9=0," ",COUNTRY_INFO!A9) -> RWANDA | B9: =IF(COUNTRY_INFO!B9=0," ",COUNTRY_INFO!B9) -> Eastern | C9: =IF(COUNTRY_INFO!C9=0," ",COUNTRY_INFO!C9) -> Bugesera | D9: =IF(OR(COUNTRY_INFO!$T$9:$T$1000="T1 (PZQ+ALB/MBD)",COUNTRY_INFO!$U$9:$U$1000="T1 (PZQ+ALB/MBD)"), "T1 (PZQ+ALB/MBD)", " ") ->  | K9: =MAX(H9:I9)+G9+J9 -> 0 | O9: =SUM(L9:N9) -> 0 | P9: =IF(G9<>0, IF(L9/G9*100=0, "-", L9/G9*100), " ") ->  | Q9: =IF(OR(I9<>0,H9<>0), IF(M9/MAX(H9,I9)*100=0, "-", M9/MAX(H9,I9)*100), " ") ->  | R9: =IF(J9<>0, IF(N9/J9*100=0, "-", N9/J9*100), " ") -> 
A10: =IF(COUNTRY_INFO!A10=0," ",COUNTRY_INFO!A10) -> RWANDA | B10: =IF(COUNTRY_INFO!B10=0," ",COUNTRY_INFO!B10) -> Northern | C10: =IF(COUNTRY_INFO!C10=0," ",COUNTRY_INFO!C10) -> Burera | D10: =IF(OR(COUNTRY_INFO!$T$9:$T$1000="T1 (PZQ+ALB/MBD)",COUNTRY_INFO!$U$9:$U$1000="T1 (PZQ+ALB/MBD)"), "T1 (PZQ+ALB/MBD)", " ") ->  | K10: =MAX(H10:I10)+G10+J10 -> 0 | O10: =SUM(L10:N10) -> 0 | P10: =IF(G10<>0, IF(L10/G10*100=0, "-", L10/G10*100), " ") ->  | Q10: =IF(OR(I10<>0,H10<>0), IF(M10/MAX(H10,I10)*100=0, "-", M10/MAX(H10,I10)*100), " ") ->  | R10: =IF(J10<>0, IF(N10/J10*100=0, "-", N10/J10*100), " ") ->  | S10: =IF(K10<>0, IF(O10/K10*100=0, "-", O10/K10*100), " ") -> 
A11: =IF(COUNTRY_INFO!A11=0," ",COUNTRY_INFO!A11) -> RWANDA | B11: =IF(COUNTRY_INFO!B11=0," ",COUNTRY_INFO!B11) -> Northern | C11: =IF(COUNTRY_INFO!C11=0," ",COUNTRY_INFO!C11) -> Gakenke | D11: =IF(OR(COUNTRY_INFO!$T$9:$T$1000="T1 (PZQ+ALB/MBD)",COUNTRY_INFO!$U$9:$U$1000="T1 (PZQ+ALB/MBD)"), "T1 (PZQ+ALB/MBD)", " ") ->  | K11: 0 | O11: 0
A12: =IF(COUNTRY_INFO!A12=0," ",COUNTRY_INFO!A12) -> RWANDA | B12: =IF(COUNTRY_INFO!B12=0," ",COUNTRY_INFO!B12) -> Kigali | C12: =IF(COUNTRY_INFO!C12=0," ",COUNTRY_INFO!C12) -> Gasabo | D12: =IF(OR(COUNTRY_INFO!$T$9:$T$1000="T1 (PZQ+ALB/MBD)",COUNTRY_INFO!$U$9:$U$1000="T1 (PZQ+ALB/MBD)"), "T1 (PZQ+ALB/MBD)", " ") ->  | K12: 0 | O12: 0
A13: =IF(COUNTRY_INFO!A13=0," ",COUNTRY_INFO!A13) -> RWANDA | B13: =IF(COUNTRY_INFO!B13=0," ",COUNTRY_INFO!B13) -> Eastern | C13: =IF(COUNTRY_INFO!C13=0," ",COUNTRY_INFO!C13) -> Gatsibo | D13: =IF(OR(COUNTRY_INFO!$T$9:$T$1000="T1 (PZQ+ALB/MBD)",COUNTRY_INFO!$U$9:$U$1000="T1 (PZQ+ALB/MBD)"), "T1 (PZQ+ALB/MBD)", " ") ->  | K13: 0 | O13: 0
A14: =IF(COUNTRY_INFO!A14=0," ",COUNTRY_INFO!A14) -> RWANDA | B14: =IF(COUNTRY_INFO!B14=0," ",COUNTRY_INFO!B14) -> Northern | C14: =IF(COUNTRY_INFO!C14=0," ",COUNTRY_INFO!C14) -> Gicumbi | D14: =IF(OR(COUNTRY_INFO!$T$9:$T$1000="T1 (PZQ+ALB/MBD)",COUNTRY_INFO!$U$9:$U$1000="T1 (PZQ+ALB/MBD)"), "T1 (PZQ+ALB/MBD)", " ") ->  | K14: 0 | O14: 0
A15: =IF(COUNTRY_INFO!A15=0," ",COUNTRY_INFO!A15) -> RWANDA | B15: =IF(COUNTRY_INFO!B15=0," ",COUNTRY_INFO!B15) -> Southern | C15: =IF(COUNTRY_INFO!C15=0," ",COUNTRY_INFO!C15) -> Gisagara | D15: =IF(OR(COUNTRY_INFO!$T$9:$T$1000="T1 (PZQ+ALB/MBD)",COUNTRY_INFO!$U$9:$U$1000="T1 (PZQ+ALB/MBD)"), "T1 (PZQ+ALB/MBD)", " ") ->  | K15: 0 | O15: 0
A16: =IF(COUNTRY_INFO!A16=0," ",COUNTRY_INFO!A16) -> RWANDA | B16: =IF(COUNTRY_INFO!B16=0," ",COUNTRY_INFO!B16) -> Southern | C16: =IF(COUNTRY_INFO!C16=0," ",COUNTRY_INFO!C16) -> Huye | D16: =IF(OR(COUNTRY_INFO!$T$9:$T$1000="T1 (PZQ+ALB/MBD)",COUNTRY_INFO!$U$9:$U$1000="T1 (PZQ+ALB/MBD)"), "T1 (PZQ+ALB/MBD)", " ") ->  | K16: 0 | O16: 0
A17: =IF(COUNTRY_INFO!A17=0," ",COUNTRY_INFO!A17) -> RWANDA | B17: =IF(COUNTRY_INFO!B17=0," ",COUNTRY_INFO!B17) -> Southern | C17: =IF(COUNTRY_INFO!C17=0," ",COUNTRY_INFO!C17) -> Kamonyi | D17: =IF(OR(COUNTRY_INFO!$T$9:$T$1000="T1 (PZQ+ALB/MBD)",COUNTRY_INFO!$U$9:$U$1000="T1 (PZQ+ALB/MBD)"), "T1 (PZQ+ALB/MBD)", " ") ->  | K17: 0 | O17: 0
A18: =IF(COUNTRY_INFO!A18=0," ",COUNTRY_INFO!A18) -> RWANDA | B18: =IF(COUNTRY_INFO!B18=0," ",COUNTRY_INFO!B18) -> Western | C18: =IF(COUNTRY_INFO!C18=0," ",COUNTRY_INFO!C18) -> Karongi | D18: =IF(OR(COUNTRY_INFO!$T$9:$T$1000="T1 (PZQ+ALB/MBD)",COUNTRY_INFO!$U$9:$U$1000="T1 (PZQ+ALB/MBD)"), "T1 (PZQ+ALB/MBD)", " ") ->  | K18: 0 | O18: 0
A19: =IF(COUNTRY_INFO!A19=0," ",COUNTRY_INFO!A19) -> RWANDA | B19: =IF(COUNTRY_INFO!B19=0," ",COUNTRY_INFO!B19) -> Eastern | C19: =IF(COUNTRY_INFO!C19=0," ",COUNTRY_INFO!C19) -> Kayonza | D19: =IF(OR(COUNTRY_INFO!$T$9:$T$1000="T1 (PZQ+ALB/MBD)",COUNTRY_INFO!$U$9:$U$1000="T1 (PZQ+ALB/MBD)"), "T1 (PZQ+ALB/MBD)", " ") ->  | K19: 0 | O19: 0
A20: =IF(COUNTRY_INFO!A20=0," ",COUNTRY_INFO!A20) -> RWANDA | B20: =IF(COUNTRY_INFO!B20=0," ",COUNTRY_INFO!B20) -> Kigali | C20: =IF(COUNTRY_INFO!C20=0," ",COUNTRY_INFO!C20) -> Kicukiro | D20: =IF(OR(COUNTRY_INFO!$T$9:$T$1000="T1 (PZQ+ALB/MBD)",COUNTRY_INFO!$U$9:$U$1000="T1 (PZQ+ALB/MBD)"), "T1 (PZQ+ALB/MBD)", " ") ->  | K20: 0 | O20: 0
A21: =IF(COUNTRY_INFO!A21=0," ",COUNTRY_INFO!A21) -> RWANDA | B21: =IF(COUNTRY_INFO!B21=0," ",COUNTRY_INFO!B21) -> Eastern | C21: =IF(COUNTRY_INFO!C21=0," ",COUNTRY_INFO!C21) -> Kirehe | D21: =IF(OR(COUNTRY_INFO!$T$9:$T$1000="T1 (PZQ+ALB/MBD)",COUNTRY_INFO!$U$9:$U$1000="T1 (PZQ+ALB/MBD)"), "T1 (PZQ+ALB/MBD)", " ") ->  | K21: 0 | O21: 0
A22: =IF(COUNTRY_INFO!A22=0," ",COUNTRY_INFO!A22) -> RWANDA | B22: =IF(COUNTRY_INFO!B22=0," ",COUNTRY_INFO!B22) -> Southern | C22: =IF(COUNTRY_INFO!C22=0," ",COUNTRY_INFO!C22) -> Muhanga | D22: =IF(OR(COUNTRY_INFO!$T$9:$T$1000="T1 (PZQ+ALB/MBD)",COUNTRY_INFO!$U$9:$U$1000="T1 (PZQ+ALB/MBD)"), "T1 (PZQ+ALB/MBD)", " ") ->  | K22: 0 | O22: 0
A23: =IF(COUNTRY_INFO!A23=0," ",COUNTRY_INFO!A23) -> RWANDA | B23: =IF(COUNTRY_INFO!B23=0," ",COUNTRY_INFO!B23) -> Northern | C23: =IF(COUNTRY_INFO!C23=0," ",COUNTRY_INFO!C23) -> Musanze | D23: =IF(OR(COUNTRY_INFO!$T$9:$T$1000="T1 (PZQ+ALB/MBD)",COUNTRY_INFO!$U$9:$U$1000="T1 (PZQ+ALB/MBD)"), "T1 (PZQ+ALB/MBD)", " ") ->  | K23: 0 | O23: 0
A24: =IF(COUNTRY_INFO!A24=0," ",COUNTRY_INFO!A24) -> RWANDA | B24: =IF(COUNTRY_INFO!B24=0," ",COUNTRY_INFO!B24) -> Eastern | C24: =IF(COUNTRY_INFO!C24=0," ",COUNTRY_INFO!C24) -> Ngoma | D24: =IF(OR(COUNTRY_INFO!$T$9:$T$1000="T1 (PZQ+ALB/MBD)",COUNTRY_INFO!$U$9:$U$1000="T1 (PZQ+ALB/MBD)"), "T1 (PZQ+ALB/MBD)", " ") ->  | K24: 0 | O24: 0
A25: =IF(COUNTRY_INFO!A25=0," ",COUNTRY_INFO!A25) -> RWANDA | B25: =IF(COUNTRY_INFO!B25=0," ",COUNTRY_INFO!B25) -> Western | C25: =IF(COUNTRY_INFO!C25=0," ",COUNTRY_INFO!C25) -> Ngororero | D25: =IF(OR(COUNTRY_INFO!$T$9:$T$1000="T1 (PZQ+ALB/MBD)",COUNTRY_INFO!$U$9:$U$1000="T1 (PZQ+ALB/MBD)"), "T1 (PZQ+ALB/MBD)", " ") ->  | K25: 0 | O25: 0
A26: =IF(COUNTRY_INFO!A26=0," ",COUNTRY_INFO!A26) -> RWANDA | B26: =IF(COUNTRY_INFO!B26=0," ",COUNTRY_INFO!B26) -> Western | C26: =IF(COUNTRY_INFO!C26=0," ",COUNTRY_INFO!C26) -> Nyabihu | D26: =IF(OR(COUNTRY_INFO!$T$9:$T$1000="T1 (PZQ+ALB/MBD)",COUNTRY_INFO!$U$9:$U$1000="T1 (PZQ+ALB/MBD)"), "T1 (PZQ+ALB/MBD)", " ") ->  | K26: 0 | O26: 0
A27: =IF(COUNTRY_INFO!A27=0," ",COUNTRY_INFO!A27) -> RWANDA | B27: =IF(COUNTRY_INFO!B27=0," ",COUNTRY_INFO!B27) -> Eastern | C27: =IF(COUNTRY_INFO!C27=0," ",COUNTRY_INFO!C27) -> Nyagatare | D27: =IF(OR(COUNTRY_INFO!$T$9:$T$1000="T1 (PZQ+ALB/MBD)",COUNTRY_INFO!$U$9:$U$1000="T1 (PZQ+ALB/MBD)"), "T1 (PZQ+ALB/MBD)", " ") ->  | K27: 0 | O27: 0
A28: =IF(COUNTRY_INFO!A28=0," ",COUNTRY_INFO!A28) -> RWANDA | B28: =IF(COUNTRY_INFO!B28=0," ",COUNTRY_INFO!B28) -> Southern | C28: =IF(COUNTRY_INFO!C28=0," ",COUNTRY_INFO!C28) -> Nyamagabe | D28: =IF(OR(COUNTRY_INFO!$T$9:$T$1000="T1 (PZQ+ALB/MBD)",COUNTRY_INFO!$U$9:$U$1000="T1 (PZQ+ALB/MBD)"), "T1 (PZQ+ALB/MBD)", " ") ->  | K28: 0 | O28: 0
A29: =IF(COUNTRY_INFO!A29=0," ",COUNTRY_INFO!A29) -> RWANDA | B29: =IF(COUNTRY_INFO!B29=0," ",COUNTRY_INFO!B29) -> Western | C29: =IF(COUNTRY_INFO!C29=0," ",COUNTRY_INFO!C29) -> Nyamasheke | D29: =IF(OR(COUNTRY_INFO!$T$9:$T$1000="T1 (PZQ+ALB/MBD)",COUNTRY_INFO!$U$9:$U$1000="T1 (PZQ+ALB/MBD)"), "T1 (PZQ+ALB/MBD)", " ") ->  | K29: 0 | O29: 0
A30: =IF(COUNTRY_INFO!A30=0," ",COUNTRY_INFO!A30) -> RWANDA | B30: =IF(COUNTRY_INFO!B30=0," ",COUNTRY_INFO!B30) -> Southern | C30: =IF(COUNTRY_INFO!C30=0," ",COUNTRY_INFO!C30) -> Nyanza | D30: =IF(OR(COUNTRY_INFO!$T$9:$T$1000="T1 (PZQ+ALB/MBD)",COUNTRY_INFO!$U$9:$U$1000="T1 (PZQ+ALB/MBD)"), "T1 (PZQ+ALB/MBD)", " ") ->  | K30: 0 | O30: 0
A31: =IF(COUNTRY_INFO!A31=0," ",COUNTRY_INFO!A31) -> RWANDA | B31: =IF(COUNTRY_INFO!B31=0," ",COUNTRY_INFO!B31) -> Kigali | C31: =IF(COUNTRY_INFO!C31=0," ",COUNTRY_INFO!C31) -> Nyarugenge | D31: =IF(OR(COUNTRY_INFO!$T$9:$T$1000="T1 (PZQ+ALB/MBD)",COUNTRY_INFO!$U$9:$U$1000="T1 (PZQ+ALB/MBD)"), "T1 (PZQ+ALB/MBD)", " ") ->  | K31: 0 | O31: 0
A32: =IF(COUNTRY_INFO!A32=0," ",COUNTRY_INFO!A32) -> RWANDA | B32: =IF(COUNTRY_INFO!B32=0," ",COUNTRY_INFO!B32) -> Southern | C32: =IF(COUNTRY_INFO!C32=0," ",COUNTRY_INFO!C32) -> Nyaruguru | D32: =IF(OR(COUNTRY_INFO!$T$9:$T$1000="T1 (PZQ+ALB/MBD)",COUNTRY_INFO!$U$9:$U$1000="T1 (PZQ+ALB/MBD)"), "T1 (PZQ+ALB/MBD)", " ") ->  | K32: 0 | O32: 0
A33: =IF(COUNTRY_INFO!A33=0," ",COUNTRY_INFO!A33) -> RWANDA | B33: =IF(COUNTRY_INFO!B33=0," ",COUNTRY_INFO!B33) -> Western | C33: =IF(COUNTRY_INFO!C33=0," ",COUNTRY_INFO!C33) -> Rubavu | D33: =IF(OR(COUNTRY_INFO!$T$9:$T$1000="T1 (PZQ+ALB/MBD)",COUNTRY_INFO!$U$9:$U$1000="T1 (PZQ+ALB/MBD)"), "T1 (PZQ+ALB/MBD)", " ") ->  | K33: 0 | O33: 0
A34: =IF(COUNTRY_INFO!A34=0," ",COUNTRY_INFO!A34) -> RWANDA | B34: =IF(COUNTRY_INFO!B34=0," ",COUNTRY_INFO!B34) -> Southern | C34: =IF(COUNTRY_INFO!C34=0," ",COUNTRY_INFO!C34) -> Ruhango | D34: =IF(OR(COUNTRY_INFO!$T$9:$T$1000="T1 (PZQ+ALB/MBD)",COUNTRY_INFO!$U$9:$U$1000="T1 (PZQ+ALB/MBD)"), "T1 (PZQ+ALB/MBD)", " ") ->  | K34: 0 | O34: 0
A35: =IF(COUNTRY_INFO!A35=0," ",COUNTRY_INFO!A35) -> RWANDA | B35: =IF(COUNTRY_INFO!B35=0," ",COUNTRY_INFO!B35) -> Northern | C35: =IF(COUNTRY_INFO!C35=0," ",COUNTRY_INFO!C35) -> Rulindo | D35: =IF(OR(COUNTRY_INFO!$T$9:$T$1000="T1 (PZQ+ALB/MBD)",COUNTRY_INFO!$U$9:$U$1000="T1 (PZQ+ALB/MBD)"), "T1 (PZQ+ALB/MBD)", " ") ->  | K35: 0 | O35: 0
A36: =IF(COUNTRY_INFO!A36=0," ",COUNTRY_INFO!A36) -> RWANDA | B36: =IF(COUNTRY_INFO!B36=0," ",COUNTRY_INFO!B36) -> Western | C36: =IF(COUNTRY_INFO!C36=0," ",COUNTRY_INFO!C36) -> Rusizi | D36: =IF(OR(COUNTRY_INFO!$T$9:$T$1000="T1 (PZQ+ALB/MBD)",COUNTRY_INFO!$U$9:$U$1000="T1 (PZQ+ALB/MBD)"), "T1 (PZQ+ALB/MBD)", " ") ->  | K36: 0 | O36: 0
A37: =IF(COUNTRY_INFO!A37=0," ",COUNTRY_INFO!A37) -> RWANDA | B37: =IF(COUNTRY_INFO!B37=0," ",COUNTRY_INFO!B37) -> Western | C37: =IF(COUNTRY_INFO!C37=0," ",COUNTRY_INFO!C37) -> Rutsiro | D37: =IF(OR(COUNTRY_INFO!$T$9:$T$1000="T1 (PZQ+ALB/MBD)",COUNTRY_INFO!$U$9:$U$1000="T1 (PZQ+ALB/MBD)"), "T1 (PZQ+ALB/MBD)", " ") ->  | K37: 0 | O37: 0
A38: =IF(COUNTRY_INFO!A38=0," ",COUNTRY_INFO!A38) -> RWANDA | B38: =IF(COUNTRY_INFO!B38=0," ",COUNTRY_INFO!B38) -> Eastern | C38: =IF(COUNTRY_INFO!C38=0," ",COUNTRY_INFO!C38) -> Rwamagana | D38: =IF(OR(COUNTRY_INFO!$T$9:$T$1000="T1 (PZQ+ALB/MBD)",COUNTRY_INFO!$U$9:$U$1000="T1 (PZQ+ALB/MBD)"), "T1 (PZQ+ALB/MBD)", " ") ->  | K38: 0 | O38: 0

Sheet T2
A1: T 2 - Praziquantel (PZQ)
A2: Administrative structure, population requiring PC by age group, population treated by age group and coverage
A4: TOTAL | F4: =SUM(F$9:F$1000) -> 0 | G4: 1605020 | H4: 3154294 | I4: 4759314 | J4: 0 | K4: 1899129 | L4: 3569574 | M4: 5468703 | N4: =IF(F4<>0, IF(J4/F4*100=0, "-", J4/F4*100), " ") ->  | O4: =IF(G4<>0, IF(K4/G4*100=0, "-", K4/G4*100), " ") -> 118.3243199 | P4: =IF(H4<>0, IF(L4/H4*100=0, "-", L4/H4*100), " ") -> 113.1655451 | Q4: =IF(I4<>0, IF(M4/I4*100=0, "-", M4/I4*100), " ") -> 114.9052784
D6: PC implemented | E6: Date | F6: Population targeted for T2 | J6: Population treated | N6: Programme coverage (%)
A7: Country | B7: Province/State | C7: District | F7: PreSAC | G7: SAC | H7: Adults | I7: Total | J7: PreSAC | K7: SAC | L7: Adults | M7: Total | N7: PreSAC | O7: SAC | P7: Adults | Q7: Total | R7: x | S7: x | T7: x | U7: x | V7: x | W7: x | X7: x | Y7: x | Z7: x | AA7: x | AB7: x | AC7: x | AD7: x | AE7: x
A9: =IF(COUNTRY_INFO!A9=0," ",COUNTRY_INFO!A9) -> RWANDA | B9: =IF(COUNTRY_INFO!B9=0," ",COUNTRY_INFO!B9) -> Eastern | C9: =IF(COUNTRY_INFO!C9=0," ",COUNTRY_INFO!C9) -> Bugesera | D9: =IF(OR(COUNTRY_INFO!$T$9:$T$1000="T2 (PZQ)",COUNTRY_INFO!$U$9:$U$1000="T2 (PZQ)"), "T2 (PZQ)", " ") -> T2 (PZQ) | E9: 05-15/07 & 14-30/11/2022 | G9: 73913 | H9: 145259 | I9: =SUM(F9:H9) -> 219172 | K9: =51980+50887 -> 102867 | L9: =47188+64988 -> 112176 | M9: =SUM(J9:L9) -> 215043 | N9: =IF(F9<>0, IF(J9/F9*100=0, "-", J9/F9*100), " ") ->  | O9: 139.1730819 | P9: 77.22481912 | Q9: 98.11609147
A10: =IF(COUNTRY_INFO!A10=0," ",COUNTRY_INFO!A10) -> RWANDA | B10: =IF(COUNTRY_INFO!B10=0," ",COUNTRY_INFO!B10) -> Northern | C10: =IF(COUNTRY_INFO!C10=0," ",COUNTRY_INFO!C10) -> Burera | D10: =IF(OR(COUNTRY_INFO!$T$9:$T$1000="T2 (PZQ)",COUNTRY_INFO!$U$9:$U$1000="T2 (PZQ)"), "T2 (PZQ)", " ") -> T2 (PZQ) | E10: 05-15/07 & 14-30/11/2022 | G10: 33879 | H10: 66579 | I10: =SUM(F10:H10) -> 100458 | K10: =26872+13485 -> 40357 | L10: =46901+41488 -> 88389 | M10: =SUM(J10:L10) -> 128746 | N10: =IF(F10<>0, IF(J10/F10*100=0, "-", J10/F10*100), " ") ->  | O10: =IF(G10<>0, IF(K10/G10*100=0, "-", K10/G10*100), " ") -> 119.1209894 | P10: =IF(H10<>0, IF(L10/H10*100=0, "-", L10/H10*100), " ") -> 132.7580769 | Q10: =IF(I10<>0, IF(M10/I10*100=0, "-", M10/I10*100), " ") -> 128.1590316
A11: =IF(COUNTRY_INFO!A11=0," ",COUNTRY_INFO!A11) -> RWANDA | B11: =IF(COUNTRY_INFO!B11=0," ",COUNTRY_INFO!B11) -> Northern | C11: =IF(COUNTRY_INFO!C11=0," ",COUNTRY_INFO!C11) -> Gakenke | D11: =IF(OR(COUNTRY_INFO!$T$9:$T$1000="T2 (PZQ)",COUNTRY_INFO!$U$9:$U$1000="T2 (PZQ)"), "T2 (PZQ)", " ") -> T2 (PZQ) | E11: 05-15/07 & 14-30/11/2022 | G11: 90724 | H11: 178292 | I11: 269016 | K11: =34304+45055 -> 79359 | L11: =75889+121707 -> 197596 | M11: 276955 | O11: 87.47299502 | P11: 110.8271824 | Q11: 102.9511256
A12: =IF(COUNTRY_INFO!A12=0," ",COUNTRY_INFO!A12) -> RWANDA | B12: =IF(COUNTRY_INFO!B12=0," ",COUNTRY_INFO!B12) -> Kigali | C12: =IF(COUNTRY_INFO!C12=0," ",COUNTRY_INFO!C12) -> Gasabo | D12: =IF(OR(COUNTRY_INFO!$T$9:$T$1000="T2 (PZQ)",COUNTRY_INFO!$U$9:$U$1000="T2 (PZQ)"), "T2 (PZQ)", " ") -> T2 (PZQ) | E12: 05-15/07 & 14-30/11/2022 | G12: 34014 | H12: 66845 | I12: 100859 | K12: =0+57499 -> 57499 | L12: =0+38691 -> 38691 | M12: 96190 | O12: 169.0450991 | P12: 57.88166654 | Q12: 95.37076513
A13: =IF(COUNTRY_INFO!A13=0," ",COUNTRY_INFO!A13) -> RWANDA | B13: =IF(COUNTRY_INFO!B13=0," ",COUNTRY_INFO!B13) -> Eastern | C13: =IF(COUNTRY_INFO!C13=0," ",COUNTRY_INFO!C13) -> Gatsibo | D13: =IF(OR(COUNTRY_INFO!$T$9:$T$1000="T2 (PZQ)",COUNTRY_INFO!$U$9:$U$1000="T2 (PZQ)"), "T2 (PZQ)", " ") -> T2 (PZQ) | E13: 05-15/07 & 14-30/11/2022 | G13: 120273 | H13: 236372 | I13: 356645 | K13: =12525+92216 -> 104741 | L13: =54411+184480 -> 238891 | M13: 343632 | O13: 87.08604591 | P13: 101.0656931 | Q13: 96.35127368
A14: =IF(COUNTRY_INFO!A14=0," ",COUNTRY_INFO!A14) -> RWANDA | B14: =IF(COUNTRY_INFO!B14=0," ",COUNTRY_INFO!B14) -> Northern | C14: =IF(COUNTRY_INFO!C14=0," ",COUNTRY_INFO!C14) -> Gicumbi | D14: =IF(OR(COUNTRY_INFO!$T$9:$T$1000="T2 (PZQ)",COUNTRY_INFO!$U$9:$U$1000="T2 (PZQ)"), "T2 (PZQ)", " ") -> T2 (PZQ) | E14: 05-15/07 & 14-30/11/2022 | G14: 56711 | H14: 111449 | I14: 168160 | K14: =7020+42589 -> 49609 | L14: =17928+105140 -> 123068 | M14: 172677 | O14: 87.47685634 | P14: 110.4253964 | Q14: 102.6861323
A15: =IF(COUNTRY_INFO!A15=0," ",COUNTRY_INFO!A15) -> RWANDA | B15: =IF(COUNTRY_INFO!B15=0," ",COUNTRY_INFO!B15) -> Southern | C15: =IF(COUNTRY_INFO!C15=0," ",COUNTRY_INFO!C15) -> Gisagara | D15: =IF(OR(COUNTRY_INFO!$T$9:$T$1000="T2 (PZQ)",COUNTRY_INFO!$U$9:$U$1000="T2 (PZQ)"), "T2 (PZQ)", " ") -> T2 (PZQ) | E15: 05-15/07 & 14-30/11/2022 | G15: 55938 | H15: 109936 | I15: 165874 | K15: =37373+38141 -> 75514 | L15: =75212+71924 -> 147136 | M15: 222650 | O15: 134.9958883 | P15: 133.8378693 | Q15: 134.2283902
A16: =IF(COUNTRY_INFO!A16=0," ",COUNTRY_INFO!A16) -> RWANDA | B16: =IF(COUNTRY_INFO!B16=0," ",COUNTRY_INFO!B16) -> Southern | C16: =IF(COUNTRY_INFO!C16=0," ",COUNTRY_INFO!C16) -> Huye | D16: =IF(OR(COUNTRY_INFO!$T$9:$T$1000="T2 (PZQ)",COUNTRY_INFO!$U$9:$U$1000="T2 (PZQ)"), "T2 (PZQ)", " ") -> T2 (PZQ) | E16: 05-15/07 & 14-30/11/2022 | G16: 59651 | H16: 117231 | I16: 176882 | K16: =0+51913 -> 51913 | L16: =0+108615 -> 108615 | M16: 160528 | O16: 87.02787883 | P16: 92.65040817 | Q16: 90.75428817
A17: =IF(COUNTRY_INFO!A17=0," ",COUNTRY_INFO!A17) -> RWANDA | B17: =IF(COUNTRY_INFO!B17=0," ",COUNTRY_INFO!B17) -> Southern | C17: =IF(COUNTRY_INFO!C17=0," ",COUNTRY_INFO!C17) -> Kamonyi | D17: =IF(OR(COUNTRY_INFO!$T$9:$T$1000="T2 (PZQ)",COUNTRY_INFO!$U$9:$U$1000="T2 (PZQ)"), "T2 (PZQ)", " ") -> T2 (PZQ) | E17: 05-15/07 & 14-30/11/2022 | G17: 57493 | H17: 112987 | I17: 170480 | K17: =43380+49299 -> 92679 | L17: =48762+69728 -> 118490 | M17: 211169 | O17: 161.200494 | P17: 104.8704718 | Q17: 123.8673158
A18: =IF(COUNTRY_INFO!A18=0," ",COUNTRY_INFO!A18) -> RWANDA | B18: =IF(COUNTRY_INFO!B18=0," ",COUNTRY_INFO!B18) -> Western | C18: =IF(COUNTRY_INFO!C18=0," ",COUNTRY_INFO!C18) -> Karongi | D18: =IF(OR(COUNTRY_INFO!$T$9:$T$1000="T2 (PZQ)",COUNTRY_INFO!$U$9:$U$1000="T2 (PZQ)"), "T2 (PZQ)", " ") -> T2 (PZQ) | E18: 05-15/07 & 14-30/11/2022 | G18: 22337 | H18: 43898 | I18: 66235 | K18: =13895+17715 -> 31610 | L18: =40917+31057 -> 71974 | M18: 103584 | O18: 141.5140798 | P18: 163.9573557 | Q18: 156.3886163
A19: =IF(COUNTRY_INFO!A19=0," ",COUNTRY_INFO!A19) -> RWANDA | B19: =IF(COUNTRY_INFO!B19=0," ",COUNTRY_INFO!B19) -> Eastern | C19: =IF(COUNTRY_INFO!C19=0," ",COUNTRY_INFO!C19) -> Kayonza | D19: =IF(OR(COUNTRY_INFO!$T$9:$T$1000="T2 (PZQ)",COUNTRY_INFO!$U$9:$U$1000="T2 (PZQ)"), "T2 (PZQ)", " ") -> T2 (PZQ) | E19: 05-15/07 & 14-30/11/2022 | G19: 53194 | H19: 104540 | I19: 157734 | K19: =27235+62285 -> 89520 | L19: =43784+80396 -> 124180 | M19: 213700 | O19: 168.2896567 | P19: 118.7870672 | Q19: 135.4812532
A20: =IF(COUNTRY_INFO!A20=0," ",COUNTRY_INFO!A20) -> RWANDA | B20: =IF(COUNTRY_INFO!B20=0," ",COUNTRY_INFO!B20) -> Kigali | C20: =IF(COUNTRY_INFO!C20=0," ",COUNTRY_INFO!C20) -> Kicukiro | D20: =IF(OR(COUNTRY_INFO!$T$9:$T$1000="T2 (PZQ)",COUNTRY_INFO!$U$9:$U$1000="T2 (PZQ)"), "T2 (PZQ)", " ") -> T2 (PZQ) | E20: 05-15/07 & 14-30/11/2022 | G20: 33579 | H20: 65993 | I20: 99572 | K20: =0+45820 -> 45820 | L20: =0+40439 -> 40439 | M20: 86259 | O20: 136.4543316 | P20: 61.27771127 | Q20: 86.62977544
A21: =IF(COUNTRY_INFO!A21=0," ",COUNTRY_INFO!A21) -> RWANDA | B21: =IF(COUNTRY_INFO!B21=0," ",COUNTRY_INFO!B21) -> Eastern | C21: =IF(COUNTRY_INFO!C21=0," ",COUNTRY_INFO!C21) -> Kirehe | D21: =IF(OR(COUNTRY_INFO!$T$9:$T$1000="T2 (PZQ)",COUNTRY_INFO!$U$9:$U$1000="T2 (PZQ)"), "T2 (PZQ)", " ") -> T2 (PZQ) | E21: 05-15/07 & 14-30/11/2022 | G21: 52213 | H21: 102609 | I21: 154822 | K21: =8+86853 -> 86861 | L21: =1264+149140 -> 150404 | M21: 237265 | O21: 166.3589528 | P21: 146.5797347 | Q21: 153.2501841
A22: =IF(COUNTRY_INFO!A22=0," ",COUNTRY_INFO!A22) -> RWANDA | B22: =IF(COUNTRY_INFO!B22=0," ",COUNTRY_INFO!B22) -> Southern | C22: =IF(COUNTRY_INFO!C22=0," ",COUNTRY_INFO!C22) -> Muhanga | D22: =IF(OR(COUNTRY_INFO!$T$9:$T$1000="T2 (PZQ)",COUNTRY_INFO!$U$9:$U$1000="T2 (PZQ)"), "T2 (PZQ)", " ") -> T2 (PZQ) | E22: 05-15/07 & 14-30/11/2022 | G22: 50424 | H22: 99095 | I22: 149519 | K22: =14368+37997 -> 52365 | L22: =26573+95451 -> 122024 | M22: 174389 | O22: 103.8493574 | P22: 123.1384025 | Q22: 116.6333376
A23: =IF(COUNTRY_INFO!A23=0," ",COUNTRY_INFO!A23) -> RWANDA | B23: =IF(COUNTRY_INFO!B23=0," ",COUNTRY_INFO!B23) -> Northern | C23: =IF(COUNTRY_INFO!C23=0," ",COUNTRY_INFO!C23) -> Musanze | D23: =IF(OR(COUNTRY_INFO!$T$9:$T$1000="T2 (PZQ)",COUNTRY_INFO!$U$9:$U$1000="T2 (PZQ)"), "T2 (PZQ)", " ") -> T2 (PZQ) | E23: 05-15/07 & 14-30/11/2022 | G23: 23087 | H23: 45379 | I23: 68466 | K23: =9606+20966 -> 30572 | L23: =26157+51081 -> 77238 | M23: 107810 | O23: 132.4208429 | P23: 170.2064832 | Q23: 157.4650191
A24: =IF(COUNTRY_INFO!A24=0," ",COUNTRY_INFO!A24) -> RWANDA | B24: =IF(COUNTRY_INFO!B24=0," ",COUNTRY_INFO!B24) -> Eastern | C24: =IF(COUNTRY_INFO!C24=0," ",COUNTRY_INFO!C24) -> Ngoma | D24: =IF(OR(COUNTRY_INFO!$T$9:$T$1000="T2 (PZQ)",COUNTRY_INFO!$U$9:$U$1000="T2 (PZQ)"), "T2 (PZQ)", " ") -> T2 (PZQ) | E24: 05-15/07 & 14-30/11/2022 | G24: 63313 | H24: 124425 | I24: 187738 | K24: =39448+42930 -> 82378 | L24: =67412+104810 -> 172222 | M24: 254600 | O24: 130.1122992 | P24: 138.4143058 | Q24: 135.6145266
A25: =IF(COUNTRY_INFO!A25=0," ",COUNTRY_INFO!A25) -> RWANDA | B25: =IF(COUNTRY_INFO!B25=0," ",COUNTRY_INFO!B25) -> Western | C25: =IF(COUNTRY_INFO!C25=0," ",COUNTRY_INFO!C25) -> Ngororero | D25: =IF(OR(COUNTRY_INFO!$T$9:$T$1000="T2 (PZQ)",COUNTRY_INFO!$U$9:$U$1000="T2 (PZQ)"), "T2 (PZQ)", " ") -> T2 (PZQ) | E25: 05-15/07 & 14-30/11/2022 | G25: 29225 | H25: 57433 | I25: 86658 | K25: =716+20636 -> 21352 | L25: =5619+42620 -> 48239 | M25: 69591 | O25: 73.06073567 | P25: 83.99178173 | Q25: 80.30533823
A26: =IF(COUNTRY_INFO!A26=0," ",COUNTRY_INFO!A26) -> RWANDA | B26: =IF(COUNTRY_INFO!B26=0," ",COUNTRY_INFO!B26) -> Western | C26: =IF(COUNTRY_INFO!C26=0," ",COUNTRY_INFO!C26) -> Nyabihu | D26: =IF(OR(COUNTRY_INFO!$T$9:$T$1000="T2 (PZQ)",COUNTRY_INFO!$U$9:$U$1000="T2 (PZQ)"), "T2 (PZQ)", " ") -> T2 (PZQ) | E26: 05-15/07 & 14-30/11/2022 | G26: 23132 | H26: 45458 | I26: 68590 | K26: =0+36846 -> 36846 | L26: =0+52746 -> 52746 | M26: 89592 | O26: 159.2858378 | P26: 116.0323815 | Q26: 130.6196239
A27: =IF(COUNTRY_INFO!A27=0," ",COUNTRY_INFO!A27) -> RWANDA | B27: =IF(COUNTRY_INFO!B27=0," ",COUNTRY_INFO!B27) -> Eastern | C27: =IF(COUNTRY_INFO!C27=0," ",COUNTRY_INFO!C27) -> Nyagatare | D27: =IF(OR(COUNTRY_INFO!$T$9:$T$1000="T2 (PZQ)",COUNTRY_INFO!$U$9:$U$1000="T2 (PZQ)"), "T2 (PZQ)", " ") -> T2 (PZQ) | E27: 05-15/07 & 14-30/11/2022 | G27: 60934 | H27: 119755 | I27: 180689 | K27: =65338+12396 -> 77734 | L27: =171773+19359 -> 191132 | M27: 268866 | O27: 127.5708143 | P27: 159.6025218 | Q27: 148.800425
A28: =IF(COUNTRY_INFO!A28=0," ",COUNTRY_INFO!A28) -> RWANDA | B28: =IF(COUNTRY_INFO!B28=0," ",COUNTRY_INFO!B28) -> Southern | C28: =IF(COUNTRY_INFO!C28=0," ",COUNTRY_INFO!C28) -> Nyamagabe | D28: =IF(OR(COUNTRY_INFO!$T$9:$T$1000="T2 (PZQ)",COUNTRY_INFO!$U$9:$U$1000="T2 (PZQ)"), "T2 (PZQ)", " ") -> T2 (PZQ) | E28: 05-15/07 & 14-30/11/2022 | G28: 46591 | H28: 91560 | I28: 138151 | K28: =0+49697 -> 49697 | L28: =0+65902 -> 65902 | M28: 115599 | O28: 106.6665236 | P28: 71.97684578 | Q28: 83.67583297
A29: =IF(COUNTRY_INFO!A29=0," ",COUNTRY_INFO!A29) -> RWANDA | B29: =IF(COUNTRY_INFO!B29=0," ",COUNTRY_INFO!B29) -> Western | C29: =IF(COUNTRY_INFO!C29=0," ",COUNTRY_INFO!C29) -> Nyamasheke | D29: =IF(OR(COUNTRY_INFO!$T$9:$T$1000="T2 (PZQ)",COUNTRY_INFO!$U$9:$U$1000="T2 (PZQ)"), "T2 (PZQ)", " ") -> T2 (PZQ) | E29: 05-15/07 & 14-30/11/2022 | G29: 99785 | H29: 196105 | I29: 295890 | K29: =42580+50469 -> 93049 | L29: =103387+121006 -> 224393 | M29: 317442 | O29: 93.2494864 | P29: 114.4249254 | Q29: 107.2837879
A30: =IF(COUNTRY_INFO!A30=0," ",COUNTRY_INFO!A30) -> RWANDA | B30: =IF(COUNTRY_INFO!B30=0," ",COUNTRY_INFO!B30) -> Southern | C30: =IF(COUNTRY_INFO!C30=0," ",COUNTRY_INFO!C30) -> Nyanza | D30: =IF(OR(COUNTRY_INFO!$T$9:$T$1000="T2 (PZQ)",COUNTRY_INFO!$U$9:$U$1000="T2 (PZQ)"), "T2 (PZQ)", " ") -> T2 (PZQ) | E30: 05-15/07 & 14-30/11/2022 | G30: 55050 | H30: 108187 | I30: 163237 | K30: =30008+49650 -> 79658 | L30: =61016+54208 -> 115224 | M30: 194882 | O30: 144.7011807 | P30: 106.5044784 | Q30: 119.3859235
A31: =IF(COUNTRY_INFO!A31=0," ",COUNTRY_INFO!A31) -> RWANDA | B31: =IF(COUNTRY_INFO!B31=0," ",COUNTRY_INFO!B31) -> Kigali | C31: =IF(COUNTRY_INFO!C31=0," ",COUNTRY_INFO!C31) -> Nyarugenge | D31: =IF(OR(COUNTRY_INFO!$T$9:$T$1000="T2 (PZQ)",COUNTRY_INFO!$U$9:$U$1000="T2 (PZQ)"), "T2 (PZQ)", " ") -> T2 (PZQ) | E31: 05-15/07 & 14-30/11/2022 | G31: 19436 | H31: 38197 | I31: 57633 | K31: =0+32279 -> 32279 | L31: =1488+39157 -> 40645 | M31: 72924 | O31: 166.0784112 | P31: 106.4088803 | Q31: 126.5316746
A32: =IF(COUNTRY_INFO!A32=0," ",COUNTRY_INFO!A32) -> RWANDA | B32: =IF(COUNTRY_INFO!B32=0," ",COUNTRY_INFO!B32) -> Southern | C32: =IF(COUNTRY_INFO!C32=0," ",COUNTRY_INFO!C32) -> Nyaruguru | D32: =IF(OR(COUNTRY_INFO!$T$9:$T$1000="T2 (PZQ)",COUNTRY_INFO!$U$9:$U$1000="T2 (PZQ)"), "T2 (PZQ)", " ") -> T2 (PZQ) | E32: 05-15/07 & 14-30/11/2022 | G32: 46681 | H32: 91743 | I32: 138424 | K32: =0+44347 -> 44347 | L32: =0+85529 -> 85529 | M32: 129876 | O32: 95.00010711 | P32: 93.22673119 | Q32: 93.82477027
A33: =IF(COUNTRY_INFO!A33=0," ",COUNTRY_INFO!A33) -> RWANDA | B33: =IF(COUNTRY_INFO!B33=0," ",COUNTRY_INFO!B33) -> Western | C33: =IF(COUNTRY_INFO!C33=0," ",COUNTRY_INFO!C33) -> Rubavu | D33: =IF(OR(COUNTRY_INFO!$T$9:$T$1000="T2 (PZQ)",COUNTRY_INFO!$U$9:$U$1000="T2 (PZQ)"), "T2 (PZQ)", " ") -> T2 (PZQ) | E33: 05-15/07 & 14-30/11/2022 | G33: 30111 | H33: 59175 | I33: 89286 | K33: =30742+5861 -> 36603 | L33: =45134+18645 -> 63779 | M33: 100382 | O33: 121.5602272 | P33: 107.7803126 | Q33: 112.4274802
A34: =IF(COUNTRY_INFO!A34=0," ",COUNTRY_INFO!A34) -> RWANDA | B34: =IF(COUNTRY_INFO!B34=0," ",COUNTRY_INFO!B34) -> Southern | C34: =IF(COUNTRY_INFO!C34=0," ",COUNTRY_INFO!C34) -> Ruhango | D34: =IF(OR(COUNTRY_INFO!$T$9:$T$1000="T2 (PZQ)",COUNTRY_INFO!$U$9:$U$1000="T2 (PZQ)"), "T2 (PZQ)", " ") -> T2 (PZQ) | E34: 05-15/07 & 14-30/11/2022 | G34: 76632 | H34: 150601 | I34: 227233 | K34: =13791+62643 -> 76434 | L34: =25867+117457 -> 143324 | M34: 219758 | O34: 99.7416223 | P34: 95.16802677 | Q34: 96.71042498
A35: =IF(COUNTRY_INFO!A35=0," ",COUNTRY_INFO!A35) -> RWANDA | B35: =IF(COUNTRY_INFO!B35=0," ",COUNTRY_INFO!B35) -> Northern | C35: =IF(COUNTRY_INFO!C35=0," ",COUNTRY_INFO!C35) -> Rulindo | D35: =IF(OR(COUNTRY_INFO!$T$9:$T$1000="T2 (PZQ)",COUNTRY_INFO!$U$9:$U$1000="T2 (PZQ)"), "T2 (PZQ)", " ") -> T2 (PZQ) | E35: 05-15/07 & 14-30/11/2022 | G35: 77609 | H35: 152526 | I35: 230135 | K35: =4115+69082 -> 73197 | L35: =17509+122365 -> 139874 | M35: 213071 | O35: 94.31509232 | P35: 91.70502078 | Q35: 92.58522172
A36: =IF(COUNTRY_INFO!A36=0," ",COUNTRY_INFO!A36) -> RWANDA | B36: =IF(COUNTRY_INFO!B36=0," ",COUNTRY_INFO!B36) -> Western | C36: =IF(COUNTRY_INFO!C36=0," ",COUNTRY_INFO!C36) -> Rusizi | D36: =IF(OR(COUNTRY_INFO!$T$9:$T$1000="T2 (PZQ)",COUNTRY_INFO!$U$9:$U$1000="T2 (PZQ)"), "T2 (PZQ)", " ") -> T2 (PZQ) | E36: 05-15/07 & 14-30/11/2022 | G36: 77433 | H36: 152182 | I36: 229615 | K36: =99795+6723 -> 106518 | L36: =222359+45675 -> 268034 | M36: 374552 | O36: 137.5615048 | P36: 176.1272687 | Q36: 163.1217473
A37: =IF(COUNTRY_INFO!A37=0," ",COUNTRY_INFO!A37) -> RWANDA | B37: =IF(COUNTRY_INFO!B37=0," ",COUNTRY_INFO!B37) -> Western | C37: =IF(COUNTRY_INFO!C37=0," ",COUNTRY_INFO!C37) -> Rutsiro | D37: =IF(OR(COUNTRY_INFO!$T$9:$T$1000="T2 (PZQ)",COUNTRY_INFO!$U$9:$U$1000="T2 (PZQ)"), "T2 (PZQ)", " ") -> T2 (PZQ) | E37: 05-15/07 & 14-30/11/2022 | G37: 45378 | H37: 89179 | I37: 134557 | K37: =23905+23595 -> 47500 | L37: =45685+63832 -> 109517 | M37: 157017 | O37: 104.6762748 | P37: 122.8058175 | Q37: 116.6918109
A38: =IF(COUNTRY_INFO!A38=0," ",COUNTRY_INFO!A38) -> RWANDA | B38: =IF(COUNTRY_INFO!B38=0," ",COUNTRY_INFO!B38) -> Eastern | C38: =IF(COUNTRY_INFO!C38=0," ",COUNTRY_INFO!C38) -> Rwamagana | D38: =IF(OR(COUNTRY_INFO!$T$9:$T$1000="T2 (PZQ)",COUNTRY_INFO!$U$9:$U$1000="T2 (PZQ)"), "T2 (PZQ)", " ") -> T2 (PZQ) | E38: 05-15/07 & 14-30/11/2022 | G38: 36280 | H38: 71304 | I38: 107584 | K38: =31994+18257 -> 50251 | L38: =69511+20192 -> 89703 | M38: 139954 | O38: 138.5088203 | P38: 125.8036015 | Q38: 130.0881172

Sheet T3_R1
A1: T 3 - Albendazole (ALB) or Mebendazole (MBD) - Round 1
A2: Administrative structure, population requiring PC by age group, population treated by age group and coverage
A4: TOTAL | G4: =SUM(G$9:G$1000) -> 1568988 | H4: 3862135 | I4: 6220616 | J4: 11651739 | K4: 1461589 | L4: 3311105 | M4: 5862915 | N4: 10635609 | O4: =IF(G4<>0, IF(K4/G4*100=0, "-", K4/G4*100), " ") -> 93.1548871 | P4: =IF(H4<>0, IF(L4/H4*100=0, "-", L4/H4*100), " ") -> 85.73250288 | Q4: =IF(I4<>0, IF(M4/I4*100=0, "-", M4/I4*100), " ") -> 94.24974954 | R4: =IF(J4<>0, IF(N4/J4*100=0, "-", N4/J4*100), " ") -> 91.27915584
D6: PC implemented | E6: Medicine | F6: Date | G6: Population targeted for T3 | K6: Population treated | O6: Programme coverage (%)
A7: Country | B7: Province/State | C7: District | G7: PreSAC | H7: SAC | I7: Adults | J7: Total | K7: PreSAC | L7: SAC | M7: Adults | N7: Total | O7: PreSAC | P7: SAC | Q7: Adults | R7: Total
A9: =IF(COUNTRY_INFO!A9=0," ",COUNTRY_INFO!A9) -> RWANDA | B9: =IF(COUNTRY_INFO!B9=0," ",COUNTRY_INFO!B9) -> Eastern | C9: =IF(COUNTRY_INFO!C9=0," ",COUNTRY_INFO!C9) -> Bugesera | D9: =IF(OR(COUNTRY_INFO!$T$9:$T$1000="T3 (ALB/MBD)",COUNTRY_INFO!$U$9:$U$1000="T3 (ALB/MBD)"), "T3 (ALB/MBD)", " ") -> T3 (ALB/MBD) | E9: MBD | F9: 16-20/05 & 05-15/07/2022 | G9: 54774 | H9: 134829 | I9: 42100 | J9: =SUM(G9:I9) -> 231703 | K9: 70434 | L9: 143243 | M9: 64275 | N9: =SUM(K9:M9) -> 277952 | O9: =IF(G9<>0, IF(K9/G9*100=0, "-", K9/G9*100), " ") -> 128.590207 | P9: 106.2404972 | Q9: 152.672209 | R9: 119.9604666
A10: =IF(COUNTRY_INFO!A10=0," ",COUNTRY_INFO!A10) -> RWANDA | B10: =IF(COUNTRY_INFO!B10=0," ",COUNTRY_INFO!B10) -> Northern | C10: =IF(COUNTRY_INFO!C10=0," ",COUNTRY_INFO!C10) -> Burera | D10: =IF(OR(COUNTRY_INFO!$T$9:$T$1000="T3 (ALB/MBD)",COUNTRY_INFO!$U$9:$U$1000="T3 (ALB/MBD)"), "T3 (ALB/MBD)", " ") -> T3 (ALB/MBD) | E10: MBD | F10: 16-20/05 & 05-15/07/2022 | G10: 45797 | H10: 112732 | I10: 221550 | J10: =SUM(G10:I10) -> 380079 | K10: 43276 | L10: 97099 | M10: 223256 | N10: =SUM(K10:M10) -> 363631 | O10: =IF(G10<>0, IF(K10/G10*100=0, "-", K10/G10*100), " ") -> 94.49527262 | P10: =IF(H10<>0, IF(L10/H10*100=0, "-", L10/H10*100), " ") -> 86.13259767 | Q10: =IF(I10<>0, IF(M10/I10*100=0, "-", M10/I10*100), " ") -> 100.7700293 | R10: =IF(J10<>0, IF(N10/J10*100=0, "-", N10/J10*100), " ") -> 95.67247862
A11: =IF(COUNTRY_INFO!A11=0," ",COUNTRY_INFO!A11) -> RWANDA | B11: =IF(COUNTRY_INFO!B11=0," ",COUNTRY_INFO!B11) -> Northern | C11: =IF(COUNTRY_INFO!C11=0," ",COUNTRY_INFO!C11) -> Gakenke | D11: =IF(OR(COUNTRY_INFO!$T$9:$T$1000="T3 (ALB/MBD)",COUNTRY_INFO!$U$9:$U$1000="T3 (ALB/MBD)"), "T3 (ALB/MBD)", " ") -> T3 (ALB/MBD) | E11: MBD | F11: 16-20/05 & 05-15/07/2022 | G11: 45609 | H11: 112269 | I11: 220640 | J11: 378518 | K11: 39446 | L11: 87532 | M11: 221381 | N11: 348359 | O11: 86.4873161 | P11: 77.96631305 | Q11: 100.3358412 | R11: 92.03234721
A12: =IF(COUNTRY_INFO!A12=0," ",COUNTRY_INFO!A12) -> RWANDA | B12: =IF(COUNTRY_INFO!B12=0," ",COUNTRY_INFO!B12) -> Kigali | C12: =IF(COUNTRY_INFO!C12=0," ",COUNTRY_INFO!C12) -> Gasabo | D12: =IF(OR(COUNTRY_INFO!$T$9:$T$1000="T3 (ALB/MBD)",COUNTRY_INFO!$U$9:$U$1000="T3 (ALB/MBD)"), "T3 (ALB/MBD)", " ") -> T3 (ALB/MBD) | E12: MBD | F12: 16-20/05 & 05-15/07/2022 | G12: 87401 | H12: 215140 | I12: 4086 | J12: 306627 | K12: 87245 | L12: 156186 | M12: 4086 | N12: 247517 | O12: 99.82151234 | P12: 72.59737845 | Q12: 100 | R12: 80.7225065
A13: =IF(COUNTRY_INFO!A13=0," ",COUNTRY_INFO!A13) -> RWANDA | B13: =IF(COUNTRY_INFO!B13=0," ",COUNTRY_INFO!B13) -> Eastern | C13: =IF(COUNTRY_INFO!C13=0," ",COUNTRY_INFO!C13) -> Gatsibo | D13: =IF(OR(COUNTRY_INFO!$T$9:$T$1000="T3 (ALB/MBD)",COUNTRY_INFO!$U$9:$U$1000="T3 (ALB/MBD)"), "T3 (ALB/MBD)", " ") -> T3 (ALB/MBD) | E13: MBD | F13: 16-20/05 & 05-15/07/2022 | G13: 69166 | H13: 170255 | I13: 334598 | J13: 574019 | K13: 59223 | L13: 144360 | M13: 321873 | N13: 525456 | O13: 85.62443975 | P13: 84.79046137 | Q13: 96.19692885 | R13: 91.53982708
A14: =IF(COUNTRY_INFO!A14=0," ",COUNTRY_INFO!A14) -> RWANDA | B14: =IF(COUNTRY_INFO!B14=0," ",COUNTRY_INFO!B14) -> Northern | C14: =IF(COUNTRY_INFO!C14=0," ",COUNTRY_INFO!C14) -> Gicumbi | D14: =IF(OR(COUNTRY_INFO!$T$9:$T$1000="T3 (ALB/MBD)",COUNTRY_INFO!$U$9:$U$1000="T3 (ALB/MBD)"), "T3 (ALB/MBD)", " ") -> T3 (ALB/MBD) | E14: MBD | F14: 16-20/05 & 05-15/07/2022 | G14: 55733 | H14: 137189 | I14: 269614 | J14: 462536 | K14: 45355 | L14: 98264 | M14: 246136 | N14: 389755 | O14: 81.37907523 | P14: 71.62673392 | Q14: 91.29199522 | R14: 84.26479236
A15: =IF(COUNTRY_INFO!A15=0," ",COUNTRY_INFO!A15) -> RWANDA | B15: =IF(COUNTRY_INFO!B15=0," ",COUNTRY_INFO!B15) -> Southern | C15: =IF(COUNTRY_INFO!C15=0," ",COUNTRY_INFO!C15) -> Gisagara | D15: =IF(OR(COUNTRY_INFO!$T$9:$T$1000="T3 (ALB/MBD)",COUNTRY_INFO!$U$9:$U$1000="T3 (ALB/MBD)"), "T3 (ALB/MBD)", " ") -> T3 (ALB/MBD) | E15: MBD | F15: 16-20/05 & 05-15/07/2022 | G15: 46702 | H15: 114959 | I15: 225926 | J15: 387587 | K15: 42350 | L15: 110485 | M15: 217792 | N15: 370627 | O15: 90.68134127 | P15: 96.1081777 | Q15: 96.3997061 | R15: 95.62420824
A16: =IF(COUNTRY_INFO!A16=0," ",COUNTRY_INFO!A16) -> RWANDA | B16: =IF(COUNTRY_INFO!B16=0," ",COUNTRY_INFO!B16) -> Southern | C16: =IF(COUNTRY_INFO!C16=0," ",COUNTRY_INFO!C16) -> Huye | D16: =IF(OR(COUNTRY_INFO!$T$9:$T$1000="T3 (ALB/MBD)",COUNTRY_INFO!$U$9:$U$1000="T3 (ALB/MBD)"), "T3 (ALB/MBD)", " ") -> T3 (ALB/MBD) | E16: MBD | F16: 16-20/05 & 05-15/07/2022 | G16: 47669 | H16: 117340 | I16: 230605 | J16: 395614 | K16: 42032 | L16: 98481 | M16: 216218 | N16: 356731 | O16: 88.17470473 | P16: 83.92790182 | Q16: 93.76119338 | R16: 90.17148028
A17: =IF(COUNTRY_INFO!A17=0," ",COUNTRY_INFO!A17) -> RWANDA | B17: =IF(COUNTRY_INFO!B17=0," ",COUNTRY_INFO!B17) -> Southern | C17: =IF(COUNTRY_INFO!C17=0," ",COUNTRY_INFO!C17) -> Kamonyi | D17: =IF(OR(COUNTRY_INFO!$T$9:$T$1000="T3 (ALB/MBD)",COUNTRY_INFO!$U$9:$U$1000="T3 (ALB/MBD)"), "T3 (ALB/MBD)", " ") -> T3 (ALB/MBD) | E17: MBD | F17: 16-20/05 & 05-15/07/2022 | G17: 50951 | H17: 125418 | I17: 155100 | J17: 331469 | K17: 35585 | L17: 117436 | M17: 67273 | N17: 220294 | O17: 69.84161253 | P17: 93.63568228 | Q17: 43.37395229 | R17: 66.45991028
A18: =IF(COUNTRY_INFO!A18=0," ",COUNTRY_INFO!A18) -> RWANDA | B18: =IF(COUNTRY_INFO!B18=0," ",COUNTRY_INFO!B18) -> Western | C18: =IF(COUNTRY_INFO!C18=0," ",COUNTRY_INFO!C18) -> Karongi | D18: =IF(OR(COUNTRY_INFO!$T$9:$T$1000="T3 (ALB/MBD)",COUNTRY_INFO!$U$9:$U$1000="T3 (ALB/MBD)"), "T3 (ALB/MBD)", " ") -> T3 (ALB/MBD) | E18: MBD | F18: 16-20/05 & 05-15/07/2022 | G18: 47248 | H18: 116303 | I18: 228568 | J18: 392119 | K18: 40820 | L18: 104194 | M18: 224522 | N18: 369536 | O18: 86.39519133 | P18: 89.58840271 | Q18: 98.22984845 | R18: 94.24077895
A19: =IF(COUNTRY_INFO!A19=0," ",COUNTRY_INFO!A19) -> RWANDA | B19: =IF(COUNTRY_INFO!B19=0," ",COUNTRY_INFO!B19) -> Eastern | C19: =IF(COUNTRY_INFO!C19=0," ",COUNTRY_INFO!C19) -> Kayonza | D19: =IF(OR(COUNTRY_INFO!$T$9:$T$1000="T3 (ALB/MBD)",COUNTRY_INFO!$U$9:$U$1000="T3 (ALB/MBD)"), "T3 (ALB/MBD)", " ") -> T3 (ALB/MBD) | E19: MBD | F19: 16-20/05 & 05-15/07/2022 | G19: 56573 | H19: 139257 | I19: 273679 | J19: 469509 | K19: 45619 | L19: 123547 | M19: 220800 | N19: 389966 | O19: 80.63740654 | P19: 88.71869996 | Q19: 80.67845907 | R19: 83.05825873
A20: =IF(COUNTRY_INFO!A20=0," ",COUNTRY_INFO!A20) -> RWANDA | B20: =IF(COUNTRY_INFO!B20=0," ",COUNTRY_INFO!B20) -> Kigali | C20: =IF(COUNTRY_INFO!C20=0," ",COUNTRY_INFO!C20) -> Kicukiro | D20: =IF(OR(COUNTRY_INFO!$T$9:$T$1000="T3 (ALB/MBD)",COUNTRY_INFO!$U$9:$U$1000="T3 (ALB/MBD)"), "T3 (ALB/MBD)", " ") -> T3 (ALB/MBD) | E20: MBD | F20: 16-20/05 & 05-15/07/2022 | G20: 50571 | H20: 124483 | I20: 0 | J20: 175054 | K20: 43503 | L20: 85440 | M20: 0 | N20: 128943 | O20: 86.02361037 | P20: 68.63587799 | R20: 73.65898523
A21: =IF(COUNTRY_INFO!A21=0," ",COUNTRY_INFO!A21) -> RWANDA | B21: =IF(COUNTRY_INFO!B21=0," ",COUNTRY_INFO!B21) -> Eastern | C21: =IF(COUNTRY_INFO!C21=0," ",COUNTRY_INFO!C21) -> Kirehe | D21: =IF(OR(COUNTRY_INFO!$T$9:$T$1000="T3 (ALB/MBD)",COUNTRY_INFO!$U$9:$U$1000="T3 (ALB/MBD)"), "T3 (ALB/MBD)", " ") -> T3 (ALB/MBD) | E21: MBD | F21: 16-20/05 & 05-15/07/2022 | G21: 53116 | H21: 130746 | I21: 256953 | J21: 440815 | K21: 50437 | L21: 128437 | M21: 253093 | N21: 431967 | O21: 94.95632201 | P21: 98.23398039 | Q21: 98.49777975 | R21: 97.99280877
A22: =IF(COUNTRY_INFO!A22=0," ",COUNTRY_INFO!A22) -> RWANDA | B22: =IF(COUNTRY_INFO!B22=0," ",COUNTRY_INFO!B22) -> Southern | C22: =IF(COUNTRY_INFO!C22=0," ",COUNTRY_INFO!C22) -> Muhanga | D22: =IF(OR(COUNTRY_INFO!$T$9:$T$1000="T3 (ALB/MBD)",COUNTRY_INFO!$U$9:$U$1000="T3 (ALB/MBD)"), "T3 (ALB/MBD)", " ") -> T3 (ALB/MBD) | E22: MBD | F22: 16-20/05 & 05-15/07/2022 | G22: 44332 | H22: 109126 | I22: 214462 | J22: 367920 | K22: 35585 | L22: 92647 | M22: 230309 | N22: 358541 | O22: 80.26933141 | P22: 84.89910745 | Q22: 107.3891878 | R22: 97.45080452
A23: =IF(COUNTRY_INFO!A23=0," ",COUNTRY_INFO!A23) -> RWANDA | B23: =IF(COUNTRY_INFO!B23=0," ",COUNTRY_INFO!B23) -> Northern | C23: =IF(COUNTRY_INFO!C23=0," ",COUNTRY_INFO!C23) -> Musanze | D23: =IF(OR(COUNTRY_INFO!$T$9:$T$1000="T3 (ALB/MBD)",COUNTRY_INFO!$U$9:$U$1000="T3 (ALB/MBD)"), "T3 (ALB/MBD)", " ") -> T3 (ALB/MBD) | E23: MBD | F23: 16-20/05 & 05-15/07/2022 | G23: 52749 | H23: 129843 | I23: 255177 | J23: 437769 | K23: 46497 | L23: 113996 | M23: 302078 | N23: 462571 | O23: 88.14764261 | P23: 87.79526043 | Q23: 118.3797913 | R23: 105.6655451
A24: =IF(COUNTRY_INFO!A24=0," ",COUNTRY_INFO!A24) -> RWANDA | B24: =IF(COUNTRY_INFO!B24=0," ",COUNTRY_INFO!B24) -> Eastern | C24: =IF(COUNTRY_INFO!C24=0," ",COUNTRY_INFO!C24) -> Ngoma | D24: =IF(OR(COUNTRY_INFO!$T$9:$T$1000="T3 (ALB/MBD)",COUNTRY_INFO!$U$9:$U$1000="T3 (ALB/MBD)"), "T3 (ALB/MBD)", " ") -> T3 (ALB/MBD) | E24: MBD | F24: 16-20/05 & 05-15/07/2022 | G24: 52081 | H24: 128200 | I24: 251948 | J24: 432229 | K24: 45678 | L24: 106954 | M24: 222047 | N24: 374679 | O24: 87.70568921 | P24: 83.4274571 | Q24: 88.13207487 | R24: 86.68529877
A25: =IF(COUNTRY_INFO!A25=0," ",COUNTRY_INFO!A25) -> RWANDA | B25: =IF(COUNTRY_INFO!B25=0," ",COUNTRY_INFO!B25) -> Western | C25: =IF(COUNTRY_INFO!C25=0," ",COUNTRY_INFO!C25) -> Ngororero | D25: =IF(OR(COUNTRY_INFO!$T$9:$T$1000="T3 (ALB/MBD)",COUNTRY_INFO!$U$9:$U$1000="T3 (ALB/MBD)"), "T3 (ALB/MBD)", " ") -> T3 (ALB/MBD) | E25: MBD | F25: 16-20/05 & 05-15/07/2022 | G25: 47561 | H25: 117073 | I25: 230082 | J25: 394716 | K25: 45956 | L25: 105085 | M25: 224322 | N25: 375363 | O25: 96.62538635 | P25: 89.76023507 | Q25: 97.49654471 | R25: 95.09698112
A26: =IF(COUNTRY_INFO!A26=0," ",COUNTRY_INFO!A26) -> RWANDA | B26: =IF(COUNTRY_INFO!B26=0," ",COUNTRY_INFO!B26) -> Western | C26: =IF(COUNTRY_INFO!C26=0," ",COUNTRY_INFO!C26) -> Nyabihu | D26: =IF(OR(COUNTRY_INFO!$T$9:$T$1000="T3 (ALB/MBD)",COUNTRY_INFO!$U$9:$U$1000="T3 (ALB/MBD)"), "T3 (ALB/MBD)", " ") -> T3 (ALB/MBD) | E26: MBD | F26: 16-20/05 & 05-15/07/2022 | G26: 40897 | H26: 100670 | I26: 197844 | J26: 339411 | K26: 39294 | L26: 83708 | M26: 205451 | N26: 328453 | O26: 96.0803971 | P26: 83.15088904 | Q26: 103.8449485 | R26: 96.77146586
A27: =IF(COUNTRY_INFO!A27=0," ",COUNTRY_INFO!A27) -> RWANDA | B27: =IF(COUNTRY_INFO!B27=0," ",COUNTRY_INFO!B27) -> Eastern | C27: =IF(COUNTRY_INFO!C27=0," ",COUNTRY_INFO!C27) -> Nyagatare | D27: =IF(OR(COUNTRY_INFO!$T$9:$T$1000="T3 (ALB/MBD)",COUNTRY_INFO!$U$9:$U$1000="T3 (ALB/MBD)"), "T3 (ALB/MBD)", " ") -> T3 (ALB/MBD) | E27: MBD | F27: 16-20/05 & 05-15/07/2022 | G27: 80161 | H27: 197319 | I27: 387787 | J27: 665267 | K27: 88332 | L27: 149516 | M27: 247520 | N27: 485368 | O27: 110.1932361 | P27: 75.77374708 | Q27: 63.8288545 | R27: 72.95837611
A28: =IF(COUNTRY_INFO!A28=0," ",COUNTRY_INFO!A28) -> RWANDA | B28: =IF(COUNTRY_INFO!B28=0," ",COUNTRY_INFO!B28) -> Southern | C28: =IF(COUNTRY_INFO!C28=0," ",COUNTRY_INFO!C28) -> Nyamagabe | D28: =IF(OR(COUNTRY_INFO!$T$9:$T$1000="T3 (ALB/MBD)",COUNTRY_INFO!$U$9:$U$1000="T3 (ALB/MBD)"), "T3 (ALB/MBD)", " ") -> T3 (ALB/MBD) | E28: MBD | F28: 16-20/05 & 05-15/07/2022 | G28: 49337 | H28: 121446 | I28: 238674 | J28: 409457 | K28: 41513 | L28: 104388 | M28: 234479 | N28: 380380 | O28: 84.1417192 | P28: 85.95425127 | Q28: 98.24237244 | R28: 92.89864381
A29: =IF(COUNTRY_INFO!A29=0," ",COUNTRY_INFO!A29) -> RWANDA | B29: =IF(COUNTRY_INFO!B29=0," ",COUNTRY_INFO!B29) -> Western | C29: =IF(COUNTRY_INFO!C29=0," ",COUNTRY_INFO!C29) -> Nyamasheke | D29: =IF(OR(COUNTRY_INFO!$T$9:$T$1000="T3 (ALB/MBD)",COUNTRY_INFO!$U$9:$U$1000="T3 (ALB/MBD)"), "T3 (ALB/MBD)", " ") -> T3 (ALB/MBD) | E29: MBD | F29: 16-20/05 & 05-15/07/2022 | G29: 54447 | H29: 134023 | I29: 263392 | J29: 451862 | K29: 50378 | L29: 111398 | M29: 211111 | N29: 372887 | O29: 92.52667732 | P29: 83.1185692 | Q29: 80.15087778 | R29: 82.52231876
A30: =IF(COUNTRY_INFO!A30=0," ",COUNTRY_INFO!A30) -> RWANDA | B30: =IF(COUNTRY_INFO!B30=0," ",COUNTRY_INFO!B30) -> Southern | C30: =IF(COUNTRY_INFO!C30=0," ",COUNTRY_INFO!C30) -> Nyanza | D30: =IF(OR(COUNTRY_INFO!$T$9:$T$1000="T3 (ALB/MBD)",COUNTRY_INFO!$U$9:$U$1000="T3 (ALB/MBD)"), "T3 (ALB/MBD)", " ") -> T3 (ALB/MBD) | E30: MBD | F30: 16-20/05 & 05-15/07/2022 | G30: 49769 | H30: 122509 | I30: 240765 | J30: 413043 | K30: 31233 | L30: 94389 | M30: 205308 | N30: 330930 | O30: 62.75593241 | P30: 77.04658433 | Q30: 85.2731917 | R30: 80.11998751
A31: =IF(COUNTRY_INFO!A31=0," ",COUNTRY_INFO!A31) -> RWANDA | B31: =IF(COUNTRY_INFO!B31=0," ",COUNTRY_INFO!B31) -> Kigali | C31: =IF(COUNTRY_INFO!C31=0," ",COUNTRY_INFO!C31) -> Nyarugenge | D31: =IF(OR(COUNTRY_INFO!$T$9:$T$1000="T3 (ALB/MBD)",COUNTRY_INFO!$U$9:$U$1000="T3 (ALB/MBD)"), "T3 (ALB/MBD)", " ") -> T3 (ALB/MBD) | E31: MBD | F31: 16-20/05 & 05-15/07/2022 | G31: 41394 | H31: 101894 | I31: 1924 | J31: 145212 | K31: 39569 | L31: 81408 | M31: 1924 | N31: 122901 | O31: 95.59114848 | P31: 79.89479263 | Q31: 100 | R31: 84.63556731
A32: =IF(COUNTRY_INFO!A32=0," ",COUNTRY_INFO!A32) -> RWANDA | B32: =IF(COUNTRY_INFO!B32=0," ",COUNTRY_INFO!B32) -> Southern | C32: =IF(COUNTRY_INFO!C32=0," ",COUNTRY_INFO!C32) -> Nyaruguru | D32: =IF(OR(COUNTRY_INFO!$T$9:$T$1000="T3 (ALB/MBD)",COUNTRY_INFO!$U$9:$U$1000="T3 (ALB/MBD)"), "T3 (ALB/MBD)", " ") -> T3 (ALB/MBD) | E32: MBD | F32: 16-20/05 & 05-15/07/2022 | G32: 42971 | H32: 105775 | I32: 207878 | J32: 356624 | K32: 38901 | L32: 86948 | M32: 280881 | N32: 406730 | O32: 90.52849596 | P32: 82.20089813 | Q32: 135.1181943 | R32: 114.050092
A33: =IF(COUNTRY_INFO!A33=0," ",COUNTRY_INFO!A33) -> RWANDA | B33: =IF(COUNTRY_INFO!B33=0," ",COUNTRY_INFO!B33) -> Western | C33: =IF(COUNTRY_INFO!C33=0," ",COUNTRY_INFO!C33) -> Rubavu | D33: =IF(OR(COUNTRY_INFO!$T$9:$T$1000="T3 (ALB/MBD)",COUNTRY_INFO!$U$9:$U$1000="T3 (ALB/MBD)"), "T3 (ALB/MBD)", " ") -> T3 (ALB/MBD) | E33: MBD | F33: 16-20/05 & 05-15/07/2022 | G33: 61916 | H33: 152409 | I33: 299526 | J33: 513851 | K33: 71269 | L33: 143422 | M33: 248225 | N33: 462916 | O33: 115.10595 | P33: 94.1033666 | Q33: 82.87260538 | R33: 90.08759349
A34: =IF(COUNTRY_INFO!A34=0," ",COUNTRY_INFO!A34) -> RWANDA | B34: =IF(COUNTRY_INFO!B34=0," ",COUNTRY_INFO!B34) -> Southern | C34: =IF(COUNTRY_INFO!C34=0," ",COUNTRY_INFO!C34) -> Ruhango | D34: =IF(OR(COUNTRY_INFO!$T$9:$T$1000="T3 (ALB/MBD)",COUNTRY_INFO!$U$9:$U$1000="T3 (ALB/MBD)"), "T3 (ALB/MBD)", " ") -> T3 (ALB/MBD) | E34: MBD | F34: 16-20/05 & 05-15/07/2022 | G34: 47222 | H34: 116240 | I34: 228444 | J34: 391906 | K34: 38724 | L34: 93329 | M34: 212984 | N34: 345037 | O34: 82.00415061 | P34: 80.28991741 | Q34: 93.23247711 | R34: 88.04075467
A35: =IF(COUNTRY_INFO!A35=0," ",COUNTRY_INFO!A35) -> RWANDA | B35: =IF(COUNTRY_INFO!B35=0," ",COUNTRY_INFO!B35) -> Northern | C35: =IF(COUNTRY_INFO!C35=0," ",COUNTRY_INFO!C35) -> Rulindo | D35: =IF(OR(COUNTRY_INFO!$T$9:$T$1000="T3 (ALB/MBD)",COUNTRY_INFO!$U$9:$U$1000="T3 (ALB/MBD)"), "T3 (ALB/MBD)", " ") -> T3 (ALB/MBD) | E35: MBD | F35: 16-20/05 & 05-15/07/2022 | G35: 40540 | H35: 99790 | I35: 196114 | J35: 336444 | K35: 42046 | L35: 90512 | M35: 209152 | N35: 341710 | O35: 103.7148495 | P35: 90.7024752 | Q35: 106.648174 | R35: 101.5651936
A36: =IF(COUNTRY_INFO!A36=0," ",COUNTRY_INFO!A36) -> RWANDA | B36: =IF(COUNTRY_INFO!B36=0," ",COUNTRY_INFO!B36) -> Western | C36: =IF(COUNTRY_INFO!C36=0," ",COUNTRY_INFO!C36) -> Rusizi | D36: =IF(OR(COUNTRY_INFO!$T$9:$T$1000="T3 (ALB/MBD)",COUNTRY_INFO!$U$9:$U$1000="T3 (ALB/MBD)"), "T3 (ALB/MBD)", " ") -> T3 (ALB/MBD) | E36: MBD | F36: 16-20/05 & 05-15/07/2022 | G36: 58345 | H36: 143620 | I36: 282252 | J36: 484217 | K36: 65022 | L36: 136676 | M36: 281914 | N36: 483612 | O36: 111.4439969 | P36: 95.1650188 | Q36: 99.88024886 | R36: 99.87505602
A37: =IF(COUNTRY_INFO!A37=0," ",COUNTRY_INFO!A37) -> RWANDA | B37: =IF(COUNTRY_INFO!B37=0," ",COUNTRY_INFO!B37) -> Western | C37: =IF(COUNTRY_INFO!C37=0," ",COUNTRY_INFO!C37) -> Rutsiro | D37: =IF(OR(COUNTRY_INFO!$T$9:$T$1000="T3 (ALB/MBD)",COUNTRY_INFO!$U$9:$U$1000="T3 (ALB/MBD)"), "T3 (ALB/MBD)", " ") -> T3 (ALB/MBD) | E37: MBD | F37: 16-20/05 & 05-15/07/2022 | G37: 46550 | H37: 114586 | I37: 225193 | J37: 386329 | K37: 42849 | L37: 103666 | M37: 215516 | N37: 362031 | O37: 92.04940924 | P37: 90.47003997 | Q37: 95.70279716 | R37: 93.71054205
A38: =IF(COUNTRY_INFO!A38=0," ",COUNTRY_INFO!A38) -> RWANDA | B38: =IF(COUNTRY_INFO!B38=0," ",COUNTRY_INFO!B38) -> Eastern | C38: =IF(COUNTRY_INFO!C38=0," ",COUNTRY_INFO!C38) -> Rwamagana | D38: =IF(OR(COUNTRY_INFO!$T$9:$T$1000="T3 (ALB/MBD)",COUNTRY_INFO!$U$9:$U$1000="T3 (ALB/MBD)"), "T3 (ALB/MBD)", " ") -> T3 (ALB/MBD) | E38: MBD | F38: 16-20/05 & 05-15/07/2022 | G38: 47406 | H38: 116692 | I38: 35735 | J38: 199833 | K38: 53418 | L38: 118359 | M38: 48989 | N38: 220766 | O38: 112.681939 | P38: 101.4285469 | Q38: 137.089688 | R38: 110.4752468

Sheet T3_R2
A1: T 3 - Albendazole (ALB) or Mebendazole (MBD) - Round 2
A2: Administrative structure, population requiring PC by age group, population treated by age group and coverage
A4: TOTAL | G4: =SUM(G$9:G$1000) -> 1568988 | H4: 3862135 | I4: 6329249 | J4: 11760372 | K4: 1483157 | L4: 3541303 | M4: 5924465 | N4: 10948925 | O4: =IF(G4<>0, IF(K4/G4*100=0, "-", K4/G4*100), " ") -> 94.52953114 | P4: =IF(H4<>0, IF(L4/H4*100=0, "-", L4/H4*100), " ") -> 91.69288489 | Q4: =IF(I4<>0, IF(M4/I4*100=0, "-", M4/I4*100), " ") -> 93.60454929 | R4: =IF(J4<>0, IF(N4/J4*100=0, "-", N4/J4*100), " ") -> 93.10015874
D6: PC implemented | E6: Medicine | F6: Date | G6: Population targeted for T3 | K6: Population treated | O6: Programme coverage (%)
A7: Country | B7: Province/State | C7: District | G7: PreSAC | H7: SAC | I7: Adults | J7: Total | K7: PreSAC | L7: SAC | M7: Adults | N7: Total | O7: PreSAC | P7: SAC | Q7: Adults | R7: Total
A9: =IF(COUNTRY_INFO!A9=0," ",COUNTRY_INFO!A9) -> RWANDA | B9: =IF(COUNTRY_INFO!B9=0," ",COUNTRY_INFO!B9) -> Eastern | C9: =IF(COUNTRY_INFO!C9=0," ",COUNTRY_INFO!C9) -> Bugesera | D9: T3 (ALB/MBD) | E9: MBD | F9: 14-25 November 2022 | G9: 54774 | H9: 134829 | I9: 42100 | J9: =SUM(G9:I9) -> 231703 | K9: 65842 | L9: 148490 | M9: 42036 | N9: =SUM(K9:M9) -> 256368 | O9: =IF(G9<>0, IF(K9/G9*100=0, "-", K9/G9*100), " ") -> 120.2066674 | P9: 110.1320932 | Q9: 99.847981 | R9: 110.6450931
A10: =IF(COUNTRY_INFO!A10=0," ",COUNTRY_INFO!A10) -> RWANDA | B10: =IF(COUNTRY_INFO!B10=0," ",COUNTRY_INFO!B10) -> Northern | C10: =IF(COUNTRY_INFO!C10=0," ",COUNTRY_INFO!C10) -> Burera | D10: T3 (ALB/MBD) | E10: MBD | F10: 14-25 November 2022 | G10: 45797 | H10: 112732 | I10: 221550 | J10: =SUM(G10:I10) -> 380079 | K10: 42556 | L10: 111616 | M10: 236015 | N10: =SUM(K10:M10) -> 390187 | O10: =IF(G10<>0, IF(K10/G10*100=0, "-", K10/G10*100), " ") -> 92.92311723 | P10: =IF(H10<>0, IF(L10/H10*100=0, "-", L10/H10*100), " ") -> 99.01004151 | Q10: =IF(I10<>0, IF(M10/I10*100=0, "-", M10/I10*100), " ") -> 106.5290002 | R10: =IF(J10<>0, IF(N10/J10*100=0, "-", N10/J10*100), " ") -> 102.6594471
A11: =IF(COUNTRY_INFO!A11=0," ",COUNTRY_INFO!A11) -> RWANDA | B11: =IF(COUNTRY_INFO!B11=0," ",COUNTRY_INFO!B11) -> Northern | C11: =IF(COUNTRY_INFO!C11=0," ",COUNTRY_INFO!C11) -> Gakenke | D11: T3 (ALB/MBD) | E11: MBD | F11: 14-25 November 2022 | G11: 45609 | H11: 112269 | I11: 220640 | J11: 378518 | K11: 39421 | L11: 96374 | M11: 229450 | N11: 365245 | O11: 86.43250236 | P11: 85.8420401 | Q11: 103.9929297 | R11: 96.49342964
A12: =IF(COUNTRY_INFO!A12=0," ",COUNTRY_INFO!A12) -> RWANDA | B12: =IF(COUNTRY_INFO!B12=0," ",COUNTRY_INFO!B12) -> Kigali | C12: =IF(COUNTRY_INFO!C12=0," ",COUNTRY_INFO!C12) -> Gasabo | D12: T3 (ALB/MBD) | E12: MBD | F12: 14-25 November 2022 | G12: 87401 | H12: 215140 | I12: 27195 | J12: 329736 | K12: 91178 | L12: 215848 | M12: 27195 | N12: 334221 | O12: 104.3214609 | P12: 100.329088 | Q12: 100 | R12: 101.3601791
A13: =IF(COUNTRY_INFO!A13=0," ",COUNTRY_INFO!A13) -> RWANDA | B13: =IF(COUNTRY_INFO!B13=0," ",COUNTRY_INFO!B13) -> Eastern | C13: =IF(COUNTRY_INFO!C13=0," ",COUNTRY_INFO!C13) -> Gatsibo | D13: T3 (ALB/MBD) | E13: MBD | F13: 14-25 November 2022 | G13: 69166 | H13: 170255 | I13: 334598 | J13: 574019 | K13: 61874 | L13: 141547 | M13: 246585 | N13: 450006 | O13: 89.45724778 | P13: 83.13823383 | Q13: 73.69589776 | R13: 78.39566286
A14: =IF(COUNTRY_INFO!A14=0," ",COUNTRY_INFO!A14) -> RWANDA | B14: =IF(COUNTRY_INFO!B14=0," ",COUNTRY_INFO!B14) -> Northern | C14: =IF(COUNTRY_INFO!C14=0," ",COUNTRY_INFO!C14) -> Gicumbi | D14: T3 (ALB/MBD) | E14: MBD | F14: 14-25 November 2022 | G14: 55733 | H14: 137189 | I14: 269614 | J14: 462536 | K14: 51699 | L14: 107540 | M14: 256430 | N14: 415669 | O14: 92.76191843 | P14: 78.38820897 | Q14: 95.11004621 | R14: 89.8673833
A15: =IF(COUNTRY_INFO!A15=0," ",COUNTRY_INFO!A15) -> RWANDA | B15: =IF(COUNTRY_INFO!B15=0," ",COUNTRY_INFO!B15) -> Southern | C15: =IF(COUNTRY_INFO!C15=0," ",COUNTRY_INFO!C15) -> Gisagara | D15: T3 (ALB/MBD) | E15: MBD | F15: 14-25 November 2022 | G15: 46702 | H15: 114959 | I15: 225926 | J15: 387587 | K15: 44265 | L15: 107825 | M15: 237320 | N15: 389410 | O15: 94.78180806 | P15: 93.79430928 | Q15: 105.0432442 | R15: 100.470346
A16: =IF(COUNTRY_INFO!A16=0," ",COUNTRY_INFO!A16) -> RWANDA | B16: =IF(COUNTRY_INFO!B16=0," ",COUNTRY_INFO!B16) -> Southern | C16: =IF(COUNTRY_INFO!C16=0," ",COUNTRY_INFO!C16) -> Huye | D16: T3 (ALB/MBD) | E16: MBD | F16: 14-25 November 2022 | G16: 47669 | H16: 117340 | I16: 230605 | J16: 395614 | K16: 42495 | L16: 94965 | M16: 232910 | N16: 370370 | O16: 89.14598586 | P16: 80.93148117 | Q16: 100.9995447 | R16: 93.61903269
A17: =IF(COUNTRY_INFO!A17=0," ",COUNTRY_INFO!A17) -> RWANDA | B17: =IF(COUNTRY_INFO!B17=0," ",COUNTRY_INFO!B17) -> Southern | C17: =IF(COUNTRY_INFO!C17=0," ",COUNTRY_INFO!C17) -> Kamonyi | D17: T3 (ALB/MBD) | E17: MBD | F17: 14-25 November 2022 | G17: 50951 | H17: 125418 | I17: 155100 | J17: 331469 | K17: 41728 | L17: 103263 | M17: 156442 | N17: 301433 | O17: 81.89829444 | P17: 82.33507152 | Q17: 100.8652482 | R17: 90.93851914
A18: =IF(COUNTRY_INFO!A18=0," ",COUNTRY_INFO!A18) -> RWANDA | B18: =IF(COUNTRY_INFO!B18=0," ",COUNTRY_INFO!B18) -> Western | C18: =IF(COUNTRY_INFO!C18=0," ",COUNTRY_INFO!C18) -> Karongi | D18: T3 (ALB/MBD) | E18: MBD | F18: 14-25 November 2022 | G18: 47248 | H18: 116303 | I18: 228568 | J18: 392119 | K18: 40394 | L18: 103863 | M18: 217709 | N18: 361966 | O18: 85.49356587 | P18: 89.30380128 | Q18: 95.24911624 | R18: 92.31024255
A19: =IF(COUNTRY_INFO!A19=0," ",COUNTRY_INFO!A19) -> RWANDA | B19: =IF(COUNTRY_INFO!B19=0," ",COUNTRY_INFO!B19) -> Eastern | C19: =IF(COUNTRY_INFO!C19=0," ",COUNTRY_INFO!C19) -> Kayonza | D19: T3 (ALB/MBD) | E19: MBD | F19: 14-25 November 2022 | G19: 56573 | H19: 139257 | I19: 273679 | J19: 469509 | K19: 49306 | L19: 118745 | M19: 205272 | N19: 373323 | O19: 87.15464974 | P19: 85.27039933 | Q19: 75.00465874 | R19: 79.51349175
A20: =IF(COUNTRY_INFO!A20=0," ",COUNTRY_INFO!A20) -> RWANDA | B20: =IF(COUNTRY_INFO!B20=0," ",COUNTRY_INFO!B20) -> Kigali | C20: =IF(COUNTRY_INFO!C20=0," ",COUNTRY_INFO!C20) -> Kicukiro | D20: T3 (ALB/MBD) | E20: MBD | F20: 14-25 November 2022 | G20: 50571 | H20: 124483 | I20: 49760 | J20: 224814 | K20: 41430 | L20: 98661 | M20: 49760 | N20: 189851 | O20: 81.92442309 | P20: 79.25660532 | Q20: 100 | R20: 84.4480326
A21: =IF(COUNTRY_INFO!A21=0," ",COUNTRY_INFO!A21) -> RWANDA | B21: =IF(COUNTRY_INFO!B21=0," ",COUNTRY_INFO!B21) -> Eastern | C21: =IF(COUNTRY_INFO!C21=0," ",COUNTRY_INFO!C21) -> Kirehe | D21: T3 (ALB/MBD) | E21: MBD | F21: 14-25 November 2022 | G21: 53116 | H21: 130746 | I21: 256953 | J21: 440815 | K21: 52000 | L21: 138767 | M21: 221473 | N21: 412240 | O21: 97.89893817 | P21: 106.1347957 | Q21: 86.19202734 | R21: 93.51768883
A22: =IF(COUNTRY_INFO!A22=0," ",COUNTRY_INFO!A22) -> RWANDA | B22: =IF(COUNTRY_INFO!B22=0," ",COUNTRY_INFO!B22) -> Southern | C22: =IF(COUNTRY_INFO!C22=0," ",COUNTRY_INFO!C22) -> Muhanga | D22: T3 (ALB/MBD) | E22: MBD | F22: 14-25 November 2022 | G22: 44332 | H22: 109126 | I22: 214462 | J22: 367920 | K22: 31226 | L22: 93686 | M22: 224274 | N22: 349186 | O22: 70.43670486 | P22: 85.85121786 | Q22: 104.5751695 | R22: 94.9081322
A23: =IF(COUNTRY_INFO!A23=0," ",COUNTRY_INFO!A23) -> RWANDA | B23: =IF(COUNTRY_INFO!B23=0," ",COUNTRY_INFO!B23) -> Northern | C23: =IF(COUNTRY_INFO!C23=0," ",COUNTRY_INFO!C23) -> Musanze | D23: T3 (ALB/MBD) | E23: MBD | F23: 14-25 November 2022 | G23: 52749 | H23: 129843 | I23: 255177 | J23: 437769 | K23: 52277 | L23: 118053 | M23: 266731 | N23: 437061 | O23: 99.10519631 | P23: 90.91980315 | Q23: 104.5278375 | R23: 99.83827087
A24: =IF(COUNTRY_INFO!A24=0," ",COUNTRY_INFO!A24) -> RWANDA | B24: =IF(COUNTRY_INFO!B24=0," ",COUNTRY_INFO!B24) -> Eastern | C24: =IF(COUNTRY_INFO!C24=0," ",COUNTRY_INFO!C24) -> Ngoma | D24: T3 (ALB/MBD) | E24: MBD | F24: 14-25 November 2022 | G24: 52081 | H24: 128200 | I24: 251948 | J24: 432229 | K24: 42550 | L24: 111682 | M24: 186418 | N24: 340650 | O24: 81.69966014 | P24: 87.11544462 | Q24: 73.99066474 | R24: 78.8123888
A25: =IF(COUNTRY_INFO!A25=0," ",COUNTRY_INFO!A25) -> RWANDA | B25: =IF(COUNTRY_INFO!B25=0," ",COUNTRY_INFO!B25) -> Western | C25: =IF(COUNTRY_INFO!C25=0," ",COUNTRY_INFO!C25) -> Ngororero | D25: T3 (ALB/MBD) | E25: MBD | F25: 14-25 November 2022 | G25: 47561 | H25: 117073 | I25: 230082 | J25: 394716 | K25: 42368 | L25: 106626 | M25: 227670 | N25: 376664 | O25: 89.08139021 | P25: 91.07650782 | Q25: 98.9516781 | R25: 95.42658519
A26: =IF(COUNTRY_INFO!A26=0," ",COUNTRY_INFO!A26) -> RWANDA | B26: =IF(COUNTRY_INFO!B26=0," ",COUNTRY_INFO!B26) -> Western | C26: =IF(COUNTRY_INFO!C26=0," ",COUNTRY_INFO!C26) -> Nyabihu | D26: T3 (ALB/MBD) | E26: MBD | F26: 14-25 November 2022 | G26: 40897 | H26: 100670 | I26: 197844 | J26: 339411 | K26: 40664 | L26: 100439 | M26: 192186 | N26: 333289 | O26: 99.43027606 | P26: 99.7705374 | Q26: 97.14017104 | R26: 98.1962871
A27: =IF(COUNTRY_INFO!A27=0," ",COUNTRY_INFO!A27) -> RWANDA | B27: =IF(COUNTRY_INFO!B27=0," ",COUNTRY_INFO!B27) -> Eastern | C27: =IF(COUNTRY_INFO!C27=0," ",COUNTRY_INFO!C27) -> Nyagatare | D27: T3 (ALB/MBD) | E27: MBD | F27: 14-25 November 2022 | G27: 80161 | H27: 197319 | I27: 387787 | J27: 665267 | K27: 84099 | L27: 187547 | M27: 357370 | N27: 629016 | O27: 104.9126134 | P27: 95.04761326 | Q27: 92.15626104 | R27: 94.55090963
A28: =IF(COUNTRY_INFO!A28=0," ",COUNTRY_INFO!A28) -> RWANDA | B28: =IF(COUNTRY_INFO!B28=0," ",COUNTRY_INFO!B28) -> Southern | C28: =IF(COUNTRY_INFO!C28=0," ",COUNTRY_INFO!C28) -> Nyamagabe | D28: T3 (ALB/MBD) | E28: MBD | F28: 14-25 November 2022 | G28: 49337 | H28: 121446 | I28: 238674 | J28: 409457 | K28: 41283 | L28: 111558 | M28: 230137 | N28: 382978 | O28: 83.67553763 | P28: 91.85810978 | Q28: 96.4231546 | R28: 93.53314267
A29: =IF(COUNTRY_INFO!A29=0," ",COUNTRY_INFO!A29) -> RWANDA | B29: =IF(COUNTRY_INFO!B29=0," ",COUNTRY_INFO!B29) -> Western | C29: =IF(COUNTRY_INFO!C29=0," ",COUNTRY_INFO!C29) -> Nyamasheke | D29: T3 (ALB/MBD) | E29: MBD | F29: 14-25 November 2022 | G29: 54447 | H29: 134023 | I29: 263392 | J29: 451862 | K29: 55580 | L29: 125691 | M29: 237701 | N29: 418972 | O29: 102.0809227 | P29: 93.78315662 | Q29: 90.24609707 | R29: 92.72122905
A30: =IF(COUNTRY_INFO!A30=0," ",COUNTRY_INFO!A30) -> RWANDA | B30: =IF(COUNTRY_INFO!B30=0," ",COUNTRY_INFO!B30) -> Southern | C30: =IF(COUNTRY_INFO!C30=0," ",COUNTRY_INFO!C30) -> Nyanza | D30: T3 (ALB/MBD) | E30: MBD | F30: 14-25 November 2022 | G30: 49769 | H30: 122509 | I30: 240765 | J30: 413043 | K30: 35528 | L30: 106708 | M30: 189485 | N30: 331721 | O30: 71.38580241 | P30: 87.10217209 | Q30: 78.70122318 | R30: 80.31149299
A31: =IF(COUNTRY_INFO!A31=0," ",COUNTRY_INFO!A31) -> RWANDA | B31: =IF(COUNTRY_INFO!B31=0," ",COUNTRY_INFO!B31) -> Kigali | C31: =IF(COUNTRY_INFO!C31=0," ",COUNTRY_INFO!C31) -> Nyarugenge | D31: T3 (ALB/MBD) | E31: MBD | F31: 14-25 November 2022 | G31: 41394 | H31: 101894 | I31: 37688 | J31: 180976 | K31: 36892 | L31: 90721 | M31: 37688 | N31: 165301 | O31: 89.12402764 | P31: 89.0346831 | Q31: 100 | R31: 91.33863054
A32: =IF(COUNTRY_INFO!A32=0," ",COUNTRY_INFO!A32) -> RWANDA | B32: =IF(COUNTRY_INFO!B32=0," ",COUNTRY_INFO!B32) -> Southern | C32: =IF(COUNTRY_INFO!C32=0," ",COUNTRY_INFO!C32) -> Nyaruguru | D32: T3 (ALB/MBD) | E32: MBD | F32: 14-25 November 2022 | G32: 42971 | H32: 105775 | I32: 207878 | J32: 356624 | K32: 38924 | L32: 101194 | M32: 199772 | N32: 339890 | O32: 90.58202043 | P32: 95.66910896 | Q32: 96.10059747 | R32: 95.30766297
A33: =IF(COUNTRY_INFO!A33=0," ",COUNTRY_INFO!A33) -> RWANDA | B33: =IF(COUNTRY_INFO!B33=0," ",COUNTRY_INFO!B33) -> Western | C33: =IF(COUNTRY_INFO!C33=0," ",COUNTRY_INFO!C33) -> Rubavu | D33: T3 (ALB/MBD) | E33: MBD | F33: 14-25 November 2022 | G33: 61916 | H33: 152409 | I33: 299526 | J33: 513851 | K33: 74517 | L33: 155340 | M33: 294984 | N33: 524841 | O33: 120.3517669 | P33: 101.9231148 | Q33: 98.48360409 | R33: 102.1387523
A34: =IF(COUNTRY_INFO!A34=0," ",COUNTRY_INFO!A34) -> RWANDA | B34: =IF(COUNTRY_INFO!B34=0," ",COUNTRY_INFO!B34) -> Southern | C34: =IF(COUNTRY_INFO!C34=0," ",COUNTRY_INFO!C34) -> Ruhango | D34: T3 (ALB/MBD) | E34: MBD | F34: 14-25 November 2022 | G34: 47222 | H34: 116240 | I34: 228444 | J34: 391906 | K34: 39500 | L34: 101152 | M34: 178066 | N34: 318718 | O34: 83.64745246 | P34: 87.01995871 | Q34: 77.94733064 | R34: 81.32511368
A35: =IF(COUNTRY_INFO!A35=0," ",COUNTRY_INFO!A35) -> RWANDA | B35: =IF(COUNTRY_INFO!B35=0," ",COUNTRY_INFO!B35) -> Northern | C35: =IF(COUNTRY_INFO!C35=0," ",COUNTRY_INFO!C35) -> Rulindo | D35: T3 (ALB/MBD) | E35: MBD | F35: 14-25 November 2022 | G35: 40540 | H35: 99790 | I35: 196114 | J35: 336444 | K35: 41516 | L35: 92972 | M35: 204608 | N35: 339096 | O35: 102.4074988 | P35: 93.16765207 | Q35: 104.3311543 | R35: 100.7882441
A36: =IF(COUNTRY_INFO!A36=0," ",COUNTRY_INFO!A36) -> RWANDA | B36: =IF(COUNTRY_INFO!B36=0," ",COUNTRY_INFO!B36) -> Western | C36: =IF(COUNTRY_INFO!C36=0," ",COUNTRY_INFO!C36) -> Rusizi | D36: T3 (ALB/MBD) | E36: MBD | F36: 14-25 November 2022 | G36: 58345 | H36: 143620 | I36: 282252 | J36: 484217 | K36: 65213 | L36: 127614 | M36: 284259 | N36: 477086 | O36: 111.77136 | P36: 88.85531263 | Q36: 100.7110667 | R36: 98.52731317
A37: =IF(COUNTRY_INFO!A37=0," ",COUNTRY_INFO!A37) -> RWANDA | B37: =IF(COUNTRY_INFO!B37=0," ",COUNTRY_INFO!B37) -> Western | C37: =IF(COUNTRY_INFO!C37=0," ",COUNTRY_INFO!C37) -> Rutsiro | D37: T3 (ALB/MBD) | E37: MBD | F37: 14-25 November 2022 | G37: 46550 | H37: 114586 | I37: 225193 | J37: 386329 | K37: 44835 | L37: 106027 | M37: 221442 | N37: 372304 | O37: 96.31578947 | P37: 92.53050111 | Q37: 98.33431767 | R37: 96.36967455
A38: =IF(COUNTRY_INFO!A38=0," ",COUNTRY_INFO!A38) -> RWANDA | B38: =IF(COUNTRY_INFO!B38=0," ",COUNTRY_INFO!B38) -> Eastern | C38: =IF(COUNTRY_INFO!C38=0," ",COUNTRY_INFO!C38) -> Rwamagana | D38: T3 (ALB/MBD) | E38: MBD | F38: 14-25 November 2022 | G38: 47406 | H38: 116692 | I38: 35735 | J38: 199833 | K38: 51997 | L38: 116789 | M38: 33077 | N38: 201863 | O38: 109.6844281 | P38: 100.0831248 | Q38: 92.56191409 | R38: 101.0158482

Sheet DISTRICT
A1: Number of individuals treated
A2: Administrative structure, population treated by age group and gender
A4: TOTAL | D4: =SUM(D$9:D$1000) -> 0 | E4: =SUM(E$9:E$1000) -> 0 | F4: =SUM(F$9:F$1000) -> 0 | G4: =SUM(G$9:G$1000) -> 0 | H4: =SUM(H$9:H$1000) -> 0 | I4: =IF(D4>0, IF(H4/D4*100<>0, H4/D4*100, "-"),0) -> 0 | J4: =SUM(J$9:J$1000) -> 0 | K4: =SUM(K$9:K$1000) -> 0 | L4: =SUM(L$9:L$1000) -> 0 | M4: =SUM(M$9:M$1000) -> 0 | N4: =SUM(N$9:N$1000) -> 0 | O4: =IF(J4>0, IF(N4/J4*100<>0, N4/J4*100, "-"),0) -> 0 | P4: =SUM(P$9:P$1000) -> 4218568 | Q4: =SUM(Q$9:Q$1000) -> 0 | R4: =SUM(R$9:R$1000) -> 0 | S4: =SUM(S$9:S$1000) -> 11414266 | T4: =SUM(T$9:T$1000) -> 1130773 | V4: 2752475 | X4: =SUM(X$9:X$1000) -> 3883248 | Y4: =IF(P4>0, IF(X4/P4*100<>0, X4/P4*100, "-"),0) -> 92.05133116 | Z4: =SUM(Z$9:Z$1000) -> 1605017.97 | AA4: 0 | AB4: 0 | AC4: 5468703 | AD4: 1529567.3 | AF4: 1158151.4 | AH4: 2687718.7 | AI4: =IF(Z4>0, IF(AH4/Z4*100<>0, AH4/Z4*100, "-"),0) -> 167.4572341
D6: Population requiring PC for LF | E6: Population treated for lymphatic filariasis | J6: Population requiring PC for ONCHO | K6: Population treated for onchocerciasis | P6: Population requiring PC for STH | Q6: Population treated for STH | Z6: Population requiring PC for SCH | AA6: Population treated for schistosomiasis | AP6: =SUM(AP9:AP1000) -> 0 | AQ6: 1218694.727 | AR6: 3225876.964 | AS6: 576191.9349 | AT6: =SUM(AT9:AT1000) -> 5020763.626 | AU6: =COUNTIF(AU9:AU1000,"Y") -> 30 | AV6: =SUM(AV9:AV1000) -> 1511159 | AW6: 3580230 | AX6: 6425945 | AY6: =SUM(AY9:AY1000) -> 11517334 | AZ6: 1130773 | BA6: 3113454.07 | BB6: 1158151.4 | BC6: 4896870.892 | BD6: =IF(AT6<>0,BC6/AT6,0) -> 0.975323926
A7: Country | B7: Province/State | C7: District | E7: Male | F7: Female | G7: Total treated | H7: Total in need treated | I7: (%) | K7: Male | L7: Female | M7: Total treated | N7: Total in need treated | O7: (%) | Q7: Male | R7: Female | S7: Total treated | T7: PreSAC in need treated | U7: PreSAC (%) | V7: SAC in need treated | W7: SAC (%) | X7: Total in need treated | Y7: (%) | AA7: Male | AB7: Female | AC7: Total treated | AD7: SAC in need treated | AE7: SAC (%) | AF7: Adults in need treated | AG7: Adults (%) | AH7: Total in need treated | AI7: (%) | AK7: LF | AL7: ONCHO | AM7: STH | AN7: SCH-SAC | AO7: SCH_Adults | AP7: <1 | AQ7: PreSAC | AR7: SAC | AS7: Adults | AT7: Total | AU7: Dis | AV7: PreSAC | AW7: SAC | AX7: Adults | AY7: Total | AZ7: PreSAC | BA7: SAC | BB7: Adults | BC7: Total | BD7: Coverage
A9: =IF(COUNTRY_INFO!A9=0," ",COUNTRY_INFO!A9) -> RWANDA | B9: =IF(COUNTRY_INFO!B9=0," ",COUNTRY_INFO!B9) -> Eastern | C9: =IF(COUNTRY_INFO!C9=0," ",COUNTRY_INFO!C9) -> Bugesera | D9: =COUNTRY_INFO!L9 -> Not required | G9: =MAX('MDA1'!M9,'MDA2'!M9,'MDA5'!M9) -> 0 | H9: =IF(AND(COUNTRY_INFO!H9>0,COUNTRY_INFO!H9<4),IF(D9>MAX('MDA1'!M9,'MDA2'!M9,'MDA5'!M9),MAX('MDA1'!M9,'MDA2'!M9,'MDA5'!M9),D9),0) -> 0 | I9: =IF(AND(COUNTRY_INFO!H9>0,COUNTRY_INFO!H9<4), IF(G9/D9*100<>0, IF(G9/D9*100>100,100,G9/D9*100), "-"),0) -> 0 | J9: =COUNTRY_INFO!M9 -> Not required | M9: =MAX('MDA1'!M9,MAX('MDA3'!I9,'MDA3'!L9)+MAX('MDA3'!J9,'MDA3'!M9)) -> 0 | N9: =IF(AND(COUNTRY_INFO!I9>0,COUNTRY_INFO!I9<4),IF(J9>MAX('MDA1'!M9,MAX('MDA3'!I9,'MDA3'!L9)+MAX('MDA3'!J9,'MDA3'!M9)),MAX('MDA1'!M9,MAX('MDA3'!I9,'MDA3'!L9)+MAX('MDA3'!J9,'MDA3'!M9)),J9),0) -> 0 | O9: =IF(AND(COUNTRY_INFO!I9>0,COUNTRY_INFO!I9<4), IF(M9/J9*100<>0, IF(M9/J9*100>100,100,M9/J9*100), "-"),0) -> 0 | P9: =COUNTRY_INFO!N9 -> 0 | S9: =SUM(MAX('MDA2'!J9,'MDA5'!J9, 'T1'!L9, MAX(T3_R1!K9, T3_R2!K9)), MAX('MDA1'!K9, 'MDA2'!K9, 'MDA5'!K9,'T1'!M9, MAX(T3_R1!L9, T3_R2!L9)), MAX('MDA1'!L9, 'MDA2'!L9, 'MDA5'!L9,'T1'!N9, MAX(T3_R1!M9, T3_R2!M9))) -> 283199 | T9: =IF(AND(COUNTRY_INFO!J9>1,COUNTRY_INFO!J9<4),IF(COUNTRY_INFO!E9>MAX('MDA2'!J9,'MDA5'!J9,'T1'!L9,MAX(T3_R1!K9,T3_R2!K9)),MAX('MDA2'!J9,'MDA5'!J9,'T1'!L9,MAX(T3_R1!K9,T3_R2!K9)),COUNTRY_INFO!E9),0) -> 0 | U9: =IF(AND(COUNTRY_INFO!J9>1,COUNTRY_INFO!J9<4), IF(T9/COUNTRY_INFO!E9*100<>0, IF(T9/COUNTRY_INFO!E9*100>100,100,T9/COUNTRY_INFO!E9*100), "-"),0) -> 0 | V9: =IF(AND(COUNTRY_INFO!J9>1,COUNTRY_INFO!J9<4),IF(COUNTRY_INFO!F9>MAX('MDA1'!K9,'MDA2'!K9,'MDA5'!K9,'T1'!M9,MAX(T3_R1!L9,T3_R2!L9)),MAX('MDA1'!K9,'MDA2'!K9,'MDA5'!K9,'T1'!M9,MAX(T3_R1!L9,T3_R2!L9)),COUNTRY_INFO!F9),0) -> 0 | W9: =IF(AND(COUNTRY_INFO!J9>1,COUNTRY_INFO!J9<4), IF(V9/COUNTRY_INFO!F9*100<>0, IF(V9/COUNTRY_INFO!F9*100>100,100,V9/COUNTRY_INFO!F9*100), "-"),0) -> 0 | X9: =SUM(T9,V9) -> 0 | Y9: =IF(AND(COUNTRY_INFO!J9>1,COUNTRY_INFO!J9<4), IF(S9/P9*100<>0, IF(X9/P9*100>100,100,X9/P9*100), "-"),0) -> 0 | Z9: =COUNTRY_INFO!O9 -> 73913.04 | AC9: =MAX('T1'!L9,'T2'!J9)+MAX('T1'!M9,'T2'!K9)+MAX('T1'!N9,'T2'!L9) -> 215043 | AD9: =IF(COUNTRY_INFO!K9=1,IF(COUNTRY_INFO!F9*0.33>MAX('T1'!M9,'T2'!K9),MAX('T1'!M9,'T2'!K9),COUNTRY_INFO!F9*0.33),IF(COUNTRY_INFO!K9=2,IF(COUNTRY_INFO!F9*0.5>MAX('T1'!M9,'T2'!K9),MAX('T1'!M9,'T2'!K9),COUNTRY_INFO!F9*0.5),IF(COUNTRY_INFO!K9=3,IF(COUNTRY_INFO!F9>MAX('T1'!M9,'T2'!K9),MAX('T1'!M9,'T2'!K9),COUNTRY_INFO!F9),0))) -> 67414.5 | AE9: =IF(AND(COUNTRY_INFO!K9>0,COUNTRY_INFO!K9<4),IF(Z9>0,IF(COUNTRY_INFO!K9=1, AD9/(COUNTRY_INFO!F9*0.33)*100, IF(COUNTRY_INFO!K9=2, AD9/(COUNTRY_INFO!F9*0.5)*100, IF(COUNTRY_INFO!K9=3, AD9/COUNTRY_INFO!F9*100))),"-"),0) -> 100 | AF9: =IF(COUNTRY_INFO!K9=2,IF(COUNTRY_INFO!G9*0.2>MAX('T1'!N9,'T2'!L9),MAX('T1'!N9,'T2'!L9),COUNTRY_INFO!G9*0.2),IF(COUNTRY_INFO!K9=3,IF(COUNTRY_INFO!G9>MAX('T1'!N9,'T2'!L9),MAX('T1'!N9,'T2'!L9),COUNTRY_INFO!G9),0)) -> 52995.2 | AG9: =IF(AND(COUNTRY_INFO!K9>0,COUNTRY_INFO!K9<4),IF(Z9>0,IF(COUNTRY_INFO!K9=1, 0, IF(COUNTRY_INFO!K9=2, AF9/(COUNTRY_INFO!G9*0.2)*100, IF(COUNTRY_INFO!K9=3, AF9/COUNTRY_INFO!G9*100))),"-"),0) -> 100 | AH9: =SUM(AD9,AF9) -> 120409.7 | AI9: =IF(AND(COUNTRY_INFO!K9>0,COUNTRY_INFO!K9<4), IF(AC9/Z9*100<>0, IF(AH9/Z9*100>100,100,AH9/Z9*100), "-"),0) -> 100 | AK9: =IF(AND(D9<>0, D9<>"Unknown",D9<>"Stopped",D9<>"Not required"),D9/COUNTRY_INFO!D9, 0) -> 0 | AL9: =IF(AND(J9<>0,J9<>"Unknown",J9<>"Stopped",J9<>"Not required"),J9/COUNTRY_INFO!D9, 0) -> 0 | AM9: =IF(AND(P9<>0,P9<>"Unknown",P9<>"Not required"),P9/(COUNTRY_INFO!E9+COUNTRY_INFO!F9), 0) -> 0 | AN9: =IF(AND(Z9<>0,Z9<>"Unknown",Z9<>"Not required"),IF(COUNTRY_INFO!K9=1,1,IF(COUNTRY_INFO!K9=2,0.5*COUNTRY_INFO!F9/(0.5*COUNTRY_INFO!F9+0.2*COUNTRY_INFO!G9),IF(COUNTRY_INFO!K9=3,COUNTRY_INFO!F9/(COUNTRY_INFO!F9+COUNTRY_INFO!G9)))),0) -> 0.5598759901 | AO9: =IF(AND(Z9<>0,Z9<>"Unknown",Z9<>"Not required"),IF(COUNTRY_INFO!K9=1,0,IF(COUNTRY_INFO!K9=2,0.2*COUNTRY_INFO!G9/(0.5*COUNTRY_INFO!F9+0.2*COUNTRY_INFO!G9),IF(COUNTRY_INFO!K9=3,COUNTRY_INFO!G9/(COUNTRY_INFO!F9+COUNTRY_INFO!G9)))),0) -> 0.4401240099 | AP9: =MAX(COUNTRY_INFO!D9*AK9*PROFILE!$G$7,COUNTRY_INFO!D9*AL9*PROFILE!$G$7) -> 0 | AQ9: =MAX(COUNTRY_INFO!D9*AK9*PROFILE!$G$8,COUNTRY_INFO!D9*AL9*PROFILE!$G$8,COUNTRY_INFO!D9*AM9*PROFILE!$G$8) -> 0 | AR9: =MAX(COUNTRY_INFO!D9*AK9*PROFILE!$G$9,COUNTRY_INFO!D9*AL9*PROFILE!$G$9,COUNTRY_INFO!D9*AM9*PROFILE!$G$9,IF(AND(DISTRICT!Z9<>"Unknown",Z9<>"Not required"),COUNTRY_INFO!O9*DISTRICT!AN9,0)) -> 41382.13645 | AS9: =MAX(COUNTRY_INFO!D9*AK9*PROFILE!$G$10,COUNTRY_INFO!D9*AL9*PROFILE!$G$10,IF(AND(DISTRICT!Z9<>"Unknown",Z9<>"Not required"),COUNTRY_INFO!O9*DISTRICT!AO9,0)) -> 32530.90355 | AT9: =SUM(AP9:AS9) -> 73913.04 | AU9: =IF(COUNTIFS(AK9:AN9,">0")=0,0, IF(COUNTIFS(AK9:AN9,">0")<=IF(AND(OR(D9>=0,D9="Not required",D9="Unknown",D9="Stopped"),D9>0,H9>0),1,0)+IF(AND(OR(J9>=0,J9="Not required",J9="Unknown",J9="Stopped"),J9>0,N9>0),1,0)+IF(AND(OR(P9>=0,P9="Not required",P9="Unknown"),P9>0,X9>0),1,0)+IF(AND(OR(Z9>=0,Z9="Not required",Z9="Unknown"),Z9>0,AH9>0),1,0),"Y",0)) -> Y | AV9: =MAX('MDA2'!J9,'MDA5'!J9,'T1'!L9,'T2'!J9,T3_R1!K9,T3_R2!K9) -> 70434 | AW9: =MAX('MDA1'!K9,'MDA2'!K9,'MDA3'!I9,'MDA3'!L9,'MDA5'!K9,'T1'!M9,'T2'!K9,T3_R1!L9,T3_R2!L9) -> 148490 | AX9: =MAX('MDA1'!L9,'MDA2'!L9,'MDA3'!J9,'MDA3'!M9,'MDA5'!L9,'T1'!N9,'T2'!L9,T3_R1!M9,T3_R2!M9) -> 112176 | AY9: =SUM(AV9:AX9) -> 331100 | AZ9: =MAX('MDA2'!J9,'MDA5'!J9,T9) -> 0 | BA9: =MAX('MDA1'!K9,'MDA2'!K9,'MDA3'!I9,'MDA3'!L9,'MDA5'!K9,V9,AD9) -> 67414.5 | BB9: =MAX('MDA1'!L9,'MDA2'!L9,'MDA3'!J9,'MDA3'!M9,'MDA5'!L9,AF9) -> 52995.2 | BC9: =IF(AT9<SUM(AZ9:BB9), AT9,SUM(AZ9:BB9)) -> 73913.04 | BD9: =IF(AT9<>0,BC9/AT9*100,0) -> 100
A10: =IF(COUNTRY_INFO!A10=0," ",COUNTRY_INFO!A10) -> RWANDA | B10: =IF(COUNTRY_INFO!B10=0," ",COUNTRY_INFO!B10) -> Northern | C10: =IF(COUNTRY_INFO!C10=0," ",COUNTRY_INFO!C10) -> Burera | D10: =COUNTRY_INFO!L10 -> Not required | G10: =MAX('MDA1'!M10,'MDA2'!M10,'MDA5'!M10) -> 0 | H10: =IF(AND(COUNTRY_INFO!H10>0,COUNTRY_INFO!H10<4),IF(D10>MAX('MDA1'!M10,'MDA2'!M10,'MDA5'!M10),MAX('MDA1'!M10,'MDA2'!M10,'MDA5'!M10),D10),0) -> 0 | I10: =IF(AND(COUNTRY_INFO!H10>0,COUNTRY_INFO!H10<4), IF(G10/D10*100<>0, IF(G10/D10*100>100,100,G10/D10*100), "-"),0) -> 0 | J10: =COUNTRY_INFO!M10 -> Not required | M10: =MAX('MDA1'!M10,MAX('MDA3'!I10,'MDA3'!L10)+MAX('MDA3'!J10,'MDA3'!M10)) -> 0 | N10: =IF(AND(COUNTRY_INFO!I10>0,COUNTRY_INFO!I10<4),IF(J10>MAX('MDA1'!M10,MAX('MDA3'!I10,'MDA3'!L10)+MAX('MDA3'!J10,'MDA3'!M10)),MAX('MDA1'!M10,MAX('MDA3'!I10,'MDA3'!L10)+MAX('MDA3'!J10,'MDA3'!M10)),J10),0) -> 0 | O10: =IF(AND(COUNTRY_INFO!I10>0,COUNTRY_INFO!I10<4), IF(M10/J10*100<>0, IF(M10/J10*100>100,100,M10/J10*100), "-"),0) -> 0 | P10: =COUNTRY_INFO!N10 -> 158529 | S10: =SUM(MAX('MDA2'!J10,'MDA5'!J10, 'T1'!L10, MAX(T3_R1!K10, T3_R2!K10)), MAX('MDA1'!K10, 'MDA2'!K10, 'MDA5'!K10,'T1'!M10, MAX(T3_R1!L10, T3_R2!L10)), MAX('MDA1'!L10, 'MDA2'!L10, 'MDA5'!L10,'T1'!N10, MAX(T3_R1!M10, T3_R2!M10))) -> 390907 | T10: =IF(AND(COUNTRY_INFO!J10>1,COUNTRY_INFO!J10<4),IF(COUNTRY_INFO!E10>MAX('MDA2'!J10,'MDA5'!J10,'T1'!L10,MAX(T3_R1!K10,T3_R2!K10)),MAX('MDA2'!J10,'MDA5'!J10,'T1'!L10,MAX(T3_R1!K10,T3_R2!K10)),COUNTRY_INFO!E10),0) -> 43276 | U10: =IF(AND(COUNTRY_INFO!J10>1,COUNTRY_INFO!J10<4), IF(T10/COUNTRY_INFO!E10*100<>0, IF(T10/COUNTRY_INFO!E10*100>100,100,T10/COUNTRY_INFO!E10*100), "-"),0) -> 94.49527262 | V10: =IF(AND(COUNTRY_INFO!J10>1,COUNTRY_INFO!J10<4),IF(COUNTRY_INFO!F10>MAX('MDA1'!K10,'MDA2'!K10,'MDA5'!K10,'T1'!M10,MAX(T3_R1!L10,T3_R2!L10)),MAX('MDA1'!K10,'MDA2'!K10,'MDA5'!K10,'T1'!M10,MAX(T3_R1!L10,T3_R2!L10)),COUNTRY_INFO!F10),0) -> 111616 | W10: =IF(AND(COUNTRY_INFO!J10>1,COUNTRY_INFO!J10<4), IF(V10/COUNTRY_INFO!F10*100<>0, IF(V10/COUNTRY_INFO!F10*100>100,100,V10/COUNTRY_INFO!F10*100), "-"),0) -> 99.01004151 | X10: =SUM(T10,V10) -> 154892 | Y10: =IF(AND(COUNTRY_INFO!J10>1,COUNTRY_INFO!J10<4), IF(S10/P10*100<>0, IF(X10/P10*100>100,100,X10/P10*100), "-"),0) -> 97.70578254 | Z10: =COUNTRY_INFO!O10 -> 33878.52 | AC10: =MAX('T1'!L10,'T2'!J10)+MAX('T1'!M10,'T2'!K10)+MAX('T1'!N10,'T2'!L10) -> 128746 | AD10: =IF(COUNTRY_INFO!K10=1,IF(COUNTRY_INFO!F10*0.33>MAX('T1'!M10,'T2'!K10),MAX('T1'!M10,'T2'!K10),COUNTRY_INFO!F10*0.33),IF(COUNTRY_INFO!K10=2,IF(COUNTRY_INFO!F10*0.5>MAX('T1'!M10,'T2'!K10),MAX('T1'!M10,'T2'!K10),COUNTRY_INFO!F10*0.5),IF(COUNTRY_INFO!K10=3,IF(COUNTRY_INFO!F10>MAX('T1'!M10,'T2'!K10),MAX('T1'!M10,'T2'!K10),COUNTRY_INFO!F10),0))) -> 40357 | AE10: =IF(AND(COUNTRY_INFO!K10>0,COUNTRY_INFO!K10<4),IF(Z10>0,IF(COUNTRY_INFO!K10=1, AD10/(COUNTRY_INFO!F10*0.33)*100, IF(COUNTRY_INFO!K10=2, AD10/(COUNTRY_INFO!F10*0.5)*100, IF(COUNTRY_INFO!K10=3, AD10/COUNTRY_INFO!F10*100))),"-"),0) -> 71.59812653 | AF10: =IF(COUNTRY_INFO!K10=2,IF(COUNTRY_INFO!G10*0.2>MAX('T1'!N10,'T2'!L10),MAX('T1'!N10,'T2'!L10),COUNTRY_INFO!G10*0.2),IF(COUNTRY_INFO!K10=3,IF(COUNTRY_INFO!G10>MAX('T1'!N10,'T2'!L10),MAX('T1'!N10,'T2'!L10),COUNTRY_INFO!G10),0)) -> 44310 | AG10: =IF(AND(COUNTRY_INFO!K10>0,COUNTRY_INFO!K10<4),IF(Z10>0,IF(COUNTRY_INFO!K10=1, 0, IF(COUNTRY_INFO!K10=2, AF10/(COUNTRY_INFO!G10*0.2)*100, IF(COUNTRY_INFO!K10=3, AF10/COUNTRY_INFO!G10*100))),"-"),0) -> 100 | AH10: =SUM(AD10,AF10) -> 84667 | AI10: =IF(AND(COUNTRY_INFO!K10>0,COUNTRY_INFO!K10<4), IF(AC10/Z10*100<>0, IF(AH10/Z10*100>100,100,AH10/Z10*100), "-"),0) -> 100 | AK10: =IF(AND(D10<>0, D10<>"Unknown",D10<>"Stopped",D10<>"Not required"),D10/COUNTRY_INFO!D10, 0) -> 0 | AL10: =IF(AND(J10<>0,J10<>"Unknown",J10<>"Stopped",J10<>"Not required"),J10/COUNTRY_INFO!D10, 0) -> 0 | AM10: =IF(AND(P10<>0,P10<>"Unknown",P10<>"Not required"),P10/(COUNTRY_INFO!E10+COUNTRY_INFO!F10), 0) -> 1 | AN10: =IF(AND(Z10<>0,Z10<>"Unknown",Z10<>"Not required"),IF(COUNTRY_INFO!K10=1,1,IF(COUNTRY_INFO!K10=2,0.5*COUNTRY_INFO!F10/(0.5*COUNTRY_INFO!F10+0.2*COUNTRY_INFO!G10),IF(COUNTRY_INFO!K10=3,COUNTRY_INFO!F10/(COUNTRY_INFO!F10+COUNTRY_INFO!G10)))),0) -> 0.5598752434 | AO10: =IF(AND(Z10<>0,Z10<>"Unknown",Z10<>"Not required"),IF(COUNTRY_INFO!K10=1,0,IF(COUNTRY_INFO!K10=2,0.2*COUNTRY_INFO!G10/(0.5*COUNTRY_INFO!F10+0.2*COUNTRY_INFO!G10),IF(COUNTRY_INFO!K10=3,COUNTRY_INFO!G10/(COUNTRY_INFO!F10+COUNTRY_INFO!G10)))),0) -> 0.4401247566 | AP10: =MAX(COUNTRY_INFO!D10*AK10*PROFILE!$G$7,COUNTRY_INFO!D10*AL10*PROFILE!$G$7) -> 0 | AQ10: =MAX(COUNTRY_INFO!D10*AK10*PROFILE!$G$8,COUNTRY_INFO!D10*AL10*PROFILE!$G$8,COUNTRY_INFO!D10*AM10*PROFILE!$G$8) -> 45797.31378 | AR10: =MAX(COUNTRY_INFO!D10*AK10*PROFILE!$G$9,COUNTRY_INFO!D10*AL10*PROFILE!$G$9,COUNTRY_INFO!D10*AM10*PROFILE!$G$9,IF(AND(DISTRICT!Z10<>"Unknown",Z10<>"Not required"),COUNTRY_INFO!O10*DISTRICT!AN10,0)) -> 112732.1614 | AS10: =MAX(COUNTRY_INFO!D10*AK10*PROFILE!$G$10,COUNTRY_INFO!D10*AL10*PROFILE!$G$10,IF(AND(DISTRICT!Z10<>"Unknown",Z10<>"Not required"),COUNTRY_INFO!O10*DISTRICT!AO10,0)) -> 14910.77537 | AT10: =SUM(AP10:AS10) -> 173440.2505 | AU10: =IF(COUNTIFS(AK10:AN10,">0")=0,0, IF(COUNTIFS(AK10:AN10,">0")<=IF(AND(OR(D10>=0,D10="Not required",D10="Unknown",D10="Stopped"),D10>0,H10>0),1,0)+IF(AND(OR(J10>=0,J10="Not required",J10="Unknown",J10="Stopped"),J10>0,N10>0),1,0)+IF(AND(OR(P10>=0,P10="Not required",P10="Unknown"),P10>0,X10>0),1,0)+IF(AND(OR(Z10>=0,Z10="Not required",Z10="Unknown"),Z10>0,AH10>0),1,0),"Y",0)) -> Y | AV10: =MAX('MDA2'!J10,'MDA5'!J10,'T1'!L10,'T2'!J10,T3_R1!K10,T3_R2!K10) -> 43276 | AW10: =MAX('MDA1'!K10,'MDA2'!K10,'MDA3'!I10,'MDA3'!L10,'MDA5'!K10,'T1'!M10,'T2'!K10,T3_R1!L10,T3_R2!L10) -> 111616 | AX10: =MAX('MDA1'!L10,'MDA2'!L10,'MDA3'!J10,'MDA3'!M10,'MDA5'!L10,'T1'!N10,'T2'!L10,T3_R1!M10,T3_R2!M10) -> 236015 | AY10: =SUM(AV10:AX10) -> 390907 | AZ10: =MAX('MDA2'!J10,'MDA5'!J10,T10) -> 43276 | BA10: =MAX('MDA1'!K10,'MDA2'!K10,'MDA3'!I10,'MDA3'!L10,'MDA5'!K10,V10,AD10) -> 111616 | BB10: =MAX('MDA1'!L10,'MDA2'!L10,'MDA3'!J10,'MDA3'!M10,'MDA5'!L10,AF10) -> 44310 | BC10: =IF(AT10<SUM(AZ10:BB10), AT10,SUM(AZ10:BB10)) -> 173440.2505 | BD10: =IF(AT10<>0,BC10/AT10*100,0) -> 100
A11: =IF(COUNTRY_INFO!A11=0," ",COUNTRY_INFO!A11) -> RWANDA | B11: =IF(COUNTRY_INFO!B11=0," ",COUNTRY_INFO!B11) -> Northern | C11: =IF(COUNTRY_INFO!C11=0," ",COUNTRY_INFO!C11) -> Gakenke | D11: =COUNTRY_INFO!L11 -> Not required | G11: =MAX('MDA1'!M11,'MDA2'!M11,'MDA5'!M11) -> 0 | H11: =IF(AND(COUNTRY_INFO!H11>0,COUNTRY_INFO!H11<4),IF(D11>MAX('MDA1'!M11,'MDA2'!M11,'MDA5'!M11),MAX('MDA1'!M11,'MDA2'!M11,'MDA5'!M11),D11),0) -> 0 | I11: =IF(AND(COUNTRY_INFO!H11>0,COUNTRY_INFO!H11<4), IF(G11/D11*100<>0, IF(G11/D11*100>100,100,G11/D11*100), "-"),0) -> 0 | J11: =COUNTRY_INFO!M11 -> Not required | M11: =MAX('MDA1'!M11,MAX('MDA3'!I11,'MDA3'!L11)+MAX('MDA3'!J11,'MDA3'!M11)) -> 0 | N11: =IF(AND(COUNTRY_INFO!I11>0,COUNTRY_INFO!I11<4),IF(J11>MAX('MDA1'!M11,MAX('MDA3'!I11,'MDA3'!L11)+MAX('MDA3'!J11,'MDA3'!M11)),MAX('MDA1'!M11,MAX('MDA3'!I11,'MDA3'!L11)+MAX('MDA3'!J11,'MDA3'!M11)),J11),0) -> 0 | O11: =IF(AND(COUNTRY_INFO!I11>0,COUNTRY_INFO!I11<4), IF(M11/J11*100<>0, IF(M11/J11*100>100,100,M11/J11*100), "-"),0) -> 0 | P11: =COUNTRY_INFO!N11 -> 157878 | S11: =SUM(MAX('MDA2'!J11,'MDA5'!J11, 'T1'!L11, MAX(T3_R1!K11, T3_R2!K11)), MAX('MDA1'!K11, 'MDA2'!K11, 'MDA5'!K11,'T1'!M11, MAX(T3_R1!L11, T3_R2!L11)), MAX('MDA1'!L11, 'MDA2'!L11, 'MDA5'!L11,'T1'!N11, MAX(T3_R1!M11, T3_R2!M11))) -> 365270 | T11: =IF(AND(COUNTRY_INFO!J11>1,COUNTRY_INFO!J11<4),IF(COUNTRY_INFO!E11>MAX('MDA2'!J11,'MDA5'!J11,'T1'!L11,MAX(T3_R1!K11,T3_R2!K11)),MAX('MDA2'!J11,'MDA5'!J11,'T1'!L11,MAX(T3_R1!K11,T3_R2!K11)),COUNTRY_INFO!E11),0) -> 39446 | U11: =IF(AND(COUNTRY_INFO!J11>1,COUNTRY_INFO!J11<4), IF(T11/COUNTRY_INFO!E11*100<>0, IF(T11/COUNTRY_INFO!E11*100>100,100,T11/COUNTRY_INFO!E11*100), "-"),0) -> 86.4873161 | V11: =IF(AND(COUNTRY_INFO!J11>1,COUNTRY_INFO!J11<4),IF(COUNTRY_INFO!F11>MAX('MDA1'!K11,'MDA2'!K11,'MDA5'!K11,'T1'!M11,MAX(T3_R1!L11,T3_R2!L11)),MAX('MDA1'!K11,'MDA2'!K11,'MDA5'!K11,'T1'!M11,MAX(T3_R1!L11,T3_R2!L11)),COUNTRY_INFO!F11),0) -> 96374 | W11: =IF(AND(COUNTRY_INFO!J11>1,COUNTRY_INFO!J11<4), IF(V11/COUNTRY_INFO!F11*100<>0, IF(V11/COUNTRY_INFO!F11*100>100,100,V11/COUNTRY_INFO!F11*100), "-"),0) -> 85.8420401 | X11: 135820 | Y11: =IF(AND(COUNTRY_INFO!J11>1,COUNTRY_INFO!J11<4), IF(S11/P11*100<>0, IF(X11/P11*100>100,100,X11/P11*100), "-"),0) -> 86.02845235 | Z11: =COUNTRY_INFO!O11 -> 90724.05 | AC11: =MAX('T1'!L11,'T2'!J11)+MAX('T1'!M11,'T2'!K11)+MAX('T1'!N11,'T2'!L11) -> 276955 | AD11: =IF(COUNTRY_INFO!K11=1,IF(COUNTRY_INFO!F11*0.33>MAX('T1'!M11,'T2'!K11),MAX('T1'!M11,'T2'!K11),COUNTRY_INFO!F11*0.33),IF(COUNTRY_INFO!K11=2,IF(COUNTRY_INFO!F11*0.5>MAX('T1'!M11,'T2'!K11),MAX('T1'!M11,'T2'!K11),COUNTRY_INFO!F11*0.5),IF(COUNTRY_INFO!K11=3,IF(COUNTRY_INFO!F11>MAX('T1'!M11,'T2'!K11),MAX('T1'!M11,'T2'!K11),COUNTRY_INFO!F11),0))) -> 56134.5 | AE11: =IF(AND(COUNTRY_INFO!K11>0,COUNTRY_INFO!K11<4),IF(Z11>0,IF(COUNTRY_INFO!K11=1, AD11/(COUNTRY_INFO!F11*0.33)*100, IF(COUNTRY_INFO!K11=2, AD11/(COUNTRY_INFO!F11*0.5)*100, IF(COUNTRY_INFO!K11=3, AD11/COUNTRY_INFO!F11*100))),"-"),0) -> 100 | AF11: =IF(COUNTRY_INFO!K11=2,IF(COUNTRY_INFO!G11*0.2>MAX('T1'!N11,'T2'!L11),MAX('T1'!N11,'T2'!L11),COUNTRY_INFO!G11*0.2),IF(COUNTRY_INFO!K11=3,IF(COUNTRY_INFO!G11>MAX('T1'!N11,'T2'!L11),MAX('T1'!N11,'T2'!L11),COUNTRY_INFO!G11),0)) -> 44128 | AG11: =IF(AND(COUNTRY_INFO!K11>0,COUNTRY_INFO!K11<4),IF(Z11>0,IF(COUNTRY_INFO!K11=1, 0, IF(COUNTRY_INFO!K11=2, AF11/(COUNTRY_INFO!G11*0.2)*100, IF(COUNTRY_INFO!K11=3, AF11/COUNTRY_INFO!G11*100))),"-"),0) -> 100 | AH11: 100262.5 | AI11: =IF(AND(COUNTRY_INFO!K11>0,COUNTRY_INFO!K11<4), IF(AC11/Z11*100<>0, IF(AH11/Z11*100>100,100,AH11/Z11*100), "-"),0) -> 100 | AK11: =IF(AND(D11<>0, D11<>"Unknown",D11<>"Stopped",D11<>"Not required"),D11/COUNTRY_INFO!D11, 0) -> 0 | AL11: =IF(AND(J11<>0,J11<>"Unknown",J11<>"Stopped",J11<>"Not required"),J11/COUNTRY_INFO!D11, 0) -> 0 | AM11: =IF(AND(P11<>0,P11<>"Unknown",P11<>"Not required"),P11/(COUNTRY_INFO!E11+COUNTRY_INFO!F11), 0) -> 1 | AN11: =IF(AND(Z11<>0,Z11<>"Unknown",Z11<>"Not required"),IF(COUNTRY_INFO!K11=1,1,IF(COUNTRY_INFO!K11=2,0.5*COUNTRY_INFO!F11/(0.5*COUNTRY_INFO!F11+0.2*COUNTRY_INFO!G11),IF(COUNTRY_INFO!K11=3,COUNTRY_INFO!F11/(COUNTRY_INFO!F11+COUNTRY_INFO!G11)))),0) -> 0.5598753273 | AO11: =IF(AND(Z11<>0,Z11<>"Unknown",Z11<>"Not required"),IF(COUNTRY_INFO!K11=1,0,IF(COUNTRY_INFO!K11=2,0.2*COUNTRY_INFO!G11/(0.5*COUNTRY_INFO!F11+0.2*COUNTRY_INFO!G11),IF(COUNTRY_INFO!K11=3,COUNTRY_INFO!G11/(COUNTRY_INFO!F11+COUNTRY_INFO!G11)))),0) -> 0.4401246727 | AP11: =MAX(COUNTRY_INFO!D11*AK11*PROFILE!$G$7,COUNTRY_INFO!D11*AL11*PROFILE!$G$7) -> 0 | AQ11: =MAX(COUNTRY_INFO!D11*AK11*PROFILE!$G$8,COUNTRY_INFO!D11*AL11*PROFILE!$G$8,COUNTRY_INFO!D11*AM11*PROFILE!$G$8) -> 45609.29524 | AR11: =MAX(COUNTRY_INFO!D11*AK11*PROFILE!$G$9,COUNTRY_INFO!D11*AL11*PROFILE!$G$9,COUNTRY_INFO!D11*AM11*PROFILE!$G$9,IF(AND(DISTRICT!Z11<>"Unknown",Z11<>"Not required"),COUNTRY_INFO!O11*DISTRICT!AN11,0)) -> 112269.3453 | AS11: =MAX(COUNTRY_INFO!D11*AK11*PROFILE!$G$10,COUNTRY_INFO!D11*AL11*PROFILE!$G$10,IF(AND(DISTRICT!Z11<>"Unknown",Z11<>"Not required"),COUNTRY_INFO!O11*DISTRICT!AO11,0)) -> 39929.89282 | AT11: 197808.5333 | AU11: Y | AV11: =MAX('MDA2'!J11,'MDA5'!J11,'T1'!L11,'T2'!J11,T3_R1!K11,T3_R2!K11) -> 39446 | AW11: =MAX('MDA1'!K11,'MDA2'!K11,'MDA3'!I11,'MDA3'!L11,'MDA5'!K11,'T1'!M11,'T2'!K11,T3_R1!L11,T3_R2!L11) -> 96374 | AX11: =MAX('MDA1'!L11,'MDA2'!L11,'MDA3'!J11,'MDA3'!M11,'MDA5'!L11,'T1'!N11,'T2'!L11,T3_R1!M11,T3_R2!M11) -> 229450 | AY11: 365270 | AZ11: =MAX('MDA2'!J11,'MDA5'!J11,T11) -> 39446 | BA11: =MAX('MDA1'!K11,'MDA2'!K11,'MDA3'!I11,'MDA3'!L11,'MDA5'!K11,V11,AD11) -> 96374 | BB11: =MAX('MDA1'!L11,'MDA2'!L11,'MDA3'!J11,'MDA3'!M11,'MDA5'!L11,AF11) -> 44128 | BC11: 179948 | BD11: 90.97079736
A12: =IF(COUNTRY_INFO!A12=0," ",COUNTRY_INFO!A12) -> RWANDA | B12: =IF(COUNTRY_INFO!B12=0," ",COUNTRY_INFO!B12) -> Kigali | C12: =IF(COUNTRY_INFO!C12=0," ",COUNTRY_INFO!C12) -> Gasabo | D12: =COUNTRY_INFO!L12 -> Not required | G12: =MAX('MDA1'!M12,'MDA2'!M12,'MDA5'!M12) -> 0 | H12: =IF(AND(COUNTRY_INFO!H12>0,COUNTRY_INFO!H12<4),IF(D12>MAX('MDA1'!M12,'MDA2'!M12,'MDA5'!M12),MAX('MDA1'!M12,'MDA2'!M12,'MDA5'!M12),D12),0) -> 0 | I12: =IF(AND(COUNTRY_INFO!H12>0,COUNTRY_INFO!H12<4), IF(G12/D12*100<>0, IF(G12/D12*100>100,100,G12/D12*100), "-"),0) -> 0 | J12: =COUNTRY_INFO!M12 -> Not required | M12: =MAX('MDA1'!M12,MAX('MDA3'!I12,'MDA3'!L12)+MAX('MDA3'!J12,'MDA3'!M12)) -> 0 | N12: =IF(AND(COUNTRY_INFO!I12>0,COUNTRY_INFO!I12<4),IF(J12>MAX('MDA1'!M12,MAX('MDA3'!I12,'MDA3'!L12)+MAX('MDA3'!J12,'MDA3'!M12)),MAX('MDA1'!M12,MAX('MDA3'!I12,'MDA3'!L12)+MAX('MDA3'!J12,'MDA3'!M12)),J12),0) -> 0 | O12: =IF(AND(COUNTRY_INFO!I12>0,COUNTRY_INFO!I12<4), IF(M12/J12*100<>0, IF(M12/J12*100>100,100,M12/J12*100), "-"),0) -> 0 | P12: =COUNTRY_INFO!N12 -> 302541 | S12: =SUM(MAX('MDA2'!J12,'MDA5'!J12, 'T1'!L12, MAX(T3_R1!K12, T3_R2!K12)), MAX('MDA1'!K12, 'MDA2'!K12, 'MDA5'!K12,'T1'!M12, MAX(T3_R1!L12, T3_R2!L12)), MAX('MDA1'!L12, 'MDA2'!L12, 'MDA5'!L12,'T1'!N12, MAX(T3_R1!M12, T3_R2!M12))) -> 334221 | T12: =IF(AND(COUNTRY_INFO!J12>1,COUNTRY_INFO!J12<4),IF(COUNTRY_INFO!E12>MAX('MDA2'!J12,'MDA5'!J12,'T1'!L12,MAX(T3_R1!K12,T3_R2!K12)),MAX('MDA2'!J12,'MDA5'!J12,'T1'!L12,MAX(T3_R1!K12,T3_R2!K12)),COUNTRY_INFO!E12),0) -> 87401 | U12: =IF(AND(COUNTRY_INFO!J12>1,COUNTRY_INFO!J12<4), IF(T12/COUNTRY_INFO!E12*100<>0, IF(T12/COUNTRY_INFO!E12*100>100,100,T12/COUNTRY_INFO!E12*100), "-"),0) -> 100 | V12: =IF(AND(COUNTRY_INFO!J12>1,COUNTRY_INFO!J12<4),IF(COUNTRY_INFO!F12>MAX('MDA1'!K12,'MDA2'!K12,'MDA5'!K12,'T1'!M12,MAX(T3_R1!L12,T3_R2!L12)),MAX('MDA1'!K12,'MDA2'!K12,'MDA5'!K12,'T1'!M12,MAX(T3_R1!L12,T3_R2!L12)),COUNTRY_INFO!F12),0) -> 215140 | W12: =IF(AND(COUNTRY_INFO!J12>1,COUNTRY_INFO!J12<4), IF(V12/COUNTRY_INFO!F12*100<>0, IF(V12/COUNTRY_INFO!F12*100>100,100,V12/COUNTRY_INFO!F12*100), "-"),0) -> 100 | X12: 302541 | Y12: =IF(AND(COUNTRY_INFO!J12>1,COUNTRY_INFO!J12<4), IF(S12/P12*100<>0, IF(X12/P12*100>100,100,X12/P12*100), "-"),0) -> 100 | Z12: =COUNTRY_INFO!O12 -> 34013.952 | AC12: =MAX('T1'!L12,'T2'!J12)+MAX('T1'!M12,'T2'!K12)+MAX('T1'!N12,'T2'!L12) -> 96190 | AD12: =IF(COUNTRY_INFO!K12=1,IF(COUNTRY_INFO!F12*0.33>MAX('T1'!M12,'T2'!K12),MAX('T1'!M12,'T2'!K12),COUNTRY_INFO!F12*0.33),IF(COUNTRY_INFO!K12=2,IF(COUNTRY_INFO!F12*0.5>MAX('T1'!M12,'T2'!K12),MAX('T1'!M12,'T2'!K12),COUNTRY_INFO!F12*0.5),IF(COUNTRY_INFO!K12=3,IF(COUNTRY_INFO!F12>MAX('T1'!M12,'T2'!K12),MAX('T1'!M12,'T2'!K12),COUNTRY_INFO!F12),0))) -> 57499 | AE12: =IF(AND(COUNTRY_INFO!K12>0,COUNTRY_INFO!K12<4),IF(Z12>0,IF(COUNTRY_INFO!K12=1, AD12/(COUNTRY_INFO!F12*0.33)*100, IF(COUNTRY_INFO!K12=2, AD12/(COUNTRY_INFO!F12*0.5)*100, IF(COUNTRY_INFO!K12=3, AD12/COUNTRY_INFO!F12*100))),"-"),0) -> 80.98884166 | AF12: =IF(COUNTRY_INFO!K12=2,IF(COUNTRY_INFO!G12*0.2>MAX('T1'!N12,'T2'!L12),MAX('T1'!N12,'T2'!L12),COUNTRY_INFO!G12*0.2),IF(COUNTRY_INFO!K12=3,IF(COUNTRY_INFO!G12>MAX('T1'!N12,'T2'!L12),MAX('T1'!N12,'T2'!L12),COUNTRY_INFO!G12),0)) -> 0 | AG12: =IF(AND(COUNTRY_INFO!K12>0,COUNTRY_INFO!K12<4),IF(Z12>0,IF(COUNTRY_INFO!K12=1, 0, IF(COUNTRY_INFO!K12=2, AF12/(COUNTRY_INFO!G12*0.2)*100, IF(COUNTRY_INFO!K12=3, AF12/COUNTRY_INFO!G12*100))),"-"),0) -> 0 | AH12: 57499 | AI12: =IF(AND(COUNTRY_INFO!K12>0,COUNTRY_INFO!K12<4), IF(AC12/Z12*100<>0, IF(AH12/Z12*100>100,100,AH12/Z12*100), "-"),0) -> 100 | AK12: =IF(AND(D12<>0, D12<>"Unknown",D12<>"Stopped",D12<>"Not required"),D12/COUNTRY_INFO!D12, 0) -> 0 | AL12: =IF(AND(J12<>0,J12<>"Unknown",J12<>"Stopped",J12<>"Not required"),J12/COUNTRY_INFO!D12, 0) -> 0 | AM12: =IF(AND(P12<>0,P12<>"Unknown",P12<>"Not required"),P12/(COUNTRY_INFO!E12+COUNTRY_INFO!F12), 0) -> 1 | AN12: =IF(AND(Z12<>0,Z12<>"Unknown",Z12<>"Not required"),IF(COUNTRY_INFO!K12=1,1,IF(COUNTRY_INFO!K12=2,0.5*COUNTRY_INFO!F12/(0.5*COUNTRY_INFO!F12+0.2*COUNTRY_INFO!G12),IF(COUNTRY_INFO!K12=3,COUNTRY_INFO!F12/(COUNTRY_INFO!F12+COUNTRY_INFO!G12)))),0) -> 1 | AO12: =IF(AND(Z12<>0,Z12<>"Unknown",Z12<>"Not required"),IF(COUNTRY_INFO!K12=1,0,IF(COUNTRY_INFO!K12=2,0.2*COUNTRY_INFO!G12/(0.5*COUNTRY_INFO!F12+0.2*COUNTRY_INFO!G12),IF(COUNTRY_INFO!K12=3,COUNTRY_INFO!G12/(COUNTRY_INFO!F12+COUNTRY_INFO!G12)))),0) -> 0 | AP12: =MAX(COUNTRY_INFO!D12*AK12*PROFILE!$G$7,COUNTRY_INFO!D12*AL12*PROFILE!$G$7) -> 0 | AQ12: =MAX(COUNTRY_INFO!D12*AK12*PROFILE!$G$8,COUNTRY_INFO!D12*AL12*PROFILE!$G$8,COUNTRY_INFO!D12*AM12*PROFILE!$G$8) -> 87400.53892 | AR12: =MAX(COUNTRY_INFO!D12*AK12*PROFILE!$G$9,COUNTRY_INFO!D12*AL12*PROFILE!$G$9,COUNTRY_INFO!D12*AM12*PROFILE!$G$9,IF(AND(DISTRICT!Z12<>"Unknown",Z12<>"Not required"),COUNTRY_INFO!O12*DISTRICT!AN12,0)) -> 215140.3837 | AS12: =MAX(COUNTRY_INFO!D12*AK12*PROFILE!$G$10,COUNTRY_INFO!D12*AL12*PROFILE!$G$10,IF(AND(DISTRICT!Z12<>"Unknown",Z12<>"Not required"),COUNTRY_INFO!O12*DISTRICT!AO12,0)) -> 0 | AT12: 302540.9226 | AU12: Y | AV12: =MAX('MDA2'!J12,'MDA5'!J12,'T1'!L12,'T2'!J12,T3_R1!K12,T3_R2!K12) -> 91178 | AW12: =MAX('MDA1'!K12,'MDA2'!K12,'MDA3'!I12,'MDA3'!L12,'MDA5'!K12,'T1'!M12,'T2'!K12,T3_R1!L12,T3_R2!L12) -> 215848 | AX12: =MAX('MDA1'!L12,'MDA2'!L12,'MDA3'!J12,'MDA3'!M12,'MDA5'!L12,'T1'!N12,'T2'!L12,T3_R1!M12,T3_R2!M12) -> 38691 | AY12: 345717 | AZ12: =MAX('MDA2'!J12,'MDA5'!J12,T12) -> 87401 | BA12: =MAX('MDA1'!K12,'MDA2'!K12,'MDA3'!I12,'MDA3'!L12,'MDA5'!K12,V12,AD12) -> 215140 | BB12: =MAX('MDA1'!L12,'MDA2'!L12,'MDA3'!J12,'MDA3'!M12,'MDA5'!L12,AF12) -> 0 | BC12: 302540.9226 | BD12: 100
A13: =IF(COUNTRY_INFO!A13=0," ",COUNTRY_INFO!A13) -> RWANDA | B13: =IF(COUNTRY_INFO!B13=0," ",COUNTRY_INFO!B13) -> Eastern | C13: =IF(COUNTRY_INFO!C13=0," ",COUNTRY_INFO!C13) -> Gatsibo | D13: =COUNTRY_INFO!L13 -> Not required | G13: =MAX('MDA1'!M13,'MDA2'!M13,'MDA5'!M13) -> 0 | H13: =IF(AND(COUNTRY_INFO!H13>0,COUNTRY_INFO!H13<4),IF(D13>MAX('MDA1'!M13,'MDA2'!M13,'MDA5'!M13),MAX('MDA1'!M13,'MDA2'!M13,'MDA5'!M13),D13),0) -> 0 | I13: =IF(AND(COUNTRY_INFO!H13>0,COUNTRY_INFO!H13<4), IF(G13/D13*100<>0, IF(G13/D13*100>100,100,G13/D13*100), "-"),0) -> 0 | J13: =COUNTRY_INFO!M13 -> Not required | M13: =MAX('MDA1'!M13,MAX('MDA3'!I13,'MDA3'!L13)+MAX('MDA3'!J13,'MDA3'!M13)) -> 0 | N13: =IF(AND(COUNTRY_INFO!I13>0,COUNTRY_INFO!I13<4),IF(J13>MAX('MDA1'!M13,MAX('MDA3'!I13,'MDA3'!L13)+MAX('MDA3'!J13,'MDA3'!M13)),MAX('MDA1'!M13,MAX('MDA3'!I13,'MDA3'!L13)+MAX('MDA3'!J13,'MDA3'!M13)),J13),0) -> 0 | O13: =IF(AND(COUNTRY_INFO!I13>0,COUNTRY_INFO!I13<4), IF(M13/J13*100<>0, IF(M13/J13*100>100,100,M13/J13*100), "-"),0) -> 0 | P13: =COUNTRY_INFO!N13 -> 239421 | S13: =SUM(MAX('MDA2'!J13,'MDA5'!J13, 'T1'!L13, MAX(T3_R1!K13, T3_R2!K13)), MAX('MDA1'!K13, 'MDA2'!K13, 'MDA5'!K13,'T1'!M13, MAX(T3_R1!L13, T3_R2!L13)), MAX('MDA1'!L13, 'MDA2'!L13, 'MDA5'!L13,'T1'!N13, MAX(T3_R1!M13, T3_R2!M13))) -> 528107 | T13: =IF(AND(COUNTRY_INFO!J13>1,COUNTRY_INFO!J13<4),IF(COUNTRY_INFO!E13>MAX('MDA2'!J13,'MDA5'!J13,'T1'!L13,MAX(T3_R1!K13,T3_R2!K13)),MAX('MDA2'!J13,'MDA5'!J13,'T1'!L13,MAX(T3_R1!K13,T3_R2!K13)),COUNTRY_INFO!E13),0) -> 61874 | U13: =IF(AND(COUNTRY_INFO!J13>1,COUNTRY_INFO!J13<4), IF(T13/COUNTRY_INFO!E13*100<>0, IF(T13/COUNTRY_INFO!E13*100>100,100,T13/COUNTRY_INFO!E13*100), "-"),0) -> 89.45724778 | V13: =IF(AND(COUNTRY_INFO!J13>1,COUNTRY_INFO!J13<4),IF(COUNTRY_INFO!F13>MAX('MDA1'!K13,'MDA2'!K13,'MDA5'!K13,'T1'!M13,MAX(T3_R1!L13,T3_R2!L13)),MAX('MDA1'!K13,'MDA2'!K13,'MDA5'!K13,'T1'!M13,MAX(T3_R1!L13,T3_R2!L13)),COUNTRY_INFO!F13),0) -> 144360 | W13: =IF(AND(COUNTRY_INFO!J13>1,COUNTRY_INFO!J13<4), IF(V13/COUNTRY_INFO!F13*100<>0, IF(V13/COUNTRY_INFO!F13*100>100,100,V13/COUNTRY_INFO!F13*100), "-"),0) -> 84.79046137 | X13: 206234 | Y13: =IF(AND(COUNTRY_INFO!J13>1,COUNTRY_INFO!J13<4), IF(S13/P13*100<>0, IF(X13/P13*100>100,100,X13/P13*100), "-"),0) -> 86.13864281 | Z13: =COUNTRY_INFO!O13 -> 120272.85 | AC13: =MAX('T1'!L13,'T2'!J13)+MAX('T1'!M13,'T2'!K13)+MAX('T1'!N13,'T2'!L13) -> 343632 | AD13: =IF(COUNTRY_INFO!K13=1,IF(COUNTRY_INFO!F13*0.33>MAX('T1'!M13,'T2'!K13),MAX('T1'!M13,'T2'!K13),COUNTRY_INFO!F13*0.33),IF(COUNTRY_INFO!K13=2,IF(COUNTRY_INFO!F13*0.5>MAX('T1'!M13,'T2'!K13),MAX('T1'!M13,'T2'!K13),COUNTRY_INFO!F13*0.5),IF(COUNTRY_INFO!K13=3,IF(COUNTRY_INFO!F13>MAX('T1'!M13,'T2'!K13),MAX('T1'!M13,'T2'!K13),COUNTRY_INFO!F13),0))) -> 85127.5 | AE13: =IF(AND(COUNTRY_INFO!K13>0,COUNTRY_INFO!K13<4),IF(Z13>0,IF(COUNTRY_INFO!K13=1, AD13/(COUNTRY_INFO!F13*0.33)*100, IF(COUNTRY_INFO!K13=2, AD13/(COUNTRY_INFO!F13*0.5)*100, IF(COUNTRY_INFO!K13=3, AD13/COUNTRY_INFO!F13*100))),"-"),0) -> 100 | AF13: =IF(COUNTRY_INFO!K13=2,IF(COUNTRY_INFO!G13*0.2>MAX('T1'!N13,'T2'!L13),MAX('T1'!N13,'T2'!L13),COUNTRY_INFO!G13*0.2),IF(COUNTRY_INFO!K13=3,IF(COUNTRY_INFO!G13>MAX('T1'!N13,'T2'!L13),MAX('T1'!N13,'T2'!L13),COUNTRY_INFO!G13),0)) -> 66919.6 | AG13: =IF(AND(COUNTRY_INFO!K13>0,COUNTRY_INFO!K13<4),IF(Z13>0,IF(COUNTRY_INFO!K13=1, 0, IF(COUNTRY_INFO!K13=2, AF13/(COUNTRY_INFO!G13*0.2)*100, IF(COUNTRY_INFO!K13=3, AF13/COUNTRY_INFO!G13*100))),"-"),0) -> 100 | AH13: 152047.1 | AI13: =IF(AND(COUNTRY_INFO!K13>0,COUNTRY_INFO!K13<4), IF(AC13/Z13*100<>0, IF(AH13/Z13*100>100,100,AH13/Z13*100), "-"),0) -> 100 | AK13: =IF(AND(D13<>0, D13<>"Unknown",D13<>"Stopped",D13<>"Not required"),D13/COUNTRY_INFO!D13, 0) -> 0 | AL13: =IF(AND(J13<>0,J13<>"Unknown",J13<>"Stopped",J13<>"Not required"),J13/COUNTRY_INFO!D13, 0) -> 0 | AM13: =IF(AND(P13<>0,P13<>"Unknown",P13<>"Not required"),P13/(COUNTRY_INFO!E13+COUNTRY_INFO!F13), 0) -> 1 | AN13: =IF(AND(Z13<>0,Z13<>"Unknown",Z13<>"Not required"),IF(COUNTRY_INFO!K13=1,1,IF(COUNTRY_INFO!K13=2,0.5*COUNTRY_INFO!F13/(0.5*COUNTRY_INFO!F13+0.2*COUNTRY_INFO!G13),IF(COUNTRY_INFO!K13=3,COUNTRY_INFO!F13/(COUNTRY_INFO!F13+COUNTRY_INFO!G13)))),0) -> 0.5598758543 | AO13: =IF(AND(Z13<>0,Z13<>"Unknown",Z13<>"Not required"),IF(COUNTRY_INFO!K13=1,0,IF(COUNTRY_INFO!K13=2,0.2*COUNTRY_INFO!G13/(0.5*COUNTRY_INFO!F13+0.2*COUNTRY_INFO!G13),IF(COUNTRY_INFO!K13=3,COUNTRY_INFO!G13/(COUNTRY_INFO!F13+COUNTRY_INFO!G13)))),0) -> 0.4401241457 | AP13: =MAX(COUNTRY_INFO!D13*AK13*PROFILE!$G$7,COUNTRY_INFO!D13*AL13*PROFILE!$G$7) -> 0 | AQ13: =MAX(COUNTRY_INFO!D13*AK13*PROFILE!$G$8,COUNTRY_INFO!D13*AL13*PROFILE!$G$8,COUNTRY_INFO!D13*AM13*PROFILE!$G$8) -> 69165.783 | AR13: =MAX(COUNTRY_INFO!D13*AK13*PROFILE!$G$9,COUNTRY_INFO!D13*AL13*PROFILE!$G$9,COUNTRY_INFO!D13*AM13*PROFILE!$G$9,IF(AND(DISTRICT!Z13<>"Unknown",Z13<>"Not required"),COUNTRY_INFO!O13*DISTRICT!AN13,0)) -> 170254.7064 | AS13: =MAX(COUNTRY_INFO!D13*AK13*PROFILE!$G$10,COUNTRY_INFO!D13*AL13*PROFILE!$G$10,IF(AND(DISTRICT!Z13<>"Unknown",Z13<>"Not required"),COUNTRY_INFO!O13*DISTRICT!AO13,0)) -> 52934.98536 | AT13: 292355.4748 | AU13: Y | AV13: =MAX('MDA2'!J13,'MDA5'!J13,'T1'!L13,'T2'!J13,T3_R1!K13,T3_R2!K13) -> 61874 | AW13: =MAX('MDA1'!K13,'MDA2'!K13,'MDA3'!I13,'MDA3'!L13,'MDA5'!K13,'T1'!M13,'T2'!K13,T3_R1!L13,T3_R2!L13) -> 144360 | AX13: =MAX('MDA1'!L13,'MDA2'!L13,'MDA3'!J13,'MDA3'!M13,'MDA5'!L13,'T1'!N13,'T2'!L13,T3_R1!M13,T3_R2!M13) -> 321873 | AY13: 528107 | AZ13: =MAX('MDA2'!J13,'MDA5'!J13,T13) -> 61874 | BA13: =MAX('MDA1'!K13,'MDA2'!K13,'MDA3'!I13,'MDA3'!L13,'MDA5'!K13,V13,AD13) -> 144360 | BB13: =MAX('MDA1'!L13,'MDA2'!L13,'MDA3'!J13,'MDA3'!M13,'MDA5'!L13,AF13) -> 66919.6 | BC13: 273153.6 | BD13: 93.43201122
A14: =IF(COUNTRY_INFO!A14=0," ",COUNTRY_INFO!A14) -> RWANDA | B14: =IF(COUNTRY_INFO!B14=0," ",COUNTRY_INFO!B14) -> Northern | C14: =IF(COUNTRY_INFO!C14=0," ",COUNTRY_INFO!C14) -> Gicumbi | D14: =COUNTRY_INFO!L14 -> Not required | G14: =MAX('MDA1'!M14,'MDA2'!M14,'MDA5'!M14) -> 0 | H14: =IF(AND(COUNTRY_INFO!H14>0,COUNTRY_INFO!H14<4),IF(D14>MAX('MDA1'!M14,'MDA2'!M14,'MDA5'!M14),MAX('MDA1'!M14,'MDA2'!M14,'MDA5'!M14),D14),0) -> 0 | I14: =IF(AND(COUNTRY_INFO!H14>0,COUNTRY_INFO!H14<4), IF(G14/D14*100<>0, IF(G14/D14*100>100,100,G14/D14*100), "-"),0) -> 0 | J14: =COUNTRY_INFO!M14 -> Not required | M14: =MAX('MDA1'!M14,MAX('MDA3'!I14,'MDA3'!L14)+MAX('MDA3'!J14,'MDA3'!M14)) -> 0 | N14: =IF(AND(COUNTRY_INFO!I14>0,COUNTRY_INFO!I14<4),IF(J14>MAX('MDA1'!M14,MAX('MDA3'!I14,'MDA3'!L14)+MAX('MDA3'!J14,'MDA3'!M14)),MAX('MDA1'!M14,MAX('MDA3'!I14,'MDA3'!L14)+MAX('MDA3'!J14,'MDA3'!M14)),J14),0) -> 0 | O14: =IF(AND(COUNTRY_INFO!I14>0,COUNTRY_INFO!I14<4), IF(M14/J14*100<>0, IF(M14/J14*100>100,100,M14/J14*100), "-"),0) -> 0 | P14: =COUNTRY_INFO!N14 -> 192922 | S14: =SUM(MAX('MDA2'!J14,'MDA5'!J14, 'T1'!L14, MAX(T3_R1!K14, T3_R2!K14)), MAX('MDA1'!K14, 'MDA2'!K14, 'MDA5'!K14,'T1'!M14, MAX(T3_R1!L14, T3_R2!L14)), MAX('MDA1'!L14, 'MDA2'!L14, 'MDA5'!L14,'T1'!N14, MAX(T3_R1!M14, T3_R2!M14))) -> 415669 | T14: =IF(AND(COUNTRY_INFO!J14>1,COUNTRY_INFO!J14<4),IF(COUNTRY_INFO!E14>MAX('MDA2'!J14,'MDA5'!J14,'T1'!L14,MAX(T3_R1!K14,T3_R2!K14)),MAX('MDA2'!J14,'MDA5'!J14,'T1'!L14,MAX(T3_R1!K14,T3_R2!K14)),COUNTRY_INFO!E14),0) -> 51699 | U14: =IF(AND(COUNTRY_INFO!J14>1,COUNTRY_INFO!J14<4), IF(T14/COUNTRY_INFO!E14*100<>0, IF(T14/COUNTRY_INFO!E14*100>100,100,T14/COUNTRY_INFO!E14*100), "-"),0) -> 92.76191843 | V14: =IF(AND(COUNTRY_INFO!J14>1,COUNTRY_INFO!J14<4),IF(COUNTRY_INFO!F14>MAX('MDA1'!K14,'MDA2'!K14,'MDA5'!K14,'T1'!M14,MAX(T3_R1!L14,T3_R2!L14)),MAX('MDA1'!K14,'MDA2'!K14,'MDA5'!K14,'T1'!M14,MAX(T3_R1!L14,T3_R2!L14)),COUNTRY_INFO!F14),0) -> 107540 | W14: =IF(AND(COUNTRY_INFO!J14>1,COUNTRY_INFO!J14<4), IF(V14/COUNTRY_INFO!F14*100<>0, IF(V14/COUNTRY_INFO!F14*100>100,100,V14/COUNTRY_INFO!F14*100), "-"),0) -> 78.38820897 | X14: 159239 | Y14: =IF(AND(COUNTRY_INFO!J14>1,COUNTRY_INFO!J14<4), IF(S14/P14*100<>0, IF(X14/P14*100>100,100,X14/P14*100), "-"),0) -> 82.54061227 | Z14: =COUNTRY_INFO!O14 -> 56711.124 | AC14: =MAX('T1'!L14,'T2'!J14)+MAX('T1'!M14,'T2'!K14)+MAX('T1'!N14,'T2'!L14) -> 172677 | AD14: =IF(COUNTRY_INFO!K14=1,IF(COUNTRY_INFO!F14*0.33>MAX('T1'!M14,'T2'!K14),MAX('T1'!M14,'T2'!K14),COUNTRY_INFO!F14*0.33),IF(COUNTRY_INFO!K14=2,IF(COUNTRY_INFO!F14*0.5>MAX('T1'!M14,'T2'!K14),MAX('T1'!M14,'T2'!K14),COUNTRY_INFO!F14*0.5),IF(COUNTRY_INFO!K14=3,IF(COUNTRY_INFO!F14>MAX('T1'!M14,'T2'!K14),MAX('T1'!M14,'T2'!K14),COUNTRY_INFO!F14),0))) -> 49609 | AE14: =IF(AND(COUNTRY_INFO!K14>0,COUNTRY_INFO!K14<4),IF(Z14>0,IF(COUNTRY_INFO!K14=1, AD14/(COUNTRY_INFO!F14*0.33)*100, IF(COUNTRY_INFO!K14=2, AD14/(COUNTRY_INFO!F14*0.5)*100, IF(COUNTRY_INFO!K14=3, AD14/COUNTRY_INFO!F14*100))),"-"),0) -> 72.32212495 | AF14: =IF(COUNTRY_INFO!K14=2,IF(COUNTRY_INFO!G14*0.2>MAX('T1'!N14,'T2'!L14),MAX('T1'!N14,'T2'!L14),COUNTRY_INFO!G14*0.2),IF(COUNTRY_INFO!K14=3,IF(COUNTRY_INFO!G14>MAX('T1'!N14,'T2'!L14),MAX('T1'!N14,'T2'!L14),COUNTRY_INFO!G14),0)) -> 53922.8 | AG14: =IF(AND(COUNTRY_INFO!K14>0,COUNTRY_INFO!K14<4),IF(Z14>0,IF(COUNTRY_INFO!K14=1, 0, IF(COUNTRY_INFO!K14=2, AF14/(COUNTRY_INFO!G14*0.2)*100, IF(COUNTRY_INFO!K14=3, AF14/COUNTRY_INFO!G14*100))),"-"),0) -> 100 | AH14: 103531.8 | AI14: =IF(AND(COUNTRY_INFO!K14>0,COUNTRY_INFO!K14<4), IF(AC14/Z14*100<>0, IF(AH14/Z14*100>100,100,AH14/Z14*100), "-"),0) -> 100 | AK14: =IF(AND(D14<>0, D14<>"Unknown",D14<>"Stopped",D14<>"Not required"),D14/COUNTRY_INFO!D14, 0) -> 0 | AL14: =IF(AND(J14<>0,J14<>"Unknown",J14<>"Stopped",J14<>"Not required"),J14/COUNTRY_INFO!D14, 0) -> 0 | AM14: =IF(AND(P14<>0,P14<>"Unknown",P14<>"Not required"),P14/(COUNTRY_INFO!E14+COUNTRY_INFO!F14), 0) -> 1 | AN14: =IF(AND(Z14<>0,Z14<>"Unknown",Z14<>"Not required"),IF(COUNTRY_INFO!K14=1,1,IF(COUNTRY_INFO!K14=2,0.5*COUNTRY_INFO!F14/(0.5*COUNTRY_INFO!F14+0.2*COUNTRY_INFO!G14),IF(COUNTRY_INFO!K14=3,COUNTRY_INFO!F14/(COUNTRY_INFO!F14+COUNTRY_INFO!G14)))),0) -> 0.5598760338 | AO14: =IF(AND(Z14<>0,Z14<>"Unknown",Z14<>"Not required"),IF(COUNTRY_INFO!K14=1,0,IF(COUNTRY_INFO!K14=2,0.2*COUNTRY_INFO!G14/(0.5*COUNTRY_INFO!F14+0.2*COUNTRY_INFO!G14),IF(COUNTRY_INFO!K14=3,COUNTRY_INFO!G14/(COUNTRY_INFO!F14+COUNTRY_INFO!G14)))),0) -> 0.4401239662 | AP14: =MAX(COUNTRY_INFO!D14*AK14*PROFILE!$G$7,COUNTRY_INFO!D14*AL14*PROFILE!$G$7) -> 0 | AQ14: =MAX(COUNTRY_INFO!D14*AK14*PROFILE!$G$8,COUNTRY_INFO!D14*AL14*PROFILE!$G$8,COUNTRY_INFO!D14*AM14*PROFILE!$G$8) -> 55732.81221 | AR14: =MAX(COUNTRY_INFO!D14*AK14*PROFILE!$G$9,COUNTRY_INFO!D14*AL14*PROFILE!$G$9,COUNTRY_INFO!D14*AM14*PROFILE!$G$9,IF(AND(DISTRICT!Z14<>"Unknown",Z14<>"Not required"),COUNTRY_INFO!O14*DISTRICT!AN14,0)) -> 137188.8406 | AS14: =MAX(COUNTRY_INFO!D14*AK14*PROFILE!$G$10,COUNTRY_INFO!D14*AL14*PROFILE!$G$10,IF(AND(DISTRICT!Z14<>"Unknown",Z14<>"Not required"),COUNTRY_INFO!O14*DISTRICT!AO14,0)) -> 24959.92482 | AT14: 217881.5777 | AU14: Y | AV14: =MAX('MDA2'!J14,'MDA5'!J14,'T1'!L14,'T2'!J14,T3_R1!K14,T3_R2!K14) -> 51699 | AW14: =MAX('MDA1'!K14,'MDA2'!K14,'MDA3'!I14,'MDA3'!L14,'MDA5'!K14,'T1'!M14,'T2'!K14,T3_R1!L14,T3_R2!L14) -> 107540 | AX14: =MAX('MDA1'!L14,'MDA2'!L14,'MDA3'!J14,'MDA3'!M14,'MDA5'!L14,'T1'!N14,'T2'!L14,T3_R1!M14,T3_R2!M14) -> 256430 | AY14: 415669 | AZ14: =MAX('MDA2'!J14,'MDA5'!J14,T14) -> 51699 | BA14: =MAX('MDA1'!K14,'MDA2'!K14,'MDA3'!I14,'MDA3'!L14,'MDA5'!K14,V14,AD14) -> 107540 | BB14: =MAX('MDA1'!L14,'MDA2'!L14,'MDA3'!J14,'MDA3'!M14,'MDA5'!L14,AF14) -> 53922.8 | BC14: 213161.8 | BD14: 97.83378764
A15: =IF(COUNTRY_INFO!A15=0," ",COUNTRY_INFO!A15) -> RWANDA | B15: =IF(COUNTRY_INFO!B15=0," ",COUNTRY_INFO!B15) -> Southern | C15: =IF(COUNTRY_INFO!C15=0," ",COUNTRY_INFO!C15) -> Gisagara | D15: =COUNTRY_INFO!L15 -> Not required | G15: =MAX('MDA1'!M15,'MDA2'!M15,'MDA5'!M15) -> 0 | H15: =IF(AND(COUNTRY_INFO!H15>0,COUNTRY_INFO!H15<4),IF(D15>MAX('MDA1'!M15,'MDA2'!M15,'MDA5'!M15),MAX('MDA1'!M15,'MDA2'!M15,'MDA5'!M15),D15),0) -> 0 | I15: =IF(AND(COUNTRY_INFO!H15>0,COUNTRY_INFO!H15<4), IF(G15/D15*100<>0, IF(G15/D15*100>100,100,G15/D15*100), "-"),0) -> 0 | J15: =COUNTRY_INFO!M15 -> Not required | M15: =MAX('MDA1'!M15,MAX('MDA3'!I15,'MDA3'!L15)+MAX('MDA3'!J15,'MDA3'!M15)) -> 0 | N15: =IF(AND(COUNTRY_INFO!I15>0,COUNTRY_INFO!I15<4),IF(J15>MAX('MDA1'!M15,MAX('MDA3'!I15,'MDA3'!L15)+MAX('MDA3'!J15,'MDA3'!M15)),MAX('MDA1'!M15,MAX('MDA3'!I15,'MDA3'!L15)+MAX('MDA3'!J15,'MDA3'!M15)),J15),0) -> 0 | O15: =IF(AND(COUNTRY_INFO!I15>0,COUNTRY_INFO!I15<4), IF(M15/J15*100<>0, IF(M15/J15*100>100,100,M15/J15*100), "-"),0) -> 0 | P15: =COUNTRY_INFO!N15 -> 161661 | S15: =SUM(MAX('MDA2'!J15,'MDA5'!J15, 'T1'!L15, MAX(T3_R1!K15, T3_R2!K15)), MAX('MDA1'!K15, 'MDA2'!K15, 'MDA5'!K15,'T1'!M15, MAX(T3_R1!L15, T3_R2!L15)), MAX('MDA1'!L15, 'MDA2'!L15, 'MDA5'!L15,'T1'!N15, MAX(T3_R1!M15, T3_R2!M15))) -> 392070 | T15: =IF(AND(COUNTRY_INFO!J15>1,COUNTRY_INFO!J15<4),IF(COUNTRY_INFO!E15>MAX('MDA2'!J15,'MDA5'!J15,'T1'!L15,MAX(T3_R1!K15,T3_R2!K15)),MAX('MDA2'!J15,'MDA5'!J15,'T1'!L15,MAX(T3_R1!K15,T3_R2!K15)),COUNTRY_INFO!E15),0) -> 44265 | U15: =IF(AND(COUNTRY_INFO!J15>1,COUNTRY_INFO!J15<4), IF(T15/COUNTRY_INFO!E15*100<>0, IF(T15/COUNTRY_INFO!E15*100>100,100,T15/COUNTRY_INFO!E15*100), "-"),0) -> 94.78180806 | V15: =IF(AND(COUNTRY_INFO!J15>1,COUNTRY_INFO!J15<4),IF(COUNTRY_INFO!F15>MAX('MDA1'!K15,'MDA2'!K15,'MDA5'!K15,'T1'!M15,MAX(T3_R1!L15,T3_R2!L15)),MAX('MDA1'!K15,'MDA2'!K15,'MDA5'!K15,'T1'!M15,MAX(T3_R1!L15,T3_R2!L15)),COUNTRY_INFO!F15),0) -> 110485 | W15: =IF(AND(COUNTRY_INFO!J15>1,COUNTRY_INFO!J15<4), IF(V15/COUNTRY_INFO!F15*100<>0, IF(V15/COUNTRY_INFO!F15*100>100,100,V15/COUNTRY_INFO!F15*100), "-"),0) -> 96.1081777 | X15: 154750 | Y15: =IF(AND(COUNTRY_INFO!J15>1,COUNTRY_INFO!J15<4), IF(S15/P15*100<>0, IF(X15/P15*100>100,100,X15/P15*100), "-"),0) -> 95.72500479 | Z15: =COUNTRY_INFO!O15 -> 55937.52 | AC15: =MAX('T1'!L15,'T2'!J15)+MAX('T1'!M15,'T2'!K15)+MAX('T1'!N15,'T2'!L15) -> 222650 | AD15: =IF(COUNTRY_INFO!K15=1,IF(COUNTRY_INFO!F15*0.33>MAX('T1'!M15,'T2'!K15),MAX('T1'!M15,'T2'!K15),COUNTRY_INFO!F15*0.33),IF(COUNTRY_INFO!K15=2,IF(COUNTRY_INFO!F15*0.5>MAX('T1'!M15,'T2'!K15),MAX('T1'!M15,'T2'!K15),COUNTRY_INFO!F15*0.5),IF(COUNTRY_INFO!K15=3,IF(COUNTRY_INFO!F15>MAX('T1'!M15,'T2'!K15),MAX('T1'!M15,'T2'!K15),COUNTRY_INFO!F15),0))) -> 57479.5 | AE15: =IF(AND(COUNTRY_INFO!K15>0,COUNTRY_INFO!K15<4),IF(Z15>0,IF(COUNTRY_INFO!K15=1, AD15/(COUNTRY_INFO!F15*0.33)*100, IF(COUNTRY_INFO!K15=2, AD15/(COUNTRY_INFO!F15*0.5)*100, IF(COUNTRY_INFO!K15=3, AD15/COUNTRY_INFO!F15*100))),"-"),0) -> 100 | AF15: =IF(COUNTRY_INFO!K15=2,IF(COUNTRY_INFO!G15*0.2>MAX('T1'!N15,'T2'!L15),MAX('T1'!N15,'T2'!L15),COUNTRY_INFO!G15*0.2),IF(COUNTRY_INFO!K15=3,IF(COUNTRY_INFO!G15>MAX('T1'!N15,'T2'!L15),MAX('T1'!N15,'T2'!L15),COUNTRY_INFO!G15),0)) -> 45185.2 | AG15: =IF(AND(COUNTRY_INFO!K15>0,COUNTRY_INFO!K15<4),IF(Z15>0,IF(COUNTRY_INFO!K15=1, 0, IF(COUNTRY_INFO!K15=2, AF15/(COUNTRY_INFO!G15*0.2)*100, IF(COUNTRY_INFO!K15=3, AF15/COUNTRY_INFO!G15*100))),"-"),0) -> 100 | AH15: 102664.7 | AI15: =IF(AND(COUNTRY_INFO!K15>0,COUNTRY_INFO!K15<4), IF(AC15/Z15*100<>0, IF(AH15/Z15*100>100,100,AH15/Z15*100), "-"),0) -> 100 | AK15: =IF(AND(D15<>0, D15<>"Unknown",D15<>"Stopped",D15<>"Not required"),D15/COUNTRY_INFO!D15, 0) -> 0 | AL15: =IF(AND(J15<>0,J15<>"Unknown",J15<>"Stopped",J15<>"Not required"),J15/COUNTRY_INFO!D15, 0) -> 0 | AM15: =IF(AND(P15<>0,P15<>"Unknown",P15<>"Not required"),P15/(COUNTRY_INFO!E15+COUNTRY_INFO!F15), 0) -> 1 | AN15: =IF(AND(Z15<>0,Z15<>"Unknown",Z15<>"Not required"),IF(COUNTRY_INFO!K15=1,1,IF(COUNTRY_INFO!K15=2,0.5*COUNTRY_INFO!F15/(0.5*COUNTRY_INFO!F15+0.2*COUNTRY_INFO!G15),IF(COUNTRY_INFO!K15=3,COUNTRY_INFO!F15/(COUNTRY_INFO!F15+COUNTRY_INFO!G15)))),0) -> 0.5598759846 | AO15: =IF(AND(Z15<>0,Z15<>"Unknown",Z15<>"Not required"),IF(COUNTRY_INFO!K15=1,0,IF(COUNTRY_INFO!K15=2,0.2*COUNTRY_INFO!G15/(0.5*COUNTRY_INFO!F15+0.2*COUNTRY_INFO!G15),IF(COUNTRY_INFO!K15=3,COUNTRY_INFO!G15/(COUNTRY_INFO!F15+COUNTRY_INFO!G15)))),0) -> 0.4401240154 | AP15: =MAX(COUNTRY_INFO!D15*AK15*PROFILE!$G$7,COUNTRY_INFO!D15*AL15*PROFILE!$G$7) -> 0 | AQ15: =MAX(COUNTRY_INFO!D15*AK15*PROFILE!$G$8,COUNTRY_INFO!D15*AL15*PROFILE!$G$8,COUNTRY_INFO!D15*AM15*PROFILE!$G$8) -> 46701.83854 | AR15: =MAX(COUNTRY_INFO!D15*AK15*PROFILE!$G$9,COUNTRY_INFO!D15*AL15*PROFILE!$G$9,COUNTRY_INFO!D15*AM15*PROFILE!$G$9,IF(AND(DISTRICT!Z15<>"Unknown",Z15<>"Not required"),COUNTRY_INFO!O15*DISTRICT!AN15,0)) -> 114958.6901 | AS15: =MAX(COUNTRY_INFO!D15*AK15*PROFILE!$G$10,COUNTRY_INFO!D15*AL15*PROFILE!$G$10,IF(AND(DISTRICT!Z15<>"Unknown",Z15<>"Not required"),COUNTRY_INFO!O15*DISTRICT!AO15,0)) -> 24619.44591 | AT15: 186279.9745 | AU15: Y | AV15: =MAX('MDA2'!J15,'MDA5'!J15,'T1'!L15,'T2'!J15,T3_R1!K15,T3_R2!K15) -> 44265 | AW15: =MAX('MDA1'!K15,'MDA2'!K15,'MDA3'!I15,'MDA3'!L15,'MDA5'!K15,'T1'!M15,'T2'!K15,T3_R1!L15,T3_R2!L15) -> 110485 | AX15: =MAX('MDA1'!L15,'MDA2'!L15,'MDA3'!J15,'MDA3'!M15,'MDA5'!L15,'T1'!N15,'T2'!L15,T3_R1!M15,T3_R2!M15) -> 237320 | AY15: 392070 | AZ15: =MAX('MDA2'!J15,'MDA5'!J15,T15) -> 44265 | BA15: =MAX('MDA1'!K15,'MDA2'!K15,'MDA3'!I15,'MDA3'!L15,'MDA5'!K15,V15,AD15) -> 110485 | BB15: =MAX('MDA1'!L15,'MDA2'!L15,'MDA3'!J15,'MDA3'!M15,'MDA5'!L15,AF15) -> 45185.2 | BC15: 186279.9745 | BD15: 100
A16: =IF(COUNTRY_INFO!A16=0," ",COUNTRY_INFO!A16) -> RWANDA | B16: =IF(COUNTRY_INFO!B16=0," ",COUNTRY_INFO!B16) -> Southern | C16: =IF(COUNTRY_INFO!C16=0," ",COUNTRY_INFO!C16) -> Huye | D16: =COUNTRY_INFO!L16 -> Not required | G16: =MAX('MDA1'!M16,'MDA2'!M16,'MDA5'!M16) -> 0 | H16: =IF(AND(COUNTRY_INFO!H16>0,COUNTRY_INFO!H16<4),IF(D16>MAX('MDA1'!M16,'MDA2'!M16,'MDA5'!M16),MAX('MDA1'!M16,'MDA2'!M16,'MDA5'!M16),D16),0) -> 0 | I16: =IF(AND(COUNTRY_INFO!H16>0,COUNTRY_INFO!H16<4), IF(G16/D16*100<>0, IF(G16/D16*100>100,100,G16/D16*100), "-"),0) -> 0 | J16: =COUNTRY_INFO!M16 -> Not required | M16: =MAX('MDA1'!M16,MAX('MDA3'!I16,'MDA3'!L16)+MAX('MDA3'!J16,'MDA3'!M16)) -> 0 | N16: =IF(AND(COUNTRY_INFO!I16>0,COUNTRY_INFO!I16<4),IF(J16>MAX('MDA1'!M16,MAX('MDA3'!I16,'MDA3'!L16)+MAX('MDA3'!J16,'MDA3'!M16)),MAX('MDA1'!M16,MAX('MDA3'!I16,'MDA3'!L16)+MAX('MDA3'!J16,'MDA3'!M16)),J16),0) -> 0 | O16: =IF(AND(COUNTRY_INFO!I16>0,COUNTRY_INFO!I16<4), IF(M16/J16*100<>0, IF(M16/J16*100>100,100,M16/J16*100), "-"),0) -> 0 | P16: =COUNTRY_INFO!N16 -> 165009 | S16: =SUM(MAX('MDA2'!J16,'MDA5'!J16, 'T1'!L16, MAX(T3_R1!K16, T3_R2!K16)), MAX('MDA1'!K16, 'MDA2'!K16, 'MDA5'!K16,'T1'!M16, MAX(T3_R1!L16, T3_R2!L16)), MAX('MDA1'!L16, 'MDA2'!L16, 'MDA5'!L16,'T1'!N16, MAX(T3_R1!M16, T3_R2!M16))) -> 373886 | T16: =IF(AND(COUNTRY_INFO!J16>1,COUNTRY_INFO!J16<4),IF(COUNTRY_INFO!E16>MAX('MDA2'!J16,'MDA5'!J16,'T1'!L16,MAX(T3_R1!K16,T3_R2!K16)),MAX('MDA2'!J16,'MDA5'!J16,'T1'!L16,MAX(T3_R1!K16,T3_R2!K16)),COUNTRY_INFO!E16),0) -> 42495 | U16: =IF(AND(COUNTRY_INFO!J16>1,COUNTRY_INFO!J16<4), IF(T16/COUNTRY_INFO!E16*100<>0, IF(T16/COUNTRY_INFO!E16*100>100,100,T16/COUNTRY_INFO!E16*100), "-"),0) -> 89.14598586 | V16: =IF(AND(COUNTRY_INFO!J16>1,COUNTRY_INFO!J16<4),IF(COUNTRY_INFO!F16>MAX('MDA1'!K16,'MDA2'!K16,'MDA5'!K16,'T1'!M16,MAX(T3_R1!L16,T3_R2!L16)),MAX('MDA1'!K16,'MDA2'!K16,'MDA5'!K16,'T1'!M16,MAX(T3_R1!L16,T3_R2!L16)),COUNTRY_INFO!F16),0) -> 98481 | W16: =IF(AND(COUNTRY_INFO!J16>1,COUNTRY_INFO!J16<4), IF(V16/COUNTRY_INFO!F16*100<>0, IF(V16/COUNTRY_INFO!F16*100>100,100,V16/COUNTRY_INFO!F16*100), "-"),0) -> 83.92790182 | X16: 140976 | Y16: =IF(AND(COUNTRY_INFO!J16>1,COUNTRY_INFO!J16<4), IF(S16/P16*100<>0, IF(X16/P16*100>100,100,X16/P16*100), "-"),0) -> 85.43533989 | Z16: =COUNTRY_INFO!O16 -> 59650.614 | AC16: =MAX('T1'!L16,'T2'!J16)+MAX('T1'!M16,'T2'!K16)+MAX('T1'!N16,'T2'!L16) -> 160528 | AD16: =IF(COUNTRY_INFO!K16=1,IF(COUNTRY_INFO!F16*0.33>MAX('T1'!M16,'T2'!K16),MAX('T1'!M16,'T2'!K16),COUNTRY_INFO!F16*0.33),IF(COUNTRY_INFO!K16=2,IF(COUNTRY_INFO!F16*0.5>MAX('T1'!M16,'T2'!K16),MAX('T1'!M16,'T2'!K16),COUNTRY_INFO!F16*0.5),IF(COUNTRY_INFO!K16=3,IF(COUNTRY_INFO!F16>MAX('T1'!M16,'T2'!K16),MAX('T1'!M16,'T2'!K16),COUNTRY_INFO!F16),0))) -> 38722.2 | AE16: =IF(AND(COUNTRY_INFO!K16>0,COUNTRY_INFO!K16<4),IF(Z16>0,IF(COUNTRY_INFO!K16=1, AD16/(COUNTRY_INFO!F16*0.33)*100, IF(COUNTRY_INFO!K16=2, AD16/(COUNTRY_INFO!F16*0.5)*100, IF(COUNTRY_INFO!K16=3, AD16/COUNTRY_INFO!F16*100))),"-"),0) -> 100 | AF16: =IF(COUNTRY_INFO!K16=2,IF(COUNTRY_INFO!G16*0.2>MAX('T1'!N16,'T2'!L16),MAX('T1'!N16,'T2'!L16),COUNTRY_INFO!G16*0.2),IF(COUNTRY_INFO!K16=3,IF(COUNTRY_INFO!G16>MAX('T1'!N16,'T2'!L16),MAX('T1'!N16,'T2'!L16),COUNTRY_INFO!G16),0)) -> 0 | AG16: =IF(AND(COUNTRY_INFO!K16>0,COUNTRY_INFO!K16<4),IF(Z16>0,IF(COUNTRY_INFO!K16=1, 0, IF(COUNTRY_INFO!K16=2, AF16/(COUNTRY_INFO!G16*0.2)*100, IF(COUNTRY_INFO!K16=3, AF16/COUNTRY_INFO!G16*100))),"-"),0) -> 0 | AH16: 38722.2 | AI16: =IF(AND(COUNTRY_INFO!K16>0,COUNTRY_INFO!K16<4), IF(AC16/Z16*100<>0, IF(AH16/Z16*100>100,100,AH16/Z16*100), "-"),0) -> 64.91500657 | AK16: =IF(AND(D16<>0, D16<>"Unknown",D16<>"Stopped",D16<>"Not required"),D16/COUNTRY_INFO!D16, 0) -> 0 | AL16: =IF(AND(J16<>0,J16<>"Unknown",J16<>"Stopped",J16<>"Not required"),J16/COUNTRY_INFO!D16, 0) -> 0 | AM16: =IF(AND(P16<>0,P16<>"Unknown",P16<>"Not required"),P16/(COUNTRY_INFO!E16+COUNTRY_INFO!F16), 0) -> 1 | AN16: =IF(AND(Z16<>0,Z16<>"Unknown",Z16<>"Not required"),IF(COUNTRY_INFO!K16=1,1,IF(COUNTRY_INFO!K16=2,0.5*COUNTRY_INFO!F16/(0.5*COUNTRY_INFO!F16+0.2*COUNTRY_INFO!G16),IF(COUNTRY_INFO!K16=3,COUNTRY_INFO!F16/(COUNTRY_INFO!F16+COUNTRY_INFO!G16)))),0) -> 1 | AO16: =IF(AND(Z16<>0,Z16<>"Unknown",Z16<>"Not required"),IF(COUNTRY_INFO!K16=1,0,IF(COUNTRY_INFO!K16=2,0.2*COUNTRY_INFO!G16/(0.5*COUNTRY_INFO!F16+0.2*COUNTRY_INFO!G16),IF(COUNTRY_INFO!K16=3,COUNTRY_INFO!G16/(COUNTRY_INFO!F16+COUNTRY_INFO!G16)))),0) -> 0 | AP16: =MAX(COUNTRY_INFO!D16*AK16*PROFILE!$G$7,COUNTRY_INFO!D16*AL16*PROFILE!$G$7) -> 0 | AQ16: =MAX(COUNTRY_INFO!D16*AK16*PROFILE!$G$8,COUNTRY_INFO!D16*AL16*PROFILE!$G$8,COUNTRY_INFO!D16*AM16*PROFILE!$G$8) -> 47669.19215 | AR16: =MAX(COUNTRY_INFO!D16*AK16*PROFILE!$G$9,COUNTRY_INFO!D16*AL16*PROFILE!$G$9,COUNTRY_INFO!D16*AM16*PROFILE!$G$9,IF(AND(DISTRICT!Z16<>"Unknown",Z16<>"Not required"),COUNTRY_INFO!O16*DISTRICT!AN16,0)) -> 117339.8748 | AS16: =MAX(COUNTRY_INFO!D16*AK16*PROFILE!$G$10,COUNTRY_INFO!D16*AL16*PROFILE!$G$10,IF(AND(DISTRICT!Z16<>"Unknown",Z16<>"Not required"),COUNTRY_INFO!O16*DISTRICT!AO16,0)) -> 0 | AT16: 165009.0669 | AU16: Y | AV16: =MAX('MDA2'!J16,'MDA5'!J16,'T1'!L16,'T2'!J16,T3_R1!K16,T3_R2!K16) -> 42495 | AW16: =MAX('MDA1'!K16,'MDA2'!K16,'MDA3'!I16,'MDA3'!L16,'MDA5'!K16,'T1'!M16,'T2'!K16,T3_R1!L16,T3_R2!L16) -> 98481 | AX16: =MAX('MDA1'!L16,'MDA2'!L16,'MDA3'!J16,'MDA3'!M16,'MDA5'!L16,'T1'!N16,'T2'!L16,T3_R1!M16,T3_R2!M16) -> 232910 | AY16: 373886 | AZ16: =MAX('MDA2'!J16,'MDA5'!J16,T16) -> 42495 | BA16: =MAX('MDA1'!K16,'MDA2'!K16,'MDA3'!I16,'MDA3'!L16,'MDA5'!K16,V16,AD16) -> 98481 | BB16: =MAX('MDA1'!L16,'MDA2'!L16,'MDA3'!J16,'MDA3'!M16,'MDA5'!L16,AF16) -> 0 | BC16: 140976 | BD16: 85.43530525
A17: =IF(COUNTRY_INFO!A17=0," ",COUNTRY_INFO!A17) -> RWANDA | B17: =IF(COUNTRY_INFO!B17=0," ",COUNTRY_INFO!B17) -> Southern | C17: =IF(COUNTRY_INFO!C17=0," ",COUNTRY_INFO!C17) -> Kamonyi | D17: =COUNTRY_INFO!L17 -> Not required | G17: =MAX('MDA1'!M17,'MDA2'!M17,'MDA5'!M17) -> 0 | H17: =IF(AND(COUNTRY_INFO!H17>0,COUNTRY_INFO!H17<4),IF(D17>MAX('MDA1'!M17,'MDA2'!M17,'MDA5'!M17),MAX('MDA1'!M17,'MDA2'!M17,'MDA5'!M17),D17),0) -> 0 | I17: =IF(AND(COUNTRY_INFO!H17>0,COUNTRY_INFO!H17<4), IF(G17/D17*100<>0, IF(G17/D17*100>100,100,G17/D17*100), "-"),0) -> 0 | J17: =COUNTRY_INFO!M17 -> Not required | M17: =MAX('MDA1'!M17,MAX('MDA3'!I17,'MDA3'!L17)+MAX('MDA3'!J17,'MDA3'!M17)) -> 0 | N17: =IF(AND(COUNTRY_INFO!I17>0,COUNTRY_INFO!I17<4),IF(J17>MAX('MDA1'!M17,MAX('MDA3'!I17,'MDA3'!L17)+MAX('MDA3'!J17,'MDA3'!M17)),MAX('MDA1'!M17,MAX('MDA3'!I17,'MDA3'!L17)+MAX('MDA3'!J17,'MDA3'!M17)),J17),0) -> 0 | O17: =IF(AND(COUNTRY_INFO!I17>0,COUNTRY_INFO!I17<4), IF(M17/J17*100<>0, IF(M17/J17*100>100,100,M17/J17*100), "-"),0) -> 0 | P17: =COUNTRY_INFO!N17 -> 0 | S17: =SUM(MAX('MDA2'!J17,'MDA5'!J17, 'T1'!L17, MAX(T3_R1!K17, T3_R2!K17)), MAX('MDA1'!K17, 'MDA2'!K17, 'MDA5'!K17,'T1'!M17, MAX(T3_R1!L17, T3_R2!L17)), MAX('MDA1'!L17, 'MDA2'!L17, 'MDA5'!L17,'T1'!N17, MAX(T3_R1!M17, T3_R2!M17))) -> 315606 | T17: =IF(AND(COUNTRY_INFO!J17>1,COUNTRY_INFO!J17<4),IF(COUNTRY_INFO!E17>MAX('MDA2'!J17,'MDA5'!J17,'T1'!L17,MAX(T3_R1!K17,T3_R2!K17)),MAX('MDA2'!J17,'MDA5'!J17,'T1'!L17,MAX(T3_R1!K17,T3_R2!K17)),COUNTRY_INFO!E17),0) -> 0 | U17: =IF(AND(COUNTRY_INFO!J17>1,COUNTRY_INFO!J17<4), IF(T17/COUNTRY_INFO!E17*100<>0, IF(T17/COUNTRY_INFO!E17*100>100,100,T17/COUNTRY_INFO!E17*100), "-"),0) -> 0 | V17: =IF(AND(COUNTRY_INFO!J17>1,COUNTRY_INFO!J17<4),IF(COUNTRY_INFO!F17>MAX('MDA1'!K17,'MDA2'!K17,'MDA5'!K17,'T1'!M17,MAX(T3_R1!L17,T3_R2!L17)),MAX('MDA1'!K17,'MDA2'!K17,'MDA5'!K17,'T1'!M17,MAX(T3_R1!L17,T3_R2!L17)),COUNTRY_INFO!F17),0) -> 0 | W17: =IF(AND(COUNTRY_INFO!J17>1,COUNTRY_INFO!J17<4), IF(V17/COUNTRY_INFO!F17*100<>0, IF(V17/COUNTRY_INFO!F17*100>100,100,V17/COUNTRY_INFO!F17*100), "-"),0) -> 0 | X17: 0 | Y17: =IF(AND(COUNTRY_INFO!J17>1,COUNTRY_INFO!J17<4), IF(S17/P17*100<>0, IF(X17/P17*100>100,100,X17/P17*100), "-"),0) -> 0 | Z17: =COUNTRY_INFO!O17 -> 57492.936 | AC17: =MAX('T1'!L17,'T2'!J17)+MAX('T1'!M17,'T2'!K17)+MAX('T1'!N17,'T2'!L17) -> 211169 | AD17: =IF(COUNTRY_INFO!K17=1,IF(COUNTRY_INFO!F17*0.33>MAX('T1'!M17,'T2'!K17),MAX('T1'!M17,'T2'!K17),COUNTRY_INFO!F17*0.33),IF(COUNTRY_INFO!K17=2,IF(COUNTRY_INFO!F17*0.5>MAX('T1'!M17,'T2'!K17),MAX('T1'!M17,'T2'!K17),COUNTRY_INFO!F17*0.5),IF(COUNTRY_INFO!K17=3,IF(COUNTRY_INFO!F17>MAX('T1'!M17,'T2'!K17),MAX('T1'!M17,'T2'!K17),COUNTRY_INFO!F17),0))) -> 62709 | AE17: =IF(AND(COUNTRY_INFO!K17>0,COUNTRY_INFO!K17<4),IF(Z17>0,IF(COUNTRY_INFO!K17=1, AD17/(COUNTRY_INFO!F17*0.33)*100, IF(COUNTRY_INFO!K17=2, AD17/(COUNTRY_INFO!F17*0.5)*100, IF(COUNTRY_INFO!K17=3, AD17/COUNTRY_INFO!F17*100))),"-"),0) -> 100 | AF17: =IF(COUNTRY_INFO!K17=2,IF(COUNTRY_INFO!G17*0.2>MAX('T1'!N17,'T2'!L17),MAX('T1'!N17,'T2'!L17),COUNTRY_INFO!G17*0.2),IF(COUNTRY_INFO!K17=3,IF(COUNTRY_INFO!G17>MAX('T1'!N17,'T2'!L17),MAX('T1'!N17,'T2'!L17),COUNTRY_INFO!G17),0)) -> 49296.4 | AG17: =IF(AND(COUNTRY_INFO!K17>0,COUNTRY_INFO!K17<4),IF(Z17>0,IF(COUNTRY_INFO!K17=1, 0, IF(COUNTRY_INFO!K17=2, AF17/(COUNTRY_INFO!G17*0.2)*100, IF(COUNTRY_INFO!K17=3, AF17/COUNTRY_INFO!G17*100))),"-"),0) -> 100 | AH17: 112005.4 | AI17: =IF(AND(COUNTRY_INFO!K17>0,COUNTRY_INFO!K17<4), IF(AC17/Z17*100<>0, IF(AH17/Z17*100>100,100,AH17/Z17*100), "-"),0) -> 100 | AK17: =IF(AND(D17<>0, D17<>"Unknown",D17<>"Stopped",D17<>"Not required"),D17/COUNTRY_INFO!D17, 0) -> 0 | AL17: =IF(AND(J17<>0,J17<>"Unknown",J17<>"Stopped",J17<>"Not required"),J17/COUNTRY_INFO!D17, 0) -> 0 | AM17: =IF(AND(P17<>0,P17<>"Unknown",P17<>"Not required"),P17/(COUNTRY_INFO!E17+COUNTRY_INFO!F17), 0) -> 0 | AN17: =IF(AND(Z17<>0,Z17<>"Unknown",Z17<>"Not required"),IF(COUNTRY_INFO!K17=1,1,IF(COUNTRY_INFO!K17=2,0.5*COUNTRY_INFO!F17/(0.5*COUNTRY_INFO!F17+0.2*COUNTRY_INFO!G17),IF(COUNTRY_INFO!K17=3,COUNTRY_INFO!F17/(COUNTRY_INFO!F17+COUNTRY_INFO!G17)))),0) -> 0.5598747918 | AO17: =IF(AND(Z17<>0,Z17<>"Unknown",Z17<>"Not required"),IF(COUNTRY_INFO!K17=1,0,IF(COUNTRY_INFO!K17=2,0.2*COUNTRY_INFO!G17/(0.5*COUNTRY_INFO!F17+0.2*COUNTRY_INFO!G17),IF(COUNTRY_INFO!K17=3,COUNTRY_INFO!G17/(COUNTRY_INFO!F17+COUNTRY_INFO!G17)))),0) -> 0.4401252082 | AP17: =MAX(COUNTRY_INFO!D17*AK17*PROFILE!$G$7,COUNTRY_INFO!D17*AL17*PROFILE!$G$7) -> 0 | AQ17: =MAX(COUNTRY_INFO!D17*AK17*PROFILE!$G$8,COUNTRY_INFO!D17*AL17*PROFILE!$G$8,COUNTRY_INFO!D17*AM17*PROFILE!$G$8) -> 0 | AR17: =MAX(COUNTRY_INFO!D17*AK17*PROFILE!$G$9,COUNTRY_INFO!D17*AL17*PROFILE!$G$9,COUNTRY_INFO!D17*AM17*PROFILE!$G$9,IF(AND(DISTRICT!Z17<>"Unknown",Z17<>"Not required"),COUNTRY_INFO!O17*DISTRICT!AN17,0)) -> 32188.84557 | AS17: =MAX(COUNTRY_INFO!D17*AK17*PROFILE!$G$10,COUNTRY_INFO!D17*AL17*PROFILE!$G$10,IF(AND(DISTRICT!Z17<>"Unknown",Z17<>"Not required"),COUNTRY_INFO!O17*DISTRICT!AO17,0)) -> 25304.09043 | AT17: 57492.936 | AU17: Y | AV17: =MAX('MDA2'!J17,'MDA5'!J17,'T1'!L17,'T2'!J17,T3_R1!K17,T3_R2!K17) -> 41728 | AW17: =MAX('MDA1'!K17,'MDA2'!K17,'MDA3'!I17,'MDA3'!L17,'MDA5'!K17,'T1'!M17,'T2'!K17,T3_R1!L17,T3_R2!L17) -> 117436 | AX17: =MAX('MDA1'!L17,'MDA2'!L17,'MDA3'!J17,'MDA3'!M17,'MDA5'!L17,'T1'!N17,'T2'!L17,T3_R1!M17,T3_R2!M17) -> 156442 | AY17: 315606 | AZ17: =MAX('MDA2'!J17,'MDA5'!J17,T17) -> 0 | BA17: =MAX('MDA1'!K17,'MDA2'!K17,'MDA3'!I17,'MDA3'!L17,'MDA5'!K17,V17,AD17) -> 62709 | BB17: =MAX('MDA1'!L17,'MDA2'!L17,'MDA3'!J17,'MDA3'!M17,'MDA5'!L17,AF17) -> 49296.4 | BC17: 57492.936 | BD17: 100
A18: =IF(COUNTRY_INFO!A18=0," ",COUNTRY_INFO!A18) -> RWANDA | B18: =IF(COUNTRY_INFO!B18=0," ",COUNTRY_INFO!B18) -> Western | C18: =IF(COUNTRY_INFO!C18=0," ",COUNTRY_INFO!C18) -> Karongi | D18: =COUNTRY_INFO!L18 -> Not required | G18: =MAX('MDA1'!M18,'MDA2'!M18,'MDA5'!M18) -> 0 | H18: =IF(AND(COUNTRY_INFO!H18>0,COUNTRY_INFO!H18<4),IF(D18>MAX('MDA1'!M18,'MDA2'!M18,'MDA5'!M18),MAX('MDA1'!M18,'MDA2'!M18,'MDA5'!M18),D18),0) -> 0 | I18: =IF(AND(COUNTRY_INFO!H18>0,COUNTRY_INFO!H18<4), IF(G18/D18*100<>0, IF(G18/D18*100>100,100,G18/D18*100), "-"),0) -> 0 | J18: =COUNTRY_INFO!M18 -> Not required | M18: =MAX('MDA1'!M18,MAX('MDA3'!I18,'MDA3'!L18)+MAX('MDA3'!J18,'MDA3'!M18)) -> 0 | N18: =IF(AND(COUNTRY_INFO!I18>0,COUNTRY_INFO!I18<4),IF(J18>MAX('MDA1'!M18,MAX('MDA3'!I18,'MDA3'!L18)+MAX('MDA3'!J18,'MDA3'!M18)),MAX('MDA1'!M18,MAX('MDA3'!I18,'MDA3'!L18)+MAX('MDA3'!J18,'MDA3'!M18)),J18),0) -> 0 | O18: =IF(AND(COUNTRY_INFO!I18>0,COUNTRY_INFO!I18<4), IF(M18/J18*100<>0, IF(M18/J18*100>100,100,M18/J18*100), "-"),0) -> 0 | P18: =COUNTRY_INFO!N18 -> 163551 | S18: =SUM(MAX('MDA2'!J18,'MDA5'!J18, 'T1'!L18, MAX(T3_R1!K18, T3_R2!K18)), MAX('MDA1'!K18, 'MDA2'!K18, 'MDA5'!K18,'T1'!M18, MAX(T3_R1!L18, T3_R2!L18)), MAX('MDA1'!L18, 'MDA2'!L18, 'MDA5'!L18,'T1'!N18, MAX(T3_R1!M18, T3_R2!M18))) -> 369536 | T18: =IF(AND(COUNTRY_INFO!J18>1,COUNTRY_INFO!J18<4),IF(COUNTRY_INFO!E18>MAX('MDA2'!J18,'MDA5'!J18,'T1'!L18,MAX(T3_R1!K18,T3_R2!K18)),MAX('MDA2'!J18,'MDA5'!J18,'T1'!L18,MAX(T3_R1!K18,T3_R2!K18)),COUNTRY_INFO!E18),0) -> 40820 | U18: =IF(AND(COUNTRY_INFO!J18>1,COUNTRY_INFO!J18<4), IF(T18/COUNTRY_INFO!E18*100<>0, IF(T18/COUNTRY_INFO!E18*100>100,100,T18/COUNTRY_INFO!E18*100), "-"),0) -> 86.39519133 | V18: =IF(AND(COUNTRY_INFO!J18>1,COUNTRY_INFO!J18<4),IF(COUNTRY_INFO!F18>MAX('MDA1'!K18,'MDA2'!K18,'MDA5'!K18,'T1'!M18,MAX(T3_R1!L18,T3_R2!L18)),MAX('MDA1'!K18,'MDA2'!K18,'MDA5'!K18,'T1'!M18,MAX(T3_R1!L18,T3_R2!L18)),COUNTRY_INFO!F18),0) -> 104194 | W18: =IF(AND(COUNTRY_INFO!J18>1,COUNTRY_INFO!J18<4), IF(V18/COUNTRY_INFO!F18*100<>0, IF(V18/COUNTRY_INFO!F18*100>100,100,V18/COUNTRY_INFO!F18*100), "-"),0) -> 89.58840271 | X18: 145014 | Y18: =IF(AND(COUNTRY_INFO!J18>1,COUNTRY_INFO!J18<4), IF(S18/P18*100<>0, IF(X18/P18*100>100,100,X18/P18*100), "-"),0) -> 88.66592072 | Z18: =COUNTRY_INFO!O18 -> 22337.046 | AC18: =MAX('T1'!L18,'T2'!J18)+MAX('T1'!M18,'T2'!K18)+MAX('T1'!N18,'T2'!L18) -> 103584 | AD18: =IF(COUNTRY_INFO!K18=1,IF(COUNTRY_INFO!F18*0.33>MAX('T1'!M18,'T2'!K18),MAX('T1'!M18,'T2'!K18),COUNTRY_INFO!F18*0.33),IF(COUNTRY_INFO!K18=2,IF(COUNTRY_INFO!F18*0.5>MAX('T1'!M18,'T2'!K18),MAX('T1'!M18,'T2'!K18),COUNTRY_INFO!F18*0.5),IF(COUNTRY_INFO!K18=3,IF(COUNTRY_INFO!F18>MAX('T1'!M18,'T2'!K18),MAX('T1'!M18,'T2'!K18),COUNTRY_INFO!F18),0))) -> 31610 | AE18: =IF(AND(COUNTRY_INFO!K18>0,COUNTRY_INFO!K18<4),IF(Z18>0,IF(COUNTRY_INFO!K18=1, AD18/(COUNTRY_INFO!F18*0.33)*100, IF(COUNTRY_INFO!K18=2, AD18/(COUNTRY_INFO!F18*0.5)*100, IF(COUNTRY_INFO!K18=3, AD18/COUNTRY_INFO!F18*100))),"-"),0) -> 54.35801312 | AF18: =IF(COUNTRY_INFO!K18=2,IF(COUNTRY_INFO!G18*0.2>MAX('T1'!N18,'T2'!L18),MAX('T1'!N18,'T2'!L18),COUNTRY_INFO!G18*0.2),IF(COUNTRY_INFO!K18=3,IF(COUNTRY_INFO!G18>MAX('T1'!N18,'T2'!L18),MAX('T1'!N18,'T2'!L18),COUNTRY_INFO!G18),0)) -> 45713.6 | AG18: =IF(AND(COUNTRY_INFO!K18>0,COUNTRY_INFO!K18<4),IF(Z18>0,IF(COUNTRY_INFO!K18=1, 0, IF(COUNTRY_INFO!K18=2, AF18/(COUNTRY_INFO!G18*0.2)*100, IF(COUNTRY_INFO!K18=3, AF18/COUNTRY_INFO!G18*100))),"-"),0) -> 100 | AH18: 77323.6 | AI18: =IF(AND(COUNTRY_INFO!K18>0,COUNTRY_INFO!K18<4), IF(AC18/Z18*100<>0, IF(AH18/Z18*100>100,100,AH18/Z18*100), "-"),0) -> 100 | AK18: =IF(AND(D18<>0, D18<>"Unknown",D18<>"Stopped",D18<>"Not required"),D18/COUNTRY_INFO!D18, 0) -> 0 | AL18: =IF(AND(J18<>0,J18<>"Unknown",J18<>"Stopped",J18<>"Not required"),J18/COUNTRY_INFO!D18, 0) -> 0 | AM18: =IF(AND(P18<>0,P18<>"Unknown",P18<>"Not required"),P18/(COUNTRY_INFO!E18+COUNTRY_INFO!F18), 0) -> 1 | AN18: =IF(AND(Z18<>0,Z18<>"Unknown",Z18<>"Not required"),IF(COUNTRY_INFO!K18=1,1,IF(COUNTRY_INFO!K18=2,0.5*COUNTRY_INFO!F18/(0.5*COUNTRY_INFO!F18+0.2*COUNTRY_INFO!G18),IF(COUNTRY_INFO!K18=3,COUNTRY_INFO!F18/(COUNTRY_INFO!F18+COUNTRY_INFO!G18)))),0) -> 0.5598752613 | AO18: =IF(AND(Z18<>0,Z18<>"Unknown",Z18<>"Not required"),IF(COUNTRY_INFO!K18=1,0,IF(COUNTRY_INFO!K18=2,0.2*COUNTRY_INFO!G18/(0.5*COUNTRY_INFO!F18+0.2*COUNTRY_INFO!G18),IF(COUNTRY_INFO!K18=3,COUNTRY_INFO!G18/(COUNTRY_INFO!F18+COUNTRY_INFO!G18)))),0) -> 0.4401247387 | AP18: =MAX(COUNTRY_INFO!D18*AK18*PROFILE!$G$7,COUNTRY_INFO!D18*AL18*PROFILE!$G$7) -> 0 | AQ18: =MAX(COUNTRY_INFO!D18*AK18*PROFILE!$G$8,COUNTRY_INFO!D18*AL18*PROFILE!$G$8,COUNTRY_INFO!D18*AM18*PROFILE!$G$8) -> 47248.11019 | AR18: =MAX(COUNTRY_INFO!D18*AK18*PROFILE!$G$9,COUNTRY_INFO!D18*AL18*PROFILE!$G$9,COUNTRY_INFO!D18*AM18*PROFILE!$G$9,IF(AND(DISTRICT!Z18<>"Unknown",Z18<>"Not required"),COUNTRY_INFO!O18*DISTRICT!AN18,0)) -> 116303.3625 | AS18: =MAX(COUNTRY_INFO!D18*AK18*PROFILE!$G$10,COUNTRY_INFO!D18*AL18*PROFILE!$G$10,IF(AND(DISTRICT!Z18<>"Unknown",Z18<>"Not required"),COUNTRY_INFO!O18*DISTRICT!AO18,0)) -> 9831.086535 | AT18: 173382.5592 | AU18: Y | AV18: =MAX('MDA2'!J18,'MDA5'!J18,'T1'!L18,'T2'!J18,T3_R1!K18,T3_R2!K18) -> 40820 | AW18: =MAX('MDA1'!K18,'MDA2'!K18,'MDA3'!I18,'MDA3'!L18,'MDA5'!K18,'T1'!M18,'T2'!K18,T3_R1!L18,T3_R2!L18) -> 104194 | AX18: =MAX('MDA1'!L18,'MDA2'!L18,'MDA3'!J18,'MDA3'!M18,'MDA5'!L18,'T1'!N18,'T2'!L18,T3_R1!M18,T3_R2!M18) -> 224522 | AY18: 369536 | AZ18: =MAX('MDA2'!J18,'MDA5'!J18,T18) -> 40820 | BA18: =MAX('MDA1'!K18,'MDA2'!K18,'MDA3'!I18,'MDA3'!L18,'MDA5'!K18,V18,AD18) -> 104194 | BB18: =MAX('MDA1'!L18,'MDA2'!L18,'MDA3'!J18,'MDA3'!M18,'MDA5'!L18,AF18) -> 45713.6 | BC18: 173382.5592 | BD18: 100
A19: =IF(COUNTRY_INFO!A19=0," ",COUNTRY_INFO!A19) -> RWANDA | B19: =IF(COUNTRY_INFO!B19=0," ",COUNTRY_INFO!B19) -> Eastern | C19: =IF(COUNTRY_INFO!C19=0," ",COUNTRY_INFO!C19) -> Kayonza | D19: =COUNTRY_INFO!L19 -> Not required | G19: =MAX('MDA1'!M19,'MDA2'!M19,'MDA5'!M19) -> 0 | H19: =IF(AND(COUNTRY_INFO!H19>0,COUNTRY_INFO!H19<4),IF(D19>MAX('MDA1'!M19,'MDA2'!M19,'MDA5'!M19),MAX('MDA1'!M19,'MDA2'!M19,'MDA5'!M19),D19),0) -> 0 | I19: =IF(AND(COUNTRY_INFO!H19>0,COUNTRY_INFO!H19<4), IF(G19/D19*100<>0, IF(G19/D19*100>100,100,G19/D19*100), "-"),0) -> 0 | J19: =COUNTRY_INFO!M19 -> Not required | M19: =MAX('MDA1'!M19,MAX('MDA3'!I19,'MDA3'!L19)+MAX('MDA3'!J19,'MDA3'!M19)) -> 0 | N19: =IF(AND(COUNTRY_INFO!I19>0,COUNTRY_INFO!I19<4),IF(J19>MAX('MDA1'!M19,MAX('MDA3'!I19,'MDA3'!L19)+MAX('MDA3'!J19,'MDA3'!M19)),MAX('MDA1'!M19,MAX('MDA3'!I19,'MDA3'!L19)+MAX('MDA3'!J19,'MDA3'!M19)),J19),0) -> 0 | O19: =IF(AND(COUNTRY_INFO!I19>0,COUNTRY_INFO!I19<4), IF(M19/J19*100<>0, IF(M19/J19*100>100,100,M19/J19*100), "-"),0) -> 0 | P19: =COUNTRY_INFO!N19 -> 195830 | S19: =SUM(MAX('MDA2'!J19,'MDA5'!J19, 'T1'!L19, MAX(T3_R1!K19, T3_R2!K19)), MAX('MDA1'!K19, 'MDA2'!K19, 'MDA5'!K19,'T1'!M19, MAX(T3_R1!L19, T3_R2!L19)), MAX('MDA1'!L19, 'MDA2'!L19, 'MDA5'!L19,'T1'!N19, MAX(T3_R1!M19, T3_R2!M19))) -> 393653 | T19: =IF(AND(COUNTRY_INFO!J19>1,COUNTRY_INFO!J19<4),IF(COUNTRY_INFO!E19>MAX('MDA2'!J19,'MDA5'!J19,'T1'!L19,MAX(T3_R1!K19,T3_R2!K19)),MAX('MDA2'!J19,'MDA5'!J19,'T1'!L19,MAX(T3_R1!K19,T3_R2!K19)),COUNTRY_INFO!E19),0) -> 49306 | U19: =IF(AND(COUNTRY_INFO!J19>1,COUNTRY_INFO!J19<4), IF(T19/COUNTRY_INFO!E19*100<>0, IF(T19/COUNTRY_INFO!E19*100>100,100,T19/COUNTRY_INFO!E19*100), "-"),0) -> 87.15464974 | V19: =IF(AND(COUNTRY_INFO!J19>1,COUNTRY_INFO!J19<4),IF(COUNTRY_INFO!F19>MAX('MDA1'!K19,'MDA2'!K19,'MDA5'!K19,'T1'!M19,MAX(T3_R1!L19,T3_R2!L19)),MAX('MDA1'!K19,'MDA2'!K19,'MDA5'!K19,'T1'!M19,MAX(T3_R1!L19,T3_R2!L19)),COUNTRY_INFO!F19),0) -> 123547 | W19: =IF(AND(COUNTRY_INFO!J19>1,COUNTRY_INFO!J19<4), IF(V19/COUNTRY_INFO!F19*100<>0, IF(V19/COUNTRY_INFO!F19*100>100,100,V19/COUNTRY_INFO!F19*100), "-"),0) -> 88.71869996 | X19: 172853 | Y19: =IF(AND(COUNTRY_INFO!J19>1,COUNTRY_INFO!J19<4), IF(S19/P19*100<>0, IF(X19/P19*100>100,100,X19/P19*100), "-"),0) -> 88.26686412 | Z19: =COUNTRY_INFO!O19 -> 53193.996 | AC19: =MAX('T1'!L19,'T2'!J19)+MAX('T1'!M19,'T2'!K19)+MAX('T1'!N19,'T2'!L19) -> 213700 | AD19: =IF(COUNTRY_INFO!K19=1,IF(COUNTRY_INFO!F19*0.33>MAX('T1'!M19,'T2'!K19),MAX('T1'!M19,'T2'!K19),COUNTRY_INFO!F19*0.33),IF(COUNTRY_INFO!K19=2,IF(COUNTRY_INFO!F19*0.5>MAX('T1'!M19,'T2'!K19),MAX('T1'!M19,'T2'!K19),COUNTRY_INFO!F19*0.5),IF(COUNTRY_INFO!K19=3,IF(COUNTRY_INFO!F19>MAX('T1'!M19,'T2'!K19),MAX('T1'!M19,'T2'!K19),COUNTRY_INFO!F19),0))) -> 69628.5 | AE19: =IF(AND(COUNTRY_INFO!K19>0,COUNTRY_INFO!K19<4),IF(Z19>0,IF(COUNTRY_INFO!K19=1, AD19/(COUNTRY_INFO!F19*0.33)*100, IF(COUNTRY_INFO!K19=2, AD19/(COUNTRY_INFO!F19*0.5)*100, IF(COUNTRY_INFO!K19=3, AD19/COUNTRY_INFO!F19*100))),"-"),0) -> 100 | AF19: =IF(COUNTRY_INFO!K19=2,IF(COUNTRY_INFO!G19*0.2>MAX('T1'!N19,'T2'!L19),MAX('T1'!N19,'T2'!L19),COUNTRY_INFO!G19*0.2),IF(COUNTRY_INFO!K19=3,IF(COUNTRY_INFO!G19>MAX('T1'!N19,'T2'!L19),MAX('T1'!N19,'T2'!L19),COUNTRY_INFO!G19),0)) -> 54735.8 | AG19: =IF(AND(COUNTRY_INFO!K19>0,COUNTRY_INFO!K19<4),IF(Z19>0,IF(COUNTRY_INFO!K19=1, 0, IF(COUNTRY_INFO!K19=2, AF19/(COUNTRY_INFO!G19*0.2)*100, IF(COUNTRY_INFO!K19=3, AF19/COUNTRY_INFO!G19*100))),"-"),0) -> 100 | AH19: 124364.3 | AI19: =IF(AND(COUNTRY_INFO!K19>0,COUNTRY_INFO!K19<4), IF(AC19/Z19*100<>0, IF(AH19/Z19*100>100,100,AH19/Z19*100), "-"),0) -> 100 | AK19: =IF(AND(D19<>0, D19<>"Unknown",D19<>"Stopped",D19<>"Not required"),D19/COUNTRY_INFO!D19, 0) -> 0 | AL19: =IF(AND(J19<>0,J19<>"Unknown",J19<>"Stopped",J19<>"Not required"),J19/COUNTRY_INFO!D19, 0) -> 0 | AM19: =IF(AND(P19<>0,P19<>"Unknown",P19<>"Not required"),P19/(COUNTRY_INFO!E19+COUNTRY_INFO!F19), 0) -> 1 | AN19: =IF(AND(Z19<>0,Z19<>"Unknown",Z19<>"Not required"),IF(COUNTRY_INFO!K19=1,1,IF(COUNTRY_INFO!K19=2,0.5*COUNTRY_INFO!F19/(0.5*COUNTRY_INFO!F19+0.2*COUNTRY_INFO!G19),IF(COUNTRY_INFO!K19=3,COUNTRY_INFO!F19/(COUNTRY_INFO!F19+COUNTRY_INFO!G19)))),0) -> 0.5598753018 | AO19: =IF(AND(Z19<>0,Z19<>"Unknown",Z19<>"Not required"),IF(COUNTRY_INFO!K19=1,0,IF(COUNTRY_INFO!K19=2,0.2*COUNTRY_INFO!G19/(0.5*COUNTRY_INFO!F19+0.2*COUNTRY_INFO!G19),IF(COUNTRY_INFO!K19=3,COUNTRY_INFO!G19/(COUNTRY_INFO!F19+COUNTRY_INFO!G19)))),0) -> 0.4401246982 | AP19: =MAX(COUNTRY_INFO!D19*AK19*PROFILE!$G$7,COUNTRY_INFO!D19*AL19*PROFILE!$G$7) -> 0 | AQ19: =MAX(COUNTRY_INFO!D19*AK19*PROFILE!$G$8,COUNTRY_INFO!D19*AL19*PROFILE!$G$8,COUNTRY_INFO!D19*AM19*PROFILE!$G$8) -> 56572.98713 | AR19: =MAX(COUNTRY_INFO!D19*AK19*PROFILE!$G$9,COUNTRY_INFO!D19*AL19*PROFILE!$G$9,COUNTRY_INFO!D19*AM19*PROFILE!$G$9,IF(AND(DISTRICT!Z19<>"Unknown",Z19<>"Not required"),COUNTRY_INFO!O19*DISTRICT!AN19,0)) -> 139256.9692 | AS19: =MAX(COUNTRY_INFO!D19*AK19*PROFILE!$G$10,COUNTRY_INFO!D19*AL19*PROFILE!$G$10,IF(AND(DISTRICT!Z19<>"Unknown",Z19<>"Not required"),COUNTRY_INFO!O19*DISTRICT!AO19,0)) -> 23411.99143 | AT19: 219241.9478 | AU19: Y | AV19: =MAX('MDA2'!J19,'MDA5'!J19,'T1'!L19,'T2'!J19,T3_R1!K19,T3_R2!K19) -> 49306 | AW19: =MAX('MDA1'!K19,'MDA2'!K19,'MDA3'!I19,'MDA3'!L19,'MDA5'!K19,'T1'!M19,'T2'!K19,T3_R1!L19,T3_R2!L19) -> 123547 | AX19: =MAX('MDA1'!L19,'MDA2'!L19,'MDA3'!J19,'MDA3'!M19,'MDA5'!L19,'T1'!N19,'T2'!L19,T3_R1!M19,T3_R2!M19) -> 220800 | AY19: 393653 | AZ19: =MAX('MDA2'!J19,'MDA5'!J19,T19) -> 49306 | BA19: =MAX('MDA1'!K19,'MDA2'!K19,'MDA3'!I19,'MDA3'!L19,'MDA5'!K19,V19,AD19) -> 123547 | BB19: =MAX('MDA1'!L19,'MDA2'!L19,'MDA3'!J19,'MDA3'!M19,'MDA5'!L19,AF19) -> 54735.8 | BC19: 219241.9478 | BD19: 100
A20: =IF(COUNTRY_INFO!A20=0," ",COUNTRY_INFO!A20) -> RWANDA | B20: =IF(COUNTRY_INFO!B20=0," ",COUNTRY_INFO!B20) -> Kigali | C20: =IF(COUNTRY_INFO!C20=0," ",COUNTRY_INFO!C20) -> Kicukiro | D20: =COUNTRY_INFO!L20 -> Not required | G20: =MAX('MDA1'!M20,'MDA2'!M20,'MDA5'!M20) -> 0 | H20: =IF(AND(COUNTRY_INFO!H20>0,COUNTRY_INFO!H20<4),IF(D20>MAX('MDA1'!M20,'MDA2'!M20,'MDA5'!M20),MAX('MDA1'!M20,'MDA2'!M20,'MDA5'!M20),D20),0) -> 0 | I20: =IF(AND(COUNTRY_INFO!H20>0,COUNTRY_INFO!H20<4), IF(G20/D20*100<>0, IF(G20/D20*100>100,100,G20/D20*100), "-"),0) -> 0 | J20: =COUNTRY_INFO!M20 -> Not required | M20: =MAX('MDA1'!M20,MAX('MDA3'!I20,'MDA3'!L20)+MAX('MDA3'!J20,'MDA3'!M20)) -> 0 | N20: =IF(AND(COUNTRY_INFO!I20>0,COUNTRY_INFO!I20<4),IF(J20>MAX('MDA1'!M20,MAX('MDA3'!I20,'MDA3'!L20)+MAX('MDA3'!J20,'MDA3'!M20)),MAX('MDA1'!M20,MAX('MDA3'!I20,'MDA3'!L20)+MAX('MDA3'!J20,'MDA3'!M20)),J20),0) -> 0 | O20: =IF(AND(COUNTRY_INFO!I20>0,COUNTRY_INFO!I20<4), IF(M20/J20*100<>0, IF(M20/J20*100>100,100,M20/J20*100), "-"),0) -> 0 | P20: =COUNTRY_INFO!N20 -> 0 | S20: =SUM(MAX('MDA2'!J20,'MDA5'!J20, 'T1'!L20, MAX(T3_R1!K20, T3_R2!K20)), MAX('MDA1'!K20, 'MDA2'!K20, 'MDA5'!K20,'T1'!M20, MAX(T3_R1!L20, T3_R2!L20)), MAX('MDA1'!L20, 'MDA2'!L20, 'MDA5'!L20,'T1'!N20, MAX(T3_R1!M20, T3_R2!M20))) -> 191924 | T20: =IF(AND(COUNTRY_INFO!J20>1,COUNTRY_INFO!J20<4),IF(COUNTRY_INFO!E20>MAX('MDA2'!J20,'MDA5'!J20,'T1'!L20,MAX(T3_R1!K20,T3_R2!K20)),MAX('MDA2'!J20,'MDA5'!J20,'T1'!L20,MAX(T3_R1!K20,T3_R2!K20)),COUNTRY_INFO!E20),0) -> 0 | U20: =IF(AND(COUNTRY_INFO!J20>1,COUNTRY_INFO!J20<4), IF(T20/COUNTRY_INFO!E20*100<>0, IF(T20/COUNTRY_INFO!E20*100>100,100,T20/COUNTRY_INFO!E20*100), "-"),0) -> 0 | V20: =IF(AND(COUNTRY_INFO!J20>1,COUNTRY_INFO!J20<4),IF(COUNTRY_INFO!F20>MAX('MDA1'!K20,'MDA2'!K20,'MDA5'!K20,'T1'!M20,MAX(T3_R1!L20,T3_R2!L20)),MAX('MDA1'!K20,'MDA2'!K20,'MDA5'!K20,'T1'!M20,MAX(T3_R1!L20,T3_R2!L20)),COUNTRY_INFO!F20),0) -> 0 | W20: =IF(AND(COUNTRY_INFO!J20>1,COUNTRY_INFO!J20<4), IF(V20/COUNTRY_INFO!F20*100<>0, IF(V20/COUNTRY_INFO!F20*100>100,100,V20/COUNTRY_INFO!F20*100), "-"),0) -> 0 | X20: 0 | Y20: =IF(AND(COUNTRY_INFO!J20>1,COUNTRY_INFO!J20<4), IF(S20/P20*100<>0, IF(X20/P20*100>100,100,X20/P20*100), "-"),0) -> 0 | Z20: =COUNTRY_INFO!O20 -> 33578.928 | AC20: =MAX('T1'!L20,'T2'!J20)+MAX('T1'!M20,'T2'!K20)+MAX('T1'!N20,'T2'!L20) -> 86259 | AD20: =IF(COUNTRY_INFO!K20=1,IF(COUNTRY_INFO!F20*0.33>MAX('T1'!M20,'T2'!K20),MAX('T1'!M20,'T2'!K20),COUNTRY_INFO!F20*0.33),IF(COUNTRY_INFO!K20=2,IF(COUNTRY_INFO!F20*0.5>MAX('T1'!M20,'T2'!K20),MAX('T1'!M20,'T2'!K20),COUNTRY_INFO!F20*0.5),IF(COUNTRY_INFO!K20=3,IF(COUNTRY_INFO!F20>MAX('T1'!M20,'T2'!K20),MAX('T1'!M20,'T2'!K20),COUNTRY_INFO!F20),0))) -> 41079.39 | AE20: =IF(AND(COUNTRY_INFO!K20>0,COUNTRY_INFO!K20<4),IF(Z20>0,IF(COUNTRY_INFO!K20=1, AD20/(COUNTRY_INFO!F20*0.33)*100, IF(COUNTRY_INFO!K20=2, AD20/(COUNTRY_INFO!F20*0.5)*100, IF(COUNTRY_INFO!K20=3, AD20/COUNTRY_INFO!F20*100))),"-"),0) -> 100 | AF20: =IF(COUNTRY_INFO!K20=2,IF(COUNTRY_INFO!G20*0.2>MAX('T1'!N20,'T2'!L20),MAX('T1'!N20,'T2'!L20),COUNTRY_INFO!G20*0.2),IF(COUNTRY_INFO!K20=3,IF(COUNTRY_INFO!G20>MAX('T1'!N20,'T2'!L20),MAX('T1'!N20,'T2'!L20),COUNTRY_INFO!G20),0)) -> 0 | AG20: =IF(AND(COUNTRY_INFO!K20>0,COUNTRY_INFO!K20<4),IF(Z20>0,IF(COUNTRY_INFO!K20=1, 0, IF(COUNTRY_INFO!K20=2, AF20/(COUNTRY_INFO!G20*0.2)*100, IF(COUNTRY_INFO!K20=3, AF20/COUNTRY_INFO!G20*100))),"-"),0) -> 0 | AH20: 41079.39 | AI20: =IF(AND(COUNTRY_INFO!K20>0,COUNTRY_INFO!K20<4), IF(AC20/Z20*100<>0, IF(AH20/Z20*100>100,100,AH20/Z20*100), "-"),0) -> 100 | AK20: =IF(AND(D20<>0, D20<>"Unknown",D20<>"Stopped",D20<>"Not required"),D20/COUNTRY_INFO!D20, 0) -> 0 | AL20: =IF(AND(J20<>0,J20<>"Unknown",J20<>"Stopped",J20<>"Not required"),J20/COUNTRY_INFO!D20, 0) -> 0 | AM20: =IF(AND(P20<>0,P20<>"Unknown",P20<>"Not required"),P20/(COUNTRY_INFO!E20+COUNTRY_INFO!F20), 0) -> 0 | AN20: =IF(AND(Z20<>0,Z20<>"Unknown",Z20<>"Not required"),IF(COUNTRY_INFO!K20=1,1,IF(COUNTRY_INFO!K20=2,0.5*COUNTRY_INFO!F20/(0.5*COUNTRY_INFO!F20+0.2*COUNTRY_INFO!G20),IF(COUNTRY_INFO!K20=3,COUNTRY_INFO!F20/(COUNTRY_INFO!F20+COUNTRY_INFO!G20)))),0) -> 1 | AO20: =IF(AND(Z20<>0,Z20<>"Unknown",Z20<>"Not required"),IF(COUNTRY_INFO!K20=1,0,IF(COUNTRY_INFO!K20=2,0.2*COUNTRY_INFO!G20/(0.5*COUNTRY_INFO!F20+0.2*COUNTRY_INFO!G20),IF(COUNTRY_INFO!K20=3,COUNTRY_INFO!G20/(COUNTRY_INFO!F20+COUNTRY_INFO!G20)))),0) -> 0 | AP20: =MAX(COUNTRY_INFO!D20*AK20*PROFILE!$G$7,COUNTRY_INFO!D20*AL20*PROFILE!$G$7) -> 0 | AQ20: =MAX(COUNTRY_INFO!D20*AK20*PROFILE!$G$8,COUNTRY_INFO!D20*AL20*PROFILE!$G$8,COUNTRY_INFO!D20*AM20*PROFILE!$G$8) -> 0 | AR20: =MAX(COUNTRY_INFO!D20*AK20*PROFILE!$G$9,COUNTRY_INFO!D20*AL20*PROFILE!$G$9,COUNTRY_INFO!D20*AM20*PROFILE!$G$9,IF(AND(DISTRICT!Z20<>"Unknown",Z20<>"Not required"),COUNTRY_INFO!O20*DISTRICT!AN20,0)) -> 33578.928 | AS20: =MAX(COUNTRY_INFO!D20*AK20*PROFILE!$G$10,COUNTRY_INFO!D20*AL20*PROFILE!$G$10,IF(AND(DISTRICT!Z20<>"Unknown",Z20<>"Not required"),COUNTRY_INFO!O20*DISTRICT!AO20,0)) -> 0 | AT20: 33578.928 | AU20: Y | AV20: =MAX('MDA2'!J20,'MDA5'!J20,'T1'!L20,'T2'!J20,T3_R1!K20,T3_R2!K20) -> 43503 | AW20: =MAX('MDA1'!K20,'MDA2'!K20,'MDA3'!I20,'MDA3'!L20,'MDA5'!K20,'T1'!M20,'T2'!K20,T3_R1!L20,T3_R2!L20) -> 98661 | AX20: =MAX('MDA1'!L20,'MDA2'!L20,'MDA3'!J20,'MDA3'!M20,'MDA5'!L20,'T1'!N20,'T2'!L20,T3_R1!M20,T3_R2!M20) -> 49760 | AY20: 191924 | AZ20: =MAX('MDA2'!J20,'MDA5'!J20,T20) -> 0 | BA20: =MAX('MDA1'!K20,'MDA2'!K20,'MDA3'!I20,'MDA3'!L20,'MDA5'!K20,V20,AD20) -> 41079.39 | BB20: =MAX('MDA1'!L20,'MDA2'!L20,'MDA3'!J20,'MDA3'!M20,'MDA5'!L20,AF20) -> 0 | BC20: 33578.928 | BD20: 100
A21: =IF(COUNTRY_INFO!A21=0," ",COUNTRY_INFO!A21) -> RWANDA | B21: =IF(COUNTRY_INFO!B21=0," ",COUNTRY_INFO!B21) -> Eastern | C21: =IF(COUNTRY_INFO!C21=0," ",COUNTRY_INFO!C21) -> Kirehe | D21: =COUNTRY_INFO!L21 -> Not required | G21: =MAX('MDA1'!M21,'MDA2'!M21,'MDA5'!M21) -> 0 | H21: =IF(AND(COUNTRY_INFO!H21>0,COUNTRY_INFO!H21<4),IF(D21>MAX('MDA1'!M21,'MDA2'!M21,'MDA5'!M21),MAX('MDA1'!M21,'MDA2'!M21,'MDA5'!M21),D21),0) -> 0 | I21: =IF(AND(COUNTRY_INFO!H21>0,COUNTRY_INFO!H21<4), IF(G21/D21*100<>0, IF(G21/D21*100>100,100,G21/D21*100), "-"),0) -> 0 | J21: =COUNTRY_INFO!M21 -> Not required | M21: =MAX('MDA1'!M21,MAX('MDA3'!I21,'MDA3'!L21)+MAX('MDA3'!J21,'MDA3'!M21)) -> 0 | N21: =IF(AND(COUNTRY_INFO!I21>0,COUNTRY_INFO!I21<4),IF(J21>MAX('MDA1'!M21,MAX('MDA3'!I21,'MDA3'!L21)+MAX('MDA3'!J21,'MDA3'!M21)),MAX('MDA1'!M21,MAX('MDA3'!I21,'MDA3'!L21)+MAX('MDA3'!J21,'MDA3'!M21)),J21),0) -> 0 | O21: =IF(AND(COUNTRY_INFO!I21>0,COUNTRY_INFO!I21<4), IF(M21/J21*100<>0, IF(M21/J21*100>100,100,M21/J21*100), "-"),0) -> 0 | P21: =COUNTRY_INFO!N21 -> 0 | S21: =SUM(MAX('MDA2'!J21,'MDA5'!J21, 'T1'!L21, MAX(T3_R1!K21, T3_R2!K21)), MAX('MDA1'!K21, 'MDA2'!K21, 'MDA5'!K21,'T1'!M21, MAX(T3_R1!L21, T3_R2!L21)), MAX('MDA1'!L21, 'MDA2'!L21, 'MDA5'!L21,'T1'!N21, MAX(T3_R1!M21, T3_R2!M21))) -> 443860 | T21: =IF(AND(COUNTRY_INFO!J21>1,COUNTRY_INFO!J21<4),IF(COUNTRY_INFO!E21>MAX('MDA2'!J21,'MDA5'!J21,'T1'!L21,MAX(T3_R1!K21,T3_R2!K21)),MAX('MDA2'!J21,'MDA5'!J21,'T1'!L21,MAX(T3_R1!K21,T3_R2!K21)),COUNTRY_INFO!E21),0) -> 0 | U21: =IF(AND(COUNTRY_INFO!J21>1,COUNTRY_INFO!J21<4), IF(T21/COUNTRY_INFO!E21*100<>0, IF(T21/COUNTRY_INFO!E21*100>100,100,T21/COUNTRY_INFO!E21*100), "-"),0) -> 0 | V21: =IF(AND(COUNTRY_INFO!J21>1,COUNTRY_INFO!J21<4),IF(COUNTRY_INFO!F21>MAX('MDA1'!K21,'MDA2'!K21,'MDA5'!K21,'T1'!M21,MAX(T3_R1!L21,T3_R2!L21)),MAX('MDA1'!K21,'MDA2'!K21,'MDA5'!K21,'T1'!M21,MAX(T3_R1!L21,T3_R2!L21)),COUNTRY_INFO!F21),0) -> 0 | W21: =IF(AND(COUNTRY_INFO!J21>1,COUNTRY_INFO!J21<4), IF(V21/COUNTRY_INFO!F21*100<>0, IF(V21/COUNTRY_INFO!F21*100>100,100,V21/COUNTRY_INFO!F21*100), "-"),0) -> 0 | X21: 0 | Y21: =IF(AND(COUNTRY_INFO!J21>1,COUNTRY_INFO!J21<4), IF(S21/P21*100<>0, IF(X21/P21*100>100,100,X21/P21*100), "-"),0) -> 0 | Z21: =COUNTRY_INFO!O21 -> 52213.14 | AC21: =MAX('T1'!L21,'T2'!J21)+MAX('T1'!M21,'T2'!K21)+MAX('T1'!N21,'T2'!L21) -> 237265 | AD21: =IF(COUNTRY_INFO!K21=1,IF(COUNTRY_INFO!F21*0.33>MAX('T1'!M21,'T2'!K21),MAX('T1'!M21,'T2'!K21),COUNTRY_INFO!F21*0.33),IF(COUNTRY_INFO!K21=2,IF(COUNTRY_INFO!F21*0.5>MAX('T1'!M21,'T2'!K21),MAX('T1'!M21,'T2'!K21),COUNTRY_INFO!F21*0.5),IF(COUNTRY_INFO!K21=3,IF(COUNTRY_INFO!F21>MAX('T1'!M21,'T2'!K21),MAX('T1'!M21,'T2'!K21),COUNTRY_INFO!F21),0))) -> 43146.18 | AE21: =IF(AND(COUNTRY_INFO!K21>0,COUNTRY_INFO!K21<4),IF(Z21>0,IF(COUNTRY_INFO!K21=1, AD21/(COUNTRY_INFO!F21*0.33)*100, IF(COUNTRY_INFO!K21=2, AD21/(COUNTRY_INFO!F21*0.5)*100, IF(COUNTRY_INFO!K21=3, AD21/COUNTRY_INFO!F21*100))),"-"),0) -> 100 | AF21: =IF(COUNTRY_INFO!K21=2,IF(COUNTRY_INFO!G21*0.2>MAX('T1'!N21,'T2'!L21),MAX('T1'!N21,'T2'!L21),COUNTRY_INFO!G21*0.2),IF(COUNTRY_INFO!K21=3,IF(COUNTRY_INFO!G21>MAX('T1'!N21,'T2'!L21),MAX('T1'!N21,'T2'!L21),COUNTRY_INFO!G21),0)) -> 0 | AG21: =IF(AND(COUNTRY_INFO!K21>0,COUNTRY_INFO!K21<4),IF(Z21>0,IF(COUNTRY_INFO!K21=1, 0, IF(COUNTRY_INFO!K21=2, AF21/(COUNTRY_INFO!G21*0.2)*100, IF(COUNTRY_INFO!K21=3, AF21/COUNTRY_INFO!G21*100))),"-"),0) -> 0 | AH21: 43146.18 | AI21: =IF(AND(COUNTRY_INFO!K21>0,COUNTRY_INFO!K21<4), IF(AC21/Z21*100<>0, IF(AH21/Z21*100>100,100,AH21/Z21*100), "-"),0) -> 82.63471609 | AK21: =IF(AND(D21<>0, D21<>"Unknown",D21<>"Stopped",D21<>"Not required"),D21/COUNTRY_INFO!D21, 0) -> 0 | AL21: =IF(AND(J21<>0,J21<>"Unknown",J21<>"Stopped",J21<>"Not required"),J21/COUNTRY_INFO!D21, 0) -> 0 | AM21: =IF(AND(P21<>0,P21<>"Unknown",P21<>"Not required"),P21/(COUNTRY_INFO!E21+COUNTRY_INFO!F21), 0) -> 0 | AN21: =IF(AND(Z21<>0,Z21<>"Unknown",Z21<>"Not required"),IF(COUNTRY_INFO!K21=1,1,IF(COUNTRY_INFO!K21=2,0.5*COUNTRY_INFO!F21/(0.5*COUNTRY_INFO!F21+0.2*COUNTRY_INFO!G21),IF(COUNTRY_INFO!K21=3,COUNTRY_INFO!F21/(COUNTRY_INFO!F21+COUNTRY_INFO!G21)))),0) -> 1 | AO21: =IF(AND(Z21<>0,Z21<>"Unknown",Z21<>"Not required"),IF(COUNTRY_INFO!K21=1,0,IF(COUNTRY_INFO!K21=2,0.2*COUNTRY_INFO!G21/(0.5*COUNTRY_INFO!F21+0.2*COUNTRY_INFO!G21),IF(COUNTRY_INFO!K21=3,COUNTRY_INFO!G21/(COUNTRY_INFO!F21+COUNTRY_INFO!G21)))),0) -> 0 | AP21: =MAX(COUNTRY_INFO!D21*AK21*PROFILE!$G$7,COUNTRY_INFO!D21*AL21*PROFILE!$G$7) -> 0 | AQ21: =MAX(COUNTRY_INFO!D21*AK21*PROFILE!$G$8,COUNTRY_INFO!D21*AL21*PROFILE!$G$8,COUNTRY_INFO!D21*AM21*PROFILE!$G$8) -> 0 | AR21: =MAX(COUNTRY_INFO!D21*AK21*PROFILE!$G$9,COUNTRY_INFO!D21*AL21*PROFILE!$G$9,COUNTRY_INFO!D21*AM21*PROFILE!$G$9,IF(AND(DISTRICT!Z21<>"Unknown",Z21<>"Not required"),COUNTRY_INFO!O21*DISTRICT!AN21,0)) -> 52213.14 | AS21: =MAX(COUNTRY_INFO!D21*AK21*PROFILE!$G$10,COUNTRY_INFO!D21*AL21*PROFILE!$G$10,IF(AND(DISTRICT!Z21<>"Unknown",Z21<>"Not required"),COUNTRY_INFO!O21*DISTRICT!AO21,0)) -> 0 | AT21: 52213.14 | AU21: Y | AV21: =MAX('MDA2'!J21,'MDA5'!J21,'T1'!L21,'T2'!J21,T3_R1!K21,T3_R2!K21) -> 52000 | AW21: =MAX('MDA1'!K21,'MDA2'!K21,'MDA3'!I21,'MDA3'!L21,'MDA5'!K21,'T1'!M21,'T2'!K21,T3_R1!L21,T3_R2!L21) -> 138767 | AX21: =MAX('MDA1'!L21,'MDA2'!L21,'MDA3'!J21,'MDA3'!M21,'MDA5'!L21,'T1'!N21,'T2'!L21,T3_R1!M21,T3_R2!M21) -> 253093 | AY21: 443860 | AZ21: =MAX('MDA2'!J21,'MDA5'!J21,T21) -> 0 | BA21: =MAX('MDA1'!K21,'MDA2'!K21,'MDA3'!I21,'MDA3'!L21,'MDA5'!K21,V21,AD21) -> 43146.18 | BB21: =MAX('MDA1'!L21,'MDA2'!L21,'MDA3'!J21,'MDA3'!M21,'MDA5'!L21,AF21) -> 0 | BC21: 43146.18 | BD21: 82.63471609
A22: =IF(COUNTRY_INFO!A22=0," ",COUNTRY_INFO!A22) -> RWANDA | B22: =IF(COUNTRY_INFO!B22=0," ",COUNTRY_INFO!B22) -> Southern | C22: =IF(COUNTRY_INFO!C22=0," ",COUNTRY_INFO!C22) -> Muhanga | D22: =COUNTRY_INFO!L22 -> Not required | G22: =MAX('MDA1'!M22,'MDA2'!M22,'MDA5'!M22) -> 0 | H22: =IF(AND(COUNTRY_INFO!H22>0,COUNTRY_INFO!H22<4),IF(D22>MAX('MDA1'!M22,'MDA2'!M22,'MDA5'!M22),MAX('MDA1'!M22,'MDA2'!M22,'MDA5'!M22),D22),0) -> 0 | I22: =IF(AND(COUNTRY_INFO!H22>0,COUNTRY_INFO!H22<4), IF(G22/D22*100<>0, IF(G22/D22*100>100,100,G22/D22*100), "-"),0) -> 0 | J22: =COUNTRY_INFO!M22 -> Not required | M22: =MAX('MDA1'!M22,MAX('MDA3'!I22,'MDA3'!L22)+MAX('MDA3'!J22,'MDA3'!M22)) -> 0 | N22: =IF(AND(COUNTRY_INFO!I22>0,COUNTRY_INFO!I22<4),IF(J22>MAX('MDA1'!M22,MAX('MDA3'!I22,'MDA3'!L22)+MAX('MDA3'!J22,'MDA3'!M22)),MAX('MDA1'!M22,MAX('MDA3'!I22,'MDA3'!L22)+MAX('MDA3'!J22,'MDA3'!M22)),J22),0) -> 0 | O22: =IF(AND(COUNTRY_INFO!I22>0,COUNTRY_INFO!I22<4), IF(M22/J22*100<>0, IF(M22/J22*100>100,100,M22/J22*100), "-"),0) -> 0 | P22: =COUNTRY_INFO!N22 -> 153458 | S22: =SUM(MAX('MDA2'!J22,'MDA5'!J22, 'T1'!L22, MAX(T3_R1!K22, T3_R2!K22)), MAX('MDA1'!K22, 'MDA2'!K22, 'MDA5'!K22,'T1'!M22, MAX(T3_R1!L22, T3_R2!L22)), MAX('MDA1'!L22, 'MDA2'!L22, 'MDA5'!L22,'T1'!N22, MAX(T3_R1!M22, T3_R2!M22))) -> 359580 | T22: =IF(AND(COUNTRY_INFO!J22>1,COUNTRY_INFO!J22<4),IF(COUNTRY_INFO!E22>MAX('MDA2'!J22,'MDA5'!J22,'T1'!L22,MAX(T3_R1!K22,T3_R2!K22)),MAX('MDA2'!J22,'MDA5'!J22,'T1'!L22,MAX(T3_R1!K22,T3_R2!K22)),COUNTRY_INFO!E22),0) -> 35585 | U22: =IF(AND(COUNTRY_INFO!J22>1,COUNTRY_INFO!J22<4), IF(T22/COUNTRY_INFO!E22*100<>0, IF(T22/COUNTRY_INFO!E22*100>100,100,T22/COUNTRY_INFO!E22*100), "-"),0) -> 80.26933141 | V22: =IF(AND(COUNTRY_INFO!J22>1,COUNTRY_INFO!J22<4),IF(COUNTRY_INFO!F22>MAX('MDA1'!K22,'MDA2'!K22,'MDA5'!K22,'T1'!M22,MAX(T3_R1!L22,T3_R2!L22)),MAX('MDA1'!K22,'MDA2'!K22,'MDA5'!K22,'T1'!M22,MAX(T3_R1!L22,T3_R2!L22)),COUNTRY_INFO!F22),0) -> 93686 | W22: =IF(AND(COUNTRY_INFO!J22>1,COUNTRY_INFO!J22<4), IF(V22/COUNTRY_INFO!F22*100<>0, IF(V22/COUNTRY_INFO!F22*100>100,100,V22/COUNTRY_INFO!F22*100), "-"),0) -> 85.85121786 | X22: 129271 | Y22: =IF(AND(COUNTRY_INFO!J22>1,COUNTRY_INFO!J22<4), IF(S22/P22*100<>0, IF(X22/P22*100>100,100,X22/P22*100), "-"),0) -> 84.2386842 | Z22: =COUNTRY_INFO!O22 -> 50423.796 | AC22: =MAX('T1'!L22,'T2'!J22)+MAX('T1'!M22,'T2'!K22)+MAX('T1'!N22,'T2'!L22) -> 174389 | AD22: =IF(COUNTRY_INFO!K22=1,IF(COUNTRY_INFO!F22*0.33>MAX('T1'!M22,'T2'!K22),MAX('T1'!M22,'T2'!K22),COUNTRY_INFO!F22*0.33),IF(COUNTRY_INFO!K22=2,IF(COUNTRY_INFO!F22*0.5>MAX('T1'!M22,'T2'!K22),MAX('T1'!M22,'T2'!K22),COUNTRY_INFO!F22*0.5),IF(COUNTRY_INFO!K22=3,IF(COUNTRY_INFO!F22>MAX('T1'!M22,'T2'!K22),MAX('T1'!M22,'T2'!K22),COUNTRY_INFO!F22),0))) -> 52365 | AE22: =IF(AND(COUNTRY_INFO!K22>0,COUNTRY_INFO!K22<4),IF(Z22>0,IF(COUNTRY_INFO!K22=1, AD22/(COUNTRY_INFO!F22*0.33)*100, IF(COUNTRY_INFO!K22=2, AD22/(COUNTRY_INFO!F22*0.5)*100, IF(COUNTRY_INFO!K22=3, AD22/COUNTRY_INFO!F22*100))),"-"),0) -> 95.97162913 | AF22: =IF(COUNTRY_INFO!K22=2,IF(COUNTRY_INFO!G22*0.2>MAX('T1'!N22,'T2'!L22),MAX('T1'!N22,'T2'!L22),COUNTRY_INFO!G22*0.2),IF(COUNTRY_INFO!K22=3,IF(COUNTRY_INFO!G22>MAX('T1'!N22,'T2'!L22),MAX('T1'!N22,'T2'!L22),COUNTRY_INFO!G22),0)) -> 42892.4 | AG22: =IF(AND(COUNTRY_INFO!K22>0,COUNTRY_INFO!K22<4),IF(Z22>0,IF(COUNTRY_INFO!K22=1, 0, IF(COUNTRY_INFO!K22=2, AF22/(COUNTRY_INFO!G22*0.2)*100, IF(COUNTRY_INFO!K22=3, AF22/COUNTRY_INFO!G22*100))),"-"),0) -> 100 | AH22: 95257.4 | AI22: =IF(AND(COUNTRY_INFO!K22>0,COUNTRY_INFO!K22<4), IF(AC22/Z22*100<>0, IF(AH22/Z22*100>100,100,AH22/Z22*100), "-"),0) -> 100 | AK22: =IF(AND(D22<>0, D22<>"Unknown",D22<>"Stopped",D22<>"Not required"),D22/COUNTRY_INFO!D22, 0) -> 0 | AL22: =IF(AND(J22<>0,J22<>"Unknown",J22<>"Stopped",J22<>"Not required"),J22/COUNTRY_INFO!D22, 0) -> 0 | AM22: =IF(AND(P22<>0,P22<>"Unknown",P22<>"Not required"),P22/(COUNTRY_INFO!E22+COUNTRY_INFO!F22), 0) -> 1 | AN22: =IF(AND(Z22<>0,Z22<>"Unknown",Z22<>"Not required"),IF(COUNTRY_INFO!K22=1,1,IF(COUNTRY_INFO!K22=2,0.5*COUNTRY_INFO!F22/(0.5*COUNTRY_INFO!F22+0.2*COUNTRY_INFO!G22),IF(COUNTRY_INFO!K22=3,COUNTRY_INFO!F22/(COUNTRY_INFO!F22+COUNTRY_INFO!G22)))),0) -> 0.5598766205 | AO22: =IF(AND(Z22<>0,Z22<>"Unknown",Z22<>"Not required"),IF(COUNTRY_INFO!K22=1,0,IF(COUNTRY_INFO!K22=2,0.2*COUNTRY_INFO!G22/(0.5*COUNTRY_INFO!F22+0.2*COUNTRY_INFO!G22),IF(COUNTRY_INFO!K22=3,COUNTRY_INFO!G22/(COUNTRY_INFO!F22+COUNTRY_INFO!G22)))),0) -> 0.4401233795 | AP22: =MAX(COUNTRY_INFO!D22*AK22*PROFILE!$G$7,COUNTRY_INFO!D22*AL22*PROFILE!$G$7) -> 0 | AQ22: =MAX(COUNTRY_INFO!D22*AK22*PROFILE!$G$8,COUNTRY_INFO!D22*AL22*PROFILE!$G$8,COUNTRY_INFO!D22*AM22*PROFILE!$G$8) -> 44332.1264 | AR22: =MAX(COUNTRY_INFO!D22*AK22*PROFILE!$G$9,COUNTRY_INFO!D22*AL22*PROFILE!$G$9,COUNTRY_INFO!D22*AM22*PROFILE!$G$9,IF(AND(DISTRICT!Z22<>"Unknown",Z22<>"Not required"),COUNTRY_INFO!O22*DISTRICT!AN22,0)) -> 109125.5363 | AS22: =MAX(COUNTRY_INFO!D22*AK22*PROFILE!$G$10,COUNTRY_INFO!D22*AL22*PROFILE!$G$10,IF(AND(DISTRICT!Z22<>"Unknown",Z22<>"Not required"),COUNTRY_INFO!O22*DISTRICT!AO22,0)) -> 22192.6915 | AT22: 175650.3542 | AU22: Y | AV22: =MAX('MDA2'!J22,'MDA5'!J22,'T1'!L22,'T2'!J22,T3_R1!K22,T3_R2!K22) -> 35585 | AW22: =MAX('MDA1'!K22,'MDA2'!K22,'MDA3'!I22,'MDA3'!L22,'MDA5'!K22,'T1'!M22,'T2'!K22,T3_R1!L22,T3_R2!L22) -> 93686 | AX22: =MAX('MDA1'!L22,'MDA2'!L22,'MDA3'!J22,'MDA3'!M22,'MDA5'!L22,'T1'!N22,'T2'!L22,T3_R1!M22,T3_R2!M22) -> 230309 | AY22: 359580 | AZ22: =MAX('MDA2'!J22,'MDA5'!J22,T22) -> 35585 | BA22: =MAX('MDA1'!K22,'MDA2'!K22,'MDA3'!I22,'MDA3'!L22,'MDA5'!K22,V22,AD22) -> 93686 | BB22: =MAX('MDA1'!L22,'MDA2'!L22,'MDA3'!J22,'MDA3'!M22,'MDA5'!L22,AF22) -> 42892.4 | BC22: 172163.4 | BD22: 98.01483223
A23: =IF(COUNTRY_INFO!A23=0," ",COUNTRY_INFO!A23) -> RWANDA | B23: =IF(COUNTRY_INFO!B23=0," ",COUNTRY_INFO!B23) -> Northern | C23: =IF(COUNTRY_INFO!C23=0," ",COUNTRY_INFO!C23) -> Musanze | D23: =COUNTRY_INFO!L23 -> Not required | G23: =MAX('MDA1'!M23,'MDA2'!M23,'MDA5'!M23) -> 0 | H23: =IF(AND(COUNTRY_INFO!H23>0,COUNTRY_INFO!H23<4),IF(D23>MAX('MDA1'!M23,'MDA2'!M23,'MDA5'!M23),MAX('MDA1'!M23,'MDA2'!M23,'MDA5'!M23),D23),0) -> 0 | I23: =IF(AND(COUNTRY_INFO!H23>0,COUNTRY_INFO!H23<4), IF(G23/D23*100<>0, IF(G23/D23*100>100,100,G23/D23*100), "-"),0) -> 0 | J23: =COUNTRY_INFO!M23 -> Not required | M23: =MAX('MDA1'!M23,MAX('MDA3'!I23,'MDA3'!L23)+MAX('MDA3'!J23,'MDA3'!M23)) -> 0 | N23: =IF(AND(COUNTRY_INFO!I23>0,COUNTRY_INFO!I23<4),IF(J23>MAX('MDA1'!M23,MAX('MDA3'!I23,'MDA3'!L23)+MAX('MDA3'!J23,'MDA3'!M23)),MAX('MDA1'!M23,MAX('MDA3'!I23,'MDA3'!L23)+MAX('MDA3'!J23,'MDA3'!M23)),J23),0) -> 0 | O23: =IF(AND(COUNTRY_INFO!I23>0,COUNTRY_INFO!I23<4), IF(M23/J23*100<>0, IF(M23/J23*100>100,100,M23/J23*100), "-"),0) -> 0 | P23: =COUNTRY_INFO!N23 -> 182592 | S23: =SUM(MAX('MDA2'!J23,'MDA5'!J23, 'T1'!L23, MAX(T3_R1!K23, T3_R2!K23)), MAX('MDA1'!K23, 'MDA2'!K23, 'MDA5'!K23,'T1'!M23, MAX(T3_R1!L23, T3_R2!L23)), MAX('MDA1'!L23, 'MDA2'!L23, 'MDA5'!L23,'T1'!N23, MAX(T3_R1!M23, T3_R2!M23))) -> 472408 | T23: =IF(AND(COUNTRY_INFO!J23>1,COUNTRY_INFO!J23<4),IF(COUNTRY_INFO!E23>MAX('MDA2'!J23,'MDA5'!J23,'T1'!L23,MAX(T3_R1!K23,T3_R2!K23)),MAX('MDA2'!J23,'MDA5'!J23,'T1'!L23,MAX(T3_R1!K23,T3_R2!K23)),COUNTRY_INFO!E23),0) -> 52277 | U23: =IF(AND(COUNTRY_INFO!J23>1,COUNTRY_INFO!J23<4), IF(T23/COUNTRY_INFO!E23*100<>0, IF(T23/COUNTRY_INFO!E23*100>100,100,T23/COUNTRY_INFO!E23*100), "-"),0) -> 99.10519631 | V23: =IF(AND(COUNTRY_INFO!J23>1,COUNTRY_INFO!J23<4),IF(COUNTRY_INFO!F23>MAX('MDA1'!K23,'MDA2'!K23,'MDA5'!K23,'T1'!M23,MAX(T3_R1!L23,T3_R2!L23)),MAX('MDA1'!K23,'MDA2'!K23,'MDA5'!K23,'T1'!M23,MAX(T3_R1!L23,T3_R2!L23)),COUNTRY_INFO!F23),0) -> 118053 | W23: =IF(AND(COUNTRY_INFO!J23>1,COUNTRY_INFO!J23<4), IF(V23/COUNTRY_INFO!F23*100<>0, IF(V23/COUNTRY_INFO!F23*100>100,100,V23/COUNTRY_INFO!F23*100), "-"),0) -> 90.91980315 | X23: 170330 | Y23: =IF(AND(COUNTRY_INFO!J23>1,COUNTRY_INFO!J23<4), IF(S23/P23*100<>0, IF(X23/P23*100>100,100,X23/P23*100), "-"),0) -> 93.28448125 | Z23: =COUNTRY_INFO!O23 -> 23087.052 | AC23: =MAX('T1'!L23,'T2'!J23)+MAX('T1'!M23,'T2'!K23)+MAX('T1'!N23,'T2'!L23) -> 107810 | AD23: =IF(COUNTRY_INFO!K23=1,IF(COUNTRY_INFO!F23*0.33>MAX('T1'!M23,'T2'!K23),MAX('T1'!M23,'T2'!K23),COUNTRY_INFO!F23*0.33),IF(COUNTRY_INFO!K23=2,IF(COUNTRY_INFO!F23*0.5>MAX('T1'!M23,'T2'!K23),MAX('T1'!M23,'T2'!K23),COUNTRY_INFO!F23*0.5),IF(COUNTRY_INFO!K23=3,IF(COUNTRY_INFO!F23>MAX('T1'!M23,'T2'!K23),MAX('T1'!M23,'T2'!K23),COUNTRY_INFO!F23),0))) -> 30572 | AE23: =IF(AND(COUNTRY_INFO!K23>0,COUNTRY_INFO!K23<4),IF(Z23>0,IF(COUNTRY_INFO!K23=1, AD23/(COUNTRY_INFO!F23*0.33)*100, IF(COUNTRY_INFO!K23=2, AD23/(COUNTRY_INFO!F23*0.5)*100, IF(COUNTRY_INFO!K23=3, AD23/COUNTRY_INFO!F23*100))),"-"),0) -> 47.09071725 | AF23: =IF(COUNTRY_INFO!K23=2,IF(COUNTRY_INFO!G23*0.2>MAX('T1'!N23,'T2'!L23),MAX('T1'!N23,'T2'!L23),COUNTRY_INFO!G23*0.2),IF(COUNTRY_INFO!K23=3,IF(COUNTRY_INFO!G23>MAX('T1'!N23,'T2'!L23),MAX('T1'!N23,'T2'!L23),COUNTRY_INFO!G23),0)) -> 51035.4 | AG23: =IF(AND(COUNTRY_INFO!K23>0,COUNTRY_INFO!K23<4),IF(Z23>0,IF(COUNTRY_INFO!K23=1, 0, IF(COUNTRY_INFO!K23=2, AF23/(COUNTRY_INFO!G23*0.2)*100, IF(COUNTRY_INFO!K23=3, AF23/COUNTRY_INFO!G23*100))),"-"),0) -> 100 | AH23: 81607.4 | AI23: =IF(AND(COUNTRY_INFO!K23>0,COUNTRY_INFO!K23<4), IF(AC23/Z23*100<>0, IF(AH23/Z23*100>100,100,AH23/Z23*100), "-"),0) -> 100 | AK23: =IF(AND(D23<>0, D23<>"Unknown",D23<>"Stopped",D23<>"Not required"),D23/COUNTRY_INFO!D23, 0) -> 0 | AL23: =IF(AND(J23<>0,J23<>"Unknown",J23<>"Stopped",J23<>"Not required"),J23/COUNTRY_INFO!D23, 0) -> 0 | AM23: =IF(AND(P23<>0,P23<>"Unknown",P23<>"Not required"),P23/(COUNTRY_INFO!E23+COUNTRY_INFO!F23), 0) -> 1 | AN23: =IF(AND(Z23<>0,Z23<>"Unknown",Z23<>"Not required"),IF(COUNTRY_INFO!K23=1,1,IF(COUNTRY_INFO!K23=2,0.5*COUNTRY_INFO!F23/(0.5*COUNTRY_INFO!F23+0.2*COUNTRY_INFO!G23),IF(COUNTRY_INFO!K23=3,COUNTRY_INFO!F23/(COUNTRY_INFO!F23+COUNTRY_INFO!G23)))),0) -> 0.5598761264 | AO23: =IF(AND(Z23<>0,Z23<>"Unknown",Z23<>"Not required"),IF(COUNTRY_INFO!K23=1,0,IF(COUNTRY_INFO!K23=2,0.2*COUNTRY_INFO!G23/(0.5*COUNTRY_INFO!F23+0.2*COUNTRY_INFO!G23),IF(COUNTRY_INFO!K23=3,COUNTRY_INFO!G23/(COUNTRY_INFO!F23+COUNTRY_INFO!G23)))),0) -> 0.4401238736 | AP23: =MAX(COUNTRY_INFO!D23*AK23*PROFILE!$G$7,COUNTRY_INFO!D23*AL23*PROFILE!$G$7) -> 0 | AQ23: =MAX(COUNTRY_INFO!D23*AK23*PROFILE!$G$8,COUNTRY_INFO!D23*AL23*PROFILE!$G$8,COUNTRY_INFO!D23*AM23*PROFILE!$G$8) -> 52748.50059 | AR23: =MAX(COUNTRY_INFO!D23*AK23*PROFILE!$G$9,COUNTRY_INFO!D23*AL23*PROFILE!$G$9,COUNTRY_INFO!D23*AM23*PROFILE!$G$9,IF(AND(DISTRICT!Z23<>"Unknown",Z23<>"Not required"),COUNTRY_INFO!O23*DISTRICT!AN23,0)) -> 129842.8225 | AS23: =MAX(COUNTRY_INFO!D23*AK23*PROFILE!$G$10,COUNTRY_INFO!D23*AL23*PROFILE!$G$10,IF(AND(DISTRICT!Z23<>"Unknown",Z23<>"Not required"),COUNTRY_INFO!O23*DISTRICT!AO23,0)) -> 10161.16276 | AT23: 192752.4858 | AU23: Y | AV23: =MAX('MDA2'!J23,'MDA5'!J23,'T1'!L23,'T2'!J23,T3_R1!K23,T3_R2!K23) -> 52277 | AW23: =MAX('MDA1'!K23,'MDA2'!K23,'MDA3'!I23,'MDA3'!L23,'MDA5'!K23,'T1'!M23,'T2'!K23,T3_R1!L23,T3_R2!L23) -> 118053 | AX23: =MAX('MDA1'!L23,'MDA2'!L23,'MDA3'!J23,'MDA3'!M23,'MDA5'!L23,'T1'!N23,'T2'!L23,T3_R1!M23,T3_R2!M23) -> 302078 | AY23: 472408 | AZ23: =MAX('MDA2'!J23,'MDA5'!J23,T23) -> 52277 | BA23: =MAX('MDA1'!K23,'MDA2'!K23,'MDA3'!I23,'MDA3'!L23,'MDA5'!K23,V23,AD23) -> 118053 | BB23: =MAX('MDA1'!L23,'MDA2'!L23,'MDA3'!J23,'MDA3'!M23,'MDA5'!L23,AF23) -> 51035.4 | BC23: 192752.4858 | BD23: 100
A24: =IF(COUNTRY_INFO!A24=0," ",COUNTRY_INFO!A24) -> RWANDA | B24: =IF(COUNTRY_INFO!B24=0," ",COUNTRY_INFO!B24) -> Eastern | C24: =IF(COUNTRY_INFO!C24=0," ",COUNTRY_INFO!C24) -> Ngoma | D24: =COUNTRY_INFO!L24 -> Not required | G24: =MAX('MDA1'!M24,'MDA2'!M24,'MDA5'!M24) -> 0 | H24: =IF(AND(COUNTRY_INFO!H24>0,COUNTRY_INFO!H24<4),IF(D24>MAX('MDA1'!M24,'MDA2'!M24,'MDA5'!M24),MAX('MDA1'!M24,'MDA2'!M24,'MDA5'!M24),D24),0) -> 0 | I24: =IF(AND(COUNTRY_INFO!H24>0,COUNTRY_INFO!H24<4), IF(G24/D24*100<>0, IF(G24/D24*100>100,100,G24/D24*100), "-"),0) -> 0 | J24: =COUNTRY_INFO!M24 -> Not required | M24: =MAX('MDA1'!M24,MAX('MDA3'!I24,'MDA3'!L24)+MAX('MDA3'!J24,'MDA3'!M24)) -> 0 | N24: =IF(AND(COUNTRY_INFO!I24>0,COUNTRY_INFO!I24<4),IF(J24>MAX('MDA1'!M24,MAX('MDA3'!I24,'MDA3'!L24)+MAX('MDA3'!J24,'MDA3'!M24)),MAX('MDA1'!M24,MAX('MDA3'!I24,'MDA3'!L24)+MAX('MDA3'!J24,'MDA3'!M24)),J24),0) -> 0 | O24: =IF(AND(COUNTRY_INFO!I24>0,COUNTRY_INFO!I24<4), IF(M24/J24*100<>0, IF(M24/J24*100>100,100,M24/J24*100), "-"),0) -> 0 | P24: =COUNTRY_INFO!N24 -> 0 | S24: =SUM(MAX('MDA2'!J24,'MDA5'!J24, 'T1'!L24, MAX(T3_R1!K24, T3_R2!K24)), MAX('MDA1'!K24, 'MDA2'!K24, 'MDA5'!K24,'T1'!M24, MAX(T3_R1!L24, T3_R2!L24)), MAX('MDA1'!L24, 'MDA2'!L24, 'MDA5'!L24,'T1'!N24, MAX(T3_R1!M24, T3_R2!M24))) -> 379407 | T24: =IF(AND(COUNTRY_INFO!J24>1,COUNTRY_INFO!J24<4),IF(COUNTRY_INFO!E24>MAX('MDA2'!J24,'MDA5'!J24,'T1'!L24,MAX(T3_R1!K24,T3_R2!K24)),MAX('MDA2'!J24,'MDA5'!J24,'T1'!L24,MAX(T3_R1!K24,T3_R2!K24)),COUNTRY_INFO!E24),0) -> 0 | U24: =IF(AND(COUNTRY_INFO!J24>1,COUNTRY_INFO!J24<4), IF(T24/COUNTRY_INFO!E24*100<>0, IF(T24/COUNTRY_INFO!E24*100>100,100,T24/COUNTRY_INFO!E24*100), "-"),0) -> 0 | V24: =IF(AND(COUNTRY_INFO!J24>1,COUNTRY_INFO!J24<4),IF(COUNTRY_INFO!F24>MAX('MDA1'!K24,'MDA2'!K24,'MDA5'!K24,'T1'!M24,MAX(T3_R1!L24,T3_R2!L24)),MAX('MDA1'!K24,'MDA2'!K24,'MDA5'!K24,'T1'!M24,MAX(T3_R1!L24,T3_R2!L24)),COUNTRY_INFO!F24),0) -> 0 | W24: =IF(AND(COUNTRY_INFO!J24>1,COUNTRY_INFO!J24<4), IF(V24/COUNTRY_INFO!F24*100<>0, IF(V24/COUNTRY_INFO!F24*100>100,100,V24/COUNTRY_INFO!F24*100), "-"),0) -> 0 | X24: 0 | Y24: =IF(AND(COUNTRY_INFO!J24>1,COUNTRY_INFO!J24<4), IF(S24/P24*100<>0, IF(X24/P24*100>100,100,X24/P24*100), "-"),0) -> 0 | Z24: =COUNTRY_INFO!O24 -> 63313.434 | AC24: =MAX('T1'!L24,'T2'!J24)+MAX('T1'!M24,'T2'!K24)+MAX('T1'!N24,'T2'!L24) -> 254600 | AD24: =IF(COUNTRY_INFO!K24=1,IF(COUNTRY_INFO!F24*0.33>MAX('T1'!M24,'T2'!K24),MAX('T1'!M24,'T2'!K24),COUNTRY_INFO!F24*0.33),IF(COUNTRY_INFO!K24=2,IF(COUNTRY_INFO!F24*0.5>MAX('T1'!M24,'T2'!K24),MAX('T1'!M24,'T2'!K24),COUNTRY_INFO!F24*0.5),IF(COUNTRY_INFO!K24=3,IF(COUNTRY_INFO!F24>MAX('T1'!M24,'T2'!K24),MAX('T1'!M24,'T2'!K24),COUNTRY_INFO!F24),0))) -> 64100 | AE24: =IF(AND(COUNTRY_INFO!K24>0,COUNTRY_INFO!K24<4),IF(Z24>0,IF(COUNTRY_INFO!K24=1, AD24/(COUNTRY_INFO!F24*0.33)*100, IF(COUNTRY_INFO!K24=2, AD24/(COUNTRY_INFO!F24*0.5)*100, IF(COUNTRY_INFO!K24=3, AD24/COUNTRY_INFO!F24*100))),"-"),0) -> 100 | AF24: =IF(COUNTRY_INFO!K24=2,IF(COUNTRY_INFO!G24*0.2>MAX('T1'!N24,'T2'!L24),MAX('T1'!N24,'T2'!L24),COUNTRY_INFO!G24*0.2),IF(COUNTRY_INFO!K24=3,IF(COUNTRY_INFO!G24>MAX('T1'!N24,'T2'!L24),MAX('T1'!N24,'T2'!L24),COUNTRY_INFO!G24),0)) -> 50389.6 | AG24: =IF(AND(COUNTRY_INFO!K24>0,COUNTRY_INFO!K24<4),IF(Z24>0,IF(COUNTRY_INFO!K24=1, 0, IF(COUNTRY_INFO!K24=2, AF24/(COUNTRY_INFO!G24*0.2)*100, IF(COUNTRY_INFO!K24=3, AF24/COUNTRY_INFO!G24*100))),"-"),0) -> 100 | AH24: 114489.6 | AI24: =IF(AND(COUNTRY_INFO!K24>0,COUNTRY_INFO!K24<4), IF(AC24/Z24*100<>0, IF(AH24/Z24*100>100,100,AH24/Z24*100), "-"),0) -> 100 | AK24: =IF(AND(D24<>0, D24<>"Unknown",D24<>"Stopped",D24<>"Not required"),D24/COUNTRY_INFO!D24, 0) -> 0 | AL24: =IF(AND(J24<>0,J24<>"Unknown",J24<>"Stopped",J24<>"Not required"),J24/COUNTRY_INFO!D24, 0) -> 0 | AM24: =IF(AND(P24<>0,P24<>"Unknown",P24<>"Not required"),P24/(COUNTRY_INFO!E24+COUNTRY_INFO!F24), 0) -> 0 | AN24: =IF(AND(Z24<>0,Z24<>"Unknown",Z24<>"Not required"),IF(COUNTRY_INFO!K24=1,1,IF(COUNTRY_INFO!K24=2,0.5*COUNTRY_INFO!F24/(0.5*COUNTRY_INFO!F24+0.2*COUNTRY_INFO!G24),IF(COUNTRY_INFO!K24=3,COUNTRY_INFO!F24/(COUNTRY_INFO!F24+COUNTRY_INFO!G24)))),0) -> 0.5598761809 | AO24: =IF(AND(Z24<>0,Z24<>"Unknown",Z24<>"Not required"),IF(COUNTRY_INFO!K24=1,0,IF(COUNTRY_INFO!K24=2,0.2*COUNTRY_INFO!G24/(0.5*COUNTRY_INFO!F24+0.2*COUNTRY_INFO!G24),IF(COUNTRY_INFO!K24=3,COUNTRY_INFO!G24/(COUNTRY_INFO!F24+COUNTRY_INFO!G24)))),0) -> 0.4401238191 | AP24: =MAX(COUNTRY_INFO!D24*AK24*PROFILE!$G$7,COUNTRY_INFO!D24*AL24*PROFILE!$G$7) -> 0 | AQ24: =MAX(COUNTRY_INFO!D24*AK24*PROFILE!$G$8,COUNTRY_INFO!D24*AL24*PROFILE!$G$8,COUNTRY_INFO!D24*AM24*PROFILE!$G$8) -> 0 | AR24: =MAX(COUNTRY_INFO!D24*AK24*PROFILE!$G$9,COUNTRY_INFO!D24*AL24*PROFILE!$G$9,COUNTRY_INFO!D24*AM24*PROFILE!$G$9,IF(AND(DISTRICT!Z24<>"Unknown",Z24<>"Not required"),COUNTRY_INFO!O24*DISTRICT!AN24,0)) -> 35447.68363 | AS24: =MAX(COUNTRY_INFO!D24*AK24*PROFILE!$G$10,COUNTRY_INFO!D24*AL24*PROFILE!$G$10,IF(AND(DISTRICT!Z24<>"Unknown",Z24<>"Not required"),COUNTRY_INFO!O24*DISTRICT!AO24,0)) -> 27865.75037 | AT24: 63313.434 | AU24: Y | AV24: =MAX('MDA2'!J24,'MDA5'!J24,'T1'!L24,'T2'!J24,T3_R1!K24,T3_R2!K24) -> 45678 | AW24: =MAX('MDA1'!K24,'MDA2'!K24,'MDA3'!I24,'MDA3'!L24,'MDA5'!K24,'T1'!M24,'T2'!K24,T3_R1!L24,T3_R2!L24) -> 111682 | AX24: =MAX('MDA1'!L24,'MDA2'!L24,'MDA3'!J24,'MDA3'!M24,'MDA5'!L24,'T1'!N24,'T2'!L24,T3_R1!M24,T3_R2!M24) -> 222047 | AY24: 379407 | AZ24: =MAX('MDA2'!J24,'MDA5'!J24,T24) -> 0 | BA24: =MAX('MDA1'!K24,'MDA2'!K24,'MDA3'!I24,'MDA3'!L24,'MDA5'!K24,V24,AD24) -> 64100 | BB24: =MAX('MDA1'!L24,'MDA2'!L24,'MDA3'!J24,'MDA3'!M24,'MDA5'!L24,AF24) -> 50389.6 | BC24: 63313.434 | BD24: 100
A25: =IF(COUNTRY_INFO!A25=0," ",COUNTRY_INFO!A25) -> RWANDA | B25: =IF(COUNTRY_INFO!B25=0," ",COUNTRY_INFO!B25) -> Western | C25: =IF(COUNTRY_INFO!C25=0," ",COUNTRY_INFO!C25) -> Ngororero | D25: =COUNTRY_INFO!L25 -> Not required | G25: =MAX('MDA1'!M25,'MDA2'!M25,'MDA5'!M25) -> 0 | H25: =IF(AND(COUNTRY_INFO!H25>0,COUNTRY_INFO!H25<4),IF(D25>MAX('MDA1'!M25,'MDA2'!M25,'MDA5'!M25),MAX('MDA1'!M25,'MDA2'!M25,'MDA5'!M25),D25),0) -> 0 | I25: =IF(AND(COUNTRY_INFO!H25>0,COUNTRY_INFO!H25<4), IF(G25/D25*100<>0, IF(G25/D25*100>100,100,G25/D25*100), "-"),0) -> 0 | J25: =COUNTRY_INFO!M25 -> Not required | M25: =MAX('MDA1'!M25,MAX('MDA3'!I25,'MDA3'!L25)+MAX('MDA3'!J25,'MDA3'!M25)) -> 0 | N25: =IF(AND(COUNTRY_INFO!I25>0,COUNTRY_INFO!I25<4),IF(J25>MAX('MDA1'!M25,MAX('MDA3'!I25,'MDA3'!L25)+MAX('MDA3'!J25,'MDA3'!M25)),MAX('MDA1'!M25,MAX('MDA3'!I25,'MDA3'!L25)+MAX('MDA3'!J25,'MDA3'!M25)),J25),0) -> 0 | O25: =IF(AND(COUNTRY_INFO!I25>0,COUNTRY_INFO!I25<4), IF(M25/J25*100<>0, IF(M25/J25*100>100,100,M25/J25*100), "-"),0) -> 0 | P25: =COUNTRY_INFO!N25 -> 164634 | S25: =SUM(MAX('MDA2'!J25,'MDA5'!J25, 'T1'!L25, MAX(T3_R1!K25, T3_R2!K25)), MAX('MDA1'!K25, 'MDA2'!K25, 'MDA5'!K25,'T1'!M25, MAX(T3_R1!L25, T3_R2!L25)), MAX('MDA1'!L25, 'MDA2'!L25, 'MDA5'!L25,'T1'!N25, MAX(T3_R1!M25, T3_R2!M25))) -> 380252 | T25: =IF(AND(COUNTRY_INFO!J25>1,COUNTRY_INFO!J25<4),IF(COUNTRY_INFO!E25>MAX('MDA2'!J25,'MDA5'!J25,'T1'!L25,MAX(T3_R1!K25,T3_R2!K25)),MAX('MDA2'!J25,'MDA5'!J25,'T1'!L25,MAX(T3_R1!K25,T3_R2!K25)),COUNTRY_INFO!E25),0) -> 45956 | U25: =IF(AND(COUNTRY_INFO!J25>1,COUNTRY_INFO!J25<4), IF(T25/COUNTRY_INFO!E25*100<>0, IF(T25/COUNTRY_INFO!E25*100>100,100,T25/COUNTRY_INFO!E25*100), "-"),0) -> 96.62538635 | V25: =IF(AND(COUNTRY_INFO!J25>1,COUNTRY_INFO!J25<4),IF(COUNTRY_INFO!F25>MAX('MDA1'!K25,'MDA2'!K25,'MDA5'!K25,'T1'!M25,MAX(T3_R1!L25,T3_R2!L25)),MAX('MDA1'!K25,'MDA2'!K25,'MDA5'!K25,'T1'!M25,MAX(T3_R1!L25,T3_R2!L25)),COUNTRY_INFO!F25),0) -> 106626 | W25: =IF(AND(COUNTRY_INFO!J25>1,COUNTRY_INFO!J25<4), IF(V25/COUNTRY_INFO!F25*100<>0, IF(V25/COUNTRY_INFO!F25*100>100,100,V25/COUNTRY_INFO!F25*100), "-"),0) -> 91.07650782 | X25: 152582 | Y25: =IF(AND(COUNTRY_INFO!J25>1,COUNTRY_INFO!J25<4), IF(S25/P25*100<>0, IF(X25/P25*100>100,100,X25/P25*100), "-"),0) -> 92.67951942 | Z25: =COUNTRY_INFO!O25 -> 29224.584 | AC25: =MAX('T1'!L25,'T2'!J25)+MAX('T1'!M25,'T2'!K25)+MAX('T1'!N25,'T2'!L25) -> 69591 | AD25: =IF(COUNTRY_INFO!K25=1,IF(COUNTRY_INFO!F25*0.33>MAX('T1'!M25,'T2'!K25),MAX('T1'!M25,'T2'!K25),COUNTRY_INFO!F25*0.33),IF(COUNTRY_INFO!K25=2,IF(COUNTRY_INFO!F25*0.5>MAX('T1'!M25,'T2'!K25),MAX('T1'!M25,'T2'!K25),COUNTRY_INFO!F25*0.5),IF(COUNTRY_INFO!K25=3,IF(COUNTRY_INFO!F25>MAX('T1'!M25,'T2'!K25),MAX('T1'!M25,'T2'!K25),COUNTRY_INFO!F25),0))) -> 21352 | AE25: =IF(AND(COUNTRY_INFO!K25>0,COUNTRY_INFO!K25<4),IF(Z25>0,IF(COUNTRY_INFO!K25=1, AD25/(COUNTRY_INFO!F25*0.33)*100, IF(COUNTRY_INFO!K25=2, AD25/(COUNTRY_INFO!F25*0.5)*100, IF(COUNTRY_INFO!K25=3, AD25/COUNTRY_INFO!F25*100))),"-"),0) -> 36.47638653 | AF25: =IF(COUNTRY_INFO!K25=2,IF(COUNTRY_INFO!G25*0.2>MAX('T1'!N25,'T2'!L25),MAX('T1'!N25,'T2'!L25),COUNTRY_INFO!G25*0.2),IF(COUNTRY_INFO!K25=3,IF(COUNTRY_INFO!G25>MAX('T1'!N25,'T2'!L25),MAX('T1'!N25,'T2'!L25),COUNTRY_INFO!G25),0)) -> 46016.4 | AG25: =IF(AND(COUNTRY_INFO!K25>0,COUNTRY_INFO!K25<4),IF(Z25>0,IF(COUNTRY_INFO!K25=1, 0, IF(COUNTRY_INFO!K25=2, AF25/(COUNTRY_INFO!G25*0.2)*100, IF(COUNTRY_INFO!K25=3, AF25/COUNTRY_INFO!G25*100))),"-"),0) -> 100 | AH25: 67368.4 | AI25: =IF(AND(COUNTRY_INFO!K25>0,COUNTRY_INFO!K25<4), IF(AC25/Z25*100<>0, IF(AH25/Z25*100>100,100,AH25/Z25*100), "-"),0) -> 100 | AK25: =IF(AND(D25<>0, D25<>"Unknown",D25<>"Stopped",D25<>"Not required"),D25/COUNTRY_INFO!D25, 0) -> 0 | AL25: =IF(AND(J25<>0,J25<>"Unknown",J25<>"Stopped",J25<>"Not required"),J25/COUNTRY_INFO!D25, 0) -> 0 | AM25: =IF(AND(P25<>0,P25<>"Unknown",P25<>"Not required"),P25/(COUNTRY_INFO!E25+COUNTRY_INFO!F25), 0) -> 1 | AN25: =IF(AND(Z25<>0,Z25<>"Unknown",Z25<>"Not required"),IF(COUNTRY_INFO!K25=1,1,IF(COUNTRY_INFO!K25=2,0.5*COUNTRY_INFO!F25/(0.5*COUNTRY_INFO!F25+0.2*COUNTRY_INFO!G25),IF(COUNTRY_INFO!K25=3,COUNTRY_INFO!F25/(COUNTRY_INFO!F25+COUNTRY_INFO!G25)))),0) -> 0.559874475 | AO25: =IF(AND(Z25<>0,Z25<>"Unknown",Z25<>"Not required"),IF(COUNTRY_INFO!K25=1,0,IF(COUNTRY_INFO!K25=2,0.2*COUNTRY_INFO!G25/(0.5*COUNTRY_INFO!F25+0.2*COUNTRY_INFO!G25),IF(COUNTRY_INFO!K25=3,COUNTRY_INFO!G25/(COUNTRY_INFO!F25+COUNTRY_INFO!G25)))),0) -> 0.440125525 | AP25: =MAX(COUNTRY_INFO!D25*AK25*PROFILE!$G$7,COUNTRY_INFO!D25*AL25*PROFILE!$G$7) -> 0 | AQ25: =MAX(COUNTRY_INFO!D25*AK25*PROFILE!$G$8,COUNTRY_INFO!D25*AL25*PROFILE!$G$8,COUNTRY_INFO!D25*AM25*PROFILE!$G$8) -> 47560.96742 | AR25: =MAX(COUNTRY_INFO!D25*AK25*PROFILE!$G$9,COUNTRY_INFO!D25*AL25*PROFILE!$G$9,COUNTRY_INFO!D25*AM25*PROFILE!$G$9,IF(AND(DISTRICT!Z25<>"Unknown",Z25<>"Not required"),COUNTRY_INFO!O25*DISTRICT!AN25,0)) -> 117073.4747 | AS25: =MAX(COUNTRY_INFO!D25*AK25*PROFILE!$G$10,COUNTRY_INFO!D25*AL25*PROFILE!$G$10,IF(AND(DISTRICT!Z25<>"Unknown",Z25<>"Not required"),COUNTRY_INFO!O25*DISTRICT!AO25,0)) -> 12862.48538 | AT25: 177496.9275 | AU25: Y | AV25: =MAX('MDA2'!J25,'MDA5'!J25,'T1'!L25,'T2'!J25,T3_R1!K25,T3_R2!K25) -> 45956 | AW25: =MAX('MDA1'!K25,'MDA2'!K25,'MDA3'!I25,'MDA3'!L25,'MDA5'!K25,'T1'!M25,'T2'!K25,T3_R1!L25,T3_R2!L25) -> 106626 | AX25: =MAX('MDA1'!L25,'MDA2'!L25,'MDA3'!J25,'MDA3'!M25,'MDA5'!L25,'T1'!N25,'T2'!L25,T3_R1!M25,T3_R2!M25) -> 227670 | AY25: 380252 | AZ25: =MAX('MDA2'!J25,'MDA5'!J25,T25) -> 45956 | BA25: =MAX('MDA1'!K25,'MDA2'!K25,'MDA3'!I25,'MDA3'!L25,'MDA5'!K25,V25,AD25) -> 106626 | BB25: =MAX('MDA1'!L25,'MDA2'!L25,'MDA3'!J25,'MDA3'!M25,'MDA5'!L25,AF25) -> 46016.4 | BC25: 177496.9275 | BD25: 100
A26: =IF(COUNTRY_INFO!A26=0," ",COUNTRY_INFO!A26) -> RWANDA | B26: =IF(COUNTRY_INFO!B26=0," ",COUNTRY_INFO!B26) -> Western | C26: =IF(COUNTRY_INFO!C26=0," ",COUNTRY_INFO!C26) -> Nyabihu | D26: =COUNTRY_INFO!L26 -> Not required | G26: =MAX('MDA1'!M26,'MDA2'!M26,'MDA5'!M26) -> 0 | H26: =IF(AND(COUNTRY_INFO!H26>0,COUNTRY_INFO!H26<4),IF(D26>MAX('MDA1'!M26,'MDA2'!M26,'MDA5'!M26),MAX('MDA1'!M26,'MDA2'!M26,'MDA5'!M26),D26),0) -> 0 | I26: =IF(AND(COUNTRY_INFO!H26>0,COUNTRY_INFO!H26<4), IF(G26/D26*100<>0, IF(G26/D26*100>100,100,G26/D26*100), "-"),0) -> 0 | J26: =COUNTRY_INFO!M26 -> Not required | M26: =MAX('MDA1'!M26,MAX('MDA3'!I26,'MDA3'!L26)+MAX('MDA3'!J26,'MDA3'!M26)) -> 0 | N26: =IF(AND(COUNTRY_INFO!I26>0,COUNTRY_INFO!I26<4),IF(J26>MAX('MDA1'!M26,MAX('MDA3'!I26,'MDA3'!L26)+MAX('MDA3'!J26,'MDA3'!M26)),MAX('MDA1'!M26,MAX('MDA3'!I26,'MDA3'!L26)+MAX('MDA3'!J26,'MDA3'!M26)),J26),0) -> 0 | O26: =IF(AND(COUNTRY_INFO!I26>0,COUNTRY_INFO!I26<4), IF(M26/J26*100<>0, IF(M26/J26*100>100,100,M26/J26*100), "-"),0) -> 0 | P26: =COUNTRY_INFO!N26 -> 141567 | S26: =SUM(MAX('MDA2'!J26,'MDA5'!J26, 'T1'!L26, MAX(T3_R1!K26, T3_R2!K26)), MAX('MDA1'!K26, 'MDA2'!K26, 'MDA5'!K26,'T1'!M26, MAX(T3_R1!L26, T3_R2!L26)), MAX('MDA1'!L26, 'MDA2'!L26, 'MDA5'!L26,'T1'!N26, MAX(T3_R1!M26, T3_R2!M26))) -> 346554 | T26: =IF(AND(COUNTRY_INFO!J26>1,COUNTRY_INFO!J26<4),IF(COUNTRY_INFO!E26>MAX('MDA2'!J26,'MDA5'!J26,'T1'!L26,MAX(T3_R1!K26,T3_R2!K26)),MAX('MDA2'!J26,'MDA5'!J26,'T1'!L26,MAX(T3_R1!K26,T3_R2!K26)),COUNTRY_INFO!E26),0) -> 40664 | U26: =IF(AND(COUNTRY_INFO!J26>1,COUNTRY_INFO!J26<4), IF(T26/COUNTRY_INFO!E26*100<>0, IF(T26/COUNTRY_INFO!E26*100>100,100,T26/COUNTRY_INFO!E26*100), "-"),0) -> 99.43027606 | V26: =IF(AND(COUNTRY_INFO!J26>1,COUNTRY_INFO!J26<4),IF(COUNTRY_INFO!F26>MAX('MDA1'!K26,'MDA2'!K26,'MDA5'!K26,'T1'!M26,MAX(T3_R1!L26,T3_R2!L26)),MAX('MDA1'!K26,'MDA2'!K26,'MDA5'!K26,'T1'!M26,MAX(T3_R1!L26,T3_R2!L26)),COUNTRY_INFO!F26),0) -> 100439 | W26: =IF(AND(COUNTRY_INFO!J26>1,COUNTRY_INFO!J26<4), IF(V26/COUNTRY_INFO!F26*100<>0, IF(V26/COUNTRY_INFO!F26*100>100,100,V26/COUNTRY_INFO!F26*100), "-"),0) -> 99.7705374 | X26: 141103 | Y26: =IF(AND(COUNTRY_INFO!J26>1,COUNTRY_INFO!J26<4), IF(S26/P26*100<>0, IF(X26/P26*100>100,100,X26/P26*100), "-"),0) -> 99.67224 | Z26: =COUNTRY_INFO!O26 -> 23132.196 | AC26: =MAX('T1'!L26,'T2'!J26)+MAX('T1'!M26,'T2'!K26)+MAX('T1'!N26,'T2'!L26) -> 89592 | AD26: =IF(COUNTRY_INFO!K26=1,IF(COUNTRY_INFO!F26*0.33>MAX('T1'!M26,'T2'!K26),MAX('T1'!M26,'T2'!K26),COUNTRY_INFO!F26*0.33),IF(COUNTRY_INFO!K26=2,IF(COUNTRY_INFO!F26*0.5>MAX('T1'!M26,'T2'!K26),MAX('T1'!M26,'T2'!K26),COUNTRY_INFO!F26*0.5),IF(COUNTRY_INFO!K26=3,IF(COUNTRY_INFO!F26>MAX('T1'!M26,'T2'!K26),MAX('T1'!M26,'T2'!K26),COUNTRY_INFO!F26),0))) -> 33221.1 | AE26: =IF(AND(COUNTRY_INFO!K26>0,COUNTRY_INFO!K26<4),IF(Z26>0,IF(COUNTRY_INFO!K26=1, AD26/(COUNTRY_INFO!F26*0.33)*100, IF(COUNTRY_INFO!K26=2, AD26/(COUNTRY_INFO!F26*0.5)*100, IF(COUNTRY_INFO!K26=3, AD26/COUNTRY_INFO!F26*100))),"-"),0) -> 100 | AF26: =IF(COUNTRY_INFO!K26=2,IF(COUNTRY_INFO!G26*0.2>MAX('T1'!N26,'T2'!L26),MAX('T1'!N26,'T2'!L26),COUNTRY_INFO!G26*0.2),IF(COUNTRY_INFO!K26=3,IF(COUNTRY_INFO!G26>MAX('T1'!N26,'T2'!L26),MAX('T1'!N26,'T2'!L26),COUNTRY_INFO!G26),0)) -> 0 | AG26: =IF(AND(COUNTRY_INFO!K26>0,COUNTRY_INFO!K26<4),IF(Z26>0,IF(COUNTRY_INFO!K26=1, 0, IF(COUNTRY_INFO!K26=2, AF26/(COUNTRY_INFO!G26*0.2)*100, IF(COUNTRY_INFO!K26=3, AF26/COUNTRY_INFO!G26*100))),"-"),0) -> 0 | AH26: 33221.1 | AI26: =IF(AND(COUNTRY_INFO!K26>0,COUNTRY_INFO!K26<4), IF(AC26/Z26*100<>0, IF(AH26/Z26*100>100,100,AH26/Z26*100), "-"),0) -> 100 | AK26: =IF(AND(D26<>0, D26<>"Unknown",D26<>"Stopped",D26<>"Not required"),D26/COUNTRY_INFO!D26, 0) -> 0 | AL26: =IF(AND(J26<>0,J26<>"Unknown",J26<>"Stopped",J26<>"Not required"),J26/COUNTRY_INFO!D26, 0) -> 0 | AM26: =IF(AND(P26<>0,P26<>"Unknown",P26<>"Not required"),P26/(COUNTRY_INFO!E26+COUNTRY_INFO!F26), 0) -> 1 | AN26: =IF(AND(Z26<>0,Z26<>"Unknown",Z26<>"Not required"),IF(COUNTRY_INFO!K26=1,1,IF(COUNTRY_INFO!K26=2,0.5*COUNTRY_INFO!F26/(0.5*COUNTRY_INFO!F26+0.2*COUNTRY_INFO!G26),IF(COUNTRY_INFO!K26=3,COUNTRY_INFO!F26/(COUNTRY_INFO!F26+COUNTRY_INFO!G26)))),0) -> 1 | AO26: =IF(AND(Z26<>0,Z26<>"Unknown",Z26<>"Not required"),IF(COUNTRY_INFO!K26=1,0,IF(COUNTRY_INFO!K26=2,0.2*COUNTRY_INFO!G26/(0.5*COUNTRY_INFO!F26+0.2*COUNTRY_INFO!G26),IF(COUNTRY_INFO!K26=3,COUNTRY_INFO!G26/(COUNTRY_INFO!F26+COUNTRY_INFO!G26)))),0) -> 0 | AP26: =MAX(COUNTRY_INFO!D26*AK26*PROFILE!$G$7,COUNTRY_INFO!D26*AL26*PROFILE!$G$7) -> 0 | AQ26: =MAX(COUNTRY_INFO!D26*AK26*PROFILE!$G$8,COUNTRY_INFO!D26*AL26*PROFILE!$G$8,COUNTRY_INFO!D26*AM26*PROFILE!$G$8) -> 40897.01489 | AR26: =MAX(COUNTRY_INFO!D26*AK26*PROFILE!$G$9,COUNTRY_INFO!D26*AL26*PROFILE!$G$9,COUNTRY_INFO!D26*AM26*PROFILE!$G$9,IF(AND(DISTRICT!Z26<>"Unknown",Z26<>"Not required"),COUNTRY_INFO!O26*DISTRICT!AN26,0)) -> 100669.8538 | AS26: =MAX(COUNTRY_INFO!D26*AK26*PROFILE!$G$10,COUNTRY_INFO!D26*AL26*PROFILE!$G$10,IF(AND(DISTRICT!Z26<>"Unknown",Z26<>"Not required"),COUNTRY_INFO!O26*DISTRICT!AO26,0)) -> 0 | AT26: 141566.8687 | AU26: Y | AV26: =MAX('MDA2'!J26,'MDA5'!J26,'T1'!L26,'T2'!J26,T3_R1!K26,T3_R2!K26) -> 40664 | AW26: =MAX('MDA1'!K26,'MDA2'!K26,'MDA3'!I26,'MDA3'!L26,'MDA5'!K26,'T1'!M26,'T2'!K26,T3_R1!L26,T3_R2!L26) -> 100439 | AX26: =MAX('MDA1'!L26,'MDA2'!L26,'MDA3'!J26,'MDA3'!M26,'MDA5'!L26,'T1'!N26,'T2'!L26,T3_R1!M26,T3_R2!M26) -> 205451 | AY26: 346554 | AZ26: =MAX('MDA2'!J26,'MDA5'!J26,T26) -> 40664 | BA26: =MAX('MDA1'!K26,'MDA2'!K26,'MDA3'!I26,'MDA3'!L26,'MDA5'!K26,V26,AD26) -> 100439 | BB26: =MAX('MDA1'!L26,'MDA2'!L26,'MDA3'!J26,'MDA3'!M26,'MDA5'!L26,AF26) -> 0 | BC26: 141103 | BD26: 99.67233244
A27: =IF(COUNTRY_INFO!A27=0," ",COUNTRY_INFO!A27) -> RWANDA | B27: =IF(COUNTRY_INFO!B27=0," ",COUNTRY_INFO!B27) -> Eastern | C27: =IF(COUNTRY_INFO!C27=0," ",COUNTRY_INFO!C27) -> Nyagatare | D27: =COUNTRY_INFO!L27 -> Not required | G27: =MAX('MDA1'!M27,'MDA2'!M27,'MDA5'!M27) -> 0 | H27: =IF(AND(COUNTRY_INFO!H27>0,COUNTRY_INFO!H27<4),IF(D27>MAX('MDA1'!M27,'MDA2'!M27,'MDA5'!M27),MAX('MDA1'!M27,'MDA2'!M27,'MDA5'!M27),D27),0) -> 0 | I27: =IF(AND(COUNTRY_INFO!H27>0,COUNTRY_INFO!H27<4), IF(G27/D27*100<>0, IF(G27/D27*100>100,100,G27/D27*100), "-"),0) -> 0 | J27: =COUNTRY_INFO!M27 -> Not required | M27: =MAX('MDA1'!M27,MAX('MDA3'!I27,'MDA3'!L27)+MAX('MDA3'!J27,'MDA3'!M27)) -> 0 | N27: =IF(AND(COUNTRY_INFO!I27>0,COUNTRY_INFO!I27<4),IF(J27>MAX('MDA1'!M27,MAX('MDA3'!I27,'MDA3'!L27)+MAX('MDA3'!J27,'MDA3'!M27)),MAX('MDA1'!M27,MAX('MDA3'!I27,'MDA3'!L27)+MAX('MDA3'!J27,'MDA3'!M27)),J27),0) -> 0 | O27: =IF(AND(COUNTRY_INFO!I27>0,COUNTRY_INFO!I27<4), IF(M27/J27*100<>0, IF(M27/J27*100>100,100,M27/J27*100), "-"),0) -> 0 | P27: =COUNTRY_INFO!N27 -> 277480 | S27: =SUM(MAX('MDA2'!J27,'MDA5'!J27, 'T1'!L27, MAX(T3_R1!K27, T3_R2!K27)), MAX('MDA1'!K27, 'MDA2'!K27, 'MDA5'!K27,'T1'!M27, MAX(T3_R1!L27, T3_R2!L27)), MAX('MDA1'!L27, 'MDA2'!L27, 'MDA5'!L27,'T1'!N27, MAX(T3_R1!M27, T3_R2!M27))) -> 633249 | T27: =IF(AND(COUNTRY_INFO!J27>1,COUNTRY_INFO!J27<4),IF(COUNTRY_INFO!E27>MAX('MDA2'!J27,'MDA5'!J27,'T1'!L27,MAX(T3_R1!K27,T3_R2!K27)),MAX('MDA2'!J27,'MDA5'!J27,'T1'!L27,MAX(T3_R1!K27,T3_R2!K27)),COUNTRY_INFO!E27),0) -> 80161 | U27: =IF(AND(COUNTRY_INFO!J27>1,COUNTRY_INFO!J27<4), IF(T27/COUNTRY_INFO!E27*100<>0, IF(T27/COUNTRY_INFO!E27*100>100,100,T27/COUNTRY_INFO!E27*100), "-"),0) -> 100 | V27: =IF(AND(COUNTRY_INFO!J27>1,COUNTRY_INFO!J27<4),IF(COUNTRY_INFO!F27>MAX('MDA1'!K27,'MDA2'!K27,'MDA5'!K27,'T1'!M27,MAX(T3_R1!L27,T3_R2!L27)),MAX('MDA1'!K27,'MDA2'!K27,'MDA5'!K27,'T1'!M27,MAX(T3_R1!L27,T3_R2!L27)),COUNTRY_INFO!F27),0) -> 187547 | W27: =IF(AND(COUNTRY_INFO!J27>1,COUNTRY_INFO!J27<4), IF(V27/COUNTRY_INFO!F27*100<>0, IF(V27/COUNTRY_INFO!F27*100>100,100,V27/COUNTRY_INFO!F27*100), "-"),0) -> 95.04761326 | X27: 267708 | Y27: =IF(AND(COUNTRY_INFO!J27>1,COUNTRY_INFO!J27<4), IF(S27/P27*100<>0, IF(X27/P27*100>100,100,X27/P27*100), "-"),0) -> 96.47830474 | Z27: =COUNTRY_INFO!O27 -> 60934.14 | AC27: =MAX('T1'!L27,'T2'!J27)+MAX('T1'!M27,'T2'!K27)+MAX('T1'!N27,'T2'!L27) -> 268866 | AD27: =IF(COUNTRY_INFO!K27=1,IF(COUNTRY_INFO!F27*0.33>MAX('T1'!M27,'T2'!K27),MAX('T1'!M27,'T2'!K27),COUNTRY_INFO!F27*0.33),IF(COUNTRY_INFO!K27=2,IF(COUNTRY_INFO!F27*0.5>MAX('T1'!M27,'T2'!K27),MAX('T1'!M27,'T2'!K27),COUNTRY_INFO!F27*0.5),IF(COUNTRY_INFO!K27=3,IF(COUNTRY_INFO!F27>MAX('T1'!M27,'T2'!K27),MAX('T1'!M27,'T2'!K27),COUNTRY_INFO!F27),0))) -> 77734 | AE27: =IF(AND(COUNTRY_INFO!K27>0,COUNTRY_INFO!K27<4),IF(Z27>0,IF(COUNTRY_INFO!K27=1, AD27/(COUNTRY_INFO!F27*0.33)*100, IF(COUNTRY_INFO!K27=2, AD27/(COUNTRY_INFO!F27*0.5)*100, IF(COUNTRY_INFO!K27=3, AD27/COUNTRY_INFO!F27*100))),"-"),0) -> 78.7901824 | AF27: =IF(COUNTRY_INFO!K27=2,IF(COUNTRY_INFO!G27*0.2>MAX('T1'!N27,'T2'!L27),MAX('T1'!N27,'T2'!L27),COUNTRY_INFO!G27*0.2),IF(COUNTRY_INFO!K27=3,IF(COUNTRY_INFO!G27>MAX('T1'!N27,'T2'!L27),MAX('T1'!N27,'T2'!L27),COUNTRY_INFO!G27),0)) -> 77557.4 | AG27: =IF(AND(COUNTRY_INFO!K27>0,COUNTRY_INFO!K27<4),IF(Z27>0,IF(COUNTRY_INFO!K27=1, 0, IF(COUNTRY_INFO!K27=2, AF27/(COUNTRY_INFO!G27*0.2)*100, IF(COUNTRY_INFO!K27=3, AF27/COUNTRY_INFO!G27*100))),"-"),0) -> 100 | AH27: 155291.4 | AI27: =IF(AND(COUNTRY_INFO!K27>0,COUNTRY_INFO!K27<4), IF(AC27/Z27*100<>0, IF(AH27/Z27*100>100,100,AH27/Z27*100), "-"),0) -> 100 | AK27: =IF(AND(D27<>0, D27<>"Unknown",D27<>"Stopped",D27<>"Not required"),D27/COUNTRY_INFO!D27, 0) -> 0 | AL27: =IF(AND(J27<>0,J27<>"Unknown",J27<>"Stopped",J27<>"Not required"),J27/COUNTRY_INFO!D27, 0) -> 0 | AM27: =IF(AND(P27<>0,P27<>"Unknown",P27<>"Not required"),P27/(COUNTRY_INFO!E27+COUNTRY_INFO!F27), 0) -> 1 | AN27: =IF(AND(Z27<>0,Z27<>"Unknown",Z27<>"Not required"),IF(COUNTRY_INFO!K27=1,1,IF(COUNTRY_INFO!K27=2,0.5*COUNTRY_INFO!F27/(0.5*COUNTRY_INFO!F27+0.2*COUNTRY_INFO!G27),IF(COUNTRY_INFO!K27=3,COUNTRY_INFO!F27/(COUNTRY_INFO!F27+COUNTRY_INFO!G27)))),0) -> 0.5598753582 | AO27: =IF(AND(Z27<>0,Z27<>"Unknown",Z27<>"Not required"),IF(COUNTRY_INFO!K27=1,0,IF(COUNTRY_INFO!K27=2,0.2*COUNTRY_INFO!G27/(0.5*COUNTRY_INFO!F27+0.2*COUNTRY_INFO!G27),IF(COUNTRY_INFO!K27=3,COUNTRY_INFO!G27/(COUNTRY_INFO!F27+COUNTRY_INFO!G27)))),0) -> 0.4401246418 | AP27: =MAX(COUNTRY_INFO!D27*AK27*PROFILE!$G$7,COUNTRY_INFO!D27*AL27*PROFILE!$G$7) -> 0 | AQ27: =MAX(COUNTRY_INFO!D27*AK27*PROFILE!$G$8,COUNTRY_INFO!D27*AL27*PROFILE!$G$8,COUNTRY_INFO!D27*AM27*PROFILE!$G$8) -> 80160.71382 | AR27: =MAX(COUNTRY_INFO!D27*AK27*PROFILE!$G$9,COUNTRY_INFO!D27*AL27*PROFILE!$G$9,COUNTRY_INFO!D27*AM27*PROFILE!$G$9,IF(AND(DISTRICT!Z27<>"Unknown",Z27<>"Not required"),COUNTRY_INFO!O27*DISTRICT!AN27,0)) -> 197319.2264 | AS27: =MAX(COUNTRY_INFO!D27*AK27*PROFILE!$G$10,COUNTRY_INFO!D27*AL27*PROFILE!$G$10,IF(AND(DISTRICT!Z27<>"Unknown",Z27<>"Not required"),COUNTRY_INFO!O27*DISTRICT!AO27,0)) -> 26818.61654 | AT27: 304298.5568 | AU27: Y | AV27: =MAX('MDA2'!J27,'MDA5'!J27,'T1'!L27,'T2'!J27,T3_R1!K27,T3_R2!K27) -> 88332 | AW27: =MAX('MDA1'!K27,'MDA2'!K27,'MDA3'!I27,'MDA3'!L27,'MDA5'!K27,'T1'!M27,'T2'!K27,T3_R1!L27,T3_R2!L27) -> 187547 | AX27: =MAX('MDA1'!L27,'MDA2'!L27,'MDA3'!J27,'MDA3'!M27,'MDA5'!L27,'T1'!N27,'T2'!L27,T3_R1!M27,T3_R2!M27) -> 357370 | AY27: 633249 | AZ27: =MAX('MDA2'!J27,'MDA5'!J27,T27) -> 80161 | BA27: =MAX('MDA1'!K27,'MDA2'!K27,'MDA3'!I27,'MDA3'!L27,'MDA5'!K27,V27,AD27) -> 187547 | BB27: =MAX('MDA1'!L27,'MDA2'!L27,'MDA3'!J27,'MDA3'!M27,'MDA5'!L27,AF27) -> 77557.4 | BC27: 304298.5568 | BD27: 100
A28: =IF(COUNTRY_INFO!A28=0," ",COUNTRY_INFO!A28) -> RWANDA | B28: =IF(COUNTRY_INFO!B28=0," ",COUNTRY_INFO!B28) -> Southern | C28: =IF(COUNTRY_INFO!C28=0," ",COUNTRY_INFO!C28) -> Nyamagabe | D28: =COUNTRY_INFO!L28 -> Not required | G28: =MAX('MDA1'!M28,'MDA2'!M28,'MDA5'!M28) -> 0 | H28: =IF(AND(COUNTRY_INFO!H28>0,COUNTRY_INFO!H28<4),IF(D28>MAX('MDA1'!M28,'MDA2'!M28,'MDA5'!M28),MAX('MDA1'!M28,'MDA2'!M28,'MDA5'!M28),D28),0) -> 0 | I28: =IF(AND(COUNTRY_INFO!H28>0,COUNTRY_INFO!H28<4), IF(G28/D28*100<>0, IF(G28/D28*100>100,100,G28/D28*100), "-"),0) -> 0 | J28: =COUNTRY_INFO!M28 -> Not required | M28: =MAX('MDA1'!M28,MAX('MDA3'!I28,'MDA3'!L28)+MAX('MDA3'!J28,'MDA3'!M28)) -> 0 | N28: =IF(AND(COUNTRY_INFO!I28>0,COUNTRY_INFO!I28<4),IF(J28>MAX('MDA1'!M28,MAX('MDA3'!I28,'MDA3'!L28)+MAX('MDA3'!J28,'MDA3'!M28)),MAX('MDA1'!M28,MAX('MDA3'!I28,'MDA3'!L28)+MAX('MDA3'!J28,'MDA3'!M28)),J28),0) -> 0 | O28: =IF(AND(COUNTRY_INFO!I28>0,COUNTRY_INFO!I28<4), IF(M28/J28*100<>0, IF(M28/J28*100>100,100,M28/J28*100), "-"),0) -> 0 | P28: =COUNTRY_INFO!N28 -> 170783 | S28: =SUM(MAX('MDA2'!J28,'MDA5'!J28, 'T1'!L28, MAX(T3_R1!K28, T3_R2!K28)), MAX('MDA1'!K28, 'MDA2'!K28, 'MDA5'!K28,'T1'!M28, MAX(T3_R1!L28, T3_R2!L28)), MAX('MDA1'!L28, 'MDA2'!L28, 'MDA5'!L28,'T1'!N28, MAX(T3_R1!M28, T3_R2!M28))) -> 387550 | T28: =IF(AND(COUNTRY_INFO!J28>1,COUNTRY_INFO!J28<4),IF(COUNTRY_INFO!E28>MAX('MDA2'!J28,'MDA5'!J28,'T1'!L28,MAX(T3_R1!K28,T3_R2!K28)),MAX('MDA2'!J28,'MDA5'!J28,'T1'!L28,MAX(T3_R1!K28,T3_R2!K28)),COUNTRY_INFO!E28),0) -> 41513 | U28: =IF(AND(COUNTRY_INFO!J28>1,COUNTRY_INFO!J28<4), IF(T28/COUNTRY_INFO!E28*100<>0, IF(T28/COUNTRY_INFO!E28*100>100,100,T28/COUNTRY_INFO!E28*100), "-"),0) -> 84.1417192 | V28: =IF(AND(COUNTRY_INFO!J28>1,COUNTRY_INFO!J28<4),IF(COUNTRY_INFO!F28>MAX('MDA1'!K28,'MDA2'!K28,'MDA5'!K28,'T1'!M28,MAX(T3_R1!L28,T3_R2!L28)),MAX('MDA1'!K28,'MDA2'!K28,'MDA5'!K28,'T1'!M28,MAX(T3_R1!L28,T3_R2!L28)),COUNTRY_INFO!F28),0) -> 111558 | W28: =IF(AND(COUNTRY_INFO!J28>1,COUNTRY_INFO!J28<4), IF(V28/COUNTRY_INFO!F28*100<>0, IF(V28/COUNTRY_INFO!F28*100>100,100,V28/COUNTRY_INFO!F28*100), "-"),0) -> 91.85810978 | X28: 153071 | Y28: =IF(AND(COUNTRY_INFO!J28>1,COUNTRY_INFO!J28<4), IF(S28/P28*100<>0, IF(X28/P28*100>100,100,X28/P28*100), "-"),0) -> 89.62894433 | Z28: =COUNTRY_INFO!O28 -> 46590.66 | AC28: =MAX('T1'!L28,'T2'!J28)+MAX('T1'!M28,'T2'!K28)+MAX('T1'!N28,'T2'!L28) -> 115599 | AD28: =IF(COUNTRY_INFO!K28=1,IF(COUNTRY_INFO!F28*0.33>MAX('T1'!M28,'T2'!K28),MAX('T1'!M28,'T2'!K28),COUNTRY_INFO!F28*0.33),IF(COUNTRY_INFO!K28=2,IF(COUNTRY_INFO!F28*0.5>MAX('T1'!M28,'T2'!K28),MAX('T1'!M28,'T2'!K28),COUNTRY_INFO!F28*0.5),IF(COUNTRY_INFO!K28=3,IF(COUNTRY_INFO!F28>MAX('T1'!M28,'T2'!K28),MAX('T1'!M28,'T2'!K28),COUNTRY_INFO!F28),0))) -> 40077.18 | AE28: =IF(AND(COUNTRY_INFO!K28>0,COUNTRY_INFO!K28<4),IF(Z28>0,IF(COUNTRY_INFO!K28=1, AD28/(COUNTRY_INFO!F28*0.33)*100, IF(COUNTRY_INFO!K28=2, AD28/(COUNTRY_INFO!F28*0.5)*100, IF(COUNTRY_INFO!K28=3, AD28/COUNTRY_INFO!F28*100))),"-"),0) -> 100 | AF28: =IF(COUNTRY_INFO!K28=2,IF(COUNTRY_INFO!G28*0.2>MAX('T1'!N28,'T2'!L28),MAX('T1'!N28,'T2'!L28),COUNTRY_INFO!G28*0.2),IF(COUNTRY_INFO!K28=3,IF(COUNTRY_INFO!G28>MAX('T1'!N28,'T2'!L28),MAX('T1'!N28,'T2'!L28),COUNTRY_INFO!G28),0)) -> 0 | AG28: =IF(AND(COUNTRY_INFO!K28>0,COUNTRY_INFO!K28<4),IF(Z28>0,IF(COUNTRY_INFO!K28=1, 0, IF(COUNTRY_INFO!K28=2, AF28/(COUNTRY_INFO!G28*0.2)*100, IF(COUNTRY_INFO!K28=3, AF28/COUNTRY_INFO!G28*100))),"-"),0) -> 0 | AH28: 40077.18 | AI28: =IF(AND(COUNTRY_INFO!K28>0,COUNTRY_INFO!K28<4), IF(AC28/Z28*100<>0, IF(AH28/Z28*100>100,100,AH28/Z28*100), "-"),0) -> 86.01977306 | AK28: =IF(AND(D28<>0, D28<>"Unknown",D28<>"Stopped",D28<>"Not required"),D28/COUNTRY_INFO!D28, 0) -> 0 | AL28: =IF(AND(J28<>0,J28<>"Unknown",J28<>"Stopped",J28<>"Not required"),J28/COUNTRY_INFO!D28, 0) -> 0 | AM28: =IF(AND(P28<>0,P28<>"Unknown",P28<>"Not required"),P28/(COUNTRY_INFO!E28+COUNTRY_INFO!F28), 0) -> 1 | AN28: =IF(AND(Z28<>0,Z28<>"Unknown",Z28<>"Not required"),IF(COUNTRY_INFO!K28=1,1,IF(COUNTRY_INFO!K28=2,0.5*COUNTRY_INFO!F28/(0.5*COUNTRY_INFO!F28+0.2*COUNTRY_INFO!G28),IF(COUNTRY_INFO!K28=3,COUNTRY_INFO!F28/(COUNTRY_INFO!F28+COUNTRY_INFO!G28)))),0) -> 1 | AO28: =IF(AND(Z28<>0,Z28<>"Unknown",Z28<>"Not required"),IF(COUNTRY_INFO!K28=1,0,IF(COUNTRY_INFO!K28=2,0.2*COUNTRY_INFO!G28/(0.5*COUNTRY_INFO!F28+0.2*COUNTRY_INFO!G28),IF(COUNTRY_INFO!K28=3,COUNTRY_INFO!G28/(COUNTRY_INFO!F28+COUNTRY_INFO!G28)))),0) -> 0 | AP28: =MAX(COUNTRY_INFO!D28*AK28*PROFILE!$G$7,COUNTRY_INFO!D28*AL28*PROFILE!$G$7) -> 0 | AQ28: =MAX(COUNTRY_INFO!D28*AK28*PROFILE!$G$8,COUNTRY_INFO!D28*AL28*PROFILE!$G$8,COUNTRY_INFO!D28*AM28*PROFILE!$G$8) -> 49337.14002 | AR28: =MAX(COUNTRY_INFO!D28*AK28*PROFILE!$G$9,COUNTRY_INFO!D28*AL28*PROFILE!$G$9,COUNTRY_INFO!D28*AM28*PROFILE!$G$9,IF(AND(DISTRICT!Z28<>"Unknown",Z28<>"Not required"),COUNTRY_INFO!O28*DISTRICT!AN28,0)) -> 121445.604 | AS28: =MAX(COUNTRY_INFO!D28*AK28*PROFILE!$G$10,COUNTRY_INFO!D28*AL28*PROFILE!$G$10,IF(AND(DISTRICT!Z28<>"Unknown",Z28<>"Not required"),COUNTRY_INFO!O28*DISTRICT!AO28,0)) -> 0 | AT28: 170782.744 | AU28: Y | AV28: =MAX('MDA2'!J28,'MDA5'!J28,'T1'!L28,'T2'!J28,T3_R1!K28,T3_R2!K28) -> 41513 | AW28: =MAX('MDA1'!K28,'MDA2'!K28,'MDA3'!I28,'MDA3'!L28,'MDA5'!K28,'T1'!M28,'T2'!K28,T3_R1!L28,T3_R2!L28) -> 111558 | AX28: =MAX('MDA1'!L28,'MDA2'!L28,'MDA3'!J28,'MDA3'!M28,'MDA5'!L28,'T1'!N28,'T2'!L28,T3_R1!M28,T3_R2!M28) -> 234479 | AY28: 387550 | AZ28: =MAX('MDA2'!J28,'MDA5'!J28,T28) -> 41513 | BA28: =MAX('MDA1'!K28,'MDA2'!K28,'MDA3'!I28,'MDA3'!L28,'MDA5'!K28,V28,AD28) -> 111558 | BB28: =MAX('MDA1'!L28,'MDA2'!L28,'MDA3'!J28,'MDA3'!M28,'MDA5'!L28,AF28) -> 0 | BC28: 153071 | BD28: 89.62907869
A29: =IF(COUNTRY_INFO!A29=0," ",COUNTRY_INFO!A29) -> RWANDA | B29: =IF(COUNTRY_INFO!B29=0," ",COUNTRY_INFO!B29) -> Western | C29: =IF(COUNTRY_INFO!C29=0," ",COUNTRY_INFO!C29) -> Nyamasheke | D29: =COUNTRY_INFO!L29 -> Not required | G29: =MAX('MDA1'!M29,'MDA2'!M29,'MDA5'!M29) -> 0 | H29: =IF(AND(COUNTRY_INFO!H29>0,COUNTRY_INFO!H29<4),IF(D29>MAX('MDA1'!M29,'MDA2'!M29,'MDA5'!M29),MAX('MDA1'!M29,'MDA2'!M29,'MDA5'!M29),D29),0) -> 0 | I29: =IF(AND(COUNTRY_INFO!H29>0,COUNTRY_INFO!H29<4), IF(G29/D29*100<>0, IF(G29/D29*100>100,100,G29/D29*100), "-"),0) -> 0 | J29: =COUNTRY_INFO!M29 -> Not required | M29: =MAX('MDA1'!M29,MAX('MDA3'!I29,'MDA3'!L29)+MAX('MDA3'!J29,'MDA3'!M29)) -> 0 | N29: =IF(AND(COUNTRY_INFO!I29>0,COUNTRY_INFO!I29<4),IF(J29>MAX('MDA1'!M29,MAX('MDA3'!I29,'MDA3'!L29)+MAX('MDA3'!J29,'MDA3'!M29)),MAX('MDA1'!M29,MAX('MDA3'!I29,'MDA3'!L29)+MAX('MDA3'!J29,'MDA3'!M29)),J29),0) -> 0 | O29: =IF(AND(COUNTRY_INFO!I29>0,COUNTRY_INFO!I29<4), IF(M29/J29*100<>0, IF(M29/J29*100>100,100,M29/J29*100), "-"),0) -> 0 | P29: =COUNTRY_INFO!N29 -> 188470 | S29: =SUM(MAX('MDA2'!J29,'MDA5'!J29, 'T1'!L29, MAX(T3_R1!K29, T3_R2!K29)), MAX('MDA1'!K29, 'MDA2'!K29, 'MDA5'!K29,'T1'!M29, MAX(T3_R1!L29, T3_R2!L29)), MAX('MDA1'!L29, 'MDA2'!L29, 'MDA5'!L29,'T1'!N29, MAX(T3_R1!M29, T3_R2!M29))) -> 418972 | T29: =IF(AND(COUNTRY_INFO!J29>1,COUNTRY_INFO!J29<4),IF(COUNTRY_INFO!E29>MAX('MDA2'!J29,'MDA5'!J29,'T1'!L29,MAX(T3_R1!K29,T3_R2!K29)),MAX('MDA2'!J29,'MDA5'!J29,'T1'!L29,MAX(T3_R1!K29,T3_R2!K29)),COUNTRY_INFO!E29),0) -> 54447 | U29: =IF(AND(COUNTRY_INFO!J29>1,COUNTRY_INFO!J29<4), IF(T29/COUNTRY_INFO!E29*100<>0, IF(T29/COUNTRY_INFO!E29*100>100,100,T29/COUNTRY_INFO!E29*100), "-"),0) -> 100 | V29: =IF(AND(COUNTRY_INFO!J29>1,COUNTRY_INFO!J29<4),IF(COUNTRY_INFO!F29>MAX('MDA1'!K29,'MDA2'!K29,'MDA5'!K29,'T1'!M29,MAX(T3_R1!L29,T3_R2!L29)),MAX('MDA1'!K29,'MDA2'!K29,'MDA5'!K29,'T1'!M29,MAX(T3_R1!L29,T3_R2!L29)),COUNTRY_INFO!F29),0) -> 125691 | W29: =IF(AND(COUNTRY_INFO!J29>1,COUNTRY_INFO!J29<4), IF(V29/COUNTRY_INFO!F29*100<>0, IF(V29/COUNTRY_INFO!F29*100>100,100,V29/COUNTRY_INFO!F29*100), "-"),0) -> 93.78315662 | X29: 180138 | Y29: =IF(AND(COUNTRY_INFO!J29>1,COUNTRY_INFO!J29<4), IF(S29/P29*100<>0, IF(X29/P29*100>100,100,X29/P29*100), "-"),0) -> 95.57913726 | Z29: =COUNTRY_INFO!O29 -> 99784.656 | AC29: =MAX('T1'!L29,'T2'!J29)+MAX('T1'!M29,'T2'!K29)+MAX('T1'!N29,'T2'!L29) -> 317442 | AD29: =IF(COUNTRY_INFO!K29=1,IF(COUNTRY_INFO!F29*0.33>MAX('T1'!M29,'T2'!K29),MAX('T1'!M29,'T2'!K29),COUNTRY_INFO!F29*0.33),IF(COUNTRY_INFO!K29=2,IF(COUNTRY_INFO!F29*0.5>MAX('T1'!M29,'T2'!K29),MAX('T1'!M29,'T2'!K29),COUNTRY_INFO!F29*0.5),IF(COUNTRY_INFO!K29=3,IF(COUNTRY_INFO!F29>MAX('T1'!M29,'T2'!K29),MAX('T1'!M29,'T2'!K29),COUNTRY_INFO!F29),0))) -> 67011.5 | AE29: =IF(AND(COUNTRY_INFO!K29>0,COUNTRY_INFO!K29<4),IF(Z29>0,IF(COUNTRY_INFO!K29=1, AD29/(COUNTRY_INFO!F29*0.33)*100, IF(COUNTRY_INFO!K29=2, AD29/(COUNTRY_INFO!F29*0.5)*100, IF(COUNTRY_INFO!K29=3, AD29/COUNTRY_INFO!F29*100))),"-"),0) -> 100 | AF29: =IF(COUNTRY_INFO!K29=2,IF(COUNTRY_INFO!G29*0.2>MAX('T1'!N29,'T2'!L29),MAX('T1'!N29,'T2'!L29),COUNTRY_INFO!G29*0.2),IF(COUNTRY_INFO!K29=3,IF(COUNTRY_INFO!G29>MAX('T1'!N29,'T2'!L29),MAX('T1'!N29,'T2'!L29),COUNTRY_INFO!G29),0)) -> 52678.4 | AG29: =IF(AND(COUNTRY_INFO!K29>0,COUNTRY_INFO!K29<4),IF(Z29>0,IF(COUNTRY_INFO!K29=1, 0, IF(COUNTRY_INFO!K29=2, AF29/(COUNTRY_INFO!G29*0.2)*100, IF(COUNTRY_INFO!K29=3, AF29/COUNTRY_INFO!G29*100))),"-"),0) -> 100 | AH29: 119689.9 | AI29: =IF(AND(COUNTRY_INFO!K29>0,COUNTRY_INFO!K29<4), IF(AC29/Z29*100<>0, IF(AH29/Z29*100>100,100,AH29/Z29*100), "-"),0) -> 100 | AK29: =IF(AND(D29<>0, D29<>"Unknown",D29<>"Stopped",D29<>"Not required"),D29/COUNTRY_INFO!D29, 0) -> 0 | AL29: =IF(AND(J29<>0,J29<>"Unknown",J29<>"Stopped",J29<>"Not required"),J29/COUNTRY_INFO!D29, 0) -> 0 | AM29: =IF(AND(P29<>0,P29<>"Unknown",P29<>"Not required"),P29/(COUNTRY_INFO!E29+COUNTRY_INFO!F29), 0) -> 1 | AN29: =IF(AND(Z29<>0,Z29<>"Unknown",Z29<>"Not required"),IF(COUNTRY_INFO!K29=1,1,IF(COUNTRY_INFO!K29=2,0.5*COUNTRY_INFO!F29/(0.5*COUNTRY_INFO!F29+0.2*COUNTRY_INFO!G29),IF(COUNTRY_INFO!K29=3,COUNTRY_INFO!F29/(COUNTRY_INFO!F29+COUNTRY_INFO!G29)))),0) -> 0.5598759795 | AO29: =IF(AND(Z29<>0,Z29<>"Unknown",Z29<>"Not required"),IF(COUNTRY_INFO!K29=1,0,IF(COUNTRY_INFO!K29=2,0.2*COUNTRY_INFO!G29/(0.5*COUNTRY_INFO!F29+0.2*COUNTRY_INFO!G29),IF(COUNTRY_INFO!K29=3,COUNTRY_INFO!G29/(COUNTRY_INFO!F29+COUNTRY_INFO!G29)))),0) -> 0.4401240205 | AP29: =MAX(COUNTRY_INFO!D29*AK29*PROFILE!$G$7,COUNTRY_INFO!D29*AL29*PROFILE!$G$7) -> 0 | AQ29: =MAX(COUNTRY_INFO!D29*AK29*PROFILE!$G$8,COUNTRY_INFO!D29*AL29*PROFILE!$G$8,COUNTRY_INFO!D29*AM29*PROFILE!$G$8) -> 54446.63439 | AR29: =MAX(COUNTRY_INFO!D29*AK29*PROFILE!$G$9,COUNTRY_INFO!D29*AL29*PROFILE!$G$9,COUNTRY_INFO!D29*AM29*PROFILE!$G$9,IF(AND(DISTRICT!Z29<>"Unknown",Z29<>"Not required"),COUNTRY_INFO!O29*DISTRICT!AN29,0)) -> 134022.8557 | AS29: =MAX(COUNTRY_INFO!D29*AK29*PROFILE!$G$10,COUNTRY_INFO!D29*AL29*PROFILE!$G$10,IF(AND(DISTRICT!Z29<>"Unknown",Z29<>"Not required"),COUNTRY_INFO!O29*DISTRICT!AO29,0)) -> 43917.62398 | AT29: 232387.1141 | AU29: Y | AV29: =MAX('MDA2'!J29,'MDA5'!J29,'T1'!L29,'T2'!J29,T3_R1!K29,T3_R2!K29) -> 55580 | AW29: =MAX('MDA1'!K29,'MDA2'!K29,'MDA3'!I29,'MDA3'!L29,'MDA5'!K29,'T1'!M29,'T2'!K29,T3_R1!L29,T3_R2!L29) -> 125691 | AX29: =MAX('MDA1'!L29,'MDA2'!L29,'MDA3'!J29,'MDA3'!M29,'MDA5'!L29,'T1'!N29,'T2'!L29,T3_R1!M29,T3_R2!M29) -> 237701 | AY29: 418972 | AZ29: =MAX('MDA2'!J29,'MDA5'!J29,T29) -> 54447 | BA29: =MAX('MDA1'!K29,'MDA2'!K29,'MDA3'!I29,'MDA3'!L29,'MDA5'!K29,V29,AD29) -> 125691 | BB29: =MAX('MDA1'!L29,'MDA2'!L29,'MDA3'!J29,'MDA3'!M29,'MDA5'!L29,AF29) -> 52678.4 | BC29: 232387.1141 | BD29: 100
A30: =IF(COUNTRY_INFO!A30=0," ",COUNTRY_INFO!A30) -> RWANDA | B30: =IF(COUNTRY_INFO!B30=0," ",COUNTRY_INFO!B30) -> Southern | C30: =IF(COUNTRY_INFO!C30=0," ",COUNTRY_INFO!C30) -> Nyanza | D30: =COUNTRY_INFO!L30 -> Not required | G30: =MAX('MDA1'!M30,'MDA2'!M30,'MDA5'!M30) -> 0 | H30: =IF(AND(COUNTRY_INFO!H30>0,COUNTRY_INFO!H30<4),IF(D30>MAX('MDA1'!M30,'MDA2'!M30,'MDA5'!M30),MAX('MDA1'!M30,'MDA2'!M30,'MDA5'!M30),D30),0) -> 0 | I30: =IF(AND(COUNTRY_INFO!H30>0,COUNTRY_INFO!H30<4), IF(G30/D30*100<>0, IF(G30/D30*100>100,100,G30/D30*100), "-"),0) -> 0 | J30: =COUNTRY_INFO!M30 -> Not required | M30: =MAX('MDA1'!M30,MAX('MDA3'!I30,'MDA3'!L30)+MAX('MDA3'!J30,'MDA3'!M30)) -> 0 | N30: =IF(AND(COUNTRY_INFO!I30>0,COUNTRY_INFO!I30<4),IF(J30>MAX('MDA1'!M30,MAX('MDA3'!I30,'MDA3'!L30)+MAX('MDA3'!J30,'MDA3'!M30)),MAX('MDA1'!M30,MAX('MDA3'!I30,'MDA3'!L30)+MAX('MDA3'!J30,'MDA3'!M30)),J30),0) -> 0 | O30: =IF(AND(COUNTRY_INFO!I30>0,COUNTRY_INFO!I30<4), IF(M30/J30*100<>0, IF(M30/J30*100>100,100,M30/J30*100), "-"),0) -> 0 | P30: =COUNTRY_INFO!N30 -> 172278 | S30: =SUM(MAX('MDA2'!J30,'MDA5'!J30, 'T1'!L30, MAX(T3_R1!K30, T3_R2!K30)), MAX('MDA1'!K30, 'MDA2'!K30, 'MDA5'!K30,'T1'!M30, MAX(T3_R1!L30, T3_R2!L30)), MAX('MDA1'!L30, 'MDA2'!L30, 'MDA5'!L30,'T1'!N30, MAX(T3_R1!M30, T3_R2!M30))) -> 347544 | T30: =IF(AND(COUNTRY_INFO!J30>1,COUNTRY_INFO!J30<4),IF(COUNTRY_INFO!E30>MAX('MDA2'!J30,'MDA5'!J30,'T1'!L30,MAX(T3_R1!K30,T3_R2!K30)),MAX('MDA2'!J30,'MDA5'!J30,'T1'!L30,MAX(T3_R1!K30,T3_R2!K30)),COUNTRY_INFO!E30),0) -> 35528 | U30: =IF(AND(COUNTRY_INFO!J30>1,COUNTRY_INFO!J30<4), IF(T30/COUNTRY_INFO!E30*100<>0, IF(T30/COUNTRY_INFO!E30*100>100,100,T30/COUNTRY_INFO!E30*100), "-"),0) -> 71.38580241 | V30: =IF(AND(COUNTRY_INFO!J30>1,COUNTRY_INFO!J30<4),IF(COUNTRY_INFO!F30>MAX('MDA1'!K30,'MDA2'!K30,'MDA5'!K30,'T1'!M30,MAX(T3_R1!L30,T3_R2!L30)),MAX('MDA1'!K30,'MDA2'!K30,'MDA5'!K30,'T1'!M30,MAX(T3_R1!L30,T3_R2!L30)),COUNTRY_INFO!F30),0) -> 106708 | W30: =IF(AND(COUNTRY_INFO!J30>1,COUNTRY_INFO!J30<4), IF(V30/COUNTRY_INFO!F30*100<>0, IF(V30/COUNTRY_INFO!F30*100>100,100,V30/COUNTRY_INFO!F30*100), "-"),0) -> 87.10217209 | X30: 142236 | Y30: =IF(AND(COUNTRY_INFO!J30>1,COUNTRY_INFO!J30<4), IF(S30/P30*100<>0, IF(X30/P30*100>100,100,X30/P30*100), "-"),0) -> 82.56190576 | Z30: =COUNTRY_INFO!O30 -> 55050.03 | AC30: =MAX('T1'!L30,'T2'!J30)+MAX('T1'!M30,'T2'!K30)+MAX('T1'!N30,'T2'!L30) -> 194882 | AD30: =IF(COUNTRY_INFO!K30=1,IF(COUNTRY_INFO!F30*0.33>MAX('T1'!M30,'T2'!K30),MAX('T1'!M30,'T2'!K30),COUNTRY_INFO!F30*0.33),IF(COUNTRY_INFO!K30=2,IF(COUNTRY_INFO!F30*0.5>MAX('T1'!M30,'T2'!K30),MAX('T1'!M30,'T2'!K30),COUNTRY_INFO!F30*0.5),IF(COUNTRY_INFO!K30=3,IF(COUNTRY_INFO!F30>MAX('T1'!M30,'T2'!K30),MAX('T1'!M30,'T2'!K30),COUNTRY_INFO!F30),0))) -> 61254.5 | AE30: =IF(AND(COUNTRY_INFO!K30>0,COUNTRY_INFO!K30<4),IF(Z30>0,IF(COUNTRY_INFO!K30=1, AD30/(COUNTRY_INFO!F30*0.33)*100, IF(COUNTRY_INFO!K30=2, AD30/(COUNTRY_INFO!F30*0.5)*100, IF(COUNTRY_INFO!K30=3, AD30/COUNTRY_INFO!F30*100))),"-"),0) -> 100 | AF30: =IF(COUNTRY_INFO!K30=2,IF(COUNTRY_INFO!G30*0.2>MAX('T1'!N30,'T2'!L30),MAX('T1'!N30,'T2'!L30),COUNTRY_INFO!G30*0.2),IF(COUNTRY_INFO!K30=3,IF(COUNTRY_INFO!G30>MAX('T1'!N30,'T2'!L30),MAX('T1'!N30,'T2'!L30),COUNTRY_INFO!G30),0)) -> 48153 | AG30: =IF(AND(COUNTRY_INFO!K30>0,COUNTRY_INFO!K30<4),IF(Z30>0,IF(COUNTRY_INFO!K30=1, 0, IF(COUNTRY_INFO!K30=2, AF30/(COUNTRY_INFO!G30*0.2)*100, IF(COUNTRY_INFO!K30=3, AF30/COUNTRY_INFO!G30*100))),"-"),0) -> 100 | AH30: 109407.5 | AI30: =IF(AND(COUNTRY_INFO!K30>0,COUNTRY_INFO!K30<4), IF(AC30/Z30*100<>0, IF(AH30/Z30*100>100,100,AH30/Z30*100), "-"),0) -> 100 | AK30: =IF(AND(D30<>0, D30<>"Unknown",D30<>"Stopped",D30<>"Not required"),D30/COUNTRY_INFO!D30, 0) -> 0 | AL30: =IF(AND(J30<>0,J30<>"Unknown",J30<>"Stopped",J30<>"Not required"),J30/COUNTRY_INFO!D30, 0) -> 0 | AM30: =IF(AND(P30<>0,P30<>"Unknown",P30<>"Not required"),P30/(COUNTRY_INFO!E30+COUNTRY_INFO!F30), 0) -> 1 | AN30: =IF(AND(Z30<>0,Z30<>"Unknown",Z30<>"Not required"),IF(COUNTRY_INFO!K30=1,1,IF(COUNTRY_INFO!K30=2,0.5*COUNTRY_INFO!F30/(0.5*COUNTRY_INFO!F30+0.2*COUNTRY_INFO!G30),IF(COUNTRY_INFO!K30=3,COUNTRY_INFO!F30/(COUNTRY_INFO!F30+COUNTRY_INFO!G30)))),0) -> 0.5598747801 | AO30: =IF(AND(Z30<>0,Z30<>"Unknown",Z30<>"Not required"),IF(COUNTRY_INFO!K30=1,0,IF(COUNTRY_INFO!K30=2,0.2*COUNTRY_INFO!G30/(0.5*COUNTRY_INFO!F30+0.2*COUNTRY_INFO!G30),IF(COUNTRY_INFO!K30=3,COUNTRY_INFO!G30/(COUNTRY_INFO!F30+COUNTRY_INFO!G30)))),0) -> 0.4401252199 | AP30: =MAX(COUNTRY_INFO!D30*AK30*PROFILE!$G$7,COUNTRY_INFO!D30*AL30*PROFILE!$G$7) -> 0 | AQ30: =MAX(COUNTRY_INFO!D30*AK30*PROFILE!$G$8,COUNTRY_INFO!D30*AL30*PROFILE!$G$8,COUNTRY_INFO!D30*AM30*PROFILE!$G$8) -> 49769.33696 | AR30: =MAX(COUNTRY_INFO!D30*AK30*PROFILE!$G$9,COUNTRY_INFO!D30*AL30*PROFILE!$G$9,COUNTRY_INFO!D30*AM30*PROFILE!$G$9,IF(AND(DISTRICT!Z30<>"Unknown",Z30<>"Not required"),COUNTRY_INFO!O30*DISTRICT!AN30,0)) -> 122509.4763 | AS30: =MAX(COUNTRY_INFO!D30*AK30*PROFILE!$G$10,COUNTRY_INFO!D30*AL30*PROFILE!$G$10,IF(AND(DISTRICT!Z30<>"Unknown",Z30<>"Not required"),COUNTRY_INFO!O30*DISTRICT!AO30,0)) -> 24228.90656 | AT30: 196507.7198 | AU30: Y | AV30: =MAX('MDA2'!J30,'MDA5'!J30,'T1'!L30,'T2'!J30,T3_R1!K30,T3_R2!K30) -> 35528 | AW30: =MAX('MDA1'!K30,'MDA2'!K30,'MDA3'!I30,'MDA3'!L30,'MDA5'!K30,'T1'!M30,'T2'!K30,T3_R1!L30,T3_R2!L30) -> 106708 | AX30: =MAX('MDA1'!L30,'MDA2'!L30,'MDA3'!J30,'MDA3'!M30,'MDA5'!L30,'T1'!N30,'T2'!L30,T3_R1!M30,T3_R2!M30) -> 205308 | AY30: 347544 | AZ30: =MAX('MDA2'!J30,'MDA5'!J30,T30) -> 35528 | BA30: =MAX('MDA1'!K30,'MDA2'!K30,'MDA3'!I30,'MDA3'!L30,'MDA5'!K30,V30,AD30) -> 106708 | BB30: =MAX('MDA1'!L30,'MDA2'!L30,'MDA3'!J30,'MDA3'!M30,'MDA5'!L30,AF30) -> 48153 | BC30: 190389 | BD30: 96.88627001
A31: =IF(COUNTRY_INFO!A31=0," ",COUNTRY_INFO!A31) -> RWANDA | B31: =IF(COUNTRY_INFO!B31=0," ",COUNTRY_INFO!B31) -> Kigali | C31: =IF(COUNTRY_INFO!C31=0," ",COUNTRY_INFO!C31) -> Nyarugenge | D31: =COUNTRY_INFO!L31 -> Not required | G31: =MAX('MDA1'!M31,'MDA2'!M31,'MDA5'!M31) -> 0 | H31: =IF(AND(COUNTRY_INFO!H31>0,COUNTRY_INFO!H31<4),IF(D31>MAX('MDA1'!M31,'MDA2'!M31,'MDA5'!M31),MAX('MDA1'!M31,'MDA2'!M31,'MDA5'!M31),D31),0) -> 0 | I31: =IF(AND(COUNTRY_INFO!H31>0,COUNTRY_INFO!H31<4), IF(G31/D31*100<>0, IF(G31/D31*100>100,100,G31/D31*100), "-"),0) -> 0 | J31: =COUNTRY_INFO!M31 -> Not required | M31: =MAX('MDA1'!M31,MAX('MDA3'!I31,'MDA3'!L31)+MAX('MDA3'!J31,'MDA3'!M31)) -> 0 | N31: =IF(AND(COUNTRY_INFO!I31>0,COUNTRY_INFO!I31<4),IF(J31>MAX('MDA1'!M31,MAX('MDA3'!I31,'MDA3'!L31)+MAX('MDA3'!J31,'MDA3'!M31)),MAX('MDA1'!M31,MAX('MDA3'!I31,'MDA3'!L31)+MAX('MDA3'!J31,'MDA3'!M31)),J31),0) -> 0 | O31: =IF(AND(COUNTRY_INFO!I31>0,COUNTRY_INFO!I31<4), IF(M31/J31*100<>0, IF(M31/J31*100>100,100,M31/J31*100), "-"),0) -> 0 | P31: =COUNTRY_INFO!N31 -> 0 | S31: =SUM(MAX('MDA2'!J31,'MDA5'!J31, 'T1'!L31, MAX(T3_R1!K31, T3_R2!K31)), MAX('MDA1'!K31, 'MDA2'!K31, 'MDA5'!K31,'T1'!M31, MAX(T3_R1!L31, T3_R2!L31)), MAX('MDA1'!L31, 'MDA2'!L31, 'MDA5'!L31,'T1'!N31, MAX(T3_R1!M31, T3_R2!M31))) -> 167978 | T31: =IF(AND(COUNTRY_INFO!J31>1,COUNTRY_INFO!J31<4),IF(COUNTRY_INFO!E31>MAX('MDA2'!J31,'MDA5'!J31,'T1'!L31,MAX(T3_R1!K31,T3_R2!K31)),MAX('MDA2'!J31,'MDA5'!J31,'T1'!L31,MAX(T3_R1!K31,T3_R2!K31)),COUNTRY_INFO!E31),0) -> 0 | U31: =IF(AND(COUNTRY_INFO!J31>1,COUNTRY_INFO!J31<4), IF(T31/COUNTRY_INFO!E31*100<>0, IF(T31/COUNTRY_INFO!E31*100>100,100,T31/COUNTRY_INFO!E31*100), "-"),0) -> 0 | V31: =IF(AND(COUNTRY_INFO!J31>1,COUNTRY_INFO!J31<4),IF(COUNTRY_INFO!F31>MAX('MDA1'!K31,'MDA2'!K31,'MDA5'!K31,'T1'!M31,MAX(T3_R1!L31,T3_R2!L31)),MAX('MDA1'!K31,'MDA2'!K31,'MDA5'!K31,'T1'!M31,MAX(T3_R1!L31,T3_R2!L31)),COUNTRY_INFO!F31),0) -> 0 | W31: =IF(AND(COUNTRY_INFO!J31>1,COUNTRY_INFO!J31<4), IF(V31/COUNTRY_INFO!F31*100<>0, IF(V31/COUNTRY_INFO!F31*100>100,100,V31/COUNTRY_INFO!F31*100), "-"),0) -> 0 | X31: 0 | Y31: =IF(AND(COUNTRY_INFO!J31>1,COUNTRY_INFO!J31<4), IF(S31/P31*100<>0, IF(X31/P31*100>100,100,X31/P31*100), "-"),0) -> 0 | Z31: =COUNTRY_INFO!O31 -> 19435.518 | AC31: =MAX('T1'!L31,'T2'!J31)+MAX('T1'!M31,'T2'!K31)+MAX('T1'!N31,'T2'!L31) -> 72924 | AD31: =IF(COUNTRY_INFO!K31=1,IF(COUNTRY_INFO!F31*0.33>MAX('T1'!M31,'T2'!K31),MAX('T1'!M31,'T2'!K31),COUNTRY_INFO!F31*0.33),IF(COUNTRY_INFO!K31=2,IF(COUNTRY_INFO!F31*0.5>MAX('T1'!M31,'T2'!K31),MAX('T1'!M31,'T2'!K31),COUNTRY_INFO!F31*0.5),IF(COUNTRY_INFO!K31=3,IF(COUNTRY_INFO!F31>MAX('T1'!M31,'T2'!K31),MAX('T1'!M31,'T2'!K31),COUNTRY_INFO!F31),0))) -> 32279 | AE31: =IF(AND(COUNTRY_INFO!K31>0,COUNTRY_INFO!K31<4),IF(Z31>0,IF(COUNTRY_INFO!K31=1, AD31/(COUNTRY_INFO!F31*0.33)*100, IF(COUNTRY_INFO!K31=2, AD31/(COUNTRY_INFO!F31*0.5)*100, IF(COUNTRY_INFO!K31=3, AD31/COUNTRY_INFO!F31*100))),"-"),0) -> 63.35799949 | AF31: =IF(COUNTRY_INFO!K31=2,IF(COUNTRY_INFO!G31*0.2>MAX('T1'!N31,'T2'!L31),MAX('T1'!N31,'T2'!L31),COUNTRY_INFO!G31*0.2),IF(COUNTRY_INFO!K31=3,IF(COUNTRY_INFO!G31>MAX('T1'!N31,'T2'!L31),MAX('T1'!N31,'T2'!L31),COUNTRY_INFO!G31),0)) -> 40050 | AG31: =IF(AND(COUNTRY_INFO!K31>0,COUNTRY_INFO!K31<4),IF(Z31>0,IF(COUNTRY_INFO!K31=1, 0, IF(COUNTRY_INFO!K31=2, AF31/(COUNTRY_INFO!G31*0.2)*100, IF(COUNTRY_INFO!K31=3, AF31/COUNTRY_INFO!G31*100))),"-"),0) -> 100 | AH31: 72329 | AI31: =IF(AND(COUNTRY_INFO!K31>0,COUNTRY_INFO!K31<4), IF(AC31/Z31*100<>0, IF(AH31/Z31*100>100,100,AH31/Z31*100), "-"),0) -> 100 | AK31: =IF(AND(D31<>0, D31<>"Unknown",D31<>"Stopped",D31<>"Not required"),D31/COUNTRY_INFO!D31, 0) -> 0 | AL31: =IF(AND(J31<>0,J31<>"Unknown",J31<>"Stopped",J31<>"Not required"),J31/COUNTRY_INFO!D31, 0) -> 0 | AM31: =IF(AND(P31<>0,P31<>"Unknown",P31<>"Not required"),P31/(COUNTRY_INFO!E31+COUNTRY_INFO!F31), 0) -> 0 | AN31: =IF(AND(Z31<>0,Z31<>"Unknown",Z31<>"Not required"),IF(COUNTRY_INFO!K31=1,1,IF(COUNTRY_INFO!K31=2,0.5*COUNTRY_INFO!F31/(0.5*COUNTRY_INFO!F31+0.2*COUNTRY_INFO!G31),IF(COUNTRY_INFO!K31=3,COUNTRY_INFO!F31/(COUNTRY_INFO!F31+COUNTRY_INFO!G31)))),0) -> 0.5598756003 | AO31: =IF(AND(Z31<>0,Z31<>"Unknown",Z31<>"Not required"),IF(COUNTRY_INFO!K31=1,0,IF(COUNTRY_INFO!K31=2,0.2*COUNTRY_INFO!G31/(0.5*COUNTRY_INFO!F31+0.2*COUNTRY_INFO!G31),IF(COUNTRY_INFO!K31=3,COUNTRY_INFO!G31/(COUNTRY_INFO!F31+COUNTRY_INFO!G31)))),0) -> 0.4401243997 | AP31: =MAX(COUNTRY_INFO!D31*AK31*PROFILE!$G$7,COUNTRY_INFO!D31*AL31*PROFILE!$G$7) -> 0 | AQ31: =MAX(COUNTRY_INFO!D31*AK31*PROFILE!$G$8,COUNTRY_INFO!D31*AL31*PROFILE!$G$8,COUNTRY_INFO!D31*AM31*PROFILE!$G$8) -> 0 | AR31: =MAX(COUNTRY_INFO!D31*AK31*PROFILE!$G$9,COUNTRY_INFO!D31*AL31*PROFILE!$G$9,COUNTRY_INFO!D31*AM31*PROFILE!$G$9,IF(AND(DISTRICT!Z31<>"Unknown",Z31<>"Not required"),COUNTRY_INFO!O31*DISTRICT!AN31,0)) -> 10881.47231 | AS31: =MAX(COUNTRY_INFO!D31*AK31*PROFILE!$G$10,COUNTRY_INFO!D31*AL31*PROFILE!$G$10,IF(AND(DISTRICT!Z31<>"Unknown",Z31<>"Not required"),COUNTRY_INFO!O31*DISTRICT!AO31,0)) -> 8554.045693 | AT31: 19435.518 | AU31: Y | AV31: =MAX('MDA2'!J31,'MDA5'!J31,'T1'!L31,'T2'!J31,T3_R1!K31,T3_R2!K31) -> 39569 | AW31: =MAX('MDA1'!K31,'MDA2'!K31,'MDA3'!I31,'MDA3'!L31,'MDA5'!K31,'T1'!M31,'T2'!K31,T3_R1!L31,T3_R2!L31) -> 90721 | AX31: =MAX('MDA1'!L31,'MDA2'!L31,'MDA3'!J31,'MDA3'!M31,'MDA5'!L31,'T1'!N31,'T2'!L31,T3_R1!M31,T3_R2!M31) -> 40645 | AY31: 170935 | AZ31: =MAX('MDA2'!J31,'MDA5'!J31,T31) -> 0 | BA31: =MAX('MDA1'!K31,'MDA2'!K31,'MDA3'!I31,'MDA3'!L31,'MDA5'!K31,V31,AD31) -> 32279 | BB31: =MAX('MDA1'!L31,'MDA2'!L31,'MDA3'!J31,'MDA3'!M31,'MDA5'!L31,AF31) -> 40050 | BC31: 19435.518 | BD31: 100
A32: =IF(COUNTRY_INFO!A32=0," ",COUNTRY_INFO!A32) -> RWANDA | B32: =IF(COUNTRY_INFO!B32=0," ",COUNTRY_INFO!B32) -> Southern | C32: =IF(COUNTRY_INFO!C32=0," ",COUNTRY_INFO!C32) -> Nyaruguru | D32: =COUNTRY_INFO!L32 -> Not required | G32: =MAX('MDA1'!M32,'MDA2'!M32,'MDA5'!M32) -> 0 | H32: =IF(AND(COUNTRY_INFO!H32>0,COUNTRY_INFO!H32<4),IF(D32>MAX('MDA1'!M32,'MDA2'!M32,'MDA5'!M32),MAX('MDA1'!M32,'MDA2'!M32,'MDA5'!M32),D32),0) -> 0 | I32: =IF(AND(COUNTRY_INFO!H32>0,COUNTRY_INFO!H32<4), IF(G32/D32*100<>0, IF(G32/D32*100>100,100,G32/D32*100), "-"),0) -> 0 | J32: =COUNTRY_INFO!M32 -> Not required | M32: =MAX('MDA1'!M32,MAX('MDA3'!I32,'MDA3'!L32)+MAX('MDA3'!J32,'MDA3'!M32)) -> 0 | N32: =IF(AND(COUNTRY_INFO!I32>0,COUNTRY_INFO!I32<4),IF(J32>MAX('MDA1'!M32,MAX('MDA3'!I32,'MDA3'!L32)+MAX('MDA3'!J32,'MDA3'!M32)),MAX('MDA1'!M32,MAX('MDA3'!I32,'MDA3'!L32)+MAX('MDA3'!J32,'MDA3'!M32)),J32),0) -> 0 | O32: =IF(AND(COUNTRY_INFO!I32>0,COUNTRY_INFO!I32<4), IF(M32/J32*100<>0, IF(M32/J32*100>100,100,M32/J32*100), "-"),0) -> 0 | P32: =COUNTRY_INFO!N32 -> 148746 | S32: =SUM(MAX('MDA2'!J32,'MDA5'!J32, 'T1'!L32, MAX(T3_R1!K32, T3_R2!K32)), MAX('MDA1'!K32, 'MDA2'!K32, 'MDA5'!K32,'T1'!M32, MAX(T3_R1!L32, T3_R2!L32)), MAX('MDA1'!L32, 'MDA2'!L32, 'MDA5'!L32,'T1'!N32, MAX(T3_R1!M32, T3_R2!M32))) -> 420999 | T32: =IF(AND(COUNTRY_INFO!J32>1,COUNTRY_INFO!J32<4),IF(COUNTRY_INFO!E32>MAX('MDA2'!J32,'MDA5'!J32,'T1'!L32,MAX(T3_R1!K32,T3_R2!K32)),MAX('MDA2'!J32,'MDA5'!J32,'T1'!L32,MAX(T3_R1!K32,T3_R2!K32)),COUNTRY_INFO!E32),0) -> 38924 | U32: =IF(AND(COUNTRY_INFO!J32>1,COUNTRY_INFO!J32<4), IF(T32/COUNTRY_INFO!E32*100<>0, IF(T32/COUNTRY_INFO!E32*100>100,100,T32/COUNTRY_INFO!E32*100), "-"),0) -> 90.58202043 | V32: =IF(AND(COUNTRY_INFO!J32>1,COUNTRY_INFO!J32<4),IF(COUNTRY_INFO!F32>MAX('MDA1'!K32,'MDA2'!K32,'MDA5'!K32,'T1'!M32,MAX(T3_R1!L32,T3_R2!L32)),MAX('MDA1'!K32,'MDA2'!K32,'MDA5'!K32,'T1'!M32,MAX(T3_R1!L32,T3_R2!L32)),COUNTRY_INFO!F32),0) -> 101194 | W32: =IF(AND(COUNTRY_INFO!J32>1,COUNTRY_INFO!J32<4), IF(V32/COUNTRY_INFO!F32*100<>0, IF(V32/COUNTRY_INFO!F32*100>100,100,V32/COUNTRY_INFO!F32*100), "-"),0) -> 95.66910896 | X32: 140118 | Y32: =IF(AND(COUNTRY_INFO!J32>1,COUNTRY_INFO!J32<4), IF(S32/P32*100<>0, IF(X32/P32*100>100,100,X32/P32*100), "-"),0) -> 94.19950789 | Z32: =COUNTRY_INFO!O32 -> 46680.948 | AC32: =MAX('T1'!L32,'T2'!J32)+MAX('T1'!M32,'T2'!K32)+MAX('T1'!N32,'T2'!L32) -> 129876 | AD32: =IF(COUNTRY_INFO!K32=1,IF(COUNTRY_INFO!F32*0.33>MAX('T1'!M32,'T2'!K32),MAX('T1'!M32,'T2'!K32),COUNTRY_INFO!F32*0.33),IF(COUNTRY_INFO!K32=2,IF(COUNTRY_INFO!F32*0.5>MAX('T1'!M32,'T2'!K32),MAX('T1'!M32,'T2'!K32),COUNTRY_INFO!F32*0.5),IF(COUNTRY_INFO!K32=3,IF(COUNTRY_INFO!F32>MAX('T1'!M32,'T2'!K32),MAX('T1'!M32,'T2'!K32),COUNTRY_INFO!F32),0))) -> 34905.75 | AE32: =IF(AND(COUNTRY_INFO!K32>0,COUNTRY_INFO!K32<4),IF(Z32>0,IF(COUNTRY_INFO!K32=1, AD32/(COUNTRY_INFO!F32*0.33)*100, IF(COUNTRY_INFO!K32=2, AD32/(COUNTRY_INFO!F32*0.5)*100, IF(COUNTRY_INFO!K32=3, AD32/COUNTRY_INFO!F32*100))),"-"),0) -> 100 | AF32: =IF(COUNTRY_INFO!K32=2,IF(COUNTRY_INFO!G32*0.2>MAX('T1'!N32,'T2'!L32),MAX('T1'!N32,'T2'!L32),COUNTRY_INFO!G32*0.2),IF(COUNTRY_INFO!K32=3,IF(COUNTRY_INFO!G32>MAX('T1'!N32,'T2'!L32),MAX('T1'!N32,'T2'!L32),COUNTRY_INFO!G32),0)) -> 0 | AG32: =IF(AND(COUNTRY_INFO!K32>0,COUNTRY_INFO!K32<4),IF(Z32>0,IF(COUNTRY_INFO!K32=1, 0, IF(COUNTRY_INFO!K32=2, AF32/(COUNTRY_INFO!G32*0.2)*100, IF(COUNTRY_INFO!K32=3, AF32/COUNTRY_INFO!G32*100))),"-"),0) -> 0 | AH32: 34905.75 | AI32: =IF(AND(COUNTRY_INFO!K32>0,COUNTRY_INFO!K32<4), IF(AC32/Z32*100<>0, IF(AH32/Z32*100>100,100,AH32/Z32*100), "-"),0) -> 74.77515238 | AK32: =IF(AND(D32<>0, D32<>"Unknown",D32<>"Stopped",D32<>"Not required"),D32/COUNTRY_INFO!D32, 0) -> 0 | AL32: =IF(AND(J32<>0,J32<>"Unknown",J32<>"Stopped",J32<>"Not required"),J32/COUNTRY_INFO!D32, 0) -> 0 | AM32: =IF(AND(P32<>0,P32<>"Unknown",P32<>"Not required"),P32/(COUNTRY_INFO!E32+COUNTRY_INFO!F32), 0) -> 1 | AN32: =IF(AND(Z32<>0,Z32<>"Unknown",Z32<>"Not required"),IF(COUNTRY_INFO!K32=1,1,IF(COUNTRY_INFO!K32=2,0.5*COUNTRY_INFO!F32/(0.5*COUNTRY_INFO!F32+0.2*COUNTRY_INFO!G32),IF(COUNTRY_INFO!K32=3,COUNTRY_INFO!F32/(COUNTRY_INFO!F32+COUNTRY_INFO!G32)))),0) -> 1 | AO32: =IF(AND(Z32<>0,Z32<>"Unknown",Z32<>"Not required"),IF(COUNTRY_INFO!K32=1,0,IF(COUNTRY_INFO!K32=2,0.2*COUNTRY_INFO!G32/(0.5*COUNTRY_INFO!F32+0.2*COUNTRY_INFO!G32),IF(COUNTRY_INFO!K32=3,COUNTRY_INFO!G32/(COUNTRY_INFO!F32+COUNTRY_INFO!G32)))),0) -> 0 | AP32: =MAX(COUNTRY_INFO!D32*AK32*PROFILE!$G$7,COUNTRY_INFO!D32*AL32*PROFILE!$G$7) -> 0 | AQ32: =MAX(COUNTRY_INFO!D32*AK32*PROFILE!$G$8,COUNTRY_INFO!D32*AL32*PROFILE!$G$8,COUNTRY_INFO!D32*AM32*PROFILE!$G$8) -> 42971.06876 | AR32: =MAX(COUNTRY_INFO!D32*AK32*PROFILE!$G$9,COUNTRY_INFO!D32*AL32*PROFILE!$G$9,COUNTRY_INFO!D32*AM32*PROFILE!$G$9,IF(AND(DISTRICT!Z32<>"Unknown",Z32<>"Not required"),COUNTRY_INFO!O32*DISTRICT!AN32,0)) -> 105775.2313 | AS32: =MAX(COUNTRY_INFO!D32*AK32*PROFILE!$G$10,COUNTRY_INFO!D32*AL32*PROFILE!$G$10,IF(AND(DISTRICT!Z32<>"Unknown",Z32<>"Not required"),COUNTRY_INFO!O32*DISTRICT!AO32,0)) -> 0 | AT32: 148746.3001 | AU32: Y | AV32: =MAX('MDA2'!J32,'MDA5'!J32,'T1'!L32,'T2'!J32,T3_R1!K32,T3_R2!K32) -> 38924 | AW32: =MAX('MDA1'!K32,'MDA2'!K32,'MDA3'!I32,'MDA3'!L32,'MDA5'!K32,'T1'!M32,'T2'!K32,T3_R1!L32,T3_R2!L32) -> 101194 | AX32: =MAX('MDA1'!L32,'MDA2'!L32,'MDA3'!J32,'MDA3'!M32,'MDA5'!L32,'T1'!N32,'T2'!L32,T3_R1!M32,T3_R2!M32) -> 280881 | AY32: 420999 | AZ32: =MAX('MDA2'!J32,'MDA5'!J32,T32) -> 38924 | BA32: =MAX('MDA1'!K32,'MDA2'!K32,'MDA3'!I32,'MDA3'!L32,'MDA5'!K32,V32,AD32) -> 101194 | BB32: =MAX('MDA1'!L32,'MDA2'!L32,'MDA3'!J32,'MDA3'!M32,'MDA5'!L32,AF32) -> 0 | BC32: 140118 | BD32: 94.19931784
A33: =IF(COUNTRY_INFO!A33=0," ",COUNTRY_INFO!A33) -> RWANDA | B33: =IF(COUNTRY_INFO!B33=0," ",COUNTRY_INFO!B33) -> Western | C33: =IF(COUNTRY_INFO!C33=0," ",COUNTRY_INFO!C33) -> Rubavu | D33: =COUNTRY_INFO!L33 -> Not required | G33: =MAX('MDA1'!M33,'MDA2'!M33,'MDA5'!M33) -> 0 | H33: =IF(AND(COUNTRY_INFO!H33>0,COUNTRY_INFO!H33<4),IF(D33>MAX('MDA1'!M33,'MDA2'!M33,'MDA5'!M33),MAX('MDA1'!M33,'MDA2'!M33,'MDA5'!M33),D33),0) -> 0 | I33: =IF(AND(COUNTRY_INFO!H33>0,COUNTRY_INFO!H33<4), IF(G33/D33*100<>0, IF(G33/D33*100>100,100,G33/D33*100), "-"),0) -> 0 | J33: =COUNTRY_INFO!M33 -> Not required | M33: =MAX('MDA1'!M33,MAX('MDA3'!I33,'MDA3'!L33)+MAX('MDA3'!J33,'MDA3'!M33)) -> 0 | N33: =IF(AND(COUNTRY_INFO!I33>0,COUNTRY_INFO!I33<4),IF(J33>MAX('MDA1'!M33,MAX('MDA3'!I33,'MDA3'!L33)+MAX('MDA3'!J33,'MDA3'!M33)),MAX('MDA1'!M33,MAX('MDA3'!I33,'MDA3'!L33)+MAX('MDA3'!J33,'MDA3'!M33)),J33),0) -> 0 | O33: =IF(AND(COUNTRY_INFO!I33>0,COUNTRY_INFO!I33<4), IF(M33/J33*100<>0, IF(M33/J33*100>100,100,M33/J33*100), "-"),0) -> 0 | P33: =COUNTRY_INFO!N33 -> 214325 | S33: =SUM(MAX('MDA2'!J33,'MDA5'!J33, 'T1'!L33, MAX(T3_R1!K33, T3_R2!K33)), MAX('MDA1'!K33, 'MDA2'!K33, 'MDA5'!K33,'T1'!M33, MAX(T3_R1!L33, T3_R2!L33)), MAX('MDA1'!L33, 'MDA2'!L33, 'MDA5'!L33,'T1'!N33, MAX(T3_R1!M33, T3_R2!M33))) -> 524841 | T33: =IF(AND(COUNTRY_INFO!J33>1,COUNTRY_INFO!J33<4),IF(COUNTRY_INFO!E33>MAX('MDA2'!J33,'MDA5'!J33,'T1'!L33,MAX(T3_R1!K33,T3_R2!K33)),MAX('MDA2'!J33,'MDA5'!J33,'T1'!L33,MAX(T3_R1!K33,T3_R2!K33)),COUNTRY_INFO!E33),0) -> 61916 | U33: =IF(AND(COUNTRY_INFO!J33>1,COUNTRY_INFO!J33<4), IF(T33/COUNTRY_INFO!E33*100<>0, IF(T33/COUNTRY_INFO!E33*100>100,100,T33/COUNTRY_INFO!E33*100), "-"),0) -> 100 | V33: =IF(AND(COUNTRY_INFO!J33>1,COUNTRY_INFO!J33<4),IF(COUNTRY_INFO!F33>MAX('MDA1'!K33,'MDA2'!K33,'MDA5'!K33,'T1'!M33,MAX(T3_R1!L33,T3_R2!L33)),MAX('MDA1'!K33,'MDA2'!K33,'MDA5'!K33,'T1'!M33,MAX(T3_R1!L33,T3_R2!L33)),COUNTRY_INFO!F33),0) -> 152409 | W33: =IF(AND(COUNTRY_INFO!J33>1,COUNTRY_INFO!J33<4), IF(V33/COUNTRY_INFO!F33*100<>0, IF(V33/COUNTRY_INFO!F33*100>100,100,V33/COUNTRY_INFO!F33*100), "-"),0) -> 100 | X33: 214325 | Y33: =IF(AND(COUNTRY_INFO!J33>1,COUNTRY_INFO!J33<4), IF(S33/P33*100<>0, IF(X33/P33*100>100,100,X33/P33*100), "-"),0) -> 100 | Z33: =COUNTRY_INFO!O33 -> 30111.048 | AC33: =MAX('T1'!L33,'T2'!J33)+MAX('T1'!M33,'T2'!K33)+MAX('T1'!N33,'T2'!L33) -> 100382 | AD33: =IF(COUNTRY_INFO!K33=1,IF(COUNTRY_INFO!F33*0.33>MAX('T1'!M33,'T2'!K33),MAX('T1'!M33,'T2'!K33),COUNTRY_INFO!F33*0.33),IF(COUNTRY_INFO!K33=2,IF(COUNTRY_INFO!F33*0.5>MAX('T1'!M33,'T2'!K33),MAX('T1'!M33,'T2'!K33),COUNTRY_INFO!F33*0.5),IF(COUNTRY_INFO!K33=3,IF(COUNTRY_INFO!F33>MAX('T1'!M33,'T2'!K33),MAX('T1'!M33,'T2'!K33),COUNTRY_INFO!F33),0))) -> 36603 | AE33: =IF(AND(COUNTRY_INFO!K33>0,COUNTRY_INFO!K33<4),IF(Z33>0,IF(COUNTRY_INFO!K33=1, AD33/(COUNTRY_INFO!F33*0.33)*100, IF(COUNTRY_INFO!K33=2, AD33/(COUNTRY_INFO!F33*0.5)*100, IF(COUNTRY_INFO!K33=3, AD33/COUNTRY_INFO!F33*100))),"-"),0) -> 48.0325965 | AF33: =IF(COUNTRY_INFO!K33=2,IF(COUNTRY_INFO!G33*0.2>MAX('T1'!N33,'T2'!L33),MAX('T1'!N33,'T2'!L33),COUNTRY_INFO!G33*0.2),IF(COUNTRY_INFO!K33=3,IF(COUNTRY_INFO!G33>MAX('T1'!N33,'T2'!L33),MAX('T1'!N33,'T2'!L33),COUNTRY_INFO!G33),0)) -> 59905.2 | AG33: =IF(AND(COUNTRY_INFO!K33>0,COUNTRY_INFO!K33<4),IF(Z33>0,IF(COUNTRY_INFO!K33=1, 0, IF(COUNTRY_INFO!K33=2, AF33/(COUNTRY_INFO!G33*0.2)*100, IF(COUNTRY_INFO!K33=3, AF33/COUNTRY_INFO!G33*100))),"-"),0) -> 100 | AH33: 96508.2 | AI33: =IF(AND(COUNTRY_INFO!K33>0,COUNTRY_INFO!K33<4), IF(AC33/Z33*100<>0, IF(AH33/Z33*100>100,100,AH33/Z33*100), "-"),0) -> 100 | AK33: =IF(AND(D33<>0, D33<>"Unknown",D33<>"Stopped",D33<>"Not required"),D33/COUNTRY_INFO!D33, 0) -> 0 | AL33: =IF(AND(J33<>0,J33<>"Unknown",J33<>"Stopped",J33<>"Not required"),J33/COUNTRY_INFO!D33, 0) -> 0 | AM33: =IF(AND(P33<>0,P33<>"Unknown",P33<>"Not required"),P33/(COUNTRY_INFO!E33+COUNTRY_INFO!F33), 0) -> 1 | AN33: =IF(AND(Z33<>0,Z33<>"Unknown",Z33<>"Not required"),IF(COUNTRY_INFO!K33=1,1,IF(COUNTRY_INFO!K33=2,0.5*COUNTRY_INFO!F33/(0.5*COUNTRY_INFO!F33+0.2*COUNTRY_INFO!G33),IF(COUNTRY_INFO!K33=3,COUNTRY_INFO!F33/(COUNTRY_INFO!F33+COUNTRY_INFO!G33)))),0) -> 0.5598756003 | AO33: =IF(AND(Z33<>0,Z33<>"Unknown",Z33<>"Not required"),IF(COUNTRY_INFO!K33=1,0,IF(COUNTRY_INFO!K33=2,0.2*COUNTRY_INFO!G33/(0.5*COUNTRY_INFO!F33+0.2*COUNTRY_INFO!G33),IF(COUNTRY_INFO!K33=3,COUNTRY_INFO!G33/(COUNTRY_INFO!F33+COUNTRY_INFO!G33)))),0) -> 0.4401243997 | AP33: =MAX(COUNTRY_INFO!D33*AK33*PROFILE!$G$7,COUNTRY_INFO!D33*AL33*PROFILE!$G$7) -> 0 | AQ33: =MAX(COUNTRY_INFO!D33*AK33*PROFILE!$G$8,COUNTRY_INFO!D33*AL33*PROFILE!$G$8,COUNTRY_INFO!D33*AM33*PROFILE!$G$8) -> 61915.89593 | AR33: =MAX(COUNTRY_INFO!D33*AK33*PROFILE!$G$9,COUNTRY_INFO!D33*AL33*PROFILE!$G$9,COUNTRY_INFO!D33*AM33*PROFILE!$G$9,IF(AND(DISTRICT!Z33<>"Unknown",Z33<>"Not required"),COUNTRY_INFO!O33*DISTRICT!AN33,0)) -> 152408.7811 | AS33: =MAX(COUNTRY_INFO!D33*AK33*PROFILE!$G$10,COUNTRY_INFO!D33*AL33*PROFILE!$G$10,IF(AND(DISTRICT!Z33<>"Unknown",Z33<>"Not required"),COUNTRY_INFO!O33*DISTRICT!AO33,0)) -> 13252.60692 | AT33: 227577.284 | AU33: Y | AV33: =MAX('MDA2'!J33,'MDA5'!J33,'T1'!L33,'T2'!J33,T3_R1!K33,T3_R2!K33) -> 74517 | AW33: =MAX('MDA1'!K33,'MDA2'!K33,'MDA3'!I33,'MDA3'!L33,'MDA5'!K33,'T1'!M33,'T2'!K33,T3_R1!L33,T3_R2!L33) -> 155340 | AX33: =MAX('MDA1'!L33,'MDA2'!L33,'MDA3'!J33,'MDA3'!M33,'MDA5'!L33,'T1'!N33,'T2'!L33,T3_R1!M33,T3_R2!M33) -> 294984 | AY33: 524841 | AZ33: =MAX('MDA2'!J33,'MDA5'!J33,T33) -> 61916 | BA33: =MAX('MDA1'!K33,'MDA2'!K33,'MDA3'!I33,'MDA3'!L33,'MDA5'!K33,V33,AD33) -> 152409 | BB33: =MAX('MDA1'!L33,'MDA2'!L33,'MDA3'!J33,'MDA3'!M33,'MDA5'!L33,AF33) -> 59905.2 | BC33: 227577.284 | BD33: 100
A34: =IF(COUNTRY_INFO!A34=0," ",COUNTRY_INFO!A34) -> RWANDA | B34: =IF(COUNTRY_INFO!B34=0," ",COUNTRY_INFO!B34) -> Southern | C34: =IF(COUNTRY_INFO!C34=0," ",COUNTRY_INFO!C34) -> Ruhango | D34: =COUNTRY_INFO!L34 -> Not required | G34: =MAX('MDA1'!M34,'MDA2'!M34,'MDA5'!M34) -> 0 | H34: =IF(AND(COUNTRY_INFO!H34>0,COUNTRY_INFO!H34<4),IF(D34>MAX('MDA1'!M34,'MDA2'!M34,'MDA5'!M34),MAX('MDA1'!M34,'MDA2'!M34,'MDA5'!M34),D34),0) -> 0 | I34: =IF(AND(COUNTRY_INFO!H34>0,COUNTRY_INFO!H34<4), IF(G34/D34*100<>0, IF(G34/D34*100>100,100,G34/D34*100), "-"),0) -> 0 | J34: =COUNTRY_INFO!M34 -> Not required | M34: =MAX('MDA1'!M34,MAX('MDA3'!I34,'MDA3'!L34)+MAX('MDA3'!J34,'MDA3'!M34)) -> 0 | N34: =IF(AND(COUNTRY_INFO!I34>0,COUNTRY_INFO!I34<4),IF(J34>MAX('MDA1'!M34,MAX('MDA3'!I34,'MDA3'!L34)+MAX('MDA3'!J34,'MDA3'!M34)),MAX('MDA1'!M34,MAX('MDA3'!I34,'MDA3'!L34)+MAX('MDA3'!J34,'MDA3'!M34)),J34),0) -> 0 | O34: =IF(AND(COUNTRY_INFO!I34>0,COUNTRY_INFO!I34<4), IF(M34/J34*100<>0, IF(M34/J34*100>100,100,M34/J34*100), "-"),0) -> 0 | P34: =COUNTRY_INFO!N34 -> 163462 | S34: =SUM(MAX('MDA2'!J34,'MDA5'!J34, 'T1'!L34, MAX(T3_R1!K34, T3_R2!K34)), MAX('MDA1'!K34, 'MDA2'!K34, 'MDA5'!K34,'T1'!M34, MAX(T3_R1!L34, T3_R2!L34)), MAX('MDA1'!L34, 'MDA2'!L34, 'MDA5'!L34,'T1'!N34, MAX(T3_R1!M34, T3_R2!M34))) -> 353636 | T34: =IF(AND(COUNTRY_INFO!J34>1,COUNTRY_INFO!J34<4),IF(COUNTRY_INFO!E34>MAX('MDA2'!J34,'MDA5'!J34,'T1'!L34,MAX(T3_R1!K34,T3_R2!K34)),MAX('MDA2'!J34,'MDA5'!J34,'T1'!L34,MAX(T3_R1!K34,T3_R2!K34)),COUNTRY_INFO!E34),0) -> 39500 | U34: =IF(AND(COUNTRY_INFO!J34>1,COUNTRY_INFO!J34<4), IF(T34/COUNTRY_INFO!E34*100<>0, IF(T34/COUNTRY_INFO!E34*100>100,100,T34/COUNTRY_INFO!E34*100), "-"),0) -> 83.64745246 | V34: =IF(AND(COUNTRY_INFO!J34>1,COUNTRY_INFO!J34<4),IF(COUNTRY_INFO!F34>MAX('MDA1'!K34,'MDA2'!K34,'MDA5'!K34,'T1'!M34,MAX(T3_R1!L34,T3_R2!L34)),MAX('MDA1'!K34,'MDA2'!K34,'MDA5'!K34,'T1'!M34,MAX(T3_R1!L34,T3_R2!L34)),COUNTRY_INFO!F34),0) -> 101152 | W34: =IF(AND(COUNTRY_INFO!J34>1,COUNTRY_INFO!J34<4), IF(V34/COUNTRY_INFO!F34*100<>0, IF(V34/COUNTRY_INFO!F34*100>100,100,V34/COUNTRY_INFO!F34*100), "-"),0) -> 87.01995871 | X34: 140652 | Y34: =IF(AND(COUNTRY_INFO!J34>1,COUNTRY_INFO!J34<4), IF(S34/P34*100<>0, IF(X34/P34*100>100,100,X34/P34*100), "-"),0) -> 86.04568646 | Z34: =COUNTRY_INFO!O34 -> 76631.94 | AC34: =MAX('T1'!L34,'T2'!J34)+MAX('T1'!M34,'T2'!K34)+MAX('T1'!N34,'T2'!L34) -> 219758 | AD34: =IF(COUNTRY_INFO!K34=1,IF(COUNTRY_INFO!F34*0.33>MAX('T1'!M34,'T2'!K34),MAX('T1'!M34,'T2'!K34),COUNTRY_INFO!F34*0.33),IF(COUNTRY_INFO!K34=2,IF(COUNTRY_INFO!F34*0.5>MAX('T1'!M34,'T2'!K34),MAX('T1'!M34,'T2'!K34),COUNTRY_INFO!F34*0.5),IF(COUNTRY_INFO!K34=3,IF(COUNTRY_INFO!F34>MAX('T1'!M34,'T2'!K34),MAX('T1'!M34,'T2'!K34),COUNTRY_INFO!F34),0))) -> 58120 | AE34: =IF(AND(COUNTRY_INFO!K34>0,COUNTRY_INFO!K34<4),IF(Z34>0,IF(COUNTRY_INFO!K34=1, AD34/(COUNTRY_INFO!F34*0.33)*100, IF(COUNTRY_INFO!K34=2, AD34/(COUNTRY_INFO!F34*0.5)*100, IF(COUNTRY_INFO!K34=3, AD34/COUNTRY_INFO!F34*100))),"-"),0) -> 100 | AF34: =IF(COUNTRY_INFO!K34=2,IF(COUNTRY_INFO!G34*0.2>MAX('T1'!N34,'T2'!L34),MAX('T1'!N34,'T2'!L34),COUNTRY_INFO!G34*0.2),IF(COUNTRY_INFO!K34=3,IF(COUNTRY_INFO!G34>MAX('T1'!N34,'T2'!L34),MAX('T1'!N34,'T2'!L34),COUNTRY_INFO!G34),0)) -> 45688.8 | AG34: =IF(AND(COUNTRY_INFO!K34>0,COUNTRY_INFO!K34<4),IF(Z34>0,IF(COUNTRY_INFO!K34=1, 0, IF(COUNTRY_INFO!K34=2, AF34/(COUNTRY_INFO!G34*0.2)*100, IF(COUNTRY_INFO!K34=3, AF34/COUNTRY_INFO!G34*100))),"-"),0) -> 100 | AH34: 103808.8 | AI34: =IF(AND(COUNTRY_INFO!K34>0,COUNTRY_INFO!K34<4), IF(AC34/Z34*100<>0, IF(AH34/Z34*100>100,100,AH34/Z34*100), "-"),0) -> 100 | AK34: =IF(AND(D34<>0, D34<>"Unknown",D34<>"Stopped",D34<>"Not required"),D34/COUNTRY_INFO!D34, 0) -> 0 | AL34: =IF(AND(J34<>0,J34<>"Unknown",J34<>"Stopped",J34<>"Not required"),J34/COUNTRY_INFO!D34, 0) -> 0 | AM34: =IF(AND(P34<>0,P34<>"Unknown",P34<>"Not required"),P34/(COUNTRY_INFO!E34+COUNTRY_INFO!F34), 0) -> 1 | AN34: =IF(AND(Z34<>0,Z34<>"Unknown",Z34<>"Not required"),IF(COUNTRY_INFO!K34=1,1,IF(COUNTRY_INFO!K34=2,0.5*COUNTRY_INFO!F34/(0.5*COUNTRY_INFO!F34+0.2*COUNTRY_INFO!G34),IF(COUNTRY_INFO!K34=3,COUNTRY_INFO!F34/(COUNTRY_INFO!F34+COUNTRY_INFO!G34)))),0) -> 0.5598754634 | AO34: =IF(AND(Z34<>0,Z34<>"Unknown",Z34<>"Not required"),IF(COUNTRY_INFO!K34=1,0,IF(COUNTRY_INFO!K34=2,0.2*COUNTRY_INFO!G34/(0.5*COUNTRY_INFO!F34+0.2*COUNTRY_INFO!G34),IF(COUNTRY_INFO!K34=3,COUNTRY_INFO!G34/(COUNTRY_INFO!F34+COUNTRY_INFO!G34)))),0) -> 0.4401245366 | AP34: =MAX(COUNTRY_INFO!D34*AK34*PROFILE!$G$7,COUNTRY_INFO!D34*AL34*PROFILE!$G$7) -> 0 | AQ34: =MAX(COUNTRY_INFO!D34*AK34*PROFILE!$G$8,COUNTRY_INFO!D34*AL34*PROFILE!$G$8,COUNTRY_INFO!D34*AM34*PROFILE!$G$8) -> 47222.37025 | AR34: =MAX(COUNTRY_INFO!D34*AK34*PROFILE!$G$9,COUNTRY_INFO!D34*AL34*PROFILE!$G$9,COUNTRY_INFO!D34*AM34*PROFILE!$G$9,IF(AND(DISTRICT!Z34<>"Unknown",Z34<>"Not required"),COUNTRY_INFO!O34*DISTRICT!AN34,0)) -> 116240.0024 | AS34: =MAX(COUNTRY_INFO!D34*AK34*PROFILE!$G$10,COUNTRY_INFO!D34*AL34*PROFILE!$G$10,IF(AND(DISTRICT!Z34<>"Unknown",Z34<>"Not required"),COUNTRY_INFO!O34*DISTRICT!AO34,0)) -> 33727.59708 | AT34: 197189.9698 | AU34: Y | AV34: =MAX('MDA2'!J34,'MDA5'!J34,'T1'!L34,'T2'!J34,T3_R1!K34,T3_R2!K34) -> 39500 | AW34: =MAX('MDA1'!K34,'MDA2'!K34,'MDA3'!I34,'MDA3'!L34,'MDA5'!K34,'T1'!M34,'T2'!K34,T3_R1!L34,T3_R2!L34) -> 101152 | AX34: =MAX('MDA1'!L34,'MDA2'!L34,'MDA3'!J34,'MDA3'!M34,'MDA5'!L34,'T1'!N34,'T2'!L34,T3_R1!M34,T3_R2!M34) -> 212984 | AY34: 353636 | AZ34: =MAX('MDA2'!J34,'MDA5'!J34,T34) -> 39500 | BA34: =MAX('MDA1'!K34,'MDA2'!K34,'MDA3'!I34,'MDA3'!L34,'MDA5'!K34,V34,AD34) -> 101152 | BB34: =MAX('MDA1'!L34,'MDA2'!L34,'MDA3'!J34,'MDA3'!M34,'MDA5'!L34,AF34) -> 45688.8 | BC34: 186340.8 | BD34: 94.49811277
A35: =IF(COUNTRY_INFO!A35=0," ",COUNTRY_INFO!A35) -> RWANDA | B35: =IF(COUNTRY_INFO!B35=0," ",COUNTRY_INFO!B35) -> Northern | C35: =IF(COUNTRY_INFO!C35=0," ",COUNTRY_INFO!C35) -> Rulindo | D35: =COUNTRY_INFO!L35 -> Not required | G35: =MAX('MDA1'!M35,'MDA2'!M35,'MDA5'!M35) -> 0 | H35: =IF(AND(COUNTRY_INFO!H35>0,COUNTRY_INFO!H35<4),IF(D35>MAX('MDA1'!M35,'MDA2'!M35,'MDA5'!M35),MAX('MDA1'!M35,'MDA2'!M35,'MDA5'!M35),D35),0) -> 0 | I35: =IF(AND(COUNTRY_INFO!H35>0,COUNTRY_INFO!H35<4), IF(G35/D35*100<>0, IF(G35/D35*100>100,100,G35/D35*100), "-"),0) -> 0 | J35: =COUNTRY_INFO!M35 -> Not required | M35: =MAX('MDA1'!M35,MAX('MDA3'!I35,'MDA3'!L35)+MAX('MDA3'!J35,'MDA3'!M35)) -> 0 | N35: =IF(AND(COUNTRY_INFO!I35>0,COUNTRY_INFO!I35<4),IF(J35>MAX('MDA1'!M35,MAX('MDA3'!I35,'MDA3'!L35)+MAX('MDA3'!J35,'MDA3'!M35)),MAX('MDA1'!M35,MAX('MDA3'!I35,'MDA3'!L35)+MAX('MDA3'!J35,'MDA3'!M35)),J35),0) -> 0 | O35: =IF(AND(COUNTRY_INFO!I35>0,COUNTRY_INFO!I35<4), IF(M35/J35*100<>0, IF(M35/J35*100>100,100,M35/J35*100), "-"),0) -> 0 | P35: =COUNTRY_INFO!N35 -> 140330 | S35: =SUM(MAX('MDA2'!J35,'MDA5'!J35, 'T1'!L35, MAX(T3_R1!K35, T3_R2!K35)), MAX('MDA1'!K35, 'MDA2'!K35, 'MDA5'!K35,'T1'!M35, MAX(T3_R1!L35, T3_R2!L35)), MAX('MDA1'!L35, 'MDA2'!L35, 'MDA5'!L35,'T1'!N35, MAX(T3_R1!M35, T3_R2!M35))) -> 344170 | T35: =IF(AND(COUNTRY_INFO!J35>1,COUNTRY_INFO!J35<4),IF(COUNTRY_INFO!E35>MAX('MDA2'!J35,'MDA5'!J35,'T1'!L35,MAX(T3_R1!K35,T3_R2!K35)),MAX('MDA2'!J35,'MDA5'!J35,'T1'!L35,MAX(T3_R1!K35,T3_R2!K35)),COUNTRY_INFO!E35),0) -> 40540 | U35: =IF(AND(COUNTRY_INFO!J35>1,COUNTRY_INFO!J35<4), IF(T35/COUNTRY_INFO!E35*100<>0, IF(T35/COUNTRY_INFO!E35*100>100,100,T35/COUNTRY_INFO!E35*100), "-"),0) -> 100 | V35: =IF(AND(COUNTRY_INFO!J35>1,COUNTRY_INFO!J35<4),IF(COUNTRY_INFO!F35>MAX('MDA1'!K35,'MDA2'!K35,'MDA5'!K35,'T1'!M35,MAX(T3_R1!L35,T3_R2!L35)),MAX('MDA1'!K35,'MDA2'!K35,'MDA5'!K35,'T1'!M35,MAX(T3_R1!L35,T3_R2!L35)),COUNTRY_INFO!F35),0) -> 92972 | W35: =IF(AND(COUNTRY_INFO!J35>1,COUNTRY_INFO!J35<4), IF(V35/COUNTRY_INFO!F35*100<>0, IF(V35/COUNTRY_INFO!F35*100>100,100,V35/COUNTRY_INFO!F35*100), "-"),0) -> 93.16765207 | X35: 133512 | Y35: =IF(AND(COUNTRY_INFO!J35>1,COUNTRY_INFO!J35<4), IF(S35/P35*100<>0, IF(X35/P35*100>100,100,X35/P35*100), "-"),0) -> 95.14145229 | Z35: =COUNTRY_INFO!O35 -> 77608.692 | AC35: =MAX('T1'!L35,'T2'!J35)+MAX('T1'!M35,'T2'!K35)+MAX('T1'!N35,'T2'!L35) -> 213071 | AD35: =IF(COUNTRY_INFO!K35=1,IF(COUNTRY_INFO!F35*0.33>MAX('T1'!M35,'T2'!K35),MAX('T1'!M35,'T2'!K35),COUNTRY_INFO!F35*0.33),IF(COUNTRY_INFO!K35=2,IF(COUNTRY_INFO!F35*0.5>MAX('T1'!M35,'T2'!K35),MAX('T1'!M35,'T2'!K35),COUNTRY_INFO!F35*0.5),IF(COUNTRY_INFO!K35=3,IF(COUNTRY_INFO!F35>MAX('T1'!M35,'T2'!K35),MAX('T1'!M35,'T2'!K35),COUNTRY_INFO!F35),0))) -> 49895 | AE35: =IF(AND(COUNTRY_INFO!K35>0,COUNTRY_INFO!K35<4),IF(Z35>0,IF(COUNTRY_INFO!K35=1, AD35/(COUNTRY_INFO!F35*0.33)*100, IF(COUNTRY_INFO!K35=2, AD35/(COUNTRY_INFO!F35*0.5)*100, IF(COUNTRY_INFO!K35=3, AD35/COUNTRY_INFO!F35*100))),"-"),0) -> 100 | AF35: =IF(COUNTRY_INFO!K35=2,IF(COUNTRY_INFO!G35*0.2>MAX('T1'!N35,'T2'!L35),MAX('T1'!N35,'T2'!L35),COUNTRY_INFO!G35*0.2),IF(COUNTRY_INFO!K35=3,IF(COUNTRY_INFO!G35>MAX('T1'!N35,'T2'!L35),MAX('T1'!N35,'T2'!L35),COUNTRY_INFO!G35),0)) -> 39222.8 | AG35: =IF(AND(COUNTRY_INFO!K35>0,COUNTRY_INFO!K35<4),IF(Z35>0,IF(COUNTRY_INFO!K35=1, 0, IF(COUNTRY_INFO!K35=2, AF35/(COUNTRY_INFO!G35*0.2)*100, IF(COUNTRY_INFO!K35=3, AF35/COUNTRY_INFO!G35*100))),"-"),0) -> 100 | AH35: 89117.8 | AI35: =IF(AND(COUNTRY_INFO!K35>0,COUNTRY_INFO!K35<4), IF(AC35/Z35*100<>0, IF(AH35/Z35*100>100,100,AH35/Z35*100), "-"),0) -> 100 | AK35: =IF(AND(D35<>0, D35<>"Unknown",D35<>"Stopped",D35<>"Not required"),D35/COUNTRY_INFO!D35, 0) -> 0 | AL35: =IF(AND(J35<>0,J35<>"Unknown",J35<>"Stopped",J35<>"Not required"),J35/COUNTRY_INFO!D35, 0) -> 0 | AM35: =IF(AND(P35<>0,P35<>"Unknown",P35<>"Not required"),P35/(COUNTRY_INFO!E35+COUNTRY_INFO!F35), 0) -> 1 | AN35: =IF(AND(Z35<>0,Z35<>"Unknown",Z35<>"Not required"),IF(COUNTRY_INFO!K35=1,1,IF(COUNTRY_INFO!K35=2,0.5*COUNTRY_INFO!F35/(0.5*COUNTRY_INFO!F35+0.2*COUNTRY_INFO!G35),IF(COUNTRY_INFO!K35=3,COUNTRY_INFO!F35/(COUNTRY_INFO!F35+COUNTRY_INFO!G35)))),0) -> 0.5598769269 | AO35: =IF(AND(Z35<>0,Z35<>"Unknown",Z35<>"Not required"),IF(COUNTRY_INFO!K35=1,0,IF(COUNTRY_INFO!K35=2,0.2*COUNTRY_INFO!G35/(0.5*COUNTRY_INFO!F35+0.2*COUNTRY_INFO!G35),IF(COUNTRY_INFO!K35=3,COUNTRY_INFO!G35/(COUNTRY_INFO!F35+COUNTRY_INFO!G35)))),0) -> 0.4401230731 | AP35: =MAX(COUNTRY_INFO!D35*AK35*PROFILE!$G$7,COUNTRY_INFO!D35*AL35*PROFILE!$G$7) -> 0 | AQ35: =MAX(COUNTRY_INFO!D35*AK35*PROFILE!$G$8,COUNTRY_INFO!D35*AL35*PROFILE!$G$8,COUNTRY_INFO!D35*AM35*PROFILE!$G$8) -> 40539.46377 | AR35: =MAX(COUNTRY_INFO!D35*AK35*PROFILE!$G$9,COUNTRY_INFO!D35*AL35*PROFILE!$G$9,COUNTRY_INFO!D35*AM35*PROFILE!$G$9,IF(AND(DISTRICT!Z35<>"Unknown",Z35<>"Not required"),COUNTRY_INFO!O35*DISTRICT!AN35,0)) -> 99789.72556 | AS35: =MAX(COUNTRY_INFO!D35*AK35*PROFILE!$G$10,COUNTRY_INFO!D35*AL35*PROFILE!$G$10,IF(AND(DISTRICT!Z35<>"Unknown",Z35<>"Not required"),COUNTRY_INFO!O35*DISTRICT!AO35,0)) -> 34157.37602 | AT35: 174486.5654 | AU35: Y | AV35: =MAX('MDA2'!J35,'MDA5'!J35,'T1'!L35,'T2'!J35,T3_R1!K35,T3_R2!K35) -> 42046 | AW35: =MAX('MDA1'!K35,'MDA2'!K35,'MDA3'!I35,'MDA3'!L35,'MDA5'!K35,'T1'!M35,'T2'!K35,T3_R1!L35,T3_R2!L35) -> 92972 | AX35: =MAX('MDA1'!L35,'MDA2'!L35,'MDA3'!J35,'MDA3'!M35,'MDA5'!L35,'T1'!N35,'T2'!L35,T3_R1!M35,T3_R2!M35) -> 209152 | AY35: 344170 | AZ35: =MAX('MDA2'!J35,'MDA5'!J35,T35) -> 40540 | BA35: =MAX('MDA1'!K35,'MDA2'!K35,'MDA3'!I35,'MDA3'!L35,'MDA5'!K35,V35,AD35) -> 92972 | BB35: =MAX('MDA1'!L35,'MDA2'!L35,'MDA3'!J35,'MDA3'!M35,'MDA5'!L35,AF35) -> 39222.8 | BC35: 172734.8 | BD35: 98.99604571
A36: =IF(COUNTRY_INFO!A36=0," ",COUNTRY_INFO!A36) -> RWANDA | B36: =IF(COUNTRY_INFO!B36=0," ",COUNTRY_INFO!B36) -> Western | C36: =IF(COUNTRY_INFO!C36=0," ",COUNTRY_INFO!C36) -> Rusizi | D36: =COUNTRY_INFO!L36 -> Not required | G36: =MAX('MDA1'!M36,'MDA2'!M36,'MDA5'!M36) -> 0 | H36: =IF(AND(COUNTRY_INFO!H36>0,COUNTRY_INFO!H36<4),IF(D36>MAX('MDA1'!M36,'MDA2'!M36,'MDA5'!M36),MAX('MDA1'!M36,'MDA2'!M36,'MDA5'!M36),D36),0) -> 0 | I36: =IF(AND(COUNTRY_INFO!H36>0,COUNTRY_INFO!H36<4), IF(G36/D36*100<>0, IF(G36/D36*100>100,100,G36/D36*100), "-"),0) -> 0 | J36: =COUNTRY_INFO!M36 -> Not required | M36: =MAX('MDA1'!M36,MAX('MDA3'!I36,'MDA3'!L36)+MAX('MDA3'!J36,'MDA3'!M36)) -> 0 | N36: =IF(AND(COUNTRY_INFO!I36>0,COUNTRY_INFO!I36<4),IF(J36>MAX('MDA1'!M36,MAX('MDA3'!I36,'MDA3'!L36)+MAX('MDA3'!J36,'MDA3'!M36)),MAX('MDA1'!M36,MAX('MDA3'!I36,'MDA3'!L36)+MAX('MDA3'!J36,'MDA3'!M36)),J36),0) -> 0 | O36: =IF(AND(COUNTRY_INFO!I36>0,COUNTRY_INFO!I36<4), IF(M36/J36*100<>0, IF(M36/J36*100>100,100,M36/J36*100), "-"),0) -> 0 | P36: =COUNTRY_INFO!N36 -> 201965 | S36: =SUM(MAX('MDA2'!J36,'MDA5'!J36, 'T1'!L36, MAX(T3_R1!K36, T3_R2!K36)), MAX('MDA1'!K36, 'MDA2'!K36, 'MDA5'!K36,'T1'!M36, MAX(T3_R1!L36, T3_R2!L36)), MAX('MDA1'!L36, 'MDA2'!L36, 'MDA5'!L36,'T1'!N36, MAX(T3_R1!M36, T3_R2!M36))) -> 486148 | T36: =IF(AND(COUNTRY_INFO!J36>1,COUNTRY_INFO!J36<4),IF(COUNTRY_INFO!E36>MAX('MDA2'!J36,'MDA5'!J36,'T1'!L36,MAX(T3_R1!K36,T3_R2!K36)),MAX('MDA2'!J36,'MDA5'!J36,'T1'!L36,MAX(T3_R1!K36,T3_R2!K36)),COUNTRY_INFO!E36),0) -> 58345 | U36: =IF(AND(COUNTRY_INFO!J36>1,COUNTRY_INFO!J36<4), IF(T36/COUNTRY_INFO!E36*100<>0, IF(T36/COUNTRY_INFO!E36*100>100,100,T36/COUNTRY_INFO!E36*100), "-"),0) -> 100 | V36: =IF(AND(COUNTRY_INFO!J36>1,COUNTRY_INFO!J36<4),IF(COUNTRY_INFO!F36>MAX('MDA1'!K36,'MDA2'!K36,'MDA5'!K36,'T1'!M36,MAX(T3_R1!L36,T3_R2!L36)),MAX('MDA1'!K36,'MDA2'!K36,'MDA5'!K36,'T1'!M36,MAX(T3_R1!L36,T3_R2!L36)),COUNTRY_INFO!F36),0) -> 136676 | W36: =IF(AND(COUNTRY_INFO!J36>1,COUNTRY_INFO!J36<4), IF(V36/COUNTRY_INFO!F36*100<>0, IF(V36/COUNTRY_INFO!F36*100>100,100,V36/COUNTRY_INFO!F36*100), "-"),0) -> 95.1650188 | X36: 195021 | Y36: =IF(AND(COUNTRY_INFO!J36>1,COUNTRY_INFO!J36<4), IF(S36/P36*100<>0, IF(X36/P36*100>100,100,X36/P36*100), "-"),0) -> 96.56178051 | Z36: =COUNTRY_INFO!O36 -> 77433.246 | AC36: =MAX('T1'!L36,'T2'!J36)+MAX('T1'!M36,'T2'!K36)+MAX('T1'!N36,'T2'!L36) -> 374552 | AD36: =IF(COUNTRY_INFO!K36=1,IF(COUNTRY_INFO!F36*0.33>MAX('T1'!M36,'T2'!K36),MAX('T1'!M36,'T2'!K36),COUNTRY_INFO!F36*0.33),IF(COUNTRY_INFO!K36=2,IF(COUNTRY_INFO!F36*0.5>MAX('T1'!M36,'T2'!K36),MAX('T1'!M36,'T2'!K36),COUNTRY_INFO!F36*0.5),IF(COUNTRY_INFO!K36=3,IF(COUNTRY_INFO!F36>MAX('T1'!M36,'T2'!K36),MAX('T1'!M36,'T2'!K36),COUNTRY_INFO!F36),0))) -> 71810 | AE36: =IF(AND(COUNTRY_INFO!K36>0,COUNTRY_INFO!K36<4),IF(Z36>0,IF(COUNTRY_INFO!K36=1, AD36/(COUNTRY_INFO!F36*0.33)*100, IF(COUNTRY_INFO!K36=2, AD36/(COUNTRY_INFO!F36*0.5)*100, IF(COUNTRY_INFO!K36=3, AD36/COUNTRY_INFO!F36*100))),"-"),0) -> 100 | AF36: =IF(COUNTRY_INFO!K36=2,IF(COUNTRY_INFO!G36*0.2>MAX('T1'!N36,'T2'!L36),MAX('T1'!N36,'T2'!L36),COUNTRY_INFO!G36*0.2),IF(COUNTRY_INFO!K36=3,IF(COUNTRY_INFO!G36>MAX('T1'!N36,'T2'!L36),MAX('T1'!N36,'T2'!L36),COUNTRY_INFO!G36),0)) -> 56450.4 | AG36: =IF(AND(COUNTRY_INFO!K36>0,COUNTRY_INFO!K36<4),IF(Z36>0,IF(COUNTRY_INFO!K36=1, 0, IF(COUNTRY_INFO!K36=2, AF36/(COUNTRY_INFO!G36*0.2)*100, IF(COUNTRY_INFO!K36=3, AF36/COUNTRY_INFO!G36*100))),"-"),0) -> 100 | AH36: 128260.4 | AI36: =IF(AND(COUNTRY_INFO!K36>0,COUNTRY_INFO!K36<4), IF(AC36/Z36*100<>0, IF(AH36/Z36*100>100,100,AH36/Z36*100), "-"),0) -> 100 | AK36: =IF(AND(D36<>0, D36<>"Unknown",D36<>"Stopped",D36<>"Not required"),D36/COUNTRY_INFO!D36, 0) -> 0 | AL36: =IF(AND(J36<>0,J36<>"Unknown",J36<>"Stopped",J36<>"Not required"),J36/COUNTRY_INFO!D36, 0) -> 0 | AM36: =IF(AND(P36<>0,P36<>"Unknown",P36<>"Not required"),P36/(COUNTRY_INFO!E36+COUNTRY_INFO!F36), 0) -> 1 | AN36: =IF(AND(Z36<>0,Z36<>"Unknown",Z36<>"Not required"),IF(COUNTRY_INFO!K36=1,1,IF(COUNTRY_INFO!K36=2,0.5*COUNTRY_INFO!F36/(0.5*COUNTRY_INFO!F36+0.2*COUNTRY_INFO!G36),IF(COUNTRY_INFO!K36=3,COUNTRY_INFO!F36/(COUNTRY_INFO!F36+COUNTRY_INFO!G36)))),0) -> 0.559876626 | AO36: =IF(AND(Z36<>0,Z36<>"Unknown",Z36<>"Not required"),IF(COUNTRY_INFO!K36=1,0,IF(COUNTRY_INFO!K36=2,0.2*COUNTRY_INFO!G36/(0.5*COUNTRY_INFO!F36+0.2*COUNTRY_INFO!G36),IF(COUNTRY_INFO!K36=3,COUNTRY_INFO!G36/(COUNTRY_INFO!F36+COUNTRY_INFO!G36)))),0) -> 0.440123374 | AP36: =MAX(COUNTRY_INFO!D36*AK36*PROFILE!$G$7,COUNTRY_INFO!D36*AL36*PROFILE!$G$7) -> 0 | AQ36: =MAX(COUNTRY_INFO!D36*AK36*PROFILE!$G$8,COUNTRY_INFO!D36*AL36*PROFILE!$G$8,COUNTRY_INFO!D36*AM36*PROFILE!$G$8) -> 58345.29875 | AR36: =MAX(COUNTRY_INFO!D36*AK36*PROFILE!$G$9,COUNTRY_INFO!D36*AL36*PROFILE!$G$9,COUNTRY_INFO!D36*AM36*PROFILE!$G$9,IF(AND(DISTRICT!Z36<>"Unknown",Z36<>"Not required"),COUNTRY_INFO!O36*DISTRICT!AN36,0)) -> 143619.5945 | AS36: =MAX(COUNTRY_INFO!D36*AK36*PROFILE!$G$10,COUNTRY_INFO!D36*AL36*PROFILE!$G$10,IF(AND(DISTRICT!Z36<>"Unknown",Z36<>"Not required"),COUNTRY_INFO!O36*DISTRICT!AO36,0)) -> 34080.18149 | AT36: 236045.0748 | AU36: Y | AV36: =MAX('MDA2'!J36,'MDA5'!J36,'T1'!L36,'T2'!J36,T3_R1!K36,T3_R2!K36) -> 65213 | AW36: =MAX('MDA1'!K36,'MDA2'!K36,'MDA3'!I36,'MDA3'!L36,'MDA5'!K36,'T1'!M36,'T2'!K36,T3_R1!L36,T3_R2!L36) -> 136676 | AX36: =MAX('MDA1'!L36,'MDA2'!L36,'MDA3'!J36,'MDA3'!M36,'MDA5'!L36,'T1'!N36,'T2'!L36,T3_R1!M36,T3_R2!M36) -> 284259 | AY36: 486148 | AZ36: =MAX('MDA2'!J36,'MDA5'!J36,T36) -> 58345 | BA36: =MAX('MDA1'!K36,'MDA2'!K36,'MDA3'!I36,'MDA3'!L36,'MDA5'!K36,V36,AD36) -> 136676 | BB36: =MAX('MDA1'!L36,'MDA2'!L36,'MDA3'!J36,'MDA3'!M36,'MDA5'!L36,AF36) -> 56450.4 | BC36: 236045.0748 | BD36: 100
